Workbook

Sheet Instructions
A1: Instructions
A2: 1 | B2: Click the "Begin Button" below
A3: 2 | B3: Enter the Community using the pull-down menu in cell B2
A4: 3 | B4: Enter the information in cells B3-B11
A5: 4 | B5: Select Yes in cell B14 to use the default borrowing rate* or No and then enter the known borrowing rate for the Community
A6: 5 | B6: Click on the "Run Model" button to view the results on the Drinking Water Outputs page
A7: 6 | B7: Navigate through the results using the "Go To Outputs" buttons to view the results on for Wastewater or Combined Household Bills
A8: 7 | B8: Click on the "New Model" button from any page to return to the Inputs page and repeat steps 2-6
B13: * The default borrowing rate is the average of the most recent National A-rated municipal bond yield curve rates at various maturities.

Sheet Inputs
A1: Model Inputs
A2: Community | B2: Ackley
A3: Current Average Household Monthly Drinking Water Bill ($) | B3: 0
A4: Current Annual Growth Rate in Drinking Water Bills* | B4: 0
A5: Current Average Household Monthly Wastewater Bill ($) | B5: 0
A6: Current Annual Growth Rate in Wastewater Bills* | B6: 0
A8: Planned Expenditure on Drinking Water Infrastructure | B8: 0
A9: Number of Years that the Infrastructure Will be Financed | B9: 0
A10: Planned Expenditure on Wastewater Infrastructure | B10: 0
A11: Number of Years that the Infrastructure Will be Financed | B11: 0
A13: Annual Interest Rate
A14: Use Default Rate? | B14: Yes
A15: If not, Enter Annual Interest Rate for Financing
A19: * - Note: The current annual growth rate in bills should
A20: incorporate all projected cost increases
A21: EXCEPT for those associated with the debt
A22: payments on infrastructure.

Sheet Drinking Water Output
A1: Model Outputs - Drinking Water
A2: Community | B2: =city -> Ackley
A3: Community Population (2021) | B3: ='Drinking Water Analysis Sheet'!M6 -> 1481.642424
A4: Increase in Average Monthly Drinking Water Bill | B4: =IF(drinkprincipal>0,((PMT(rate,drinkyears,-drinkprincipal))/('Drinking Water Analysis Sheet'!N6/2.5))/12,0) -> 0
A5: Probability that Monthly Drinking Water Bill
A6: Exceeds 2.5% of Median Household Income | B6: =drinkmaxprob -> 0.0001046970204
A7: Sustainability Risk | B7: =IF(B6<0.33,"Low",IF(B6<0.67,"Moderate","High")) -> Low
A9: Current MHI (2021) | B9: =+B24 -> 53567.23031
A10: Current Drinking Water Bill | B10: =+drinkbill -> 0
A11: Projected Average Drinking Water Bill | B11: =+B10+B4 -> 0
A17: Note: The graph shows the typical sustainable threshold
A18: for the community (blue line), forecast into the future,
A19: along with a range of estimates developed in a
A20: statistical model. It also shows the projected drinking water
A21: bills using the inputs you provided.
A23: Projections | B23: 2021 | C23: 2022 | D23: 2023 | E23: 2024 | F23: 2025 | G23: 2026 | H23: 2027 | I23: 2028 | J23: 2029 | K23: 2030 | L23: 2031 | M23: 2032 | N23: 2033
A24: Median Household Income | B24: ='Drinking Water Analysis Sheet'!M2*12 -> 53567.23031 | C24: ='Drinking Water Analysis Sheet'!N2*12 -> 53046.53531 | D24: ='Drinking Water Analysis Sheet'!O2*12 -> 52814.83453 | E24: ='Drinking Water Analysis Sheet'!P2*12 -> 52830.66323 | F24: ='Drinking Water Analysis Sheet'!Q2*12 -> 52972.46307 | G24: ='Drinking Water Analysis Sheet'!R2*12 -> 53169.35351 | H24: ='Drinking Water Analysis Sheet'!S2*12 -> 53414.28975 | I24: ='Drinking Water Analysis Sheet'!T2*12 -> 53681.35126 | J24: ='Drinking Water Analysis Sheet'!U2*12 -> 53959.13455 | K24: ='Drinking Water Analysis Sheet'!V2*12 -> 53979.79468 | L24: ='Drinking Water Analysis Sheet'!W2*12 -> 54029.5084 | M24: ='Drinking Water Analysis Sheet'!X2*12 -> 54066.1623 | N24: ='Drinking Water Analysis Sheet'!Y2*12 -> 54056.41555
A25: Monthly Drinking Water Bill | B25: ='Drinking Water Analysis Sheet'!M7 -> 0 | C25: ='Drinking Water Analysis Sheet'!N7 -> 0 | D25: ='Drinking Water Analysis Sheet'!O7 -> 0 | E25: ='Drinking Water Analysis Sheet'!P7 -> 0 | F25: ='Drinking Water Analysis Sheet'!Q7 -> 0 | G25: ='Drinking Water Analysis Sheet'!R7 -> 0 | H25: ='Drinking Water Analysis Sheet'!S7 -> 0 | I25: ='Drinking Water Analysis Sheet'!T7 -> 0 | J25: ='Drinking Water Analysis Sheet'!U7 -> 0 | K25: ='Drinking Water Analysis Sheet'!V7 -> 0 | L25: ='Drinking Water Analysis Sheet'!W7 -> 0 | M25: ='Drinking Water Analysis Sheet'!X7 -> 0 | N25: ='Drinking Water Analysis Sheet'!Y7 -> 0
A26: % MHI | B26: =+(B25/B24)*12 -> 0 | C26: =+(C25/C24)*12 -> 0 | D26: 0 | E26: 0 | F26: 0 | G26: 0 | H26: 0 | I26: 0 | J26: 0 | K26: 0 | L26: 0 | M26: 0 | N26: 0
A27: Population | B27: =VLOOKUP(city,poptable,B23-2008,FALSE) -> 1481.642424 | C27: 1471.618182 | D27: 1461.593939 | E27: 1451.569697 | F27: 1441.545455 | G27: 1431.521212 | H27: 1421.49697 | I27: 1411.472727 | J27: 1401.448485 | K27: 1391.424242 | L27: 1381.4 | M27: 1371.375758 | N27: 1361.351515
A29: Projections | B29: 2034 | C29: 2035 | D29: 2036 | E29: 2037 | F29: 2038 | G29: 2039 | H29: 2040 | I29: 2041 | J29: 2042 | K29: 2043 | L29: 2044 | M29: 2045 | N29: 2046
A30: Median Household Income | B30: =+'Drinking Water Analysis Sheet'!Z2*12 -> 54055.97022 | C30: =+'Drinking Water Analysis Sheet'!AA2*12 -> 54049.92484 | D30: =+'Drinking Water Analysis Sheet'!AB2*12 -> 54036.00775 | E30: =+'Drinking Water Analysis Sheet'!AC2*12 -> 54024.3398 | F30: =+'Drinking Water Analysis Sheet'!AD2*12 -> 54011.01293 | G30: =+'Drinking Water Analysis Sheet'!AE2*12 -> 53996.44995 | H30: =+'Drinking Water Analysis Sheet'!AF2*12 -> 53982.35306 | I30: =+'Drinking Water Analysis Sheet'!AG2*12 -> 53967.83634 | J30: =+'Drinking Water Analysis Sheet'!AH2*12 -> 53953.14601 | K30: =+'Drinking Water Analysis Sheet'!AI2*12 -> 53938.5408 | L30: =+'Drinking Water Analysis Sheet'!AJ2*12 -> 53923.83914 | M30: =+'Drinking Water Analysis Sheet'!AK2*12 -> 53909.11759 | N30: =+'Drinking Water Analysis Sheet'!AL2*12 -> 53894.40951
A31: Monthly Drinking Water Bill | B31: =+'Drinking Water Analysis Sheet'!Z7 -> 0 | C31: =+'Drinking Water Analysis Sheet'!AA7 -> 0 | D31: =+'Drinking Water Analysis Sheet'!AB7 -> 0 | E31: =+'Drinking Water Analysis Sheet'!AC7 -> 0 | F31: =+'Drinking Water Analysis Sheet'!AD7 -> 0 | G31: =+'Drinking Water Analysis Sheet'!AE7 -> 0 | H31: =+'Drinking Water Analysis Sheet'!AF7 -> 0 | I31: =+'Drinking Water Analysis Sheet'!AG7 -> 0 | J31: =+'Drinking Water Analysis Sheet'!AH7 -> 0 | K31: =+'Drinking Water Analysis Sheet'!AI7 -> 0 | L31: =+'Drinking Water Analysis Sheet'!AJ7 -> 0 | M31: =+'Drinking Water Analysis Sheet'!AK7 -> 0 | N31: =+'Drinking Water Analysis Sheet'!AL7 -> 0
A32: % MHI | B32: =+(B31/B30)*12 -> 0 | C32: 0 | D32: 0 | E32: 0 | F32: 0 | G32: 0 | H32: 0 | I32: 0 | J32: 0 | K32: 0 | L32: 0 | M32: 0 | N32: 0
A33: Population | B33: =VLOOKUP(city,poptable,B29-2008,FALSE) -> 1351.327273 | C33: 1341.30303 | D33: 1331.278788 | E33: 1321.254545 | F33: 1311.230303 | G33: 1301.206061 | H33: 1291.181818 | I33: 1281.157576 | J33: 1271.133333 | K33: 1261.109091 | L33: 1251.084848 | M33: 1241.060606 | N33: 1231.036364
A35: Projections | B35: 2047 | C35: 2048 | D35: 2049 | E35: 2050 | F35: 2051
A36: Median Household Income | B36: =+'Drinking Water Analysis Sheet'!AM2*12 -> 53879.68081 | C36: =+'Drinking Water Analysis Sheet'!AN2*12 -> 53864.95092 | D36: =+'Drinking Water Analysis Sheet'!AO2*12 -> 53850.22271 | E36: =+'Drinking Water Analysis Sheet'!AP2*12 -> 53835.49036 | F36: =+'Drinking Water Analysis Sheet'!AQ2*12 -> 53820.75825
A37: Monthly Drinking Water Bill | B37: =+'Drinking Water Analysis Sheet'!AM7 -> 0 | C37: =+'Drinking Water Analysis Sheet'!AN7 -> 0 | D37: =+'Drinking Water Analysis Sheet'!AO7 -> 0 | E37: =+'Drinking Water Analysis Sheet'!AP7 -> 0 | F37: =+'Drinking Water Analysis Sheet'!AQ7 -> 0
A38: % MHI | B38: =+B37/B36*12 -> 0 | C38: =+C37/C36*12 -> 0 | D38: 0 | E38: 0 | F38: 0
A39: Population | B39: =VLOOKUP(city,poptable,B35-2008,FALSE) -> 1221.012121 | C39: 1210.987879 | D39: 1200.963636 | E39: 1190.939394 | F39: 1180.915152

Sheet Wastewater Output
A1: Model Outputs - Wastewater
A2: Community | B2: =city -> Ackley
A3: Community Population (2021) | B3: ='Wastewater Analysis Sheet'!M6 -> 1481.642424
A4: Increase in Average Monthly Wastewater Bill | B4: =IF(wasteprincipal>0,((PMT(wasterate,wasteyears,-wasteprincipal))/('Wastewater Analysis Sheet'!N6/2.5))/12,0) -> 0
A5: Probability that Monthly Wastewater Bill
A6: Exceeds 2.0% of Median Household Income | B6: =wastemaxprob -> 0.0001046970204
A7: Sustainability Risk | B7: =IF(B6<0.33,"Low",IF(B6<0.67,"Moderate","High")) -> Low
A9: Current MHI (2021) | B9: =+B24 -> 53567.23031
A10: Current Wastewater Bill | B10: =+wastebill -> 0
A11: Projected Average Wastewater Bill | B11: =+B10+B4 -> 0
A17: Note: The graph shows the typical sustainable threshold
A18: for the community (blue line), forecast into the future,
A19: along with a range of estimates developed in a
A20: statistical model. It also shows the projected wastewater
A21: bills using the inputs you provided.
A23: Projections | B23: 2021 | C23: 2022 | D23: 2023 | E23: 2024 | F23: 2025 | G23: 2026 | H23: 2027 | I23: 2028 | J23: 2029 | K23: 2030 | L23: 2031 | M23: 2032 | N23: 2033
A24: Median Household Income | B24: ='Wastewater Analysis Sheet'!M2*12 -> 53567.23031 | C24: ='Wastewater Analysis Sheet'!N2*12 -> 53046.53531 | D24: ='Wastewater Analysis Sheet'!O2*12 -> 52814.83453 | E24: ='Wastewater Analysis Sheet'!P2*12 -> 52830.66323 | F24: ='Wastewater Analysis Sheet'!Q2*12 -> 52972.46307 | G24: ='Wastewater Analysis Sheet'!R2*12 -> 53169.35351 | H24: ='Wastewater Analysis Sheet'!S2*12 -> 53414.28975 | I24: ='Wastewater Analysis Sheet'!T2*12 -> 53681.35126 | J24: ='Wastewater Analysis Sheet'!U2*12 -> 53959.13455 | K24: ='Wastewater Analysis Sheet'!V2*12 -> 53979.79468 | L24: ='Wastewater Analysis Sheet'!W2*12 -> 54029.5084 | M24: ='Wastewater Analysis Sheet'!X2*12 -> 54066.1623 | N24: ='Wastewater Analysis Sheet'!Y2*12 -> 54056.41555
A25: Monthly Wastewater Bill | B25: ='Wastewater Analysis Sheet'!M7 -> 0 | C25: ='Wastewater Analysis Sheet'!N7 -> 0 | D25: ='Wastewater Analysis Sheet'!O7 -> 0 | E25: ='Wastewater Analysis Sheet'!P7 -> 0 | F25: ='Wastewater Analysis Sheet'!Q7 -> 0 | G25: ='Wastewater Analysis Sheet'!R7 -> 0 | H25: ='Wastewater Analysis Sheet'!S7 -> 0 | I25: ='Wastewater Analysis Sheet'!T7 -> 0 | J25: ='Wastewater Analysis Sheet'!U7 -> 0 | K25: ='Wastewater Analysis Sheet'!V7 -> 0 | L25: ='Wastewater Analysis Sheet'!W7 -> 0 | M25: ='Wastewater Analysis Sheet'!X7 -> 0 | N25: ='Wastewater Analysis Sheet'!Y7 -> 0
A26: %MHI | B26: =+B25*12/B24 -> 0 | C26: =+C25*12/C24 -> 0 | D26: 0 | E26: 0 | F26: 0 | G26: 0 | H26: 0 | I26: 0 | J26: 0 | K26: 0 | L26: 0 | M26: 0 | N26: 0
A27: Population | B27: =VLOOKUP(city,poptable,B23-2008,FALSE) -> 1481.642424 | C27: 1471.618182 | D27: 1461.593939 | E27: 1451.569697 | F27: 1441.545455 | G27: 1431.521212 | H27: 1421.49697 | I27: 1411.472727 | J27: 1401.448485 | K27: 1391.424242 | L27: 1381.4 | M27: 1371.375758 | N27: 1361.351515
A29: Projections | B29: 2034 | C29: 2035 | D29: 2036 | E29: 2037 | F29: 2038 | G29: 2039 | H29: 2040 | I29: 2041 | J29: 2042 | K29: 2043 | L29: 2044 | M29: 2045 | N29: 2046
A30: Median Household Income | B30: =+'Wastewater Analysis Sheet'!Z2*12 -> 54055.97022 | C30: =+'Wastewater Analysis Sheet'!AA2*12 -> 54049.92484 | D30: =+'Wastewater Analysis Sheet'!AB2*12 -> 54036.00775 | E30: =+'Wastewater Analysis Sheet'!AC2*12 -> 54024.3398 | F30: =+'Wastewater Analysis Sheet'!AD2*12 -> 54011.01293 | G30: =+'Wastewater Analysis Sheet'!AE2*12 -> 53996.44995 | H30: =+'Wastewater Analysis Sheet'!AF2*12 -> 53982.35306 | I30: =+'Wastewater Analysis Sheet'!AG2*12 -> 53967.83634 | J30: =+'Wastewater Analysis Sheet'!AH2*12 -> 53953.14601 | K30: =+'Wastewater Analysis Sheet'!AI2*12 -> 53938.5408 | L30: =+'Wastewater Analysis Sheet'!AJ2*12 -> 53923.83914 | M30: =+'Wastewater Analysis Sheet'!AK2*12 -> 53909.11759 | N30: =+'Wastewater Analysis Sheet'!AL2*12 -> 53894.40951
A31: Monthly Wastewater Bill | B31: ='Wastewater Analysis Sheet'!Z7 -> 0 | C31: ='Wastewater Analysis Sheet'!AA7 -> 0 | D31: ='Wastewater Analysis Sheet'!AB7 -> 0 | E31: ='Wastewater Analysis Sheet'!AC7 -> 0 | F31: ='Wastewater Analysis Sheet'!AD7 -> 0 | G31: ='Wastewater Analysis Sheet'!AE7 -> 0 | H31: ='Wastewater Analysis Sheet'!AF7 -> 0 | I31: ='Wastewater Analysis Sheet'!AG7 -> 0 | J31: ='Wastewater Analysis Sheet'!AH7 -> 0 | K31: ='Wastewater Analysis Sheet'!AI7 -> 0 | L31: ='Wastewater Analysis Sheet'!AJ7 -> 0 | M31: ='Wastewater Analysis Sheet'!AK7 -> 0 | N31: ='Wastewater Analysis Sheet'!AL7 -> 0
A32: % MHI | B32: =+(B31/B30)*12 -> 0 | C32: =+(C31/C30)*12 -> 0 | D32: 0 | E32: 0 | F32: 0 | G32: 0 | H32: 0 | I32: 0 | J32: 0 | K32: 0 | L32: 0 | M32: 0 | N32: 0
A33: Population | B33: =VLOOKUP(city,poptable,B29-2008,FALSE) -> 1351.327273 | C33: 1341.30303 | D33: 1331.278788 | E33: 1321.254545 | F33: 1311.230303 | G33: 1301.206061 | H33: 1291.181818 | I33: 1281.157576 | J33: 1271.133333 | K33: 1261.109091 | L33: 1251.084848 | M33: 1241.060606 | N33: 1231.036364
A35: Projections | B35: 2047 | C35: 2048 | D35: 2049 | E35: 2050 | F35: 2051
A36: Median Household Income | B36: =+'Wastewater Analysis Sheet'!AM2*12 -> 53879.68081 | C36: =+'Wastewater Analysis Sheet'!AN2*12 -> 53864.95092 | D36: =+'Wastewater Analysis Sheet'!AO2*12 -> 53850.22271 | E36: =+'Wastewater Analysis Sheet'!AP2*12 -> 53835.49036 | F36: =+'Wastewater Analysis Sheet'!AQ2*12 -> 53820.75825
A37: Monthly Wastewater Bill | B37: =+'Wastewater Analysis Sheet'!AM7 -> 0 | C37: =+'Wastewater Analysis Sheet'!AN7 -> 0 | D37: =+'Wastewater Analysis Sheet'!AO7 -> 0 | E37: =+'Wastewater Analysis Sheet'!AP7 -> 0 | F37: =+'Wastewater Analysis Sheet'!AQ7 -> 0
A38: % MHI | B38: =+B37/B36*12 -> 0 | C38: =+C37/C36*12 -> 0 | D38: 0 | E38: 0 | F38: 0
A39: Population | B39: =VLOOKUP(city,poptable,B35-2008,FALSE) -> 1221.012121 | C39: 1210.987879 | D39: 1200.963636 | E39: 1190.939394 | F39: 1180.915152

Sheet Drinking Water Analysis Sheet (hidden)
A1: City | B1: 2010 | C1: 2011 | D1: 2012 | E1: 2013 | F1: 2014 | G1: 2015 | H1: 2016 | I1: 2017 | J1: 2018 | K1: 2019 | L1: 2020 | M1: 2021 | N1: 2022 | O1: 2023 | P1: 2024 | Q1: 2025 | R1: 2026 | S1: 2027 | T1: 2028 | U1: 2029 | V1: 2030 | W1: 2031 | X1: 2032 | Y1: 2033 | Z1: 2034 | AA1: 2035 | AB1: 2036 | AC1: 2037 | AD1: 2038 | AE1: 2039 | AF1: 2040 | AG1: 2041 | AH1: 2042 | AI1: 2043 | AJ1: 2044 | AK1: 2045 | AL1: 2046 | AM1: 2047 | AN1: 2048 | AO1: 2049 | AP1: 2050 | AQ1: 2051 | AT1: rate | AU1: =IF(Inputs!B14="Yes",VLOOKUP(drinkyears,yieldcurve,2),userrate) -> 0.0218 | AW1: 0 | AX1: 0.0218 | AZ1: Yes
A2: Income | B2: =VLOOKUP(city,incometable,'Drinking Water Analysis Sheet'!B1-2008,FALSE)/12 -> 3185.333333 | C2: =VLOOKUP(city,incometable,'Drinking Water Analysis Sheet'!C1-2008,FALSE)/12 -> 3411.5 | D2: =VLOOKUP(city,incometable,'Drinking Water Analysis Sheet'!D1-2008,FALSE)/12 -> 3524.333333 | E2: =VLOOKUP(city,incometable,'Drinking Water Analysis Sheet'!E1-2008,FALSE)/12 -> 3750 | F2: =VLOOKUP(city,incometable,'Drinking Water Analysis Sheet'!F1-2008,FALSE)/12 -> 3501.583333 | G2: =VLOOKUP(city,incometable,'Drinking Water Analysis Sheet'!G1-2008,FALSE)/12 -> 3671.916667 | H2: =VLOOKUP(city,incometable,'Drinking Water Analysis Sheet'!H1-2008,FALSE)/12 -> 3813.416667 | I2: =VLOOKUP(city,incometable,'Drinking Water Analysis Sheet'!I1-2008,FALSE)/12 -> 3893.833333 | J2: =VLOOKUP(city,incometable,'Drinking Water Analysis Sheet'!J1-2008,FALSE)/12 -> 4237.5 | K2: =VLOOKUP(city,incometable,'Drinking Water Analysis Sheet'!K1-2008,FALSE)/12 -> 4774.333333 | L2: =VLOOKUP(city,incometable,'Drinking Water Analysis Sheet'!L1-2008,FALSE)/12 -> 4566.538092 | M2: =VLOOKUP(city,incometable,'Drinking Water Analysis Sheet'!M1-2008,FALSE)/12 -> 4463.935859 | N2: =VLOOKUP(city,incometable,'Drinking Water Analysis Sheet'!N1-2008,FALSE)/12 -> 4420.544609 | O2: =VLOOKUP(city,incometable,'Drinking Water Analysis Sheet'!O1-2008,FALSE)/12 -> 4401.23621 | P2: =VLOOKUP(city,incometable,'Drinking Water Analysis Sheet'!P1-2008,FALSE)/12 -> 4402.555269 | Q2: =VLOOKUP(city,incometable,'Drinking Water Analysis Sheet'!Q1-2008,FALSE)/12 -> 4414.371922 | R2: =VLOOKUP(city,incometable,'Drinking Water Analysis Sheet'!R1-2008,FALSE)/12 -> 4430.779459 | S2: =VLOOKUP(city,incometable,'Drinking Water Analysis Sheet'!S1-2008,FALSE)/12 -> 4451.190812 | T2: =VLOOKUP(city,incometable,'Drinking Water Analysis Sheet'!T1-2008,FALSE)/12 -> 4473.445939 | U2: =VLOOKUP(city,incometable,'Drinking Water Analysis Sheet'!U1-2008,FALSE)/12 -> 4496.594546 | V2: =VLOOKUP(city,incometable,'Drinking Water Analysis Sheet'!V1-2008,FALSE)/12 -> 4498.316223 | W2: =VLOOKUP(city,incometable,'Drinking Water Analysis Sheet'!W1-2008,FALSE)/12 -> 4502.459033 | X2: =VLOOKUP(city,incometable,'Drinking Water Analysis Sheet'!X1-2008,FALSE)/12 -> 4505.513525 | Y2: =VLOOKUP(city,incometable,'Drinking Water Analysis Sheet'!Y1-2008,FALSE)/12 -> 4504.701296 | Z2: =VLOOKUP(city,incometable,'Drinking Water Analysis Sheet'!Z1-2008,FALSE)/12 -> 4504.664185 | AA2: =VLOOKUP(city,incometable,'Drinking Water Analysis Sheet'!AA1-2008,FALSE)/12 -> 4504.160403 | AB2: =VLOOKUP(city,incometable,'Drinking Water Analysis Sheet'!AB1-2008,FALSE)/12 -> 4503.000646 | AC2: =VLOOKUP(city,incometable,'Drinking Water Analysis Sheet'!AC1-2008,FALSE)/12 -> 4502.028316 | AD2: =VLOOKUP(city,incometable,'Drinking Water Analysis Sheet'!AD1-2008,FALSE)/12 -> 4500.917744 | AE2: =VLOOKUP(city,incometable,'Drinking Water Analysis Sheet'!AE1-2008,FALSE)/12 -> 4499.704162 | AF2: =VLOOKUP(city,incometable,'Drinking Water Analysis Sheet'!AF1-2008,FALSE)/12 -> 4498.529422 | AG2: =VLOOKUP(city,incometable,'Drinking Water Analysis Sheet'!AG1-2008,FALSE)/12 -> 4497.319695 | AH2: =VLOOKUP(city,incometable,'Drinking Water Analysis Sheet'!AH1-2008,FALSE)/12 -> 4496.095501 | AI2: =VLOOKUP(city,incometable,'Drinking Water Analysis Sheet'!AI1-2008,FALSE)/12 -> 4494.8784 | AJ2: =VLOOKUP(city,incometable,'Drinking Water Analysis Sheet'!AJ1-2008,FALSE)/12 -> 4493.653262 | AK2: =VLOOKUP(city,incometable,'Drinking Water Analysis Sheet'!AK1-2008,FALSE)/12 -> 4492.426465 | AL2: =VLOOKUP(city,incometable,'Drinking Water Analysis Sheet'!AL1-2008,FALSE)/12 -> 4491.200793 | AM2: =VLOOKUP(city,incometable,'Drinking Water Analysis Sheet'!AM1-2008,FALSE)/12 -> 4489.973401 | AN2: =VLOOKUP(city,incometable,'Drinking Water Analysis Sheet'!AN1-2008,FALSE)/12 -> 4488.74591 | AO2: =VLOOKUP(city,incometable,'Drinking Water Analysis Sheet'!AO1-2008,FALSE)/12 -> 4487.518559 | AP2: =VLOOKUP(city,incometable,'Drinking Water Analysis Sheet'!AP1-2008,FALSE)/12 -> 4486.290863 | AQ2: =VLOOKUP(city,incometable,'Drinking Water Analysis Sheet'!AQ1-2008,FALSE)/12 -> 4485.063188 | AT2: =MAX(M8:AQ8) -> 0.0001046970204 | AW2: 10 | AX2: 0.036 | AZ2: No
A3: SE | B3: =VLOOKUP(city,setable,B1-2008,FALSE) -> 0 | C3: 0 | D3: 0 | E3: 0 | F3: 0 | G3: 0 | H3: 0 | I3: 0 | J3: 0 | K3: 0 | L3: =VLOOKUP(city,setable,L1-2008,FALSE)/12 -> 213.857045 | M3: 302.4395334 | N3: 370.4112674 | O3: 427.7140899 | P3: 478.19889 | Q3: 523.840638 | R3: 565.8125571 | S3: 604.8790668 | T3: 641.5711349 | U3: 676.2753557 | V3: 709.2835769 | W3: 740.8225349 | X3: 771.0725412 | Y3: 800.179792 | Z3: 828.2647736 | AA3: 855.4281798 | AB3: 881.7551851 | AC3: 907.3186002 | AD3: 932.1812473 | AE3: 956.39778 | AF3: 980.0160964 | AG3: 1003.078454 | AH3: 1025.622358 | AI3: 1047.681276 | AJ3: 1069.285225 | AK3: 1090.461245 | AL3: 1111.233802 | AM3: 1131.625114 | AN3: 1151.655432 | AO3: 1171.343276 | AP3: 1190.705634 | AQ3: 1209.758134 | AW3: 20 | AX3: 0.041
A4: 2.5% Income | B4: =B2*0.025 -> 79.63333333 | C4: 85.2875 | D4: 88.10833333 | E4: 93.75 | F4: 87.53958333 | G4: 91.79791667 | H4: 95.33541667 | I4: 97.34583333 | J4: 105.9375 | K4: 119.3583333 | L4: 114.1634523 | M4: 111.5983965 | N4: 110.5136152 | O4: 110.0309053 | P4: 110.0638817 | Q4: 110.3592981 | R4: 110.7694865 | S4: 111.2797703 | T4: 111.8361485 | U4: 112.4148636 | V4: 112.4579056 | W4: 112.5614758 | X4: 112.6378381 | Y4: 112.6175324 | Z4: 112.6166046 | AA4: 112.6040101 | AB4: 112.5750161 | AC4: 112.5507079 | AD4: 112.5229436 | AE4: 112.4926041 | AF4: 112.4632355 | AG4: 112.4329924 | AH4: 112.4023875 | AI4: 112.37196 | AJ4: 112.3413315 | AK4: 112.3106616 | AL4: 112.2800198 | AM4: 112.249335 | AN4: =AN2*0.025 -> 112.2186477 | AO4: 112.187964 | AP4: 112.1572716 | AQ4: 112.1265797
A5: 2.5% SE | B5: =B3*0.025 -> 0 | C5: 0 | D5: 0 | E5: 0 | F5: 0 | G5: 0 | H5: 0 | I5: 0 | J5: 0 | K5: 0 | L5: 5.346426124 | M5: 7.560988335 | N5: 9.260281686 | O5: 10.69285225 | P5: 11.95497225 | Q5: 13.09601595 | R5: 14.14531393 | S5: 15.12197667 | T5: 16.03927837 | U5: 16.90688389 | V5: 17.73208942 | W5: 18.52056337 | X5: 19.27681353 | Y5: 20.0044948 | Z5: 20.70661934 | AA5: 21.3857045 | AB5: 22.04387963 | AC5: 22.682965 | AD5: 23.30453118 | AE5: 23.9099445 | AF5: 24.50040241 | AG5: 25.07696135 | AH5: 25.64055894 | AI5: 26.1920319 | AJ5: 26.73213062 | AK5: 27.26153113 | AL5: 27.78084506 | AM5: 28.29062785 | AN5: =AN3*0.025 -> 28.79138581 | AO5: 29.2835819 | AP5: 29.76764084 | AQ5: 30.24395334
A6: Population | B6: =VLOOKUP(city,poptable,B1-2008,FALSE) -> 1592 | C6: 1575 | D6: 1573 | E6: 1560 | F6: 1558 | G6: 1546 | H6: 1537 | I6: 1520 | J6: 1509 | K6: 1498 | L6: 1491.666667 | M6: 1481.642424 | N6: 1471.618182 | O6: 1461.593939 | P6: 1451.569697 | Q6: 1441.545455 | R6: 1431.521212 | S6: 1421.49697 | T6: 1411.472727 | U6: 1401.448485 | V6: 1391.424242 | W6: 1381.4 | X6: 1371.375758 | Y6: 1361.351515 | Z6: 1351.327273 | AA6: 1341.30303 | AB6: 1331.278788 | AC6: 1321.254545 | AD6: 1311.230303 | AE6: 1301.206061 | AF6: 1291.181818 | AG6: 1281.157576 | AH6: 1271.133333 | AI6: 1261.109091 | AJ6: 1251.084848 | AK6: 1241.060606 | AL6: 1231.036364 | AM6: 1221.012121 | AN6: 1210.987879 | AO6: 1200.963636 | AP6: 1190.939394 | AQ6: 1180.915152
A7: Water Cost | M7: =drinkbill -> 0 | N7: =M7*(1+drinkbillgrowth)+IF(drinkprincipal>0,((PMT(rate,drinkyears,-drinkprincipal))/(N6/2.5))/12,0) -> 0 | O7: =IF(O1<$M$1+drinkyears+1,N7*(1+drinkbillgrowth)-IF(drinkprincipal>0,O14*(PMT(rate,drinkyears,-drinkprincipal)/(N6/2.5)/12),0),O16) -> 0 | P7: =IF(P1<$M$1+drinkyears+1,O7*(1+drinkbillgrowth)-IF(drinkprincipal>0,P14*(PMT(rate,drinkyears,-drinkprincipal)/(O6/2.5)/12),0),P16) -> 0 | Q7: =IF(Q1<$M$1+drinkyears+1,P7*(1+drinkbillgrowth)-IF(drinkprincipal>0,Q14*(PMT(rate,drinkyears,-drinkprincipal)/(P6/2.5)/12),0),Q16) -> 0 | R7: =IF(R1<$M$1+drinkyears+1,Q7*(1+drinkbillgrowth)-IF(drinkprincipal>0,R14*(PMT(rate,drinkyears,-drinkprincipal)/(Q6/2.5)/12),0),R16) -> 0 | S7: =IF(S1<$M$1+drinkyears+1,R7*(1+drinkbillgrowth)-IF(drinkprincipal>0,S14*(PMT(rate,drinkyears,-drinkprincipal)/(R6/2.5)/12),0),S16) -> 0 | T7: =IF(T1<$M$1+drinkyears+1,S7*(1+drinkbillgrowth)-IF(drinkprincipal>0,T14*(PMT(rate,drinkyears,-drinkprincipal)/(S6/2.5)/12),0),T16) -> 0 | U7: =IF(U1<$M$1+drinkyears+1,T7*(1+drinkbillgrowth)-IF(drinkprincipal>0,U14*(PMT(rate,drinkyears,-drinkprincipal)/(T6/2.5)/12),0),U16) -> 0 | V7: =IF(V1<$M$1+drinkyears+1,U7*(1+drinkbillgrowth)-IF(drinkprincipal>0,V14*(PMT(rate,drinkyears,-drinkprincipal)/(U6/2.5)/12),0),V16) -> 0 | W7: =IF(W1<$M$1+drinkyears+1,V7*(1+drinkbillgrowth)-IF(drinkprincipal>0,W14*(PMT(rate,drinkyears,-drinkprincipal)/(V6/2.5)/12),0),W16) -> 0 | X7: =IF(X1<$M$1+drinkyears+1,W7*(1+drinkbillgrowth)-IF(drinkprincipal>0,X14*(PMT(rate,drinkyears,-drinkprincipal)/(W6/2.5)/12),0),X16) -> 0 | Y7: =IF(Y1<$M$1+drinkyears+1,X7*(1+drinkbillgrowth)-IF(drinkprincipal>0,Y14*(PMT(rate,drinkyears,-drinkprincipal)/(X6/2.5)/12),0),Y16) -> 0 | Z7: =IF(Z1<$M$1+drinkyears+1,Y7*(1+drinkbillgrowth)-IF(drinkprincipal>0,Z14*(PMT(rate,drinkyears,-drinkprincipal)/(Y6/2.5)/12),0),Z16) -> 0 | AA7: =IF(AA1<$M$1+drinkyears+1,Z7*(1+drinkbillgrowth)-IF(drinkprincipal>0,AA14*(PMT(rate,drinkyears,-drinkprincipal)/(Z6/2.5)/12),0),AA16) -> 0 | AB7: =IF(AB1<$M$1+drinkyears+1,AA7*(1+drinkbillgrowth)-IF(drinkprincipal>0,AB14*(PMT(rate,drinkyears,-drinkprincipal)/(AA6/2.5)/12),0),AB16) -> 0 | AC7: =IF(AC1<$M$1+drinkyears+1,AB7*(1+drinkbillgrowth)-IF(drinkprincipal>0,AC14*(PMT(rate,drinkyears,-drinkprincipal)/(AB6/2.5)/12),0),AC16) -> 0 | AD7: =IF(AD1<$M$1+drinkyears+1,AC7*(1+drinkbillgrowth)-IF(drinkprincipal>0,AD14*(PMT(rate,drinkyears,-drinkprincipal)/(AC6/2.5)/12),0),AD16) -> 0 | AE7: =IF(AE1<$M$1+drinkyears+1,AD7*(1+drinkbillgrowth)-IF(drinkprincipal>0,AE14*(PMT(rate,drinkyears,-drinkprincipal)/(AD6/2.5)/12),0),AE16) -> 0 | AF7: =IF(AF1<$M$1+drinkyears+1,AE7*(1+drinkbillgrowth)-IF(drinkprincipal>0,AF14*(PMT(rate,drinkyears,-drinkprincipal)/(AE6/2.5)/12),0),AF16) -> 0 | AG7: =IF(AG1<$M$1+drinkyears+1,AF7*(1+drinkbillgrowth)-IF(drinkprincipal>0,AG14*(PMT(rate,drinkyears,-drinkprincipal)/(AF6/2.5)/12),0),AG16) -> 0 | AH7: =IF(AH1<$M$1+drinkyears+1,AG7*(1+drinkbillgrowth)-IF(drinkprincipal>0,AH14*(PMT(rate,drinkyears,-drinkprincipal)/(AG6/2.5)/12),0),AH16) -> 0 | AI7: =IF(AI1<$M$1+drinkyears+1,AH7*(1+drinkbillgrowth)-IF(drinkprincipal>0,AI14*(PMT(rate,drinkyears,-drinkprincipal)/(AH6/2.5)/12),0),AI16) -> 0 | AJ7: =IF(AJ1<$M$1+drinkyears+1,AI7*(1+drinkbillgrowth)-IF(drinkprincipal>0,AJ14*(PMT(rate,drinkyears,-drinkprincipal)/(AI6/2.5)/12),0),AJ16) -> 0 | AK7: =IF(AK1<$M$1+drinkyears+1,AJ7*(1+drinkbillgrowth)-IF(drinkprincipal>0,AK14*(PMT(rate,drinkyears,-drinkprincipal)/(AJ6/2.5)/12),0),AK16) -> 0 | AL7: =IF(AL1<$M$1+drinkyears+1,AK7*(1+drinkbillgrowth)-IF(drinkprincipal>0,AL14*(PMT(rate,drinkyears,-drinkprincipal)/(AK6/2.5)/12),0),AL16) -> 0 | AM7: =IF(AM1<$M$1+drinkyears+1,AL7*(1+drinkbillgrowth)-IF(drinkprincipal>0,AM14*(PMT(rate,drinkyears,-drinkprincipal)/(AL6/2.5)/12),0),AM16) -> 0 | AN7: =IF(AN1<$M$1+drinkyears+1,AM7*(1+drinkbillgrowth)-IF(drinkprincipal>0,AN14*(PMT(rate,drinkyears,-drinkprincipal)/(AM6/2.5)/12),0),AN16) -> 0 | AO7: =IF(AO1<$M$1+drinkyears+1,AN7*(1+drinkbillgrowth)-IF(drinkprincipal>0,AO14*(PMT(rate,drinkyears,-drinkprincipal)/(AN6/2.5)/12),0),AO16) -> 0 | AP7: =IF(AP1<$M$1+drinkyears+1,AO7*(1+drinkbillgrowth)-IF(drinkprincipal>0,AP14*(PMT(rate,drinkyears,-drinkprincipal)/(AO6/2.5)/12),0),AP16) -> 0 | AQ7: =IF(AQ1<$M$1+drinkyears+1,AP7*(1+drinkbillgrowth)-IF(drinkprincipal>0,AQ14*(PMT(rate,drinkyears,-drinkprincipal)/(AP6/2.5)/12),0),AQ16) -> 0
A8: Probability Unafforable | M8: =_xlfn.NORM.DIST(M7,M4,M5,TRUE) -> 1.331071645e-49 | N8: 3.927736933e-33 | O8: 3.903296322e-25 | P8: 1.684096e-20 | Q8: 1.774157668e-17 | R8: 2.423382953e-15 | S8: 9.277766853e-14 | T8: 1.555215512e-12 | U8: 1.474866632e-11 | V8: =_xlfn.NORM.DIST(V7,V4,V5,TRUE) -> 1.133593737e-10 | W8: 6.097882775e-10 | X8: 2.560723758e-09 | Y8: 9.030803259e-09 | Z8: 2.683890415e-08 | AA8: 6.994717949e-08 | AB8: 1.637777686e-07 | AC8: 3.490264449e-07 | AD8: 6.882691782e-07 | AE8: 1.270288973e-06 | AF8: 2.213463139e-06 | AG8: 3.671130754e-06 | AH8: 5.832068373e-06 | AI8: 8.921157818e-06 | AJ8: 1.320013862e-05 | AK8: 1.896427935e-05 | AL8: 2.653996902e-05 | AM8: 3.628151579e-05 | AN8: 4.856600628e-05 | AO8: 6.37890661e-05 | AP8: =_xlfn.NORM.DIST(AP7,AP4,AP5,TRUE) -> 8.236008171e-05 | AQ8: 0.0001046970204
A10: Chart Inputs
A11: 2.5% High Income | L11: =_xlfn.NORM.INV(0.95,L4,L5) -> 122.9575407 | M11: =_xlfn.NORM.INV(0.95,M4,M5) -> 124.0351156 | N11: 125.7454231 | O11: 127.6190821 | P11: 129.7280612 | Q11: 131.9003274 | R11: 134.0364574 | S11: 136.1532085 | T11: 138.2184137 | U11: 140.2242129 | V11: =_xlfn.NORM.INV(0.95,V4,V5) -> 141.6245972 | W11: 143.0250917 | X11: 144.3453748 | Y11: 145.5219982 | Z11: 146.6759625 | AA11: 147.7803637 | AB11: 148.8339715 | AC11: 149.8608652 | AD11: 150.8554862 | AE11: 151.820963 | AF11: 152.7628113 | AG11: 153.6809232 | AH11: 154.5773539 | AI11: 155.4540187 | AJ11: 156.3117735 | AK11: 157.15189 | AL11: 157.9754436 | AM11: 158.7832769 | AN11: 159.5762631 | AO11: 160.3551699 | AP11: =_xlfn.NORM.INV(0.95,AP4,AP5) -> 161.1206836 | AQ11: 161.873456
A12: 2.5% Low Income | L12: =_xlfn.NORM.INV(0.05,L4,L5) -> 105.3693639 | M12: =_xlfn.NORM.INV(0.05,M4,M5) -> 99.1616774 | N12: 95.28180731 | O12: 92.44272846 | P12: 90.39970226 | Q12: 88.81826872 | R12: 87.50251555 | S12: 86.40633214 | T12: 85.45388326 | U12: 84.60551435 | V12: =_xlfn.NORM.INV(0.05,V4,V5) -> 83.29121397 | W12: 82.09785999 | X12: 80.93030147 | Y12: 79.71306657 | Z12: 78.5572467 | AA12: 77.42765648 | AB12: 76.31606079 | AC12: 75.24055065 | AD12: 74.19040096 | AE12: 73.16424513 | AF12: 72.16365978 | AG12: 71.18506155 | AH12: 70.22742115 | AI12: 69.28990133 | AJ12: 68.37088954 | AK12: 67.46943327 | AL12: 66.58459606 | AM12: 65.71539319 | AN12: 64.86103237 | AO12: 64.02075808 | AP12: =_xlfn.NORM.INV(0.05,AP4,AP5) -> 63.19385958 | AQ12: 62.37970335
A14: Payoff Counter | M14: =IF(M1=$M$1+drinkyears+1,1,0) -> 0 | N14: 1 | O14: 0 | P14: 0 | Q14: 0 | R14: 0 | S14: 0 | T14: 0 | U14: 0 | V14: 0 | W14: 0 | X14: 0 | Y14: 0 | Z14: 0 | AA14: 0 | AB14: 0 | AC14: 0 | AD14: 0 | AE14: 0 | AF14: 0 | AG14: 0 | AH14: 0 | AI14: 0 | AJ14: 0 | AK14: 0 | AL14: 0 | AM14: 0 | AN14: 0 | AO14: 0 | AP14: 0 | AQ14: 0
A16: Growthrate | M16: =drinkbill -> 0 | N16: =M16*(1+drinkbillgrowth) -> 0 | O16: =N16*(1+drinkbillgrowth) -> 0 | P16: =O16*(1+drinkbillgrowth) -> 0 | Q16: =P16*(1+drinkbillgrowth) -> 0 | R16: =Q16*(1+drinkbillgrowth) -> 0 | S16: =R16*(1+drinkbillgrowth) -> 0 | T16: =S16*(1+drinkbillgrowth) -> 0 | U16: =T16*(1+drinkbillgrowth) -> 0 | V16: =U16*(1+drinkbillgrowth) -> 0 | W16: =V16*(1+drinkbillgrowth) -> 0 | X16: =W16*(1+drinkbillgrowth) -> 0 | Y16: =X16*(1+drinkbillgrowth) -> 0 | Z16: =Y16*(1+drinkbillgrowth) -> 0 | AA16: =Z16*(1+drinkbillgrowth) -> 0 | AB16: =AA16*(1+drinkbillgrowth) -> 0 | AC16: =AB16*(1+drinkbillgrowth) -> 0 | AD16: =AC16*(1+drinkbillgrowth) -> 0 | AE16: =AD16*(1+drinkbillgrowth) -> 0 | AF16: =AE16*(1+drinkbillgrowth) -> 0 | AG16: =AF16*(1+drinkbillgrowth) -> 0 | AH16: =AG16*(1+drinkbillgrowth) -> 0 | AI16: =AH16*(1+drinkbillgrowth) -> 0 | AJ16: =AI16*(1+drinkbillgrowth) -> 0 | AK16: =AJ16*(1+drinkbillgrowth) -> 0 | AL16: =AK16*(1+drinkbillgrowth) -> 0 | AM16: =AL16*(1+drinkbillgrowth) -> 0 | AN16: =AM16*(1+drinkbillgrowth) -> 0 | AO16: =AN16*(1+drinkbillgrowth) -> 0 | AP16: =AO16*(1+drinkbillgrowth) -> 0 | AQ16: =AP16*(1+drinkbillgrowth) -> 0

Sheet Wastewater Analysis Sheet (hidden)
A1: City | B1: 2010 | C1: 2011 | D1: 2012 | E1: 2013 | F1: 2014 | G1: 2015 | H1: 2016 | I1: 2017 | J1: 2018 | K1: 2019 | L1: 2020 | M1: 2021 | N1: 2022 | O1: 2023 | P1: 2024 | Q1: 2025 | R1: 2026 | S1: 2027 | T1: 2028 | U1: 2029 | V1: 2030 | W1: 2031 | X1: 2032 | Y1: 2033 | Z1: 2034 | AA1: 2035 | AB1: 2036 | AC1: 2037 | AD1: 2038 | AE1: 2039 | AF1: 2040 | AG1: 2041 | AH1: 2042 | AI1: 2043 | AJ1: 2044 | AK1: 2045 | AL1: 2046 | AM1: 2047 | AN1: 2048 | AO1: 2049 | AP1: 2050 | AQ1: 2051 | AT1: rate | AU1: =IF(Inputs!B14="Yes",VLOOKUP(wasteyears,yieldcurve,2),userrate) -> 0.03 | AW1: 0 | AX1: 0.03 | AZ1: Yes
A2: Income | B2: =VLOOKUP(city,incometable,'Wastewater Analysis Sheet'!B1-2008,FALSE)/12 -> 3185.333333 | C2: =VLOOKUP(city,incometable,'Wastewater Analysis Sheet'!C1-2008,FALSE)/12 -> 3411.5 | D2: =VLOOKUP(city,incometable,'Wastewater Analysis Sheet'!D1-2008,FALSE)/12 -> 3524.333333 | E2: =VLOOKUP(city,incometable,'Wastewater Analysis Sheet'!E1-2008,FALSE)/12 -> 3750 | F2: =VLOOKUP(city,incometable,'Wastewater Analysis Sheet'!F1-2008,FALSE)/12 -> 3501.583333 | G2: =VLOOKUP(city,incometable,'Wastewater Analysis Sheet'!G1-2008,FALSE)/12 -> 3671.916667 | H2: =VLOOKUP(city,incometable,'Wastewater Analysis Sheet'!H1-2008,FALSE)/12 -> 3813.416667 | I2: =VLOOKUP(city,incometable,'Wastewater Analysis Sheet'!I1-2008,FALSE)/12 -> 3893.833333 | J2: =VLOOKUP(city,incometable,'Wastewater Analysis Sheet'!J1-2008,FALSE)/12 -> 4237.5 | K2: =VLOOKUP(city,incometable,'Wastewater Analysis Sheet'!K1-2008,FALSE)/12 -> 4774.333333 | L2: =VLOOKUP(city,incometable,'Wastewater Analysis Sheet'!L1-2008,FALSE)/12 -> 4566.538092 | M2: =VLOOKUP(city,incometable,'Wastewater Analysis Sheet'!M1-2008,FALSE)/12 -> 4463.935859 | N2: =VLOOKUP(city,incometable,'Wastewater Analysis Sheet'!N1-2008,FALSE)/12 -> 4420.544609 | O2: =VLOOKUP(city,incometable,'Wastewater Analysis Sheet'!O1-2008,FALSE)/12 -> 4401.23621 | P2: =VLOOKUP(city,incometable,'Wastewater Analysis Sheet'!P1-2008,FALSE)/12 -> 4402.555269 | Q2: =VLOOKUP(city,incometable,'Wastewater Analysis Sheet'!Q1-2008,FALSE)/12 -> 4414.371922 | R2: =VLOOKUP(city,incometable,'Wastewater Analysis Sheet'!R1-2008,FALSE)/12 -> 4430.779459 | S2: =VLOOKUP(city,incometable,'Wastewater Analysis Sheet'!S1-2008,FALSE)/12 -> 4451.190812 | T2: =VLOOKUP(city,incometable,'Wastewater Analysis Sheet'!T1-2008,FALSE)/12 -> 4473.445939 | U2: =VLOOKUP(city,incometable,'Wastewater Analysis Sheet'!U1-2008,FALSE)/12 -> 4496.594546 | V2: =VLOOKUP(city,incometable,'Wastewater Analysis Sheet'!V1-2008,FALSE)/12 -> 4498.316223 | W2: =VLOOKUP(city,incometable,'Wastewater Analysis Sheet'!W1-2008,FALSE)/12 -> 4502.459033 | X2: =VLOOKUP(city,incometable,'Wastewater Analysis Sheet'!X1-2008,FALSE)/12 -> 4505.513525 | Y2: =VLOOKUP(city,incometable,'Wastewater Analysis Sheet'!Y1-2008,FALSE)/12 -> 4504.701296 | Z2: =VLOOKUP(city,incometable,'Wastewater Analysis Sheet'!Z1-2008,FALSE)/12 -> 4504.664185 | AA2: =VLOOKUP(city,incometable,'Wastewater Analysis Sheet'!AA1-2008,FALSE)/12 -> 4504.160403 | AB2: =VLOOKUP(city,incometable,'Wastewater Analysis Sheet'!AB1-2008,FALSE)/12 -> 4503.000646 | AC2: =VLOOKUP(city,incometable,'Wastewater Analysis Sheet'!AC1-2008,FALSE)/12 -> 4502.028316 | AD2: =VLOOKUP(city,incometable,'Wastewater Analysis Sheet'!AD1-2008,FALSE)/12 -> 4500.917744 | AE2: =VLOOKUP(city,incometable,'Wastewater Analysis Sheet'!AE1-2008,FALSE)/12 -> 4499.704162 | AF2: =VLOOKUP(city,incometable,'Wastewater Analysis Sheet'!AF1-2008,FALSE)/12 -> 4498.529422 | AG2: =VLOOKUP(city,incometable,'Wastewater Analysis Sheet'!AG1-2008,FALSE)/12 -> 4497.319695 | AH2: =VLOOKUP(city,incometable,'Wastewater Analysis Sheet'!AH1-2008,FALSE)/12 -> 4496.095501 | AI2: =VLOOKUP(city,incometable,'Wastewater Analysis Sheet'!AI1-2008,FALSE)/12 -> 4494.8784 | AJ2: =VLOOKUP(city,incometable,'Wastewater Analysis Sheet'!AJ1-2008,FALSE)/12 -> 4493.653262 | AK2: =VLOOKUP(city,incometable,'Wastewater Analysis Sheet'!AK1-2008,FALSE)/12 -> 4492.426465 | AL2: =VLOOKUP(city,incometable,'Wastewater Analysis Sheet'!AL1-2008,FALSE)/12 -> 4491.200793 | AM2: =VLOOKUP(city,incometable,'Wastewater Analysis Sheet'!AM1-2008,FALSE)/12 -> 4489.973401 | AN2: =VLOOKUP(city,incometable,'Wastewater Analysis Sheet'!AN1-2008,FALSE)/12 -> 4488.74591 | AO2: =VLOOKUP(city,incometable,'Wastewater Analysis Sheet'!AO1-2008,FALSE)/12 -> 4487.518559 | AP2: =VLOOKUP(city,incometable,'Wastewater Analysis Sheet'!AP1-2008,FALSE)/12 -> 4486.290863 | AQ2: =VLOOKUP(city,incometable,'Wastewater Analysis Sheet'!AQ1-2008,FALSE)/12 -> 4485.063188 | AT2: =MAX(M8:AQ8) -> 0.0001046970204 | AW2: 10 | AX2: 0.0345 | AZ2: No
A3: SE | B3: =VLOOKUP(city,setable,B1-2008,FALSE)/12 -> 0 | C3: 0 | D3: 0 | E3: 0 | F3: 0 | G3: 0 | H3: 0 | I3: 0 | J3: 0 | K3: 0 | L3: 213.857045 | M3: 302.4395334 | N3: 370.4112674 | O3: 427.7140899 | P3: 478.19889 | Q3: 523.840638 | R3: 565.8125571 | S3: 604.8790668 | T3: 641.5711349 | U3: 676.2753557 | V3: 709.2835769 | W3: 740.8225349 | X3: 771.0725412 | Y3: 800.179792 | Z3: 828.2647736 | AA3: 855.4281798 | AB3: 881.7551851 | AC3: 907.3186002 | AD3: 932.1812473 | AE3: 956.39778 | AF3: 980.0160964 | AG3: 1003.078454 | AH3: 1025.622358 | AI3: 1047.681276 | AJ3: 1069.285225 | AK3: 1090.461245 | AL3: 1111.233802 | AM3: 1131.625114 | AN3: 1151.655432 | AO3: 1171.343276 | AP3: 1190.705634 | AQ3: 1209.758134 | AW3: 20 | AX3: 0.0355
A4: 2.0% Income | B4: =B2*0.02 -> 63.70666667 | C4: 68.23 | D4: 70.48666667 | E4: 75 | F4: 70.03166667 | G4: 73.43833333 | H4: 76.26833333 | I4: 77.87666667 | J4: 84.75 | K4: 95.48666667 | L4: 91.33076184 | M4: 89.27871719 | N4: 88.41089218 | O4: 88.02472421 | P4: 88.05110538 | Q4: 88.28743845 | R4: 88.61558918 | S4: 89.02381625 | T4: 89.46891877 | U4: 89.93189091 | V4: 89.96632446 | W4: 90.04918066 | X4: 90.1102705 | Y4: 90.09402591 | Z4: 90.0932837 | AA4: 90.08320807 | AB4: 90.06001292 | AC4: 90.04056633 | AD4: 90.01835488 | AE4: 89.99408325 | AF4: 89.97058844 | AG4: 89.9463939 | AH4: 89.92191002 | AI4: 89.897568 | AJ4: 89.87306523 | AK4: 89.84852931 | AL4: 89.82401585 | AM4: 89.79946802 | AN4: 89.77491819 | AO4: 89.75037119 | AP4: =AP2*0.02 -> 89.72581727 | AQ4: 89.70126375
A5: 2.0% SE | B5: =B3*0.02 -> 0 | C5: 0 | D5: 0 | E5: 0 | F5: 0 | G5: 0 | H5: 0 | I5: 0 | J5: 0 | K5: 0 | L5: 4.277140899 | M5: 6.048790668 | N5: 7.408225349 | O5: 8.554281798 | P5: 9.5639778 | Q5: 10.47681276 | R5: 11.31625114 | S5: 12.09758134 | T5: 12.8314227 | U5: 13.52550711 | V5: 14.18567154 | W5: 14.8164507 | X5: 15.42145082 | Y5: 16.00359584 | Z5: 16.56529547 | AA5: 17.1085636 | AB5: 17.6351037 | AC5: 18.146372 | AD5: 18.64362495 | AE5: 19.1279556 | AF5: 19.60032193 | AG5: 20.06156908 | AH5: 20.51244715 | AI5: 20.95362552 | AJ5: 21.3857045 | AK5: 21.80922491 | AL5: 22.22467605 | AM5: 22.63250228 | AN5: 23.03310865 | AO5: 23.42686552 | AP5: =AP3*0.02 -> 23.81411267 | AQ5: 24.19516267
A6: Population | B6: =VLOOKUP(city,poptable,B1-2008,FALSE) -> 1592 | C6: 1575 | D6: 1573 | E6: 1560 | F6: 1558 | G6: 1546 | H6: 1537 | I6: 1520 | J6: 1509 | K6: 1498 | L6: 1491.666667 | M6: 1481.642424 | N6: 1471.618182 | O6: 1461.593939 | P6: 1451.569697 | Q6: 1441.545455 | R6: 1431.521212 | S6: 1421.49697 | T6: 1411.472727 | U6: 1401.448485 | V6: 1391.424242 | W6: 1381.4 | X6: 1371.375758 | Y6: 1361.351515 | Z6: 1351.327273 | AA6: 1341.30303 | AB6: 1331.278788 | AC6: 1321.254545 | AD6: 1311.230303 | AE6: 1301.206061 | AF6: 1291.181818 | AG6: 1281.157576 | AH6: 1271.133333 | AI6: 1261.109091 | AJ6: 1251.084848 | AK6: 1241.060606 | AL6: 1231.036364 | AM6: 1221.012121 | AN6: 1210.987879 | AO6: 1200.963636 | AP6: 1190.939394 | AQ6: 1180.915152
A7: Water Cost | M7: =wastebill -> 0 | N7: =M7*(1+wastebillgrowth)+IF(wasteprincipal>0,((PMT(rate,wasteyears,-wasteprincipal))/(N6/2.5))/12-N14*(PMT(rate,wasteyears,-wasteprincipal)/(N6/2.5))/12,0) -> 0 | O7: =IF(O1<$M$1+wasteyears+1,N7*(1+wastebillgrowth)-IF(wasteprincipal>0,O14*(PMT(wasterate,wasteyears,-wasteprincipal)/(N6/2.5)/12),0),O16) -> 0 | P7: =IF(P1<$M$1+wasteyears+1,O7*(1+wastebillgrowth)-IF(wasteprincipal>0,P14*(PMT(wasterate,wasteyears,-wasteprincipal)/(O6/2.5)/12),0),P16) -> 0 | Q7: =IF(Q1<$M$1+wasteyears+1,P7*(1+wastebillgrowth)-IF(wasteprincipal>0,Q14*(PMT(wasterate,wasteyears,-wasteprincipal)/(P6/2.5)/12),0),Q16) -> 0 | R7: =IF(R1<$M$1+wasteyears+1,Q7*(1+wastebillgrowth)-IF(wasteprincipal>0,R14*(PMT(wasterate,wasteyears,-wasteprincipal)/(Q6/2.5)/12),0),R16) -> 0 | S7: =IF(S1<$M$1+wasteyears+1,R7*(1+wastebillgrowth)-IF(wasteprincipal>0,S14*(PMT(wasterate,wasteyears,-wasteprincipal)/(R6/2.5)/12),0),S16) -> 0 | T7: =IF(T1<$M$1+wasteyears+1,S7*(1+wastebillgrowth)-IF(wasteprincipal>0,T14*(PMT(wasterate,wasteyears,-wasteprincipal)/(S6/2.5)/12),0),T16) -> 0 | U7: =IF(U1<$M$1+wasteyears+1,T7*(1+wastebillgrowth)-IF(wasteprincipal>0,U14*(PMT(wasterate,wasteyears,-wasteprincipal)/(T6/2.5)/12),0),U16) -> 0 | V7: =IF(V1<$M$1+wasteyears+1,U7*(1+wastebillgrowth)-IF(wasteprincipal>0,V14*(PMT(wasterate,wasteyears,-wasteprincipal)/(U6/2.5)/12),0),V16) -> 0 | W7: =IF(W1<$M$1+wasteyears+1,V7*(1+wastebillgrowth)-IF(wasteprincipal>0,W14*(PMT(wasterate,wasteyears,-wasteprincipal)/(V6/2.5)/12),0),W16) -> 0 | X7: =IF(X1<$M$1+wasteyears+1,W7*(1+wastebillgrowth)-IF(wasteprincipal>0,X14*(PMT(wasterate,wasteyears,-wasteprincipal)/(W6/2.5)/12),0),X16) -> 0 | Y7: =IF(Y1<$M$1+wasteyears+1,X7*(1+wastebillgrowth)-IF(wasteprincipal>0,Y14*(PMT(wasterate,wasteyears,-wasteprincipal)/(X6/2.5)/12),0),Y16) -> 0 | Z7: =IF(Z1<$M$1+wasteyears+1,Y7*(1+wastebillgrowth)-IF(wasteprincipal>0,Z14*(PMT(wasterate,wasteyears,-wasteprincipal)/(Y6/2.5)/12),0),Z16) -> 0 | AA7: =IF(AA1<$M$1+wasteyears+1,Z7*(1+wastebillgrowth)-IF(wasteprincipal>0,AA14*(PMT(wasterate,wasteyears,-wasteprincipal)/(Z6/2.5)/12),0),AA16) -> 0 | AB7: =IF(AB1<$M$1+wasteyears+1,AA7*(1+wastebillgrowth)-IF(wasteprincipal>0,AB14*(PMT(wasterate,wasteyears,-wasteprincipal)/(AA6/2.5)/12),0),AB16) -> 0 | AC7: =IF(AC1<$M$1+wasteyears+1,AB7*(1+wastebillgrowth)-IF(wasteprincipal>0,AC14*(PMT(wasterate,wasteyears,-wasteprincipal)/(AB6/2.5)/12),0),AC16) -> 0 | AD7: =IF(AD1<$M$1+wasteyears+1,AC7*(1+wastebillgrowth)-IF(wasteprincipal>0,AD14*(PMT(wasterate,wasteyears,-wasteprincipal)/(AC6/2.5)/12),0),AD16) -> 0 | AE7: =IF(AE1<$M$1+wasteyears+1,AD7*(1+wastebillgrowth)-IF(wasteprincipal>0,AE14*(PMT(wasterate,wasteyears,-wasteprincipal)/(AD6/2.5)/12),0),AE16) -> 0 | AF7: =IF(AF1<$M$1+wasteyears+1,AE7*(1+wastebillgrowth)-IF(wasteprincipal>0,AF14*(PMT(wasterate,wasteyears,-wasteprincipal)/(AE6/2.5)/12),0),AF16) -> 0 | AG7: =IF(AG1<$M$1+wasteyears+1,AF7*(1+wastebillgrowth)-IF(wasteprincipal>0,AG14*(PMT(wasterate,wasteyears,-wasteprincipal)/(AF6/2.5)/12),0),AG16) -> 0 | AH7: =IF(AH1<$M$1+wasteyears+1,AG7*(1+wastebillgrowth)-IF(wasteprincipal>0,AH14*(PMT(wasterate,wasteyears,-wasteprincipal)/(AG6/2.5)/12),0),AH16) -> 0 | AI7: =IF(AI1<$M$1+wasteyears+1,AH7*(1+wastebillgrowth)-IF(wasteprincipal>0,AI14*(PMT(wasterate,wasteyears,-wasteprincipal)/(AH6/2.5)/12),0),AI16) -> 0 | AJ7: =IF(AJ1<$M$1+wasteyears+1,AI7*(1+wastebillgrowth)-IF(wasteprincipal>0,AJ14*(PMT(wasterate,wasteyears,-wasteprincipal)/(AI6/2.5)/12),0),AJ16) -> 0 | AK7: =IF(AK1<$M$1+wasteyears+1,AJ7*(1+wastebillgrowth)-IF(wasteprincipal>0,AK14*(PMT(wasterate,wasteyears,-wasteprincipal)/(AJ6/2.5)/12),0),AK16) -> 0 | AL7: =IF(AL1<$M$1+wasteyears+1,AK7*(1+wastebillgrowth)-IF(wasteprincipal>0,AL14*(PMT(wasterate,wasteyears,-wasteprincipal)/(AK6/2.5)/12),0),AL16) -> 0 | AM7: =IF(AM1<$M$1+wasteyears+1,AL7*(1+wastebillgrowth)-IF(wasteprincipal>0,AM14*(PMT(wasterate,wasteyears,-wasteprincipal)/(AL6/2.5)/12),0),AM16) -> 0 | AN7: =IF(AN1<$M$1+wasteyears+1,AM7*(1+wastebillgrowth)-IF(wasteprincipal>0,AN14*(PMT(wasterate,wasteyears,-wasteprincipal)/(AM6/2.5)/12),0),AN16) -> 0 | AO7: =IF(AO1<$M$1+wasteyears+1,AN7*(1+wastebillgrowth)-IF(wasteprincipal>0,AO14*(PMT(wasterate,wasteyears,-wasteprincipal)/(AN6/2.5)/12),0),AO16) -> 0 | AP7: =IF(AP1<$M$1+wasteyears+1,AO7*(1+wastebillgrowth)-IF(wasteprincipal>0,AP14*(PMT(wasterate,wasteyears,-wasteprincipal)/(AO6/2.5)/12),0),AP16) -> 0 | AQ7: =IF(AQ1<$M$1+wasteyears+1,AP7*(1+wastebillgrowth)-IF(wasteprincipal>0,AQ14*(PMT(wasterate,wasteyears,-wasteprincipal)/(AP6/2.5)/12),0),AQ16) -> 0
A8: Probability Unafforable | M8: =_xlfn.NORM.DIST(M7,M4,M5,TRUE) -> 1.331071645e-49 | N8: 3.927736933e-33 | O8: 3.903296322e-25 | P8: 1.684096e-20 | Q8: 1.774157668e-17 | R8: 2.423382953e-15 | S8: 9.277766853e-14 | T8: 1.555215512e-12 | U8: 1.474866632e-11 | V8: 1.133593737e-10 | W8: 6.097882775e-10 | X8: 2.560723758e-09 | Y8: 9.030803259e-09 | Z8: 2.683890415e-08 | AA8: 6.994717949e-08 | AB8: 1.637777686e-07 | AC8: 3.490264449e-07 | AD8: 6.882691782e-07 | AE8: 1.270288973e-06 | AF8: 2.213463139e-06 | AG8: 3.671130754e-06 | AH8: 5.832068373e-06 | AI8: 8.921157818e-06 | AJ8: 1.320013862e-05 | AK8: 1.896427935e-05 | AL8: 2.653996902e-05 | AM8: 3.628151579e-05 | AN8: 4.856600628e-05 | AO8: 6.37890661e-05 | AP8: =_xlfn.NORM.DIST(AP7,AP4,AP5,TRUE) -> 8.236008171e-05 | AQ8: 0.0001046970204
A10: Chart Inputs
A11: 2.0% High Income | L11: =_xlfn.NORM.INV(0.95,L4,L5) -> 98.36603256 | M11: =_xlfn.NORM.INV(0.95,M4,M5) -> 99.22809245 | N11: 100.5963385 | O11: 102.0952657 | P11: 103.782449 | Q11: 105.5202619 | R11: 107.2291659 | S11: 108.9225668 | T11: 110.5747309 | U11: 112.1793703 | V11: 113.2996777 | W11: 114.4200733 | X11: 115.4762998 | Y11: 116.4175986 | Z11: 117.34077 | AA11: 118.224291 | AB11: 119.0671772 | AC11: 119.8886921 | AD11: 120.684389 | AE11: 121.4567704 | AF11: 122.2102491 | AG11: 122.9447386 | AH11: 123.6618831 | AI11: 124.3632149 | AJ11: 125.0494188 | AK11: 125.721512 | AL11: 126.3803549 | AM11: 127.0266215 | AN11: 127.6610105 | AO11: 128.2841359 | AP11: =_xlfn.NORM.INV(0.95,AP4,AP5) -> 128.8965469 | AQ11: 129.4987648
A12: 2.0% Low Income | L12: =_xlfn.NORM.INV(0.05,L4,L5) -> 84.29549112 | M12: =_xlfn.NORM.INV(0.05,M4,M5) -> 79.32934192 | N12: 76.22544585 | O12: 73.95418277 | P12: 72.31976181 | Q12: 71.05461498 | R12: 70.00201244 | S12: 69.12506571 | T12: 68.36310661 | U12: 67.68441148 | V12: 66.63297118 | W12: 65.67828799 | X12: 64.74424118 | Y12: 63.77045325 | Z12: 62.84579736 | AA12: 61.94212519 | AB12: 61.05284863 | AC12: 60.19244052 | AD12: 59.35232076 | AE12: 58.5313961 | AF12: 57.73092782 | AG12: 56.94804924 | AH12: 56.18193692 | AI12: 55.43192107 | AJ12: 54.69671163 | AK12: 53.97554662 | AL12: 53.26767685 | AM12: 52.57231455 | AN12: 51.8888259 | AO12: 51.21660647 | AP12: =_xlfn.NORM.INV(0.05,AP4,AP5) -> 50.55508766 | AQ12: 49.90376268
A14: Payoff Counter | M14: =IF(M1=$M$1+wasteyears+1,1,0) -> 0 | N14: 1 | O14: 0 | P14: 0 | Q14: 0 | R14: 0 | S14: 0 | T14: 0 | U14: 0 | V14: 0 | W14: 0 | X14: 0 | Y14: 0 | Z14: 0 | AA14: 0 | AB14: 0 | AC14: 0 | AD14: 0 | AE14: 0 | AF14: 0 | AG14: 0 | AH14: 0 | AI14: 0 | AJ14: 0 | AK14: 0 | AL14: 0 | AM14: 0 | AN14: 0 | AO14: 0 | AP14: 0 | AQ14: 0
A16: Growthrate | M16: =wastebill -> 0 | N16: =M16*(1+wastebillgrowth) -> 0 | O16: =N16*(1+wastebillgrowth) -> 0 | P16: =O16*(1+wastebillgrowth) -> 0 | Q16: =P16*(1+wastebillgrowth) -> 0 | R16: =Q16*(1+wastebillgrowth) -> 0 | S16: =R16*(1+wastebillgrowth) -> 0 | T16: =S16*(1+wastebillgrowth) -> 0 | U16: =T16*(1+wastebillgrowth) -> 0 | V16: =U16*(1+wastebillgrowth) -> 0 | W16: =V16*(1+wastebillgrowth) -> 0 | X16: =W16*(1+wastebillgrowth) -> 0 | Y16: =X16*(1+wastebillgrowth) -> 0 | Z16: =Y16*(1+wastebillgrowth) -> 0 | AA16: =Z16*(1+wastebillgrowth) -> 0 | AB16: =AA16*(1+wastebillgrowth) -> 0 | AC16: =AB16*(1+wastebillgrowth) -> 0 | AD16: =AC16*(1+wastebillgrowth) -> 0 | AE16: =AD16*(1+wastebillgrowth) -> 0 | AF16: =AE16*(1+wastebillgrowth) -> 0 | AG16: =AF16*(1+wastebillgrowth) -> 0 | AH16: =AG16*(1+wastebillgrowth) -> 0 | AI16: =AH16*(1+wastebillgrowth) -> 0 | AJ16: =AI16*(1+wastebillgrowth) -> 0 | AK16: =AJ16*(1+wastebillgrowth) -> 0 | AL16: =AK16*(1+wastebillgrowth) -> 0 | AM16: =AL16*(1+wastebillgrowth) -> 0 | AN16: =AM16*(1+wastebillgrowth) -> 0 | AO16: =AN16*(1+wastebillgrowth) -> 0 | AP16: =AO16*(1+wastebillgrowth) -> 0 | AQ16: =AP16*(1+wastebillgrowth) -> 0

Sheet Combined Bill Output
A1: Model Outputs - Combined Bill
A2: Community | B2: =city -> Ackley
A3: Community Population (2021) | B3: ='Wastewater Analysis Sheet'!M6 -> 1481.642424
A4: Increase in Average Monthly Combined Bill | B4: =IF(drinkprincipal>0,((PMT(rate,drinkyears,-drinkprincipal)+PMT(rate,wasteyears,-wasteprincipal))/('Wastewater Analysis Sheet'!N6/2.5))/12,0) -> 0
A5: Probability that Monthly Combined Bill
A6: Exceeds 2.0% of Median Household Income | B6: ='Combined Bill Analysis Sheet'!combinedmaxprob -> 0.0001046970204
A7: Sustainability Risk | B7: =IF(B6<0.33,"Low",IF(B6<0.67,"Moderate","High")) -> Low
A9: Current MHI (2021) | B9: =+B24 -> 53567.23031
A10: Current Combined Bill | B10: =+wastebill+drinkbill -> 0
A11: Projected Combined Bill | B11: =+B10+B4 -> 0
A17: Note: The graph shows the typical sustainable threshold
A18: for the community (blue line), forecast into the future,
A19: along with a range of estimates developed in a
A20: statistical model. It also shows the projected combined
A21: bills using the inputs you provided.
A23: Projections | B23: 2021 | C23: 2022 | D23: 2023 | E23: 2024 | F23: 2025 | G23: 2026 | H23: 2027 | I23: 2028 | J23: 2029 | K23: 2030 | L23: 2031 | M23: 2032 | N23: 2033
A24: Median Household Income | B24: ='Wastewater Analysis Sheet'!M2*12 -> 53567.23031 | C24: ='Wastewater Analysis Sheet'!N2*12 -> 53046.53531 | D24: ='Wastewater Analysis Sheet'!O2*12 -> 52814.83453 | E24: ='Wastewater Analysis Sheet'!P2*12 -> 52830.66323 | F24: ='Wastewater Analysis Sheet'!Q2*12 -> 52972.46307 | G24: ='Wastewater Analysis Sheet'!R2*12 -> 53169.35351 | H24: ='Wastewater Analysis Sheet'!S2*12 -> 53414.28975 | I24: ='Wastewater Analysis Sheet'!T2*12 -> 53681.35126 | J24: ='Wastewater Analysis Sheet'!U2*12 -> 53959.13455 | K24: ='Wastewater Analysis Sheet'!V2*12 -> 53979.79468 | L24: ='Wastewater Analysis Sheet'!W2*12 -> 54029.5084 | M24: ='Wastewater Analysis Sheet'!X2*12 -> 54066.1623 | N24: ='Wastewater Analysis Sheet'!Y2*12 -> 54056.41555
A25: Monthly Combined Bill | B25: ='Wastewater Analysis Sheet'!M7+'Drinking Water Analysis Sheet'!M7 -> 0 | C25: ='Wastewater Analysis Sheet'!N7+'Drinking Water Analysis Sheet'!N7 -> 0 | D25: ='Wastewater Analysis Sheet'!O7+'Drinking Water Analysis Sheet'!O7 -> 0 | E25: ='Wastewater Analysis Sheet'!P7+'Drinking Water Analysis Sheet'!P7 -> 0 | F25: ='Wastewater Analysis Sheet'!Q7+'Drinking Water Analysis Sheet'!Q7 -> 0 | G25: ='Wastewater Analysis Sheet'!R7+'Drinking Water Analysis Sheet'!R7 -> 0 | H25: ='Wastewater Analysis Sheet'!S7+'Drinking Water Analysis Sheet'!S7 -> 0 | I25: ='Wastewater Analysis Sheet'!T7+'Drinking Water Analysis Sheet'!T7 -> 0 | J25: ='Wastewater Analysis Sheet'!U7+'Drinking Water Analysis Sheet'!U7 -> 0 | K25: ='Wastewater Analysis Sheet'!V7+'Drinking Water Analysis Sheet'!V7 -> 0 | L25: ='Wastewater Analysis Sheet'!W7+'Drinking Water Analysis Sheet'!W7 -> 0 | M25: ='Wastewater Analysis Sheet'!X7+'Drinking Water Analysis Sheet'!X7 -> 0 | N25: ='Wastewater Analysis Sheet'!Y7+'Drinking Water Analysis Sheet'!Y7 -> 0
A26: %MHI | B26: =+B25*12/B24 -> 0 | C26: =+C25*12/C24 -> 0 | D26: 0 | E26: 0 | F26: 0 | G26: 0 | H26: 0 | I26: 0 | J26: 0 | K26: 0 | L26: 0 | M26: 0 | N26: 0
A27: Population | B27: =VLOOKUP(city,poptable,B23-2008,FALSE) -> 1481.642424 | C27: 1471.618182 | D27: 1461.593939 | E27: 1451.569697 | F27: 1441.545455 | G27: 1431.521212 | H27: 1421.49697 | I27: 1411.472727 | J27: 1401.448485 | K27: 1391.424242 | L27: 1381.4 | M27: 1371.375758 | N27: 1361.351515
A29: Projections | B29: 2034 | C29: 2035 | D29: 2036 | E29: 2037 | F29: 2038 | G29: 2039 | H29: 2040 | I29: 2041 | J29: 2042 | K29: 2043 | L29: 2044 | M29: 2045 | N29: 2046
A30: Median Household Income | B30: =+'Wastewater Analysis Sheet'!Z2*12 -> 54055.97022 | C30: =+'Wastewater Analysis Sheet'!AA2*12 -> 54049.92484 | D30: =+'Wastewater Analysis Sheet'!AB2*12 -> 54036.00775 | E30: =+'Wastewater Analysis Sheet'!AC2*12 -> 54024.3398 | F30: =+'Wastewater Analysis Sheet'!AD2*12 -> 54011.01293 | G30: =+'Wastewater Analysis Sheet'!AE2*12 -> 53996.44995 | H30: =+'Wastewater Analysis Sheet'!AF2*12 -> 53982.35306 | I30: =+'Wastewater Analysis Sheet'!AG2*12 -> 53967.83634 | J30: =+'Wastewater Analysis Sheet'!AH2*12 -> 53953.14601 | K30: =+'Wastewater Analysis Sheet'!AI2*12 -> 53938.5408 | L30: =+'Wastewater Analysis Sheet'!AJ2*12 -> 53923.83914 | M30: =+'Wastewater Analysis Sheet'!AK2*12 -> 53909.11759 | N30: =+'Wastewater Analysis Sheet'!AL2*12 -> 53894.40951
A31: Monthly Combined Bill | B31: ='Wastewater Analysis Sheet'!Z7+'Drinking Water Analysis Sheet'!Z7 -> 0 | C31: ='Wastewater Analysis Sheet'!AA7+'Drinking Water Analysis Sheet'!AA7 -> 0 | D31: ='Wastewater Analysis Sheet'!AB7+'Drinking Water Analysis Sheet'!AB7 -> 0 | E31: ='Wastewater Analysis Sheet'!AC7+'Drinking Water Analysis Sheet'!AC7 -> 0 | F31: ='Wastewater Analysis Sheet'!AD7+'Drinking Water Analysis Sheet'!AD7 -> 0 | G31: ='Wastewater Analysis Sheet'!AE7+'Drinking Water Analysis Sheet'!AE7 -> 0 | H31: ='Wastewater Analysis Sheet'!AF7+'Drinking Water Analysis Sheet'!AF7 -> 0 | I31: ='Wastewater Analysis Sheet'!AG7+'Drinking Water Analysis Sheet'!AG7 -> 0 | J31: ='Wastewater Analysis Sheet'!AH7+'Drinking Water Analysis Sheet'!AH7 -> 0 | K31: ='Wastewater Analysis Sheet'!AI7+'Drinking Water Analysis Sheet'!AI7 -> 0 | L31: ='Wastewater Analysis Sheet'!AJ7+'Drinking Water Analysis Sheet'!AJ7 -> 0 | M31: ='Wastewater Analysis Sheet'!AK7+'Drinking Water Analysis Sheet'!AK7 -> 0 | N31: ='Wastewater Analysis Sheet'!AL7+'Drinking Water Analysis Sheet'!AL7 -> 0
A32: % MHI | B32: =+(B31/B30)*12 -> 0 | C32: =+(C31/C30)*12 -> 0 | D32: 0 | E32: 0 | F32: 0 | G32: 0 | H32: 0 | I32: 0 | J32: 0 | K32: 0 | L32: 0 | M32: 0 | N32: 0
A33: Population | B33: =VLOOKUP(city,poptable,B29-2008,FALSE) -> 1351.327273 | C33: 1341.30303 | D33: 1331.278788 | E33: 1321.254545 | F33: 1311.230303 | G33: 1301.206061 | H33: 1291.181818 | I33: 1281.157576 | J33: 1271.133333 | K33: 1261.109091 | L33: 1251.084848 | M33: 1241.060606 | N33: 1231.036364
A35: Projections | B35: 2047 | C35: 2048 | D35: 2049 | E35: 2050 | F35: 2051
A36: Monthly Household Income | B36: =+'Wastewater Analysis Sheet'!AM2*12 -> 53879.68081 | C36: =+'Wastewater Analysis Sheet'!AN2*12 -> 53864.95092 | D36: =+'Wastewater Analysis Sheet'!AO2*12 -> 53850.22271 | E36: =+'Wastewater Analysis Sheet'!AP2*12 -> 53835.49036 | F36: =+'Wastewater Analysis Sheet'!AQ2*12 -> 53820.75825
A37: Monthly Combined Bill | B37: =+'Wastewater Analysis Sheet'!AM7+'Drinking Water Analysis Sheet'!AM7 -> 0 | C37: =+'Wastewater Analysis Sheet'!AN7+'Drinking Water Analysis Sheet'!AN7 -> 0 | D37: =+'Wastewater Analysis Sheet'!AO7+'Drinking Water Analysis Sheet'!AO7 -> 0 | E37: =+'Wastewater Analysis Sheet'!AP7+'Drinking Water Analysis Sheet'!AP7 -> 0 | F37: =+'Wastewater Analysis Sheet'!AQ7+'Drinking Water Analysis Sheet'!AQ7 -> 0
A38: % MHI | B38: =+B37/B36*12 -> 0 | C38: =+C37/C36*12 -> 0 | D38: 0 | E38: 0 | F38: 0
A39: Population | B39: =VLOOKUP(city,poptable,B35-2008,FALSE) -> 1221.012121 | C39: 1210.987879 | D39: 1200.963636 | E39: 1190.939394 | F39: 1180.915152

Sheet Income (hidden)
A1: GEOdisplay-label | B1: 2010 | C1: 2011 | D1: 2012 | E1: 2013 | F1: 2014 | G1: 2015 | H1: 2016 | I1: 2017 | J1: 2018 | K1: 2019 | L1: 2020 | M1: 2021 | N1: 2022 | O1: 2023 | P1: 2024 | Q1: 2025 | R1: 2026 | S1: 2027 | T1: 2028 | U1: 2029 | V1: 2030 | W1: 2031 | X1: 2032 | Y1: 2033 | Z1: 2034 | AA1: 2035 | AB1: 2036 | AC1: 2037 | AD1: 2038 | AE1: 2039 | AF1: 2040 | AG1: 2041 | AH1: 2042 | AI1: 2043 | AJ1: 2044 | AK1: 2045 | AL1: 2046 | AM1: 2047 | AN1: 2048 | AO1: 2049 | AP1: 2050 | AQ1: 2051
A2: Ackley | B2: 38224 | C2: 40938 | D2: 42292 | E2: 45000 | F2: 42019 | G2: 44063 | H2: 45761 | I2: 46726 | J2: 50850 | K2: 57292 | L2: 54798.4571 | M2: 53567.23031 | N2: 53046.53531 | O2: 52814.83453 | P2: 52830.66323 | Q2: 52972.46307 | R2: 53169.35351 | S2: 53414.28975 | T2: 53681.35126 | U2: 53959.13455 | V2: 53979.79468 | W2: 54029.5084 | X2: 54066.1623 | Y2: 54056.41555 | Z2: 54055.97022 | AA2: 54049.92484 | AB2: 54036.00775 | AC2: 54024.3398 | AD2: 54011.01293 | AE2: 53996.44995 | AF2: 53982.35306 | AG2: 53967.83634 | AH2: 53953.14601 | AI2: 53938.5408 | AJ2: 53923.83914 | AK2: 53909.11759 | AL2: 53894.40951 | AM2: 53879.68081 | AN2: 53864.95092 | AO2: 53850.22271 | AP2: 53835.49036 | AQ2: 53820.75825
A3: Ackworth | B3: 40750 | C3: 44583 | D3: 44583 | E3: 65000 | F3: 39167 | G3: 40000 | H3: 49375 | I3: 49603.74009 | J3: 49424.04177 | K3: 49996.41489 | L3: 51664.01638 | M3: 52942.35135 | N3: 54020.18818 | O3: 54802.75921 | P3: 55529.39057 | Q3: 56208.88934 | R3: 56757.59152 | S3: 57090.25938 | T3: 57292.91137 | U3: 57417.65886 | V3: 57479.18172 | W3: 57518.14727 | X3: 57541.35198 | Y3: 57552.90673 | Z3: 57560.50438 | AA3: 57564.91092 | AB3: 57567.20754 | AC3: 57568.79576 | AD3: 57569.74105 | AE3: 57570.31076 | AF3: 57570.75001 | AG3: 57571.06095 | AH3: 57571.30613 | AI3: 57571.52649 | AJ3: 57571.72157 | AK3: 57571.9053 | AL3: 57572.08416 | AM3: 57572.25812 | AN3: 57572.43014 | AO3: 57572.60118 | AP3: 57572.77128 | AQ3: 57572.94105
A4: Adair | B4: 37750 | C4: 41058 | D4: 45515 | E4: 45000 | F4: 47583 | G4: 48188 | H4: 45938 | I4: 43125 | J4: 45000 | K4: 50000 | L4: 49193.22236 | M4: 48722.81396 | N4: 48684.32392 | O4: 48656.5744 | P4: 48712.70947 | Q4: 48843.7914 | R4: 48973.8641 | S4: 49123.63031 | T4: 49285.77736 | U4: 49380.64677 | V4: 49396.86535 | W4: 49419.6507 | X4: 49425.20575 | Y4: 49417.70773 | Z4: 49411.86851 | AA4: 49401.95938 | AB4: 49390.02575 | AC4: 49378.40434 | AD4: 49365.88001 | AE4: 49353.07001 | AF4: 49340.30318 | AG4: 49327.34635 | AH4: 49314.3551 | AI4: 49301.3662 | AJ4: 49288.33919 | AK4: 49275.30934 | AL4: 49262.27837 | AM4: 49249.24011 | AN4: 49236.20194 | AO4: 49223.16319 | AP4: 49210.12312 | AQ4: 49197.08316
A5: Adel | B5: 41875 | C5: 44922 | D5: 49625 | E5: 53670 | F5: 55347 | G5: 56319 | H5: 58321 | I5: 60701 | J5: 61250 | K5: 65000 | L5: 63952.99057 | M5: 63493.24423 | N5: 63412.80848 | O5: 63464.15382 | P5: 63633.25157 | Q5: 63869.87766 | R5: 64130.90557 | S5: 64415.32549 | T5: 64711.58293 | U5: 65012.49821 | V5: 65253.96303 | W5: 65503.53199 | X5: 65750.36568 | Y5: 65986.51063 | Z5: 66225.08051 | AA5: 66462.38577 | AB5: 66697.88889 | AC5: 66933.9641 | AD5: 67169.65745 | AE5: 67405.07074 | AF5: 67640.60127 | AG5: 67876.03443 | AH5: 68111.42902 | AI5: 68346.84495 | AJ5: 68582.23843 | AK5: 68817.62771 | AL5: 69053.02037 | AM5: 69288.40824 | AN5: 69523.79591 | AO5: 69759.18402 | AP5: 69994.57117 | AQ5: 70229.95839
A6: Afton | B6: 30000 | C6: 33819 | D6: 36738 | E6: 37917 | F6: 45068 | G6: 42137 | H6: 45083 | I6: 46818 | J6: 47344 | K6: 49188 | L6: 47673.4193 | M6: 46937.36659 | N6: 46568.30636 | O6: 46260.63718 | P6: 46113.2593 | Q6: 46023.65464 | R6: 45947.99572 | S6: 45904.36091 | T6: 45869.38445 | U6: 45837.78742 | V6: 45826.06298 | W6: 45814.27247 | X6: 45804.08765 | Y6: 45797.53739 | Z6: 45790.70793 | AA6: 45784.38575 | AB6: 45778.69526 | AC6: 45772.91615 | AD6: 45767.27252 | AE6: 45761.73228 | AF6: 45756.17187 | AG6: 45750.64418 | AH6: 45745.13213 | AI6: 45739.61633 | AJ6: 45734.10788 | AK6: 45728.60154 | AL6: 45723.09463 | AM6: 45717.58928 | AN6: 45712.08416 | AO6: 45706.57898 | AP6: 45701.07412 | AQ6: 45695.56926
A7: Agency | B7: 39583 | C7: 39167 | D7: 39464 | E7: 39821 | F7: 38295 | G7: 37857 | H7: 39659 | I7: 36563 | J7: 40313 | K7: 43750 | L7: 41497.7006 | M7: 40195.61896 | N7: 39431.86784 | O7: 38844.61191 | P7: 38447.73483 | Q7: 38143.99006 | R7: 37874.24238 | S7: 37642.0591 | T7: 37425.71657 | U7: 37216.16408 | V7: 37182.15723 | W7: 37134.89402 | X7: 37098.61558 | Y7: 37094.13679 | Z7: 37084.65031 | AA7: 37079.26038 | AB7: 37079.30638 | AC7: 37078.08016 | AD7: 37078.0167 | AE7: 37078.81872 | AF7: 37079.35216 | AG7: 37080.17432 | AH7: 37081.12131 | AI7: 37082.01916 | AJ7: 37082.98271 | AK7: 37083.96149 | AL7: 37084.93261 | AM7: 37085.91772 | AN7: 37086.90404 | AO7: 37087.88946 | AP7: 37088.87769 | AQ7: 37089.86584
A8: Ainsworth | B8: 57045 | C8: 55469 | D8: 50000 | E8: 49750 | F8: 44886 | G8: 42212 | H8: 44519 | I8: 53125 | J8: 44861 | K8: 54875 | L8: 51782.02917 | M8: 49797.6586 | N8: 48472.38244 | O8: 47767.69576 | P8: 47247.39095 | Q8: 46865.15639 | R8: 46597.06695 | S8: 46359.97735 | T8: 46151.77046 | U8: 45964.08844 | V8: 45928.85583 | W8: 45885.69843 | X8: 45854.53077 | Y8: 45850.91958 | Z8: 45843.76703 | AA8: 45840.56008 | AB8: 45842.06464 | AC8: 45842.63787 | AD8: 45844.27801 | AE8: 45846.67095 | AF8: 45848.86636 | AG8: 45851.32008 | AH8: 45853.88343 | AI8: 45856.41116 | AJ8: 45858.99679 | AK8: 45861.59614 | AL8: 45864.19017 | AM8: 45866.79641 | AN8: 45869.40385 | AO8: 45872.01076 | AP8: 45874.6201 | AQ8: 45877.22942
A9: Akron | B9: 41369 | C9: 47188 | D9: 47939 | E9: 45000 | F9: 39345 | G9: 41161 | H9: 44615 | I9: 45476 | J9: 46964 | K9: 50893 | L9: 48989.69512 | M9: 47965.5036 | N9: 47346.81146 | O9: 46927.41796 | P9: 46676.30385 | Q9: 46496.17789 | R9: 46355.42993 | S9: 46246.459 | T9: 46149.91201 | U9: 46061.22622 | V9: 46037.90519 | W9: 46011.14881 | X9: 45989.35765 | Y9: 45979.39651 | Z9: 45967.89998 | AA9: 45958.06402 | AB9: 45950.25314 | AC9: 45942.03773 | AD9: 45934.27456 | AE9: 45926.83535 | AF9: 45919.3101 | AG9: 45911.89479 | AH9: 45904.52672 | AI9: 45897.14306 | AJ9: 45889.78412 | AK9: 45882.43109 | AL9: 45875.07572 | AM9: 45867.72557 | AN9: 45860.37594 | AO9: 45853.02606 | AP9: 45845.67723 | AQ9: 45838.32839
A10: Albert City | B10: 43036 | C10: 51875 | D10: 44792 | E10: 46250 | F10: 42604 | G10: 44342 | H10: 44063 | I10: 44554 | J10: 46210 | K10: 48015 | L10: 46803.72665 | M10: 45878.43699 | N10: 45428.7425 | O10: 45189.65806 | P10: 45008.04489 | Q10: 44921.81079 | R10: 44869.47972 | S10: 44829.48512 | T10: 44808.14129 | U10: 44792.09142 | V10: 44779.67406 | W10: 44770.72416 | X10: 44762.6304 | Y10: 44755.315 | Z10: 44748.62834 | AA10: 44742.08289 | AB10: 44735.70273 | AC10: 44729.43362 | AD10: 44723.18887 | AE10: 44716.97868 | AF10: 44710.78756 | AG10: 44704.60095 | AH10: 44698.42142 | AI10: 44692.24508 | AJ10: 44686.06963 | AK10: 44679.8956 | AL10: 44673.72208 | AM10: 44667.54876 | AN10: 44661.37572 | AO10: 44655.20275 | AP10: 44649.02983 | AQ10: 44642.85696
A11: Albia | B11: 31557 | C11: 42462 | D11: 43250 | E11: 43019 | F11: 42762 | G11: 44230 | H11: 40737 | I11: 43877 | J11: 42250 | K11: 46332 | L11: 45471.55458 | M11: 44942.33878 | N11: 44613.73978 | O11: 44436.36819 | P11: 44317.49803 | Q11: 44238.61879 | R11: 44187.60683 | S11: 44147.03688 | T11: 44114.44458 | U11: 44086.9137 | V11: 44064.82357 | W11: 44043.98338 | X11: 44024.25161 | Y11: 44005.5126 | Z11: 43986.97131 | AA11: 43968.67041 | AB11: 43950.54558 | AC11: 43932.45336 | AD11: 43914.41235 | AE11: 43896.40164 | AF11: 43878.39675 | AG11: 43860.40253 | AH11: 43842.41336 | AI11: 43824.42533 | AJ11: 43806.43947 | AK11: 43788.45443 | AL11: 43770.46963 | AM11: 43752.48525 | AN11: 43734.50101 | AO11: 43716.51682 | AP11: 43698.53271 | AQ11: 43680.54863
A12: Albion | B12: 40500 | C12: 43750 | D12: 49659 | E12: 49375 | F12: 53750 | G12: 53750 | H12: 52232 | I12: 50625 | J12: 51875 | K12: 51563 | L12: 51376.3802 | M12: 51218.56716 | N12: 51061.05656 | O12: 50975.61788 | P12: 50888.87036 | Q12: 50805.76783 | R12: 50736.0014 | S12: 50664.8992 | T12: 50595.25931 | U12: 50527.96004 | V12: 50515.16336 | W12: 50497.60307 | X12: 50483.55888 | Y12: 50479.34658 | Z12: 50473.46494 | AA12: 50468.88417 | AB12: 50465.97504 | AC12: 50462.65198 | AD12: 50459.69647 | AE12: 50457.00508 | AF12: 50454.22744 | AG12: 50451.54074 | AH12: 50448.89166 | AI12: 50446.22695 | AJ12: 50443.58286 | AK12: 50440.94324 | AL12: 50438.30121 | AM12: 50435.66356 | AN12: 50433.02623 | AO12: 50430.38862 | AP12: 50427.75189 | AQ12: 50425.11512
A13: Alburnett | B13: 48077 | C13: 52750 | D13: 62500 | E13: 61250 | F13: 67188 | G13: 66875 | H13: 69896 | I13: 74000 | J13: 74375 | K13: 80625 | L13: 77951.21228 | M13: 76563.13166 | N13: 75905.16305 | O13: 75601.50647 | P13: 75544.603 | Q13: 75568.60772 | R13: 75581.69381 | S13: 75597.4076 | T13: 75611.77126 | U13: 75624.30676 | V13: 75631.26752 | W13: 75638.41024 | X13: 75644.91922 | Y13: 75650.43382 | Z13: 75656.0467 | AA13: 75661.48166 | AB13: 75666.74854 | AC13: 75672.04151 | AD13: 75677.29 | AE13: 75682.51191 | AF13: 75687.73917 | AG13: 75692.95616 | AH13: 75698.16931 | AI13: 75703.38335 | AJ13: 75708.59516 | AK13: 75713.8065 | AL13: 75719.01794 | AM13: 75724.22893 | AN13: 75729.43987 | AO13: 75734.65081 | AP13: 75739.86167 | AQ13: 75745.07252
A14: Alden | B14: 39868 | C14: 44375 | D14: 44712 | E14: 44167 | F14: 42337 | G14: 48173 | H14: 44286 | I14: 51023 | J14: 60313 | K14: 54250 | L14: 52995.13793 | M14: 52444.09055 | N14: 52181.19382 | O14: 52036.1663 | P14: 52028.05197 | Q14: 52067.60141 | R14: 52131.69938 | S14: 52221.87472 | T14: 52319.85258 | U14: 52423.02693 | V14: 52429.06678 | W14: 52446.03141 | X14: 52458.28575 | Y14: 52452.98754 | Z14: 52451.20642 | AA14: 52447.35091 | AB14: 52440.51343 | AC14: 52434.52899 | AD14: 52427.92499 | AE14: 52420.85194 | AF14: 52413.95615 | AG14: 52406.90291 | AH14: 52399.78363 | AI14: 52392.69683 | AJ14: 52385.57377 | AK14: 52378.4431 | AL14: 52371.3176 | AM14: 52364.18433 | AN14: 52357.05059 | AO14: 52349.91751 | AP14: 52342.78286 | AQ14: 52335.64831
A15: Alexander | B15: 30714 | C15: 28393 | D15: 30000 | E15: 28750 | F15: 29167 | G15: 39375 | H15: 35000 | I15: 25625 | J15: 31458 | K15: 42500 | L15: 39478.18869 | M15: 38006.25682 | N15: 37300.55745 | O15: 37016.94608 | P15: 37025.78962 | Q15: 37173.37305 | R15: 37402.37866 | S15: 37686.12027 | T15: 37995.05472 | U15: 38319.76361 | V15: 38356.1007 | W15: 38425.27472 | X15: 38480.4929 | Y15: 38483.61803 | Z15: 38497.26138 | AA15: 38504.74517 | AB15: 38503.38313 | AC15: 38504.56751 | AD15: 38503.91135 | AE15: 38501.86479 | AF15: 38500.34688 | AG15: 38498.36116 | AH15: 38496.17995 | AI15: 38494.09556 | AJ15: 38491.90341 | AK15: 38489.68883 | AL15: 38487.48965 | AM15: 38485.26739 | AN15: 38483.04378 | AO15: 38480.82212 | AP15: 38478.5958 | AQ15: 38476.36977
A16: Algona | B16: 39258 | C16: 41488 | D16: 46835 | E16: 46994 | F16: 50280 | G16: 50512 | H16: 53388 | I16: 53891 | J16: 51759 | K16: 51476 | L16: 51737.53692 | M16: 51787.41473 | N16: 51887.9319 | O16: 52117.60477 | P16: 52297.1331 | Q16: 52497.26765 | R16: 52717.67279 | S16: 52927.58865 | T16: 53143.40024 | U16: 53338.15542 | V16: 53350.36155 | W16: 53379.94588 | X16: 53395.09852 | Y16: 53377.64008 | Z16: 53365.88645 | AA16: 53349.27402 | AB16: 53327.17653 | AC16: 53306.45221 | AD16: 53284.40786 | AE16: 53261.50839 | AF16: 53238.88822 | AG16: 53215.94881 | AH16: 53192.88995 | AI16: 53169.88031 | AJ16: 53146.79939 | AK16: 53123.70481 | AL16: 53100.61747 | AM16: 53077.5152 | AN16: 53054.41209 | AO16: 53031.30972 | AP16: 53008.2044 | AQ16: 52985.09922
A17: Alleman | B17: 82375 | C17: 81250 | D17: 75000 | E17: 71944 | F17: 76875 | G17: 81818 | H17: 90833 | I17: 88750 | J17: 96250 | K17: 95625 | L17: 91872.41394 | M17: 89759.22142 | N17: 88404.88784 | O17: 87734.61262 | P17: 87348.73022 | Q17: 87113.53354 | R17: 87008.19818 | S17: 86952.05403 | T17: 86926.233 | U17: 86924.67181 | V17: 86915.5327 | W17: 86914.05863 | X17: 86916.12165 | Y17: 86916.77341 | Z17: 86919.19031 | AA17: 86922.04695 | AB17: 86924.67771 | AC17: 86927.68756 | AD17: 86930.73456 | AE17: 86933.75319 | AF17: 86936.84859 | AG17: 86939.94244 | AH17: 86943.03471 | AI17: 86946.1417 | AJ17: 86949.24693 | AK17: 86952.35273 | AL17: 86955.46119 | AM17: 86958.5691 | AN17: 86961.6773 | AO17: 86964.78595 | AP17: 86967.89447 | AQ17: 86971.00307
A18: Allerton | B18: 38287 | C18: 39000 | D18: 37250 | E18: 36397 | F18: 42813 | G18: 39688 | H18: 37292 | I18: 37813 | J18: 45257 | K18: 39464 | L18: 40253.90895 | M18: 40867.1194 | N18: 41386.36404 | O18: 41814.86301 | P18: 42213.73368 | Q18: 42593.1269 | R18: 42929.349 | S18: 43126.55377 | T18: 43243.02898 | U18: 43312.56273 | V18: 43350.37107 | W18: 43373.52948 | X18: 43387.59739 | Y18: 43395.7712 | Z18: 43401.27195 | AA18: 43405.00877 | AB18: 43407.65999 | AC18: 43409.81937 | AD18: 43411.63673 | AE18: 43413.25579 | AF18: 43414.78338 | AG18: 43416.24487 | AH18: 43417.67039 | AI18: 43419.0787 | AJ18: 43420.4743 | AK18: 43421.86342 | AL18: 43423.24926 | AM18: 43424.63268 | AN18: 43426.01493 | AO18: 43427.39655 | AP18: 43428.77771 | AQ18: 43430.15866
A19: Allison | B19: 34028 | C19: 38929 | D19: 42417 | E19: 49345 | F19: 50885 | G19: 52750 | H19: 51790 | I19: 53350 | J19: 53214 | K19: 53788 | L19: 54018.30315 | M19: 54269.45952 | N19: 54444.01377 | O19: 54771.08642 | P19: 55084.02899 | Q19: 55391.02988 | R19: 55726.99819 | S19: 55991.25998 | T19: 56132.09442 | U19: 56207.03365 | V19: 56249.6288 | W19: 56268.57943 | X19: 56275.64617 | Y19: 56276.53279 | Z19: 56272.92394 | AA19: 56267.17709 | AB19: 56260.23789 | AC19: 56252.45147 | AD19: 56244.28017 | AE19: 56235.87718 | AF19: 56227.31605 | AG19: 56218.68535 | AH19: 56210.00944 | AI19: 56201.30431 | AJ19: 56192.58651 | AK19: 56183.85988 | AL19: 56175.12791 | AM19: 56166.39359 | AN19: 56157.65756 | AO19: 56148.92056 | AP19: 56140.18313 | AQ19: 56131.44536
A20: Alta | B20: 46375 | C20: 42969 | D20: 42331 | E20: 40781 | F20: 52500 | G20: 46458 | H20: 50677 | I20: 52351 | J20: 57500 | K20: 59000 | L20: 56027.93015 | M20: 54552.29128 | N20: 53862.31485 | O20: 53457.897 | P20: 53349.58864 | Q20: 53376.81857 | R20: 53459.91364 | S20: 53600.70499 | T20: 53764.57049 | U20: 53939.67947 | V20: 53955.55341 | W20: 53991.42852 | X20: 54019.90367 | Y20: 54019.67459 | Z20: 54025.61891 | AA20: 54028.18878 | AB20: 54025.90073 | AC20: 54025.08722 | AD20: 54023.2573 | AE20: 54020.668 | AF20: 54018.38286 | AG20: 54015.83863 | AH20: 54013.18872 | AI20: 54010.59436 | AJ20: 54007.94025 | AK20: 54005.27431 | AL20: 54002.61721 | AM20: 53999.94732 | AN20: 53997.2768 | AO20: 53994.60742 | AP20: 53991.93545 | AQ20: 53989.26367
A21: Alta Vista | B21: 29205 | C21: 36563 | D21: 39000 | E21: 39000 | F21: 40625 | G21: 40000 | H21: 40909 | I21: 42019 | J21: 48125 | K21: 47500 | L21: 45983.1917 | M21: 45131.3993 | N21: 44654.87813 | O21: 44466.76171 | P21: 44396.2169 | Q21: 44399.97405 | R21: 44457.35102 | S21: 44535.64754 | T21: 44628.71125 | U21: 44731.60861 | V21: 44739.38129 | W21: 44759.43963 | X21: 44775.63983 | Y21: 44774.65555 | Z21: 44777.45401 | AA21: 44778.33314 | AB21: 44776.2986 | AC21: 44775.16874 | AD21: 44773.4473 | AE21: 44771.26966 | AF21: 44769.27925 | AG21: 44767.13641 | AH21: 44764.92998 | AI21: 44762.75795 | AJ21: 44760.55053 | AK21: 44758.336 | AL21: 44756.12699 | AM21: 44753.91038 | AN21: 44751.69339 | AO21: 44749.47712 | AP21: 44747.25932 | AQ21: 44745.04162
A22: Alton | B22: 56500 | C22: 55625 | D22: 57679 | E22: 57396 | F22: 58917 | G22: 62232 | H22: 64635 | I22: 63846 | J22: 70417 | K22: 70882 | L22: 68732.91903 | M22: 67433.40384 | N22: 66646.05004 | O22: 66238.62526 | P22: 65981.88677 | Q22: 65826.82081 | R22: 65741.8305 | S22: 65683.83346 | T22: 65646.03939 | U22: 65620.99476 | V22: 65614.39062 | W22: 65610.50764 | X22: 65609.68474 | Y22: 65612.21968 | Z22: 65615.103 | AA22: 65618.69828 | AB22: 65622.88329 | AC22: 65627.11317 | AD22: 65631.50291 | AE22: 65635.99214 | AF22: 65640.48821 | AG22: 65645.01889 | AH22: 65649.5656 | AI22: 65654.11376 | AJ22: 65658.66916 | AK22: 65663.227 | AL22: 65667.78523 | AM22: 65672.34492 | AN22: 65676.90496 | AO22: 65681.46511 | AP22: 65686.02554 | AQ22: 65690.58602
A23: Altoona | B23: 62687 | C23: 65781 | D23: 67120 | E23: 66172 | F23: 66730 | G23: 69748 | H23: 72398 | I23: 77801 | J23: 77444 | K23: 77581 | L23: 76992.7905 | M23: 76963.70329 | N23: 77301.89247 | O23: 77793.39952 | P23: 78394.67735 | Q23: 79062.97856 | R23: 79759.45274 | S23: 80477.41592 | T23: 81207.48155 | U23: 81942.80764 | V23: 82722.38102 | W23: 83500.33008 | X23: 84281.56229 | Y23: 85070.84365 | Z23: 85859.21174 | AA23: 86648.6791 | AB23: 87439.53353 | AC23: 88230.13545 | AD23: 89021.03753 | AE23: 89812.16359 | AF23: 90603.23473 | AG23: 91394.37908 | AH23: 92185.55657 | AI23: 92976.72398 | AJ23: 93767.90789 | AK23: 94559.09608 | AL23: 95350.28273 | AM23: 96141.47288 | AN23: 96932.66344 | AO23: 97723.85384 | AP23: 98515.04494 | AQ23: 99306.23604
A24: Alvord | B24: 47321 | C24: 46806 | D24: 46786 | E24: 46875 | F24: 68125 | G24: 53750 | H24: 55833 | I24: 60833 | J24: 59038 | K24: 61094 | L24: 60102.49655 | M24: 59604.73331 | N24: 59412.51754 | O24: 59480.1929 | P24: 59632.12465 | Q24: 59836.26835 | R24: 59969.41325 | S24: 60049.24503 | T24: 60103.12398 | U24: 60143.35642 | V24: 60158.08813 | W24: 60169.62687 | X24: 60177.6398 | Y24: 60180.96991 | Z24: 60183.9646 | AA24: 60186.09362 | AB24: 60187.39541 | AC24: 60188.66988 | AD24: 60189.74209 | AE24: 60190.67438 | AF24: 60191.60497 | AG24: 60192.49043 | AH24: 60193.35339 | AI24: 60194.21599 | AJ24: 60195.06893 | AK24: 60195.91848 | AL24: 60196.76782 | AM24: 60197.61517 | AN24: 60198.46205 | AO24: 60199.30885 | AP24: 60200.15525 | AQ24: 60201.00159
A25: Ames | B25: 40321 | C25: 42062 | D25: 41561 | E25: 42714 | F25: 42373 | G25: 41616 | H25: 41278 | I25: 42755 | J25: 46127 | K25: 48105 | L25: 46402.01461 | M25: 46000.77715 | N25: 46328.7503 | O25: 47062.56139 | P25: 48041.26778 | Q25: 49155.37152 | R25: 50345.82922 | S25: 51582.27227 | T25: 52843.85485 | U25: 54116.07291 | V25: 55338.32846 | W25: 56570.61464 | X25: 57801.57921 | Y25: 59023.62321 | Z25: 60248.36022 | AA25: 61472.1618 | AB25: 62694.48017 | AC25: 63917.40741 | AD25: 65140.0274 | AE25: 66362.42288 | AF25: 67584.94093 | AG25: 68807.378 | AH25: 70029.78582 | AI25: 71252.21588 | AJ25: 72474.62699 | AK25: 73697.03538 | AL25: 74919.44736 | AM25: 76141.85526 | AN25: 77364.2632 | AO25: 78586.67162 | AP25: 79809.07922 | AQ25: 81031.48693
A26: Anamosa | B26: 41017 | C26: 45750 | D26: 44698 | E26: 45000 | F26: 41793 | G26: 41092 | H26: 38125 | I26: 41484 | J26: 38919 | K26: 41603 | L26: 41229.61386 | M26: 40927.5075 | N26: 40666.41103 | O26: 40371.4387 | P26: 40095.2339 | Q26: 39823.44646 | R26: 39545.68316 | S26: 39272.27622 | T26: 38999.01244 | U26: 38724.80491 | V26: 38672.4424 | W26: 38599.07933 | X26: 38538.18369 | Y26: 38517.40437 | Z26: 38489.42522 | AA26: 38466.43236 | AB26: 38450.27188 | AC26: 38432.33183 | AD26: 38415.8393 | AE26: 38400.42724 | AF26: 38384.6432 | AG26: 38369.2223 | AH26: 38353.95521 | AI26: 38338.62009 | AJ26: 38323.36805 | AK26: 38308.13421 | AL26: 38292.88967 | AM26: 38277.66286 | AN26: 38262.43733 | AO26: 38247.21049 | AP26: 38231.98722 | AQ26: 38216.76379
A27: Andover | B27: 58750 | C27: 60417 | D27: 65833 | E27: 58750 | F27: 64375 | G27: 54063 | H27: 55000 | I27: 57321 | J27: 56750 | K27: 60156 | L27: 60815.40135 | M27: 61596.73233 | N27: 62079.10386 | O27: 62354.42291 | P27: 62658.20973 | Q27: 62892.34372 | R27: 63094.9498 | S27: 63302.61923 | T27: 63495.01218 | U27: 63683.08113 | V27: 63713.50777 | W27: 63755.72356 | X27: 63788.42399 | Y27: 63792.52935 | Z27: 63801.13014 | AA27: 63806.11704 | AB27: 63806.20884 | AC27: 63807.44721 | AD27: 63807.65274 | AE27: 63807.07759 | AF27: 63806.74529 | AG27: 63806.15554 | AH27: 63805.45295 | AI27: 63804.79496 | AJ27: 63804.07824 | AK27: 63803.3477 | AL27: 63802.62415 | AM27: 63801.88808 | AN27: 63801.15089 | AO27: 63800.41453 | AP27: 63799.67566 | AQ27: 63798.93685
A28: Andrew | B28: 39375 | C28: 41667 | D28: 47750 | E28: 40781 | F28: 43125 | G28: 44583 | H28: 45938 | I28: 48083 | J28: 47875 | K28: 48250 | L28: 48506.2961 | M28: 48932.54349 | N28: 49263.81024 | O28: 49520.93234 | P28: 49812.91159 | Q28: 50079.91851 | R28: 50336.82347 | S28: 50600.13088 | T28: 50857.58518 | U28: 51113.97436 | V28: 51149.24386 | W28: 51204.2599 | X28: 51246.57891 | Y28: 51248.88137 | Z28: 51258.12405 | AA28: 51262.36599 | AB28: 51259.78348 | AC28: 51258.92959 | AD28: 51256.63063 | AE28: 51253.25003 | AF28: 51250.23192 | AG28: 51246.85198 | AH28: 51243.31742 | AI28: 51239.84922 | AJ28: 51236.29832 | AK28: 51232.72894 | AL28: 51229.16999 | AM28: 51225.59339 | AN28: 51222.01544 | AO28: 51218.43876 | AP28: 51214.85853 | AQ28: 51211.27844
A29: Anita | B29: 37132 | C29: 38795 | D29: 43150 | E29: 38661 | F29: 40192 | G29: 40429 | H29: 40991 | I29: 40577 | J29: 44904 | K29: 44375 | L29: 43776.58125 | M29: 43641.45255 | N29: 43613.50101 | O29: 43626.74345 | P29: 43729.58734 | Q29: 43846.37436 | R29: 43974.00404 | S29: 44118.3648 | T29: 44264.32305 | U29: 44413.00189 | V29: 44423.61826 | W29: 44447.7282 | X29: 44464.44588 | Y29: 44456.18336 | Z29: 44452.50143 | AA29: 44445.77613 | AB29: 44434.79521 | AC29: 44424.94403 | AD29: 44414.20113 | AE29: 44402.78534 | AF29: 44391.60577 | AG29: 44380.20148 | AH29: 44368.70148 | AI29: 44357.24478 | AJ29: 44345.73653 | AK29: 44334.21698 | AL29: 44322.70428 | AM29: 44311.18056 | AN29: 44299.65606 | AO29: 44288.13241 | AP29: 44276.60654 | AQ29: 44265.08077
A30: Ankeny | B30: 71963 | C30: 72703 | D30: 73622 | E30: 74077 | F30: 75069 | G30: 75465 | H30: 76760 | I30: 79536 | J30: 81627 | K30: 86486 | L30: 91143.51921 | M30: 95522.61735 | N30: 99648.82352 | O30: 103507.9949 | P30: 107327.1763 | Q30: 111089.082 | R30: 114803.561 | S30: 118512.1473 | T30: 122208.0896 | U30: 125895.9006 | V30: 129613.2257 | W30: 133324.9573 | X30: 137037.0858 | Y30: 140754.5361 | Z30: 144470.4354 | AA30: 148186.8129 | AB30: 151904.0855 | AC30: 155621.0006 | AD30: 159338.0838 | AE30: 163055.3045 | AF30: 166772.4522 | AG30: 170489.6454 | AH30: 174206.8571 | AI30: 177924.0552 | AJ30: 181641.2642 | AK30: 185358.475 | AL30: 189075.6837 | AM30: 192792.8946 | AN30: 196510.1056 | AO30: 200227.3163 | AP30: 203944.5275 | AQ30: 207661.7386
A31: Anthon | B31: 35000 | C31: 36125 | D31: 36375 | E31: 35938 | F31: 35956 | G31: 37159 | H31: 39063 | I31: 44375 | J31: 46250 | K31: 55000 | L31: 50678.70711 | M31: 48371.64321 | N31: 47270.71529 | O31: 46706.71342 | P31: 46533.99425 | Q31: 46580.07378 | R31: 46726.65175 | S31: 46948.85477 | T31: 47210.45845 | U31: 47491.13439 | V31: 47518.11442 | W31: 47577.51952 | X31: 47625.30302 | Y31: 47627.36541 | Z31: 47639.37699 | AA31: 47646.03418 | AB31: 47644.95714 | AC31: 47646.25156 | AD31: 47645.92894 | AE31: 47644.39835 | AF31: 47643.35653 | AG31: 47641.90208 | AH31: 47640.27978 | AI31: 47638.74673 | AJ31: 47637.11849 | AK31: 47635.47154 | AL31: 47633.8388 | AM31: 47632.18566 | AN31: 47630.53157 | AO31: 47628.87929 | AP31: 47627.22291 | AQ31: 47625.56683
A32: Aplington | B32: 45391 | C32: 45208 | D32: 48000 | E32: 49028 | F32: 50893 | G32: 51838 | H32: 54125 | I32: 53995 | J32: 56250 | K32: 56186 | L32: 56923.35306 | M32: 57547.58447 | N32: 58046.0027 | O32: 58378.93431 | P32: 58525.62057 | Q32: 58587.2891 | R32: 58616.49098 | S32: 58609.1619 | T32: 58587.51529 | U32: 58559.27607 | V32: 58548.06664 | W32: 58532.19941 | X32: 58516.33394 | Y32: 58503.49195 | Z32: 58489.47587 | AA32: 58475.71646 | AB32: 58462.45292 | AC32: 58448.93092 | AD32: 58435.50615 | AE32: 58422.15431 | AF32: 58408.75097 | AG32: 58395.37454 | AH32: 58382.00699 | AI32: 58368.63008 | AJ32: 58355.25962 | AK32: 58341.88978 | AL32: 58328.51842 | AM32: 58315.14845 | AN32: 58301.7784 | AO32: 58288.40814 | AP32: 58275.03816 | AQ32: 58261.66812
A33: Arcadia | B33: 56250 | C33: 51250 | D33: 54688 | E33: 57321 | F33: 54338 | G33: 54010 | H33: 54773 | I33: 59167 | J33: 58125 | K33: 63750 | L33: 60959.40217 | M33: 59328.29343 | N33: 58343.91463 | O33: 57762.56551 | P33: 57395.28551 | Q33: 57150.45486 | R33: 56981.18589 | S33: 56851.47657 | T33: 56745.00734 | U33: 56652.65036 | V33: 56635.04849 | W33: 56615.4861 | X33: 56602.39275 | Y33: 56602.84876 | Z33: 56601.96027 | AA33: 56603.08369 | AB33: 56606.536 | AC33: 56609.60834 | AD33: 56613.2122 | AE33: 56617.19163 | AF33: 56621.08862 | AG33: 56625.11282 | AH33: 56629.19265 | AI33: 56633.2576 | AJ33: 56637.3509 | AK33: 56641.4514 | AL33: 56645.54975 | AM33: 56649.65406 | AN33: 56653.75907 | AO33: 56657.86389 | AP33: 56661.9699 | AQ33: 56666.07592
A34: Archer | B34: 50938 | C34: 47188 | D34: 45000 | E34: 48000 | F34: 41250 | G34: 46667 | H34: 46875 | I34: 45625 | J34: 42813 | K34: 48750 | L34: 47010.08692 | M34: 46124.65773 | N34: 45700.01035 | O34: 45560.99361 | P34: 45580.05081 | Q34: 45661.81639 | R34: 45709.61366 | S34: 45736.37269 | T34: 45750.73239 | U34: 45758.77622 | V34: 45762.80967 | W34: 45764.55442 | X34: 45765.11851 | Y34: 45764.91952 | Z34: 45764.29952 | AA34: 45763.45752 | AB34: 45762.47078 | AC34: 45761.40677 | AD34: 45760.30078 | AE34: 45759.16744 | AF34: 45758.01994 | AG34: 45756.86446 | AH34: 45755.70384 | AI34: 45754.54062 | AJ34: 45753.37588 | AK34: 45752.21017 | AL34: 45751.04399 | AM34: 45749.87752 | AN34: 45748.71086 | AO34: 45747.54412 | AP34: 45746.37733 | AQ34: 45745.2105
A35: Aredale | B35: 24583 | C35: 22917 | D35: 21250 | E35: 27250 | F35: 27188 | G35: 25000 | H35: 30625 | I35: 34167 | J35: 35000 | K35: 33750 | L35: 35257.70241 | M35: 36569.21165 | N35: 37713.71026 | O35: 38377.24358 | P35: 38770.55373 | Q35: 39015.1925 | R35: 39169.18921 | S35: 39273.08416 | T35: 39349.01099 | U35: 39407.89039 | V35: 39424.9287 | W35: 39439.7718 | X35: 39449.56092 | Y35: 39451.74367 | Z35: 39453.98436 | AA35: 39454.89026 | AB35: 39454.4747 | AC35: 39454.13102 | AD35: 39453.46251 | AE35: 39452.57618 | AF35: 39451.70854 | AG35: 39450.76673 | AH35: 39449.79129 | AI35: 39448.81903 | AJ35: 39447.83071 | AK35: 39446.83765 | AL35: 39445.84488 | AM35: 39444.84879 | AN35: 39443.85212 | AO35: 39442.85539 | AP35: 39441.85802 | AQ35: 39440.86059
A36: Arion | B36: 31250 | C36: 27500 | D36: 28750 | E36: 32813 | F36: 33281 | G36: 40750 | H36: 41250 | I36: 43750 | J36: 44167 | K36: 50000 | L36: 45825.76448 | M36: 43325.40829 | N36: 41778.40763 | O36: 40766.77963 | P36: 40101.80807 | Q36: 39649.9846 | R36: 39318.77161 | S36: 39058.12949 | T36: 38837.25505 | U36: 38639.01052 | V36: 38597.19165 | W36: 38549.24879 | X36: 38513.71783 | Y36: 38506.54823 | Z36: 38496.12482 | AA36: 38489.73899 | AB36: 38488.22329 | AC36: 38485.82051 | AD36: 38484.50562 | AE36: 38483.97391 | AF36: 38483.25124 | AG36: 38482.79173 | AH36: 38482.4475 | AI36: 38482.0686 | AJ36: 38481.74871 | AK36: 38481.44355 | AL36: 38481.13321 | AM36: 38480.83533 | AN36: 38480.53883 | AO36: 38480.24182 | AP36: 38479.94729 | AQ36: 38479.65276
A37: Arispe | B37: 37708 | C37: 38000 | D37: 40313 | E37: 30833 | F37: 37917 | G37: 36000 | H37: 36458 | I37: 36095.64286 | J37: 35799.79167 | K37: 38594 | L37: 37207.18445 | M37: 36039.1321 | N37: 35300.01177 | O37: 34824.38931 | P37: 34386.17481 | Q37: 34038.88019 | R37: 33735.03163 | S37: 33438.57667 | T37: 33160.84824 | U37: 32889.98888 | V37: 32845.16397 | W37: 32782.86147 | X37: 32734.38439 | Y37: 32726.86338 | Z37: 32712.8002 | AA37: 32703.96043 | AB37: 32702.12235 | AC37: 32698.62549 | AD37: 32696.61808 | AE37: 32695.72526 | AF37: 32694.48229 | AG37: 32693.61002 | AH37: 32692.89842 | AI37: 32692.12266 | AJ37: 32691.43138 | AK37: 32690.75966 | AL37: 32690.07792 | AM37: 32689.41418 | AN37: 32688.75198 | AO37: 32688.08859 | AP37: 32687.42882 | AQ37: 32686.76895
A38: Arlington | B38: 38750 | C38: 43000 | D38: 44500 | E38: 37708 | F38: 39896 | G38: 41500 | H38: 41667 | I38: 41250 | J38: 46250 | K38: 47500 | L38: 45511.6231 | M38: 44375.53123 | N38: 43717.86659 | O38: 43349.62964 | P38: 43139.53617 | Q38: 43019.62778 | R38: 42953.98177 | S38: 42917.69468 | T38: 42898.43628 | U38: 42889.32573 | V38: 42877.60052 | W38: 42869.85756 | X38: 42863.54745 | Y38: 42856.79458 | Z38: 42850.91185 | AA38: 42845.19878 | AB38: 42839.42704 | AC38: 42833.83494 | AD38: 42828.25538 | AE38: 42822.67208 | AF38: 42817.12399 | AG38: 42811.57478 | AH38: 42806.02666 | AI38: 42800.4851 | AJ38: 42794.94275 | AK38: 42789.401 | AL38: 42783.86041 | AM38: 42778.31959 | AN38: 42772.77896 | AO38: 42767.23852 | AP38: 42761.69803 | AQ38: 42756.15758
A39: Armstrong | B39: 47143 | C39: 47500 | D39: 49250 | E39: 48393 | F39: 48603 | G39: 47000 | H39: 41949 | I39: 42557 | J39: 42469 | K39: 43676 | L39: 44663.79207 | M39: 45307.18733 | N39: 45770.56805 | O39: 46119.61769 | P39: 46405.15534 | Q39: 46656.87784 | R39: 46886.9441 | S39: 47105.32219 | T39: 47317.31666 | U39: 47525.22348 | V39: 47544.4845 | W39: 47580.17421 | X39: 47604.4649 | Y39: 47594.64943 | Z39: 47590.64485 | AA39: 47582.2779 | AB39: 47568.09894 | AC39: 47555.36815 | AD39: 47541.3892 | AE39: 47526.48958 | AF39: 47511.89321 | AG39: 47496.9859 | AH39: 47481.947 | AI39: 47466.96344 | AJ39: 47451.90902 | AK39: 47436.83887 | AL39: 47421.77736 | AM39: 47406.70076 | AN39: 47391.62301 | AO39: 47376.54628 | AP39: 47361.46653 | AQ39: 47346.38689
A40: Arnolds Park | B40: 44375 | C40: 52368 | D40: 52411 | E40: 46176 | F40: 48409 | G40: 46518 | H40: 44833 | I40: 41801 | J40: 48320 | K40: 48188 | L40: 48788.98598 | M40: 49417.29576 | N40: 49944.97716 | O40: 50277.21071 | P40: 50516.69299 | Q40: 50663.8744 | R40: 50744.68616 | S40: 50809.65241 | T40: 50855.32655 | U40: 50889.40753 | V40: 50925.84819 | W40: 50957.82962 | X40: 50988.13546 | Y40: 51018.83546 | Z40: 51048.5673 | AA40: 51078.09013 | AB40: 51107.66137 | AC40: 51137.03336 | AD40: 51166.38667 | AE40: 51195.74139 | AF40: 51225.0571 | AG40: 51254.37299 | AH40: 51283.68727 | AI40: 51312.99426 | AJ40: 51342.3019 | AK40: 51371.60883 | AL40: 51400.91446 | AM40: 51430.2203 | AN40: 51459.52593 | AO40: 51488.83134 | AP40: 51518.1368 | AQ40: 51547.4422
A41: Arthur | B41: 30500 | C41: 34167 | D41: 37917 | E41: 36875 | F41: 38125 | G41: 40833 | H41: 41429 | I41: 46750 | J41: 44219 | K41: 42625 | L41: 41916.22898 | M41: 41370.07357 | N41: 40922.88057 | O41: 40660.07237 | P41: 40415.59051 | Q41: 40197.10786 | R41: 40012.2081 | S41: 39828.87619 | T41: 39651.96779 | U41: 39480.93128 | V41: 39451.88516 | W41: 39410.91646 | X41: 39379.01872 | Y41: 39372.76694 | Z41: 39362.25185 | AA41: 39355.10225 | AB41: 39352.32 | AC41: 39348.47343 | AD41: 39345.57918 | AE41: 39343.37654 | AF41: 39340.9513 | AG41: 39338.76195 | AH41: 39336.67147 | AI41: 39334.54053 | AJ41: 39332.46316 | AK41: 39330.39763 | AL41: 39328.32583 | AM41: 39326.26541 | AN41: 39324.20588 | AO41: 39322.14561 | AP41: 39320.08762 | AQ41: 39318.02955
A42: Asbury | B42: 76250 | C42: 82813 | D42: 85363 | E42: 84699 | F42: 86820 | G42: 89559 | H42: 90781 | I42: 89015 | J42: 91080 | K42: 100871 | L42: 97207.10857 | M42: 95245.69494 | N42: 94146.71124 | O42: 93514.54105 | P42: 93204.31821 | Q42: 93050.53954 | R42: 92986.45479 | S42: 92982.79854 | T42: 93007.57035 | U42: 93049.66156 | V42: 93221.49266 | W42: 93387.30613 | X42: 93563.22634 | Y42: 93762.64219 | Z42: 93959.17395 | AA42: 94159.03491 | AB42: 94362.92289 | AC42: 94566.04 | AD42: 94770.05841 | AE42: 94974.72246 | AF42: 95179.22175 | AG42: 95383.93953 | AH42: 95588.75184 | AI42: 95793.53429 | AJ42: 95998.36578 | AK42: 96203.20922 | AL42: 96408.04819 | AM42: 96612.89751 | AN42: 96817.74792 | AO42: 97022.59787 | AP42: 97227.44989 | AQ42: 97432.30189
A43: Ashton | B43: 36500 | C43: 38938 | D43: 39659 | E43: 44583 | F43: 43750 | G43: 46250 | H43: 49000 | I43: 47083 | J43: 51667 | K43: 51563 | L43: 51311.50237 | M43: 51408.55243 | N43: 51701.83724 | O43: 52178.83565 | P43: 52714.35477 | Q43: 53257.98919 | R43: 53587.79533 | S43: 53785.72662 | T43: 53911.01141 | U43: 53996.05379 | V43: 54027.11018 | W43: 54047.48543 | X43: 54058.60251 | Y43: 54059.78708 | Z43: 54059.42933 | AA43: 54056.97465 | AB43: 54052.75011 | AC43: 54048.29807 | AD43: 54043.38263 | AE43: 54038.16258 | AF43: 54032.90569 | AG43: 54027.54927 | AH43: 54022.14241 | AI43: 54016.72851 | AJ43: 54011.29388 | AK43: 54005.85124 | AL43: 54000.40703 | AM43: 53994.95863 | AN43: 53989.50902 | AO43: 53984.05902 | AP43: 53978.60821 | AQ43: 53973.15722
A44: Aspinwall | B44: 35000 | C44: 38000 | D44: 40938 | E44: 41563 | F44: 40938 | G44: 57500 | H44: 60983.97143 | I44: 65160.82551 | J44: 76875 | K44: 76875 | L44: 71898.47602 | M44: 69117.64788 | N44: 67657.59813 | O44: 66712.9274 | P44: 66201.69148 | Q44: 65926.09368 | R44: 65747.31839 | S44: 65653.36327 | T44: 65600.97367 | U44: 65567.19247 | V44: 65549.82352 | W44: 65539.72287 | X44: 65533.27202 | Y44: 65529.95498 | Z44: 65527.90297 | AA44: 65526.5779 | AB44: 65525.84248 | AC44: 65525.32746 | AD44: 65524.95855 | AE44: 65524.69886 | AF44: 65524.47788 | AG44: 65524.28636 | AH44: 65524.11474 | AI44: 65523.95003 | AJ44: 65523.79124 | AK44: 65523.63603 | AL44: 65523.48207 | AM44: 65523.3293 | AN44: 65523.17716 | AO44: 65523.02525 | AP44: 65522.87358 | AQ44: 65522.72202
A45: Atalissa | B45: 44375 | C45: 47875 | D45: 50893 | E45: 49167 | F45: 48750 | G45: 57500 | H45: 61625 | I45: 70313 | J45: 70000 | K45: 67500 | L45: 67491.09027 | M45: 67815.78301 | N45: 68044.27586 | O45: 68096.41186 | P45: 68128.3978 | Q45: 68135.46962 | R45: 68110.29915 | S45: 68083.13842 | T45: 68049.86548 | U45: 68010.92655 | V45: 68007.35842 | W45: 67999.00701 | X45: 67991.72733 | Y45: 67990.86145 | Z45: 67988.5283 | AA45: 67986.84652 | AB45: 67986.2557 | AC45: 67985.3132 | AD45: 67984.58061 | AE45: 67984.0193 | AF45: 67983.38481 | AG45: 67982.80551 | AH45: 67982.25013 | AI45: 67981.68119 | AJ45: 67981.1252 | AK45: 67980.57189 | AL45: 67980.01637 | AM45: 67979.46366 | AN45: 67978.91109 | AO45: 67978.35822 | AP45: 67977.80591 | AQ45: 67977.25357
A46: Atkins | B46: 77031 | C46: 79606 | D46: 81462 | E46: 81525 | F46: 86250 | G46: 84917 | H46: 82222 | I46: 86875 | J46: 95469 | K46: 95455 | L46: 92717.44854 | M46: 91236.01708 | N46: 90388.59392 | O46: 89907.32162 | P46: 89661.42217 | Q46: 89531.7589 | R46: 89472.23615 | S46: 89456.54972 | T46: 89462.25354 | U46: 89481.4163 | V46: 89519.98835 | W46: 89561.45045 | X46: 89606.13849 | Y46: 89654.36155 | Z46: 89702.95642 | AA46: 89752.30117 | AB46: 89802.26697 | AC46: 89852.28097 | AD46: 89902.46325 | AE46: 89952.75037 | AF46: 90003.04485 | AG46: 90053.37576 | AH46: 90103.72358 | AI46: 90154.07295 | AJ46: 90204.42993 | AK46: 90254.78948 | AL46: 90305.14946 | AM46: 90355.51097 | AN46: 90405.87285 | AO46: 90456.23485 | AP46: 90506.59715 | AQ46: 90556.9595
A47: Atlantic | B47: 38306 | C47: 36233 | D47: 37212 | E47: 39022 | F47: 38902 | G47: 37397 | H47: 40290 | I47: 39702 | J47: 41829 | K47: 41542 | L47: 39414.33933 | M47: 38003.15719 | N47: 36949.16452 | O47: 36090.38329 | P47: 35366.93278 | Q47: 34708.17789 | R47: 34087.03334 | S47: 33491.24747 | T47: 32907.20769 | U47: 32330.4477 | V47: 32163.71663 | W47: 31960.79406 | X47: 31782.38736 | Y47: 31678.11311 | Z47: 31561.1039 | AA47: 31453.5368 | AB47: 31358.60132 | AC47: 31260.49639 | AD47: 31165.09883 | AE47: 31071.70167 | AF47: 30977.64102 | AG47: 30884.25554 | AH47: 30791.15578 | AI47: 30697.93492 | AJ47: 30604.86799 | AK47: 30511.83517 | AL47: 30418.78343 | AM47: 30325.76447 | AN47: 30232.74801 | AO47: 30139.72928 | AP47: 30046.71713 | AQ47: 29953.70473
A48: Auburn | B48: 35000 | C48: 36250 | D48: 37639 | E48: 35000 | F48: 38173 | G48: 38021 | H48: 43194 | I48: 43625 | J48: 51250 | K48: 45500 | L48: 45020.52291 | M48: 44837.14257 | N48: 44762.58097 | O48: 44809.59966 | P48: 44906.8127 | Q48: 45025.87218 | R48: 45168.46231 | S48: 45319.44855 | T48: 45474.93747 | U48: 45634.89119 | V48: 45653.68674 | W48: 45686.90648 | X48: 45712.82979 | Y48: 45713.21823 | Z48: 45718.42178 | AA48: 45720.5514 | AB48: 45718.33379 | AC48: 45717.29784 | AD48: 45715.35503 | AE48: 45712.72578 | AF48: 45710.34321 | AG48: 45707.73139 | AH48: 45705.02221 | AI48: 45702.35826 | AJ48: 45699.64164 | AK48: 45696.9136 | AL48: 45694.19274 | AM48: 45691.46061 | AN48: 45688.72771 | AO48: 45685.99571 | AP48: 45683.26144 | AQ48: 45680.52728
A49: Audubon | B49: 38600 | C49: 38244 | D49: 40750 | E49: 49034 | F49: 40167 | G49: 37983 | H49: 35227 | I49: 39205 | J49: 39821 | K49: 44152 | L49: 42036.5381 | M49: 40834.95534 | N49: 40130.66016 | O49: 39696.52934 | P49: 39435.01601 | Q49: 39264.98963 | R49: 39146.12465 | S49: 39059.73457 | T49: 38990.17769 | U49: 38930.34556 | V49: 38877.27883 | W49: 38827.24956 | X49: 38779.11258 | Y49: 38732.23272 | Z49: 38685.90413 | AA49: 38639.94466 | AB49: 38594.2165 | AC49: 38548.58932 | AD49: 38503.0341 | AE49: 38457.52103 | AF49: 38412.02669 | AG49: 38366.54633 | AH49: 38321.07358 | AI49: 38275.60436 | AJ49: 38230.13783 | AK49: 38184.67268 | AL49: 38139.20819 | AM49: 38093.74422 | AN49: 38048.28049 | AO49: 38002.8169 | AP49: 37957.3534 | AQ49: 37911.88995
A50: Aurelia | B50: 48646 | C50: 49821 | D50: 47000 | E50: 43839 | F50: 48214 | G50: 50556 | H50: 59792 | I50: 64028 | J50: 68472 | K50: 67000 | L50: 63257.76266 | M50: 61308.40198 | N50: 60228.72274 | O50: 59557.35443 | P50: 59231.05383 | Q50: 59057.58203 | R50: 58964.10103 | S50: 58936.20147 | T50: 58935.08687 | U50: 58949.84436 | V50: 58929.69594 | W50: 58918.7195 | X50: 58908.22483 | Y50: 58891.46898 | Z50: 58877.07753 | AA50: 58862.25342 | AB50: 58846.38989 | AC50: 58831.05476 | AD50: 58815.53719 | AE50: 58799.86406 | AF50: 58784.29764 | AG50: 58768.67886 | AH50: 58753.04049 | AI50: 58737.42181 | AJ50: 58721.79035 | AK50: 58706.1573 | AL50: 58690.52754 | AM50: 58674.89496 | AN50: 58659.2625 | AO50: 58643.63052 | AP50: 58627.99796 | AQ50: 58612.3655
A51: Aurora | B51: 35893 | C51: 38036 | D51: 43750 | E51: 43889 | F51: 49167 | G51: 47321 | H51: 47500 | I51: 39167 | J51: 41250 | K51: 39750 | L51: 41254.03445 | M51: 41861.06909 | N51: 42035.08499 | O51: 42188.94248 | P51: 42152.84384 | Q51: 42051.16834 | R51: 41942.72247 | S51: 41795.54187 | T51: 41639.19433 | U51: 41480.56128 | V51: 41456.86704 | W51: 41418.55213 | X51: 41387.66893 | Y51: 41381.11237 | Z51: 41369.824 | AA51: 41361.56941 | AB51: 41357.43946 | AC51: 41352.16286 | AD51: 41347.77145 | AE51: 41344.02776 | AF51: 41340.04669 | AG51: 41336.288 | AH51: 41332.62039 | AI51: 41328.90958 | AJ51: 41325.24963 | AK51: 41321.60017 | AL51: 41317.94393 | AM51: 41314.29853 | AN51: 41310.65378 | AO51: 41307.0082 | AP51: 41303.36479 | AQ51: 41299.72126
A52: Avoca | B52: 50250 | C52: 52167 | D52: 47159 | E52: 47679 | F52: 48792 | G52: 50735 | H52: 51875 | I52: 57679 | J52: 57500 | K52: 56389 | L52: 55124.79541 | M52: 54319.29537 | N52: 53857.38522 | O52: 53607.97845 | P52: 53442.45715 | Q52: 53344.73486 | R52: 53285.15461 | S52: 53241.22153 | T52: 53210.57043 | U52: 53186.68854 | V52: 53181.21578 | W52: 53176.85997 | X52: 53174.57405 | Y52: 53175.65656 | Z52: 53176.73294 | AA52: 53178.3665 | AB52: 53180.58941 | AC52: 53182.78218 | AD52: 53185.11238 | AE52: 53187.54052 | AF52: 53189.96025 | AG52: 53192.41169 | AH52: 53194.8784 | AI52: 53197.34359 | AJ52: 53199.8157 | AK52: 53202.29 | AL52: 53204.76413 | AM52: 53207.23971 | AN52: 53209.71556 | AO52: 53212.19142 | AP52: 53214.66756 | AQ52: 53217.14373
A53: Ayrshire | B53: 22813 | C53: 23750 | D53: 24250 | E53: 31875 | F53: 26750 | G53: 28750 | H53: 27292 | I53: 21607 | J53: 24375 | K53: 22917 | L53: 24185.12963 | M53: 24937.77747 | N53: 25395.82002 | O53: 25510.14892 | P53: 25558.29868 | Q53: 25540.66252 | R53: 25460.5237 | S53: 25370.51502 | T53: 25265.89113 | U53: 25150.25633 | V53: 25137.75099 | W53: 25112.17529 | X53: 25090.69214 | Y53: 25087.86006 | Z53: 25080.96815 | AA53: 25076.13696 | AB53: 25074.47243 | AC53: 25071.83323 | AD53: 25069.83137 | AE53: 25068.32625 | AF53: 25066.61891 | AG53: 25065.07611 | AH53: 25063.60276 | AI53: 25062.09218 | AJ53: 25060.61983 | AK53: 25059.15533 | AL53: 25057.68482 | AM53: 25056.22254 | AN53: 25054.7607 | AO53: 25053.29806 | AP53: 25051.83709 | AQ53: 25050.37601
A54: Badger | B54: 44091 | C54: 48750 | D54: 50909 | E54: 52250 | F54: 58125 | G54: 60536 | H54: 58125 | I54: 61538 | J54: 56477 | K54: 62500 | L54: 62350.21901 | M54: 62260.35692 | N54: 62207.42426 | O54: 62144.39973 | P54: 62095.53065 | Q54: 62051.87999 | R54: 62006.49157 | S54: 61964.21765 | T54: 61922.56078 | U54: 61880.66383 | V54: 61871.14038 | W54: 61858.66112 | X54: 61847.9714 | Y54: 61843.14384 | Z54: 61837.28417 | AA54: 61832.14508 | AB54: 61828.00613 | AC54: 61823.6104 | AD54: 61819.42442 | AE54: 61815.39699 | AF54: 61811.31568 | AG54: 61807.28708 | AH54: 61803.28113 | AI54: 61799.26531 | AJ54: 61795.26156 | AK54: 61791.26051 | AL54: 61787.25791 | AM54: 61783.25788 | AN54: 61779.25805 | AO54: 61775.25803 | AP54: 61771.25853 | AQ54: 61767.259
A55: Bagley | B55: 17500 | C55: 28295 | D55: 21806 | E55: 28125 | F55: 36563 | G55: 45556 | H55: 42292 | I55: 46719 | J55: 47292 | K55: 44375 | L55: 44331.19314 | M55: 44534.30795 | N55: 44922.42916 | O55: 45299.16566 | P55: 45732.95644 | Q55: 46047.96837 | R55: 46217.04122 | S55: 46316.38355 | T55: 46372.99035 | U55: 46402.45829 | V55: 46419.08672 | W55: 46427.47588 | X55: 46430.85206 | Y55: 46431.858 | Z55: 46431.27602 | AA55: 46429.77437 | AB55: 46427.83141 | AC55: 46425.58318 | AD55: 46423.16725 | AE55: 46420.66834 | AF55: 46418.11101 | AG55: 46415.52324 | AH55: 46412.91972 | AI55: 46410.30509 | AJ55: 46407.68494 | AK55: 46405.06178 | AL55: 46402.43652 | AM55: 46399.81026 | AN55: 46397.18342 | AO55: 46394.55619 | AP55: 46391.92877 | AQ55: 46389.30124
A56: Baldwin | B56: 24375 | C56: 22000 | D56: 21607 | E56: 20625 | F56: 36250 | G56: 33125 | H56: 37813 | I56: 37917 | J56: 40000 | K56: 38542 | L56: 37072.87734 | M56: 36598.28919 | N56: 36619.44074 | O56: 36886.01894 | P56: 37342.86054 | Q56: 37888.03613 | R56: 38399.95049 | S56: 38690.26535 | T56: 38848.92094 | U56: 38932.57979 | V56: 38986.98238 | W56: 39015.44122 | X56: 39030.64641 | Y56: 39040.27937 | Z56: 39044.85509 | AA56: 39047.11395 | AB56: 39048.28631 | AC56: 39048.4857 | AD56: 39048.28309 | AE56: 39047.86456 | AF56: 39047.26158 | AG56: 39046.58902 | AH56: 39045.873 | AI56: 39045.12257 | AJ56: 39044.36004 | AK56: 39043.58872 | AL56: 39042.81108 | AM56: 39042.03131 | AN56: 39041.24976 | AO56: 39040.46707 | AP56: 39039.68399 | AQ56: 39038.90056
A57: Balltown | B57: 42292 | C57: 42500 | D57: 55313 | E57: 55625 | F57: 63750 | G57: 55938 | H57: 57500 | I57: 65625 | J57: 70000 | K57: 71250 | L57: 70437.00756 | M57: 70356.5317 | N57: 70389.08287 | O57: 70539.3326 | P57: 70823.5691 | Q57: 71122.34278 | R57: 71448.62498 | S57: 71798.55459 | T57: 72150.34172 | U57: 72508.33531 | V57: 72558.55329 | W57: 72638.53372 | X57: 72702.09206 | Y57: 72709.94265 | Z57: 72727.94854 | AA57: 72739.18519 | AB57: 72740.92692 | AC57: 72745.17796 | AD57: 72747.44451 | AE57: 72748.20872 | AF57: 72749.49816 | AG57: 72750.28729 | AH57: 72750.8625 | AI57: 72751.53405 | AJ57: 72752.09081 | AK57: 72752.62226 | AL57: 72753.16896 | AM57: 72753.69111 | AN57: 72754.21149 | AO57: 72754.73376 | AP57: 72755.25109 | AQ57: 72755.76864
A58: Bancroft | B58: 39844 | C58: 33500 | D58: 34539 | E58: 39519 | F58: 40804 | G58: 44375 | H58: 52794 | I58: 51528 | J58: 47321 | K58: 42083 | L58: 43942.64381 | M58: 45132.25374 | N58: 45933.73569 | O58: 46603.59567 | P58: 46956.74876 | Q58: 47148.39527 | R58: 47275.48571 | S58: 47340.52611 | T58: 47377.53448 | U58: 47401.90173 | V58: 47408.27444 | W58: 47410.39604 | X58: 47409.64437 | Y58: 47405.5287 | Z58: 47400.78245 | AA58: 47395.38627 | AB58: 47389.37975 | AC58: 47383.27948 | AD58: 47377.03481 | AE58: 47370.6829 | AF58: 47364.31632 | AG58: 47357.91844 | AH58: 47351.50236 | AI58: 47345.0837 | AJ58: 47338.65844 | AK58: 47332.23021 | AL58: 47325.80145 | AM58: 47319.37134 | AN58: 47312.94077 | AO58: 47306.51007 | AP58: 47300.07911 | AQ58: 47293.64808
A59: Bankston | B59: 75665 | C59: 53750 | D59: 63750 | E59: 110903 | F59: 113438 | G59: 113393 | H59: 54688 | I59: 57000 | J59: 55625 | K59: 58438 | L59: 65355.85846 | M59: 68758.3921 | N59: 70610.22523 | O59: 71797.56821 | P59: 72302.88371 | Q59: 72545.06264 | R59: 72652.63865 | S59: 72630.24099 | T59: 72563.48909 | U59: 72469.01809 | V59: 72470.77164 | W59: 72453.63389 | X59: 72437.62124 | Y59: 72438.94386 | Z59: 72435.07847 | AA59: 72432.7514 | AB59: 72433.33527 | AC59: 72432.72841 | AD59: 72432.66741 | AE59: 72433.05266 | AF59: 72433.19487 | AG59: 72433.48561 | AH59: 72433.83572 | AI59: 72434.141 | AJ59: 72434.4817 | AK59: 72434.82822 | AL59: 72435.16734 | AM59: 72435.51419 | AN59: 72435.86107 | AO59: 72436.2069 | AP59: 72436.55431 | AQ59: 72436.90152
A60: Barnes City | B60: 33906 | C60: 28750 | D60: 36458 | E60: 34375 | F60: 25000 | G60: 37500 | H60: 46042 | I60: 45781 | J60: 41563 | K60: 45625 | L60: 42617.79436 | M60: 40828.26101 | N60: 39728.95928 | O60: 38997.90387 | P60: 38497.39323 | Q60: 38124.39762 | R60: 37820.64334 | S60: 37560.43175 | T60: 37323.74579 | U60: 37100.13123 | V60: 37058.98978 | W60: 37005.70408 | X60: 36964.8287 | Y60: 36956.99262 | Z60: 36944.31218 | AA60: 36936.04426 | AB60: 36933.42663 | AC60: 36929.56283 | AD60: 36926.92989 | AE60: 36925.19812 | AF60: 36923.20263 | AG60: 36921.5101 | AH60: 36919.9481 | AI60: 36918.33802 | AJ60: 36916.79654 | AK60: 36915.27114 | AL60: 36913.73836 | AM60: 36912.22012 | AN60: 36910.70323 | AO60: 36909.18549 | AP60: 36907.67068 | AQ60: 36906.1558
A61: Barnum | B61: 42031 | C61: 43750 | D61: 56042 | E61: 57045 | F61: 56563 | G61: 53750 | H61: 42083 | I61: 41111 | J61: 47500 | K61: 40938 | L61: 43457.94211 | M61: 44828.75915 | N61: 45545.05604 | O61: 45853.99516 | P61: 45950.87652 | Q61: 45923.42475 | R61: 45819.86077 | S61: 45677.08224 | T61: 45510.64531 | U61: 45330.04729 | V61: 45310.59946 | W61: 45270.71768 | X61: 45237.81247 | Y61: 45233.99595 | Z61: 45223.86678 | AA61: 45217.06298 | AB61: 45215.18836 | AC61: 45211.80354 | AD61: 45209.43257 | AE61: 45207.83311 | AF61: 45205.92141 | AG61: 45204.26965 | AH61: 45202.72543 | AI61: 45201.12398 | AJ61: 45199.58269 | AK61: 45198.05346 | AL61: 45196.51506 | AM61: 45194.98959 | AN61: 45193.46475 | AO61: 45191.93873 | AP61: 45190.41532 | AQ61: 45188.89172
A62: Bassett | B62: 51667 | C62: 57188 | D62: 55625 | E62: 55938 | F62: 39643 | G62: 47813 | H62: 40417 | I62: 50417 | J62: 51667 | K62: 50686.1 | L62: 50286.88222 | M62: 50050.51741 | N62: 49901.68881 | O62: 49756.26347 | P62: 49645.77818 | Q62: 49548.84446 | R62: 49452.9571 | S62: 49364.2849 | T62: 49277.56478 | U62: 49191.2063 | V62: 49177.77142 | W62: 49157.82893 | X62: 49142.07536 | Y62: 49139.51902 | Z62: 49134.67481 | AA62: 49131.48 | AB62: 49130.53589 | AC62: 49129.02189 | AD62: 49127.98448 | AE62: 49127.3038 | AF62: 49126.50361 | AG62: 49125.82275 | AH62: 49125.19289 | AI62: 49124.54115 | AJ62: 49123.91668 | AK62: 49123.29831 | AL62: 49122.6765 | AM62: 49122.06051 | AN62: 49121.44497 | AO62: 49120.82901 | AP62: 49120.21422 | AQ62: 49119.59938
A63: Batavia | B63: 50893 | C63: 45000 | D63: 47083 | E63: 44861 | F63: 41771 | G63: 39808 | H63: 40804 | I63: 42422 | J63: 37500 | K63: 46146 | L63: 44305.61981 | M63: 43200.29069 | N63: 42431.29956 | O63: 41947.40094 | P63: 41592.87157 | Q63: 41303.94476 | R63: 41069.3959 | S63: 40857.52658 | T63: 40658.63548 | U63: 40469.97639 | V63: 40445.50575 | W63: 40408.47248 | X63: 40382.46893 | Y63: 40386.12836 | Z63: 40385.11664 | AA63: 40388.07554 | AB63: 40396.091 | AC63: 40402.92824 | AD63: 40410.8771 | AE63: 40419.62846 | AF63: 40428.13266 | AG63: 40436.91078 | AH63: 40445.80415 | AI63: 40454.65265 | AJ63: 40463.56316 | AK63: 40472.48763 | AL63: 40481.40521 | AM63: 40490.33594 | AN63: 40499.26775 | AO63: 40508.19877 | AP63: 40517.13243 | AQ63: 40526.06601
A64: Battle Creek | B64: 38194 | C64: 39464 | D64: 38036 | E64: 38750 | F64: 40893 | G64: 38056 | H64: 41429 | I64: 47045 | J64: 49000 | K64: 49563 | L64: 47961.93819 | M64: 47149.11004 | N64: 46762.81337 | O64: 46701.99547 | P64: 46781.20306 | Q64: 46944.14559 | R64: 47167.96464 | S64: 47416.75205 | T64: 47682.07126 | U64: 47958.6356 | V64: 47989.54498 | W64: 48047.38178 | X64: 48093.01078 | Y64: 48094.24328 | Z64: 48104.22315 | AA64: 48108.91416 | AB64: 48106.05959 | AC64: 48105.3326 | AD64: 48103.03321 | AE64: 48099.54588 | AF64: 48096.50106 | AG64: 48093.05745 | AH64: 48089.44629 | AI64: 48085.9162 | AJ64: 48082.29434 | AK64: 48078.6531 | AL64: 48075.02475 | AM64: 48071.37675 | AN64: 48067.72753 | AO64: 48064.07994 | AP64: 48060.42839 | AQ64: 48056.77706
A65: Baxter | B65: 49773 | C65: 56250 | D65: 53194 | E65: 52222 | F65: 50909 | G65: 53500 | H65: 53816 | I65: 54779 | J65: 56217 | K65: 59276 | L65: 57975.42952 | M65: 57195.722 | N65: 56790.9522 | O65: 56521.16529 | P65: 56370.51818 | Q65: 56295.73307 | R65: 56248.96607 | S65: 56225.91409 | T65: 56216.43207 | U65: 56212.14915 | V65: 56213.09229 | W65: 56216.37871 | X65: 56220.68609 | Y65: 56226.00609 | Z65: 56231.72624 | AA65: 56237.65189 | AB65: 56243.77045 | AC65: 56249.95693 | AD65: 56256.18545 | AE65: 56262.45005 | AF65: 56268.72621 | AG65: 56275.01102 | AH65: 56281.30245 | AI65: 56287.59587 | AJ65: 56293.89108 | AK65: 56300.18747 | AL65: 56306.48422 | AM65: 56312.78133 | AN65: 56319.07865 | AO65: 56325.37603 | AP65: 56331.67349 | AQ65: 56337.97098
A66: Bayard | B66: 31667 | C66: 39000 | D66: 41731 | E66: 42333 | F66: 47798 | G66: 47721 | H66: 39821 | I66: 37386 | J66: 41750 | K66: 41316 | L66: 42975.72115 | M66: 43972.8513 | N66: 44592.1422 | O66: 45111.60446 | P66: 45495.99824 | Q66: 45816.31757 | R66: 46117.16943 | S66: 46394.94489 | T66: 46676.32099 | U66: 46961.81465 | V66: 46998.705 | W66: 47059.99319 | X66: 47107.81195 | Y66: 47110.66975 | Z66: 47121.78529 | AA66: 47127.39058 | AB66: 47125.34005 | AC66: 47125.32352 | AD66: 47123.69592 | AE66: 47120.85852 | AF66: 47118.446 | AG66: 47115.62793 | AH66: 47112.63793 | AI66: 47109.72573 | AJ66: 47106.72057 | AK66: 47103.69515 | AL66: 47100.68202 | AM66: 47097.64903 | AN66: 47094.61464 | AO66: 47091.58178 | AP66: 47088.54491 | AQ66: 47085.50823
A67: Beacon | B67: 23906 | C67: 26071 | D67: 28571 | E67: 29063 | F67: 31563 | G67: 32917 | H67: 35357 | I67: 34167 | J67: 35156 | K67: 37188 | L67: 36461.84911 | M67: 36184.60322 | N67: 36214.89128 | O67: 36428.76744 | P67: 36725.66246 | Q67: 37082.17322 | R67: 37472.04434 | S67: 37877.45638 | T67: 38294.37015 | U67: 38717.30456 | V67: 38773.10066 | W67: 38866.10399 | X67: 38939.09289 | Y67: 38945.75142 | Z67: 38964.817 | AA67: 38975.70483 | AB67: 38975.3135 | AC67: 38977.96194 | AD67: 38978.22138 | AE67: 38976.70197 | AF67: 38975.81568 | AG67: 38974.32845 | AH67: 38972.58926 | AI67: 38970.96576 | AJ67: 38969.20461 | AK67: 38967.41399 | AL67: 38965.64161 | AM67: 38963.83984 | AN67: 38962.0361 | AO67: 38960.23462 | AP67: 38958.42722 | AQ67: 38956.62011
A68: Beaman | B68: 35625 | C68: 34375 | D68: 32500 | E68: 46250 | F68: 49583 | G68: 53750 | H68: 58500 | I68: 60750 | J68: 58750 | K68: 61071 | L68: 58544.80113 | M68: 57136.1806 | N68: 56304.48718 | O68: 55981.02312 | P68: 55850.33154 | Q68: 55835.84807 | R68: 55916.55421 | S68: 56030.60245 | T68: 56168.23193 | U68: 56323.38554 | V68: 56335.87642 | W68: 56367.19957 | X68: 56393.2274 | Y68: 56393.45603 | Z68: 56399.46153 | AA68: 56402.67104 | AB68: 56401.50284 | AC68: 56401.71594 | AD68: 56401.05483 | AE68: 56399.70799 | AF68: 56398.64739 | AG68: 56397.36007 | AH68: 56395.97717 | AI68: 56394.64701 | AJ68: 56393.26403 | AK68: 56391.87035 | AL68: 56390.4852 | AM68: 56389.08866 | AN68: 56387.69157 | AO68: 56386.29561 | AP68: 56384.89734 | AQ68: 56383.49925
A69: Beaver | B69: 49063 | C69: 48125 | D69: 61250 | E69: 51875 | F69: 45000 | G69: 51250 | H69: 55417 | I69: 55000 | J69: 56250 | K69: 48750 | L69: 50105.83834 | M69: 50919.08055 | N69: 51109.26621 | O69: 51279.78235 | P69: 51318.74655 | Q69: 51250.39416 | R69: 51182.11914 | S69: 51083.59324 | T69: 50967.46751 | U69: 50851.56741 | V69: 50838.47299 | W69: 50812.30968 | X69: 50792.36597 | Y69: 50790.81047 | Z69: 50785.32251 | AA69: 50782.2762 | AB69: 50782.31652 | AC69: 50781.43234 | AD69: 50781.24954 | AE69: 50781.54458 | AF69: 50781.65183 | AG69: 50781.93356 | AH69: 50782.28088 | AI69: 50782.59458 | AJ69: 50782.94787 | AK69: 50783.30832 | AL69: 50783.66358 | AM69: 50784.02722 | AN69: 50784.39119 | AO69: 50784.75454 | AP69: 50785.11956 | AQ69: 50785.48446
A70: Bedford | B70: 40114 | C70: 41667 | D70: 42606 | E70: 36875 | F70: 37300 | G70: 34750 | H70: 39196 | I70: 41500 | J70: 46838 | K70: 48077 | L70: 45813.1028 | M70: 44491.11165 | N70: 43698.7136 | O70: 43360.56516 | P70: 43184.52018 | Q70: 43115.96359 | R70: 43131.65382 | S70: 43175.45368 | T70: 43241.14099 | U70: 43322.17444 | V70: 43317.61086 | W70: 43326.0545 | X70: 43332.08083 | Y70: 43322.63795 | Z70: 43317.02242 | AA70: 43309.84053 | AB70: 43300.04082 | AC70: 43291.14328 | AD70: 43281.73592 | AE70: 43271.92092 | AF70: 43262.29202 | AG70: 43252.52871 | AH70: 43242.70932 | AI70: 43232.92427 | AJ70: 43223.10764 | AK70: 43213.28495 | AL70: 43203.46786 | AM70: 43193.64394 | AN70: 43183.81977 | AO70: 43173.99637 | AP70: 43164.17157 | AQ70: 43154.3469
A71: Belle Plaine | B71: 37083 | C71: 36634 | D71: 37883 | E71: 36071 | F71: 35398 | G71: 39732 | H71: 39856 | I71: 40208 | J71: 44375 | K71: 49471 | L71: 46642.53237 | M71: 45048.69871 | N71: 44276.95107 | O71: 43916.24336 | P71: 43791.60391 | Q71: 43821.15755 | R71: 43925.85522 | S71: 44075.87266 | T71: 44254.61869 | U71: 44447.15502 | V71: 44451.85617 | W71: 44480.46421 | X71: 44500.41411 | Y71: 44486.51258 | Z71: 44479.95562 | AA71: 44469.42615 | AB71: 44453.17007 | AC71: 44438.66528 | AD71: 44422.96212 | AE71: 44406.36442 | AF71: 44390.12771 | AG71: 44373.58534 | AH71: 44356.91864 | AI71: 44340.31785 | AJ71: 44323.64657 | AK71: 44306.96141 | AL71: 44290.28675 | AM71: 44273.59698 | AN71: 44256.9065 | AO71: 44240.21736 | AP71: 44223.52518 | AQ71: 44206.83322
A72: Bellevue | B72: 42048 | C72: 40405 | D72: 44592 | E72: 44128 | F72: 43170 | G72: 44089 | H72: 44395 | I72: 50121 | J72: 55882 | K72: 61071 | L72: 57422.06149 | M72: 55421.05803 | N72: 54355.1827 | O72: 53723.60448 | P72: 53410.14168 | Q72: 53265.78602 | R72: 53203.54173 | S72: 53202.32093 | T72: 53231.52229 | U72: 53276.43708 | V72: 53275.25003 | W72: 53284.97987 | X72: 53294.45814 | Y72: 53295.69345 | Z72: 53299.7781 | AA72: 53303.14915 | AB72: 53305.15273 | AC72: 53307.79471 | AD72: 53310.17452 | AE72: 53312.34903 | AF72: 53314.6521 | AG72: 53316.88314 | AH72: 53319.08803 | AI72: 53321.31645 | AJ72: 53323.52765 | AK72: 53325.73662 | AL72: 53327.94947 | AM72: 53330.15855 | AN72: 53332.36776 | AO72: 53334.5775 | AP72: 53336.78649 | AQ72: 53338.9956
A73: Belmond | B73: 40241 | C73: 41155 | D73: 43026 | E73: 43895 | F73: 39318 | G73: 38511 | H73: 40734 | I73: 45000 | J73: 44671 | K73: 55000 | L73: 51144.34295 | M73: 49048.18111 | N73: 47979.68567 | O73: 47398.12666 | P73: 47155.42537 | Q73: 47100.04564 | R73: 47136.08938 | S73: 47237.10663 | T73: 47372.09335 | U73: 47524.42357 | V73: 47523.40152 | W73: 47544.19508 | X73: 47558.86301 | Y73: 47545.91518 | Z73: 47539.44506 | AA73: 47529.86701 | AB73: 47515.62803 | AC73: 47502.9158 | AD73: 47489.24251 | AE73: 47474.84468 | AF73: 47460.76033 | AG73: 47446.42824 | AH73: 47431.99648 | AI73: 47417.62202 | AJ73: 47403.19012 | AK73: 47388.74739 | AL73: 47374.31385 | AM73: 47359.86797 | AN73: 47345.42163 | AO73: 47330.9765 | AP73: 47316.52887 | AQ73: 47302.08145
A74: Bennett | B74: 54375 | C74: 50313 | D74: 53750 | E74: 50909 | F74: 48438 | G74: 50556 | H74: 53958 | I74: 55469 | J74: 60417 | K74: 61875 | L74: 59009.90572 | M74: 57315.91106 | N74: 56383.97064 | O74: 55914.39063 | P74: 55661.02429 | Q74: 55554.74746 | R74: 55533.11894 | S74: 55551.78371 | T74: 55598.75462 | U74: 55661.12664 | V74: 55658.91704 | W74: 55668.95365 | X74: 55677.66534 | Y74: 55674.77546 | Z74: 55675.25449 | AA74: 55674.6047 | AB74: 55672.01122 | AC74: 55670.18975 | AD74: 55667.98661 | AE74: 55665.48601 | AF74: 55663.14242 | AG74: 55660.6969 | AH74: 55658.21184 | AI74: 55655.75557 | AJ74: 55653.27524 | AK74: 55650.79102 | AL74: 55648.31151 | AM74: 55645.82678 | AN74: 55643.34202 | AO74: 55640.85792 | AP74: 55638.37275 | AQ74: 55635.88772
A75: Benton | B75: 27500 | C75: 39583 | D75: 40625 | E75: 38750 | F75: 41500 | G75: 57969 | H75: 60469 | I75: 60781 | J75: 63036 | K75: 63542 | L75: 63495.05228 | M75: 63582.90153 | N75: 63656.48918 | O75: 63664.16003 | P75: 63703.08515 | Q75: 63733.16683 | R75: 63753.01691 | S75: 63779.36976 | T75: 63802.92947 | U75: 63825.11475 | V75: 63829.00627 | W75: 63834.02936 | X75: 63837.80419 | Y75: 63838.26294 | Z75: 63839.19112 | AA75: 63839.67751 | AB75: 63839.59588 | AC75: 63839.63626 | AD75: 63839.55356 | AE75: 63839.38005 | AF75: 63839.23247 | AG75: 63839.05461 | AH75: 63838.86354 | AI75: 63838.67722 | AJ75: 63838.48403 | AK75: 63838.2892 | AL75: 63838.0951 | AM75: 63837.89954 | AN75: 63837.70385 | AO75: 63837.50824 | AP75: 63837.31233 | AQ75: 63837.11643
A76: Berkley | B76: 49583 | C76: 49500 | D76: 43750 | E76: 50625 | F76: 38750 | G76: 38750 | H76: 24375 | I76: 23750 | J76: 19781.77381 | K76: 26250 | L76: 28423.13611 | M76: 29695.73346 | N76: 30125.51299 | O76: 30142.12864 | P76: 29985.59089 | Q76: 29664.85393 | R76: 29272.53778 | S76: 28846.08138 | T76: 28388.10221 | U76: 27917.81406 | V76: 27859.26004 | W76: 27755.16072 | X76: 27672.80843 | Y76: 27664.72615 | Z76: 27641.9791 | AA76: 27628.33529 | AB76: 27627.28865 | AC76: 27622.69153 | AD76: 27620.77154 | AE76: 27620.82993 | AF76: 27620.15279 | AG76: 27620.15082 | AH76: 27620.4269 | AI76: 27620.56888 | AJ76: 27620.86564 | AK76: 27621.19435 | AL76: 27621.5019 | AM76: 27621.84251 | AN76: 27622.18506 | AO76: 27622.52499 | AP76: 27622.87156 | AQ76: 27623.21774
A77: Bernard | B77: 46667 | C77: 44286 | D77: 41458 | E77: 40938 | F77: 44375 | G77: 53750 | H77: 53125 | I77: 61250 | J77: 52500 | K77: 51667 | L77: 51563.07624 | M77: 51629.20971 | N77: 51826.5072 | O77: 51969.30254 | P77: 52061.23761 | Q77: 52119.78762 | R77: 52142.22802 | S77: 52156.78055 | T77: 52163.97747 | U77: 52164.60511 | V77: 52168.33754 | W77: 52170.05794 | X77: 52170.86512 | Y77: 52172.25406 | Z77: 52173.1604 | AA77: 52173.96619 | AB77: 52174.86924 | AC77: 52175.66623 | AD77: 52176.45875 | AE77: 52177.26514 | AF77: 52178.04978 | AG77: 52178.8363 | AH77: 52179.62423 | AI77: 52180.40798 | AJ77: 52181.19254 | AK77: 52181.9771 | AL77: 52182.7609 | AM77: 52183.54493 | AN77: 52184.32889 | AO77: 52185.11273 | AP77: 52185.89662 | AQ77: 52186.68049
A78: Bertram | B78: 63250 | C78: 70938 | D78: 78750 | E78: 86250 | F78: 91250 | G78: 93750 | H78: 88958 | I78: 89688 | J78: 96250 | K78: 95625 | L78: 94443.22543 | M78: 93873.15427 | N78: 93626.79475 | O78: 93404.33954 | P78: 93311.82865 | Q78: 93269.90635 | R78: 93234.0024 | S78: 93224.74007 | T78: 93222.89414 | U78: 93222.77472 | V78: 93220.88529 | W78: 93220.66051 | X78: 93220.52246 | Y78: 93220.11867 | Z78: 93220.06162 | AA78: 93219.97554 | AB78: 93219.8582 | AC78: 93219.80855 | AD78: 93219.74545 | AE78: 93219.68092 | AF78: 93219.62878 | AG78: 93219.57284 | AH78: 93219.51758 | AI78: 93219.46444 | AJ78: 93219.4104 | AK78: 93219.35668 | AL78: 93219.30329 | AM78: 93219.24971 | AN78: 93219.19623 | AO78: 93219.1428 | AP78: 93219.08932 | AQ78: 93219.03588
A79: Bettendorf | B79: 65604 | C79: 69239 | D79: 69083 | E79: 69937 | F79: 74529 | G79: 75373 | H79: 75251 | I79: 76900 | J79: 78676 | K79: 82153 | L79: 81190.80073 | M79: 80920.78286 | N79: 81020.0596 | O79: 81317.96626 | P79: 81746.82871 | Q79: 82243.27323 | R79: 82777.49673 | S79: 83336.3674 | T79: 83907.60999 | U79: 84486.07115 | V79: 85020.97952 | W79: 85562.71335 | X79: 86103.08516 | Y79: 86635.6085 | Z79: 87170.1103 | AA79: 87703.78806 | AB79: 88236.14218 | AC79: 88768.95918 | AD79: 89301.51165 | AE79: 89833.85896 | AF79: 90366.30124 | AG79: 90898.67423 | AH79: 91431.01922 | AI79: 91963.38163 | AJ79: 92495.72784 | AK79: 93028.07108 | AL79: 93560.41714 | AM79: 94092.75971 | AN79: 94625.10217 | AO79: 95157.44501 | AP79: 95689.78715 | AQ79: 96222.12935
A80: Bevington | B80: 22143 | C80: 82500 | D80: 73542 | E80: 76042 | F80: 70625 | G80: 39167 | H80: 40652.57143 | I80: 39792 | J80: 44375 | K80: 42010.83571 | L80: 47888.61792 | M80: 51057.48284 | N80: 52676.61707 | O80: 53409.17378 | P80: 53634.53288 | Q80: 53569.73189 | R80: 53338.93468 | S80: 53013.17355 | T80: 52633.08499 | U80: 52221.91654 | V80: 52181.55467 | W80: 52094.26769 | X80: 52023.3119 | Y80: 52019.26736 | Z80: 52000.73068 | AA80: 51989.89449 | AB80: 51990.39318 | AC80: 51987.42627 | AD80: 51986.8003 | AE80: 51987.94789 | AF80: 51988.37935 | AG80: 51989.41018 | AH80: 51990.68812 | AI80: 51991.83493 | AJ80: 51993.12031 | AK80: 51994.4334 | AL80: 51995.72553 | AM80: 51997.0474 | AN80: 51998.37073 | AO80: 51999.69135 | AP80: 52001.01797 | AQ80: 52002.34418
A81: Birmingham | B81: 38750 | C81: 32813 | D81: 39688 | E81: 40625 | F81: 39750 | G81: 40833 | H81: 45000 | I81: 45000 | J81: 46250 | K81: 47500 | L81: 45998.59724 | M81: 45207.26685 | N81: 44931.29021 | O81: 44926.00361 | P81: 45055.28805 | Q81: 45283.12832 | R81: 45428.75973 | S81: 45508.18713 | T81: 45553.6871 | U81: 45577.85028 | V81: 45588.81181 | W81: 45593.52682 | X81: 45594.12939 | Y81: 45592.30324 | Z81: 45589.318 | AA81: 45585.54145 | AB81: 45581.3209 | AC81: 45576.88327 | AD81: 45572.29395 | AE81: 45567.62387 | AF81: 45562.91275 | AG81: 45558.1727 | AH81: 45553.41801 | AI81: 45548.65549 | AJ81: 45543.88749 | AK81: 45539.11684 | AL81: 45534.34469 | AM81: 45529.5715 | AN81: 45524.79784 | AO81: 45520.02388 | AP81: 45515.24973 | AQ81: 45510.4755
A82: Blairsburg | B82: 52083 | C82: 58750 | D82: 41250 | E82: 38750 | F82: 45000 | G82: 52500 | H82: 52679 | I82: 58750 | J82: 60625 | K82: 61250 | L82: 58958.08993 | M82: 57706.72622 | N82: 57004.90679 | O82: 56714.82891 | P82: 56610.64397 | Q82: 56613.45918 | R82: 56693.60454 | S82: 56740.27394 | T82: 56761.54534 | U82: 56770.65043 | V82: 56778.04924 | W82: 56780.1815 | X82: 56780.40982 | Y82: 56780.23974 | Z82: 56779.01155 | AA82: 56777.50122 | AB82: 56775.89075 | AC82: 56774.07441 | AD82: 56772.21894 | AE82: 56770.33817 | AF82: 56768.41866 | AG82: 56766.49414 | AH82: 56764.5634 | AI82: 56762.62562 | AJ82: 56760.68726 | AK82: 56758.74742 | AL82: 56756.80636 | AM82: 56754.86522 | AN82: 56752.92376 | AO82: 56750.98209 | AP82: 56749.04041 | AQ82: 56747.09865
A83: Blairstown | B83: 46583 | C83: 48190 | D83: 50227 | E83: 48500 | F83: 47000 | G83: 50729 | H83: 52000 | I83: 55000 | J83: 62083 | K83: 63958 | L83: 60856.11937 | M83: 59123.58278 | N83: 58184.42666 | O83: 57708.87958 | P83: 57488.73772 | Q83: 57418.01232 | R83: 57433.83666 | S83: 57497.35992 | T83: 57589.02398 | U83: 57696.82328 | V83: 57698.83131 | W83: 57716.98698 | X83: 57731.60833 | Y83: 57727.16609 | Z83: 57727.43635 | AA83: 57725.67078 | AB83: 57720.6889 | AC83: 57716.81204 | AD83: 57712.28787 | AE83: 57707.2647 | AF83: 57702.46834 | AG83: 57697.50312 | AH83: 57692.4696 | AI83: 57687.47768 | AJ83: 57682.44634 | AK83: 57677.40771 | AL83: 57672.3758 | AM83: 57667.33539 | AN83: 57662.29472 | AO83: 57657.25494 | AP83: 57652.21345 | AQ83: 57647.17211
A84: Blakesburg | B84: 31250 | C84: 28036 | D84: 31250 | E84: 34643 | F84: 37083 | G84: 32500 | H84: 26250 | I84: 28611 | J84: 28281 | K84: 30104 | L84: 30631.58203 | M84: 31099.8172 | N84: 31473.71733 | O84: 31724.34352 | P84: 31970.7786 | Q84: 32193.69675 | R84: 32395.13004 | S84: 32596.66603 | T84: 32792.67526 | U84: 32985.11511 | V84: 33013.11863 | W84: 33055.44937 | X84: 33087.8421 | Y84: 33090.50612 | Z84: 33098.23648 | AA84: 33102.16387 | AB84: 33101.0253 | AC84: 33101.14925 | AD84: 33100.18513 | AE84: 33098.41854 | AF84: 33096.91631 | AG84: 33095.14303 | AH84: 33093.25506 | AI84: 33091.41532 | AJ84: 33089.51383 | AK84: 33087.59862 | AL84: 33085.69094 | AM84: 33083.77011 | AN84: 33081.84827 | AO84: 33079.92733 | AP84: 33078.00375 | AQ84: 33076.08027
A85: Blanchard | B85: 32031 | C85: 28750 | D85: 41875 | E85: 51250 | F85: 58125 | G85: 59375 | H85: 59167 | I85: 61250 | J85: 40625 | K85: 40417 | L85: 43229.47459 | M85: 44569.62931 | N85: 45067.49208 | O85: 45083.49233 | P85: 44823.82631 | Q85: 44406.45578 | R85: 43898.86489 | S85: 43346.02036 | T85: 42767.73869 | U85: 42174.90483 | V85: 42097.45626 | W85: 41965.71157 | X85: 41861.09494 | Y85: 41849.58458 | Z85: 41820.21775 | AA85: 41802.18737 | AB85: 41799.98155 | AC85: 41793.41867 | AD85: 41790.19016 | AE85: 41789.45456 | AF85: 41787.81255 | AG85: 41787.01191 | AH85: 41786.56353 | AI85: 41785.94941 | AJ85: 41785.52834 | AK85: 41785.14822 | AL85: 41784.74189 | AM85: 41784.37683 | AN85: 41784.01442 | AO85: 41783.64874 | AP85: 41783.29137 | AQ85: 41782.93355
A86: Blencoe | B86: 46250 | C86: 37917 | D86: 42500 | E86: 43250 | F86: 38875 | G86: 39792 | H86: 48125 | I86: 42500 | J86: 51250 | K86: 54643 | L86: 52554.6014 | M86: 51783.17204 | N86: 51516.77227 | O86: 51252.03845 | P86: 51119.51246 | Q86: 51047.01093 | R86: 50981.66035 | S86: 50950.24554 | T86: 50931.07104 | U86: 50914.53715 | V86: 50904.81312 | W86: 50896.90606 | X86: 50889.65796 | Y86: 50883.73346 | Z86: 50878.06192 | AA86: 50872.55572 | AB86: 50867.29845 | AC86: 50862.07382 | AD86: 50856.88959 | AE86: 50851.75058 | AF86: 50846.61546 | AG86: 50841.48985 | AH86: 50836.37214 | AI86: 50831.25489 | AJ86: 50826.13979 | AK86: 50821.02602 | AL86: 50815.91231 | AM86: 50810.79907 | AN86: 50805.68604 | AO86: 50800.57302 | AP86: 50795.4601 | AQ86: 50790.34722
A87: Blockton | B87: 29444 | C87: 31458 | D87: 32321 | E87: 33068 | F87: 38125 | G87: 30938 | H87: 32115 | I87: 35357 | J87: 35000 | K87: 35833 | L87: 35742.22045 | M87: 35705.23199 | N87: 35690.18611 | O87: 35953.35274 | P87: 36201.51772 | Q87: 36468.65586 | R87: 36786.33229 | S87: 37097.27976 | T87: 37400.58244 | U87: 37611.26264 | V87: 37664.22456 | W87: 37726.1948 | X87: 37762.07097 | Y87: 37770.77199 | Z87: 37782.50714 | AA87: 37787.67336 | AB87: 37788.42452 | AC87: 37789.85618 | AD87: 37789.75865 | AE87: 37788.99652 | AF87: 37788.35353 | AG87: 37787.37573 | AH87: 37786.30858 | AI87: 37785.25651 | AJ87: 37784.13488 | AK87: 37783.00351 | AL87: 37781.87259 | AM87: 37780.7279 | AN87: 37779.58268 | AO87: 37778.43693 | AP87: 37777.28858 | AQ87: 37776.14035
A88: Bloomfield | B88: 44336 | C88: 44890 | D88: 43780 | E88: 39397 | F88: 40865 | G88: 42234 | H88: 42275 | I88: 42411 | J88: 46875 | K88: 47738 | L88: 47545.43565 | M88: 47745.80751 | N88: 47991.47752 | O88: 48311.94058 | P88: 48571.282 | Q88: 48706.60889 | R88: 48784.87818 | S88: 48832.73175 | T88: 48857.07116 | U88: 48871.29231 | V88: 48887.86558 | W88: 48899.24609 | X88: 48909.30129 | Y88: 48919.68082 | Z88: 48928.97576 | AA88: 48938.13613 | AB88: 48947.31896 | AC88: 48956.28637 | AD88: 48965.24958 | AE88: 48974.20711 | AF88: 48983.1239 | AG88: 48992.04346 | AH88: 49000.95973 | AI88: 49009.86867 | AJ88: 49018.77867 | AK88: 49027.68759 | AL88: 49036.59527 | AM88: 49045.50322 | AN88: 49054.41087 | AO88: 49063.31833 | AP88: 49072.22585 | AQ88: 49081.13329
A89: Blue Grass | B89: 62411 | C89: 59773 | D89: 59868 | E89: 62100 | F89: 65313 | G89: 64185 | H89: 71058 | I89: 76458 | J89: 75568 | K89: 80455 | L89: 77308.55164 | M89: 75725.78789 | N89: 74942.53279 | O89: 74481.80658 | P89: 74327.18347 | Q89: 74311.57051 | R89: 74359.02463 | S89: 74465.56643 | T89: 74596.05894 | U89: 74739.15228 | V89: 74782.96598 | W89: 74841.34256 | X89: 74895.97363 | Y89: 74932.72668 | Z89: 74973.76773 | AA89: 75012.8298 | AB89: 75048.87587 | AC89: 75085.9298 | AD89: 75122.36608 | AE89: 75158.33408 | AF89: 75194.50888 | AG89: 75230.52383 | AH89: 75266.47454 | AI89: 75302.46308 | AJ89: 75338.41448 | AK89: 75374.35895 | AL89: 75410.30951 | AM89: 75446.25208 | AN89: 75482.19437 | AO89: 75518.13747 | AP89: 75554.07895 | AQ89: 75590.02058
A90: Bode | B90: 30625 | C90: 35000 | D90: 30000 | E90: 33000 | F90: 34250 | G90: 41250 | H90: 45750 | I90: 45750 | J90: 45568 | K90: 45577 | L90: 45808.44735 | M90: 46135.40694 | N90: 46515.23534 | O90: 46845.25938 | P90: 47200.74841 | Q90: 47561.51731 | R90: 47913.51315 | S90: 48271.44854 | T90: 48629.40739 | U90: 48985.97648 | V90: 49035.72064 | W90: 49114.42254 | X90: 49175.37558 | Y90: 49180.88898 | Z90: 49196.3151 | AA90: 49204.75481 | AB90: 49203.75961 | AC90: 49205.21134 | AD90: 49204.64595 | AE90: 49202.58975 | AF90: 49201.04424 | AG90: 49198.99412 | AH90: 49196.73198 | AI90: 49194.56304 | AJ90: 49192.27886 | AK90: 49189.96963 | AL90: 49187.675 | AM90: 49185.35581 | AN90: 49183.03487 | AO90: 49180.71571 | AP90: 49178.3916 | AQ90: 49176.06771
A91: Bonaparte | B91: 38750 | C91: 43056 | D91: 38542 | E91: 35208 | F91: 36071 | G91: 30909 | H91: 27353 | I91: 31125 | J91: 32212 | K91: 38125 | L91: 37124.0437 | M91: 36657.08034 | N91: 36435.20259 | O91: 36419.22214 | P91: 36497.3753 | Q91: 36623.25645 | R91: 36788.41073 | S91: 36970.09494 | T91: 37161.20453 | U91: 37359.70622 | V91: 37380.5539 | W91: 37420.35702 | X91: 37451.23949 | Y91: 37449.99891 | Z91: 37454.98258 | AA91: 37456.13271 | AB91: 37451.81883 | AC91: 37449.02446 | AD91: 37445.09275 | AE91: 37440.29968 | AF91: 37435.82318 | AG91: 37431.05845 | AH91: 37426.17195 | AI91: 37421.34348 | AJ91: 37416.44871 | AK91: 37411.53977 | AL91: 37406.64006 | AM91: 37401.72614 | AN91: 37396.81132 | AO91: 37391.89765 | AP91: 37386.98113 | AQ91: 37382.06475
A92: Bondurant | B92: 68785 | C92: 68869 | D92: 71487 | E92: 59406 | F92: 63862 | G92: 63542 | H92: 73073 | I92: 75357 | J92: 82332 | K92: 97786 | L92: 90606.00986 | M92: 86858.88559 | N92: 84965.93331 | O92: 83842.07407 | P92: 83389.2081 | Q92: 83263.41967 | R92: 83285.60349 | S92: 83437.46511 | T92: 83646.54465 | U92: 83884.66186 | V92: 84336.09797 | W92: 84779.66462 | X92: 85239.76429 | Y92: 85738.6009 | Z92: 86233.06755 | AA92: 86732.96186 | AB92: 87239.51974 | AC92: 87744.87488 | AD92: 88251.69902 | AE92: 88759.59714 | AF92: 89267.23492 | AG92: 89775.22906 | AH92: 90283.38179 | AI92: 90791.487 | AJ92: 91299.67228 | AK92: 91807.87794 | AL92: 92316.07647 | AM92: 92824.29192 | AN92: 93332.50931 | AO92: 93840.72597 | AP92: 94348.94602 | AQ92: 94857.16609
A93: Boone | B93: 44652 | C93: 45469 | D93: 44994 | E93: 45346 | F93: 45012 | G93: 46486 | H93: 48135 | I93: 50323 | J93: 53291 | K93: 57943 | L93: 54960.74991 | M93: 53296.35593 | N93: 52432.93328 | O93: 51973.85312 | P93: 51766.33002 | Q93: 51707.18673 | R93: 51723.20447 | S93: 51787.21464 | T93: 51878.59287 | U93: 51984.02176 | V93: 51961.04687 | W93: 51956.11082 | X93: 51945.97736 | Y93: 51912.71641 | Z93: 51884.83304 | AA93: 51854.33851 | AB93: 51819.93908 | AC93: 51786.80897 | AD93: 51752.87321 | AE93: 51718.33002 | AF93: 51684.04761 | AG93: 51649.55771 | AH93: 51614.98413 | AI93: 51580.45822 | AJ93: 51545.88422 | AK93: 51511.3011 | AL93: 51476.72562 | AM93: 51442.13981 | AN93: 51407.55361 | AO93: 51372.9684 | AP93: 51338.38111 | AQ93: 51303.79399
A94: Bouton | B94: 43000 | C94: 34583 | D94: 34063 | E94: 36389 | F94: 40938 | G94: 40625 | H94: 47188 | I94: 46458 | J94: 49500 | K94: 51250 | L94: 48893.02507 | M94: 47755.45597 | N94: 47237.90369 | O94: 47050.70704 | P94: 47053.79102 | Q94: 47041.25412 | R94: 47019.04741 | S94: 46998.44654 | T94: 46974.25026 | U94: 46948.62724 | V94: 46944.2747 | W94: 46937.15618 | X94: 46931.04937 | Y94: 46928.77014 | Z94: 46925.65004 | AA94: 46922.98634 | AB94: 46920.96896 | AC94: 46918.75204 | AD94: 46916.67209 | AE94: 46914.69284 | AF94: 46912.6726 | AG94: 46910.68719 | AH94: 46908.71572 | AI94: 46906.73679 | AJ94: 46904.76588 | AK94: 46902.79651 | AL94: 46900.82596 | AM94: 46898.85712 | AN94: 46896.88835 | AO94: 46894.91944 | AP94: 46892.95087 | AQ94: 46890.98228
A95: Boxholm | B95: 32679 | C95: 39375 | D95: 37083 | E95: 32250 | F95: 32788 | G95: 33750 | H95: 38125 | I95: 40000 | J95: 49375 | K95: 46250 | L95: 45028.54121 | M95: 44482.39778 | N95: 44215.7439 | O95: 44228.81207 | P95: 44216.25185 | Q95: 44193.19206 | R95: 44193.25349 | S95: 44188.74569 | T95: 44183.77897 | U95: 44183.04517 | V95: 44181.01763 | W95: 44179.22837 | X95: 44178.16159 | Y95: 44176.79122 | Z95: 44175.52972 | AA95: 44174.3811 | AB95: 44173.16915 | AC95: 44171.98938 | AD95: 44170.82504 | AE95: 44169.64872 | AF95: 44168.4804 | AG95: 44167.3137 | AH95: 44166.14494 | AI95: 44164.97798 | AJ95: 44163.81106 | AK95: 44162.64383 | AL95: 44161.47698 | AM95: 44160.31008 | AN95: 44159.14314 | AO95: 44157.97628 | AP95: 44156.8094 | AQ95: 44155.64252
A96: Boyden | B96: 48456 | C96: 46719 | D96: 48229 | E96: 53558 | F96: 55938 | G96: 59250 | H96: 58750 | I96: 60000 | J96: 58438 | K96: 67361 | L96: 64579.68066 | M96: 63145.04105 | N96: 62323.32049 | O96: 61807.18747 | P96: 61548.41129 | Q96: 61396.85993 | R96: 61305.80875 | S96: 61263.26487 | T96: 61239.48775 | U96: 61227.80382 | V96: 61216.21528 | W96: 61208.7776 | X96: 61203.25802 | Y96: 61197.77469 | Z96: 61193.17166 | AA96: 61188.85288 | AB96: 61184.55644 | AC96: 61180.43941 | AD96: 61176.36069 | AE96: 61172.29122 | AF96: 61168.25694 | AG96: 61164.22708 | AH96: 61160.20025 | AI96: 61156.18006 | AJ96: 61152.16024 | AK96: 61148.14127 | AL96: 61144.12351 | AM96: 61140.10574 | AN96: 61136.0882 | AO96: 61132.07086 | AP96: 61128.05352 | AQ96: 61124.03623
A97: Braddyville | B97: 36250 | C97: 48750 | D97: 47813 | E97: 50938 | F97: 52813 | G97: 50500 | H97: 41250 | I97: 55417 | J97: 53125 | K97: 41250 | L97: 45319.78583 | M97: 47805.9914 | N97: 49171.71551 | O97: 49953.57151 | P97: 50434.82347 | Q97: 50702.7782 | R97: 50865.12023 | S97: 50969.87729 | T97: 51034.33074 | U97: 51079.68903 | V97: 51097.36766 | W97: 51109.06093 | X97: 51116.34876 | Y97: 51118.48726 | Z97: 51119.75971 | AA97: 51120.02651 | AB97: 51119.36486 | AC97: 51118.57754 | AD97: 51117.56572 | AE97: 51116.39204 | AF97: 51115.19892 | AG97: 51113.95705 | AH97: 51112.68799 | AI97: 51111.41545 | AJ97: 51110.13264 | AK97: 51108.84544 | AL97: 51107.5575 | AM97: 51106.26747 | AN97: 51104.97676 | AO97: 51103.68587 | AP97: 51102.39457 | AQ97: 51101.10317
A98: Bradgate | B98: 30000 | C98: 32500 | D98: 26250 | E98: 42500 | F98: 56875 | G98: 35000 | H98: 43438 | I98: 40000 | J98: 76250 | K98: 80156.26667 | L98: 70078.67532 | M98: 64395.55379 | N98: 61238.95264 | O98: 59541.07561 | P98: 58664.64913 | Q98: 58262.42445 | R98: 58132.99639 | S98: 58157.20176 | T98: 58270.41378 | U98: 58434.61144 | V98: 58428.56602 | W98: 58458.04581 | X98: 58485.70696 | Y98: 58482.78284 | Z98: 58489.43862 | AA98: 58493.37168 | AB98: 58492.19018 | AC98: 58493.18842 | AD98: 58493.2155 | AE98: 58492.46386 | AF98: 58492.15487 | AG98: 58491.5814 | AH98: 58490.90571 | AI98: 58490.3114 | AJ98: 58489.65404 | AK98: 58488.98706 | AL98: 58488.33348 | AM98: 58487.66615 | AN98: 58486.99892 | AO98: 58486.33358 | AP98: 58485.66545 | AQ98: 58484.99769
A99: Brandon | B99: 42727 | C99: 47143 | D99: 45000 | E99: 43125 | F99: 41000 | G99: 43750 | H99: 41563 | I99: 43571 | J99: 45536 | K99: 41042 | L99: 41239.01561 | M99: 41132.96819 | N99: 40982.96017 | O99: 40724.94615 | P99: 40417.24234 | Q99: 40100.66481 | R99: 39761.94245 | S99: 39415.41255 | T99: 39066.86473 | U99: 38713.90965 | V99: 38664.26303 | W99: 38585.33236 | X99: 38522.90695 | Y99: 38515.35255 | Z99: 38497.81722 | AA99: 38487.01029 | AB99: 38485.55095 | AC99: 38481.62753 | AD99: 38479.66945 | AE99: 38479.18961 | AF99: 38478.19452 | AG99: 38477.69397 | AH99: 38477.40379 | AI99: 38477.01922 | AJ99: 38476.74799 | AK99: 38476.50162 | AL99: 38476.24035 | AM99: 38476.0033 | AN99: 38475.76798 | AO99: 38475.53081 | AP99: 38475.29853 | AQ99: 38475.06602
A100: Brayton | B100: 38077 | C100: 40341 | D100: 43750 | E100: 36500 | F100: 48750 | G100: 37321 | H100: 48250 | I100: 41250 | J100: 41875 | K100: 44167 | L100: 46401.66695 | M100: 47958.29068 | N100: 48872.67023 | O100: 49366.57511 | P100: 49658.31029 | Q100: 49826.48772 | R100: 49916.45348 | S100: 49969.32611 | T100: 49998.38666 | U100: 50013.00225 | V100: 50020.76627 | W100: 50023.9433 | X100: 50024.47034 | Y100: 50023.72102 | Z100: 50022.09036 | AA100: 50019.97638 | AB100: 50017.62236 | AC100: 50015.09975 | AD100: 50012.48938 | AE100: 50009.83344 | AF100: 50007.14544 | AG100: 50004.44155 | AH100: 50001.72893 | AI100: 49999.01026 | AJ100: 49996.28871 | AK100: 49993.56548 | AL100: 49990.84112 | AM100: 49988.11623 | AN100: 49985.39102 | AO100: 49982.6656 | AP100: 49979.94008 | AQ100: 49977.2145
A101: Breda | B101: 38594 | C101: 44500 | D101: 55625 | E101: 42417 | F101: 55694 | G101: 59375 | H101: 58750 | I101: 55125 | J101: 64167 | K101: 65000 | L101: 63291.15758 | M101: 62443.4626 | N101: 62142.39008 | O101: 61987.43135 | P101: 61928.08153 | Q101: 61909.27343 | R101: 61886.97805 | S101: 61882.64709 | T101: 61884.18055 | U101: 61885.35764 | V101: 61883.42686 | W101: 61882.89122 | X101: 61882.00631 | Y101: 61880.62882 | Z101: 61879.54718 | AA101: 61878.34729 | AB101: 61877.07886 | AC101: 61875.86766 | AD101: 61874.62519 | AE101: 61873.37537 | AF101: 61872.13565 | AG101: 61870.88866 | AH101: 61869.64144 | AI101: 61868.39581 | AJ101: 61867.14864 | AK101: 61865.90165 | AL101: 61864.65488 | AM101: 61863.40779 | AN101: 61862.16078 | AO101: 61860.91379 | AP101: 61859.66674 | AQ101: 61858.41971
A102: Brighton | B102: 32083 | C102: 30882 | D102: 41000 | E102: 32857 | F102: 44688 | G102: 39107 | H102: 45781 | I102: 45208 | J102: 50357 | K102: 48906 | L102: 48017.33794 | M102: 47798.16359 | N102: 47700.94751 | O102: 47677.25023 | P102: 47780.12824 | Q102: 47897.82443 | R102: 48034.22154 | S102: 48193.69926 | T102: 48354.71843 | U102: 48520.26715 | V102: 48541.25712 | W102: 48576.43133 | X102: 48604.18073 | Y102: 48605.7474 | Z102: 48612.13854 | AA102: 48615.39923 | AB102: 48614.19495 | AC102: 48614.18253 | AD102: 48613.24586 | AE102: 48611.60243 | AF102: 48610.20871 | AG102: 48608.58116 | AH102: 48606.85295 | AI102: 48605.17064 | AJ102: 48603.43456 | AK102: 48601.68658 | AL102: 48599.94589 | AM102: 48598.19369 | AN102: 48596.44066 | AO102: 48594.68854 | AP102: 48592.93411 | AQ102: 48591.17977
A103: Bristow | B103: 31875 | C103: 38750 | D103: 32500 | E103: 31500 | F103: 33750 | G103: 37188 | H103: 35313 | I103: 24000 | J103: 23750 | K103: 25179 | L103: 25941.46352 | M103: 26224.24987 | N103: 26146.5383 | O103: 25866.47341 | P103: 25496.75113 | Q103: 25057.03925 | R103: 24581.05073 | S103: 24088.03264 | T103: 23581.53524 | U103: 23068.57658 | V103: 22997.08226 | W103: 22880.95253 | X103: 22789.02764 | Y103: 22776.85341 | Z103: 22749.78768 | AA103: 22732.57869 | AB103: 22728.92986 | AC103: 22721.63243 | AD103: 22717.21138 | AE103: 22714.92878 | AF103: 22711.88639 | AG103: 22709.56714 | AH103: 22707.55077 | AI103: 22705.39562 | AJ103: 22703.40605 | AK103: 22701.4519 | AL103: 22699.4759 | AM103: 22697.53525 | AN103: 22695.59695 | AO103: 22693.65596 | AP103: 22691.72208 | AQ103: 22689.78785
A104: Britt | B104: 45000 | C104: 45799 | D104: 40924 | E104: 45929 | F104: 43173 | G104: 44432 | H104: 46650 | I104: 44583 | J104: 43304 | K104: 45625 | L104: 45495.91724 | M104: 45550.71559 | N104: 45622.96756 | O104: 45702.24236 | P104: 45816.75689 | Q104: 45931.60419 | R104: 46049.45273 | S104: 46173.75345 | T104: 46297.65159 | U104: 46422.4702 | V104: 46424.35163 | W104: 46437.82813 | X104: 46444.47554 | Y104: 46428.88257 | Z104: 46417.27608 | AA104: 46402.92146 | AB104: 46384.77722 | AC104: 46367.61955 | AD104: 46349.66239 | AE104: 46331.1056 | AF104: 46312.75523 | AG104: 46294.20407 | AH104: 46275.56747 | AI104: 46256.96867 | AJ104: 46238.32389 | AK104: 46219.66899 | AL104: 46201.02004 | AM104: 46182.36128 | AN104: 46163.7018 | AO104: 46145.04305 | AP104: 46126.38233 | AQ104: 46107.72169
A105: Bronson | B105: 54583 | C105: 56250 | D105: 48750 | E105: 48125 | F105: 70781 | G105: 68750 | H105: 60938 | I105: 64583 | J105: 62188 | K105: 64583 | L105: 63972.30407 | M105: 63795.6572 | N105: 63721.89219 | O105: 63577.90921 | P105: 63528.28269 | Q105: 63485.97639 | R105: 63434.12196 | S105: 63401.5157 | T105: 63368.02599 | U105: 63333.72406 | V105: 63328.37882 | W105: 63320.08731 | X105: 63313.31113 | Y105: 63311.77194 | Z105: 63309.24841 | AA105: 63307.35862 | AB105: 63306.36025 | AC105: 63305.12031 | AD105: 63304.06691 | AE105: 63303.15425 | AF105: 63302.19117 | AG105: 63301.2752 | AH105: 63300.37919 | AI105: 63299.47394 | AJ105: 63298.57951 | AK105: 63297.68742 | AL105: 63296.79386 | AM105: 63295.90262 | AN105: 63295.01153 | AO105: 63294.12026 | AP105: 63293.22946 | AQ105: 63292.33863
A106: Brooklyn | B106: 40625 | C106: 39821 | D106: 41250 | E106: 43194 | F106: 43550 | G106: 47284 | H106: 50331 | I106: 54063 | J106: 54450 | K106: 55224 | L106: 52635.71884 | M106: 51248.84273 | N106: 50454.8786 | O106: 49993.24893 | P106: 49757.7817 | Q106: 49629.95982 | R106: 49566.19977 | S106: 49544.68174 | T106: 49542.77441 | U106: 49553.25853 | V106: 49535.28774 | W106: 49524.34341 | X106: 49513.73005 | Y106: 49497.99685 | Z106: 49484.1037 | AA106: 49469.85359 | AB106: 49454.74934 | AC106: 49440.05962 | AD106: 49425.22156 | AE106: 49410.25458 | AF106: 49395.37171 | AG106: 49380.44641 | AH106: 49365.50457 | AI106: 49350.5783 | AJ106: 49335.64167 | AK106: 49320.70361 | AL106: 49305.76816 | AM106: 49290.83042 | AN106: 49275.89275 | AO106: 49260.95546 | AP106: 49246.0177 | AQ106: 49231.08002
A107: Brunsville | B107: 71125 | C107: 47188 | D107: 70625 | E107: 70625 | F107: 53750 | G107: 56250 | H107: 73125 | I107: 56250 | J107: 79107 | K107: 88125 | L107: 80734.27829 | M107: 76194.02827 | N107: 73668.29596 | O107: 72274.21397 | P107: 71413.47996 | Q107: 70940.84261 | R107: 70672.92931 | S107: 70506.01022 | T107: 70413.38535 | U107: 70357.62688 | V107: 70326.88556 | W107: 70309.71728 | X107: 70299.49772 | Y107: 70294.04385 | Z107: 70291.06148 | AA107: 70289.39945 | AB107: 70288.64012 | AC107: 70288.33015 | AD107: 70288.27285 | AE107: 70288.38539 | AF107: 70288.5797 | AG107: 70288.82261 | AH107: 70289.09725 | AI107: 70289.38681 | AJ107: 70289.68576 | AK107: 70289.99058 | AL107: 70290.29815 | AM107: 70290.60753 | AN107: 70290.91799 | AO107: 70291.22896 | AP107: 70291.54027 | AQ107: 70291.85179
A108: Buck Grove | B108: 28125 | C108: 52188 | D108: 54500 | E108: 54583 | F108: 56250 | G108: 30000 | H108: 31250 | I108: 47250 | J108: 46750 | K108: 46560.05 | L108: 49290.55195 | M108: 50883.80151 | N108: 51841.91214 | O108: 52318.09671 | P108: 52595.18818 | Q108: 52761.0174 | R108: 52845.05604 | S108: 52897.64222 | T108: 52928.05549 | U108: 52943.45737 | V108: 52953.21568 | W108: 52958.55811 | X108: 52961.18439 | Y108: 52962.77915 | Z108: 52963.49886 | AA108: 52963.73381 | AB108: 52963.77585 | AC108: 52963.64598 | AD108: 52963.43065 | AE108: 52963.17836 | AF108: 52962.89267 | AG108: 52962.59207 | AH108: 52962.28422 | AI108: 52961.96998 | AJ108: 52961.65315 | AK108: 52961.33487 | AL108: 52961.01539 | AM108: 52960.69545 | AN108: 52960.37523 | AO108: 52960.05478 | AP108: 52959.73426 | AQ108: 52959.41367
A109: Buckeye | B109: 26875 | C109: 33250 | D109: 40625 | E109: 45000 | F109: 50000 | G109: 41786 | H109: 42500 | I109: 26875 | J109: 27526.58333 | K109: 48594 | L109: 46052.47581 | M109: 44780.10265 | N109: 44191.79283 | O109: 43882.5307 | P109: 43821.77022 | Q109: 43881.36353 | R109: 43994.7287 | S109: 44156.17984 | T109: 44338.61789 | U109: 44531.63582 | V109: 44552.49297 | W109: 44594.14392 | X109: 44627.57222 | Y109: 44629.94732 | Z109: 44638.82961 | AA109: 44644.03611 | AB109: 44643.9813 | AC109: 44645.48835 | AD109: 44645.89388 | AE109: 44645.47535 | AF109: 44645.37966 | AG109: 44645.00379 | AH109: 44644.51278 | AI109: 44644.08076 | AJ109: 44643.5842 | AK109: 44643.07463 | AL109: 44642.57443 | AM109: 44642.06041 | AN109: 44641.54567 | AO109: 44641.03212 | AP109: 44640.51579 | AQ109: 44639.99964
A110: Buffalo | B110: 53992 | C110: 53086 | D110: 55135 | E110: 45714 | F110: 42750 | G110: 44922 | H110: 46979 | I110: 48333 | J110: 51250 | K110: 44655 | L110: 48713.98392 | M110: 51004.70803 | N110: 52229.20426 | O110: 52885.38342 | P110: 53206.87748 | Q110: 53329.39097 | R110: 53346.26537 | S110: 53299.7462 | T110: 53216.20166 | U110: 53112.96773 | V110: 53105.82087 | W110: 53081.57918 | X110: 53059.81729 | Y110: 53055.32266 | Z110: 53046.05414 | AA110: 53038.53983 | AB110: 53033.92297 | AC110: 53028.206 | AD110: 53023.06685 | AE110: 53018.37271 | AF110: 53013.45446 | AG110: 53008.68897 | AH110: 53003.98313 | AI110: 52999.23626 | AJ110: 52994.52526 | AK110: 52989.82028 | AL110: 52985.10862 | AM110: 52980.40473 | AN110: 52975.70092 | AO110: 52970.99621 | AP110: 52966.29307 | AQ110: 52961.58975
A111: Buffalo Center | B111: 29306 | C111: 33309 | D111: 31875 | E111: 32813 | F111: 40139 | G111: 41087 | H111: 48393 | I111: 50667 | J111: 51927 | K111: 56250 | L111: 49154.80842 | M111: 45205.13604 | N111: 42991.7063 | O111: 41762.38688 | P111: 41123.26117 | Q111: 40806.69963 | R111: 40675.65698 | S111: 40655.11594 | T111: 40694.55023 | U111: 40768.9998 | V111: 40759.85237 | W111: 40771.73141 | X111: 40784.28158 | Y111: 40781.83721 | Z111: 40784.85293 | AA111: 40786.75963 | AB111: 40786.17423 | AC111: 40786.81246 | AD111: 40787.0037 | AE111: 40786.8208 | AF111: 40786.88514 | AG111: 40786.82288 | AH111: 40786.71313 | AI111: 40786.64893 | AJ111: 40786.554 | AK111: 40786.45511 | AL111: 40786.3638 | AM111: 40786.26572 | AN111: 40786.1679 | AO111: 40786.07117 | AP111: 40785.97306 | AQ111: 40785.87518
A112: Burlington | B112: 39128 | C112: 39527 | D112: 39430 | E112: 38329 | F112: 37223 | G112: 39586 | H112: 40381 | I112: 42907 | J112: 45841 | K112: 47540 | L112: 45078.82416 | M112: 43650.63242 | N112: 42800.02593 | O112: 42301.20544 | P112: 41993.85406 | Q112: 41795.44143 | R112: 41663.01036 | S112: 41566.08605 | T112: 41489.74838 | U112: 41425.75227 | V112: 41285.2807 | W112: 41156.56118 | X112: 41025.40846 | Y112: 40880.46715 | Z112: 40738.95411 | AA112: 40595.99019 | AB112: 40450.69883 | AC112: 40306.21164 | AD112: 40161.25986 | AE112: 40015.94684 | AF112: 39870.79901 | AG112: 39725.5296 | AH112: 39580.21074 | AI112: 39434.92222 | AJ112: 39289.60526 | AK112: 39144.28303 | AL112: 38998.96571 | AM112: 38853.64225 | AN112: 38708.3186 | AO112: 38562.99561 | AP112: 38417.67138 | AQ112: 38272.34726
A113: Burt | B113: 27386 | C113: 27321 | D113: 28077 | E113: 29167 | F113: 31563 | G113: 39333 | H113: 41250 | I113: 39886 | J113: 41339 | K113: 46875 | L113: 44419.90352 | M113: 43278.14708 | N113: 42899.12507 | O113: 42908.54277 | P113: 43168.32292 | Q113: 43568.54004 | R113: 43807.7814 | S113: 43939.4704 | T113: 44008.17445 | U113: 44039.83514 | V113: 44060.47496 | W113: 44068.36607 | X113: 44069.86937 | Y113: 44069.26255 | Z113: 44066.11722 | AA113: 44061.89246 | AB113: 44057.24541 | AC113: 44052.10235 | AD113: 44046.78006 | AE113: 44041.37036 | AF113: 44035.86573 | AG113: 44030.3317 | AH113: 44024.77922 | AI113: 44019.20897 | AJ113: 44013.63391 | AK113: 44008.05493 | AL113: 44002.4727 | AM113: 43996.88967 | AN113: 43991.30581 | AO113: 43985.72138 | AP113: 43980.13681 | AQ113: 43974.55206
A114: Bussey | B114: 38906 | C114: 31538 | D114: 33958 | E114: 33333 | F114: 37500 | G114: 36250 | H114: 37500 | I114: 32125 | J114: 33750 | K114: 32303 | L114: 34570.03404 | M114: 36168.5573 | N114: 37357.24907 | O114: 38107.53294 | P114: 38519.32945 | Q114: 38739.41522 | R114: 38861.53206 | S114: 38919.15416 | T114: 38941.60997 | U114: 38945.61028 | V114: 38955.84328 | W114: 38957.89384 | X114: 38957.49846 | Y114: 38958.12975 | Z114: 38956.98604 | AA114: 38955.59311 | AB114: 38954.33424 | AC114: 38952.71223 | AD114: 38951.08349 | AE114: 38949.4635 | AF114: 38947.7731 | AG114: 38946.0885 | AH114: 38944.40164 | AI114: 38942.70184 | AJ114: 38941.00427 | AK114: 38939.30543 | AL114: 38937.60435 | AM114: 38935.90384 | AN114: 38934.20294 | AO114: 38932.50167 | AP114: 38930.80052 | AQ114: 38929.09927
A115: Calamus | B115: 51875 | C115: 53750 | D115: 58984 | E115: 60000 | F115: 55625 | G115: 55000 | H115: 57500 | I115: 52279 | J115: 54423 | K115: 58333 | L115: 57119.70992 | M115: 56407.04418 | N115: 55984.44656 | O115: 55735.37716 | P115: 55579.30138 | Q115: 55478.08381 | R115: 55409.23757 | S115: 55357.6993 | T115: 55316.54086 | U115: 55281.40549 | V115: 55267.31194 | W115: 55253.49704 | X115: 55241.81556 | Y115: 55233.95825 | Z115: 55225.89491 | AA115: 55218.44167 | AB115: 55211.65007 | AC115: 55204.78592 | AD115: 55198.07677 | AE115: 55191.47565 | AF115: 55184.85792 | AG115: 55178.27652 | AH115: 55171.71148 | AI115: 55165.14347 | AJ115: 55158.58346 | AK115: 55152.02567 | AL115: 55145.46748 | AM115: 55138.91096 | AN115: 55132.3547 | AO115: 55125.79841 | AP115: 55119.24245 | AQ115: 55112.68651
A116: Callender | B116: 43750 | C116: 48000 | D116: 48250 | E116: 48750 | F116: 47344 | G116: 45313 | H116: 43500 | I116: 41667 | J116: 43295 | K116: 46875 | L116: 46469.0577 | M116: 46246.60449 | N116: 46081.60735 | O116: 45973.08539 | P116: 45896.97349 | Q116: 45831.46678 | R116: 45777.28406 | S116: 45728.72039 | T116: 45682.1918 | U116: 45637.90019 | V116: 45627.2078 | W116: 45613.83312 | X116: 45602.75338 | Y116: 45597.73489 | Z116: 45591.7419 | AA116: 45586.56999 | AB116: 45582.42944 | AC116: 45578.04497 | AD116: 45573.88971 | AE116: 45569.89773 | AF116: 45565.8548 | AG116: 45561.86825 | AH116: 45557.90505 | AI116: 45553.93264 | AJ116: 45549.97297 | AK116: 45546.01611 | AL116: 45542.05784 | AM116: 45538.10226 | AN116: 45534.1469 | AO116: 45530.19138 | AP116: 45526.2364 | AQ116: 45522.2814
A117: Calmar | B117: 41458 | C117: 43500 | D117: 47917 | E117: 47961 | F117: 48182 | G117: 44297 | H117: 50929 | I117: 55096 | J117: 58333 | K117: 59250 | L117: 57837.90338 | M117: 57287.51892 | N117: 57270.62717 | O117: 57338.41892 | P117: 57588.16316 | Q117: 57770.9547 | R117: 57871.78246 | S117: 57953.66609 | T117: 58017.47144 | U117: 58066.44619 | V117: 58071.72081 | W117: 58076.96851 | X117: 58077.29056 | Y117: 58069.7438 | Z117: 58062.69944 | AA117: 58054.29012 | AB117: 58044.53349 | AC117: 58034.93451 | AD117: 58024.99558 | AE117: 58014.83946 | AF117: 58004.7176 | AG117: 57994.51724 | AH117: 57984.28453 | AI117: 57974.05765 | AJ117: 57963.81368 | AK117: 57953.56545 | AL117: 57943.3179 | AM117: 57933.06684 | AN117: 57922.81532 | AO117: 57912.56381 | AP117: 57902.3116 | AQ117: 57892.05937
A118: Calumet | B118: 41250 | C118: 54028 | D118: 56827 | E118: 55625 | F118: 53750 | G118: 59063 | H118: 50000 | I118: 46250 | J118: 43750 | K118: 44000 | L118: 48996.13243 | M118: 51880.93069 | N118: 53555.06144 | O118: 54546.90976 | P118: 55142.00195 | Q118: 55510.96366 | R118: 55752.13862 | S118: 55918.87341 | T118: 56043.38595 | U118: 56143.9463 | V118: 56170.30083 | W118: 56194.47125 | X118: 56210.7146 | Y118: 56213.45207 | Z118: 56216.6695 | AA118: 56217.68084 | AB118: 56216.3484 | AC118: 56215.22314 | AD118: 56213.54497 | AE118: 56211.4821 | AF118: 56209.46855 | AG118: 56207.32641 | AH118: 56205.12544 | AI118: 56202.93327 | AJ118: 56200.71291 | AK118: 56198.48443 | AL118: 56196.25703 | AM118: 56194.02377 | AN118: 56191.78956 | AO118: 56189.55537 | AP118: 56187.32002 | AQ118: 56185.08459
A119: Camanche | B119: 50595 | C119: 55398 | D119: 54852 | E119: 53500 | F119: 53805 | G119: 56318 | H119: 53438 | I119: 48567 | J119: 47996 | K119: 50804 | L119: 51479.72758 | M119: 51786.73411 | N119: 51973.81708 | O119: 52200.9882 | P119: 52348.29135 | Q119: 52482.20623 | R119: 52621.19382 | S119: 52743.82781 | T119: 52865.69926 | U119: 52987.82427 | V119: 52986.3206 | W119: 52996.37672 | X119: 52999.44668 | Y119: 52980.15756 | Z119: 52964.85186 | AA119: 52946.76267 | AB119: 52924.86442 | AC119: 52903.95229 | AD119: 52882.23304 | AE119: 52859.91115 | AF119: 52837.79552 | AG119: 52815.47751 | AH119: 52793.07363 | AI119: 52770.70748 | AJ119: 52748.29504 | AK119: 52725.87242 | AL119: 52703.45573 | AM119: 52681.02916 | AN119: 52658.60188 | AO119: 52636.17531 | AP119: 52613.74676 | AQ119: 52591.3183
A120: Cambridge | B120: 49417 | C120: 51250 | D120: 51500 | E120: 54706 | F120: 53897 | G120: 54196 | H120: 53214 | I120: 60156 | J120: 68625 | K120: 72813 | L120: 68348.86666 | M120: 65800.22075 | N120: 64418.97062 | O120: 63672.67109 | P120: 63287.6917 | Q120: 63121.66808 | R120: 63073.38093 | S120: 63093.38227 | T120: 63154.33653 | U120: 63237.15086 | V120: 63231.5181 | W120: 63243.11086 | X120: 63252.99254 | Y120: 63246.99744 | Z120: 63245.70659 | AA120: 63242.88152 | AB120: 63237.40001 | AC120: 63232.9931 | AD120: 63228.06432 | AE120: 63222.72997 | AF120: 63217.61382 | AG120: 63212.35803 | AH120: 63207.04859 | AI120: 63201.77913 | AJ120: 63196.47667 | AK120: 63191.16903 | AL120: 63185.86792 | AM120: 63180.55964 | AN120: 63175.25137 | AO120: 63169.944 | AP120: 63164.63518 | AQ120: 63159.32654
A121: Cantril | B121: 25625 | C121: 33438 | D121: 34750 | E121: 38125 | F121: 43333 | G121: 34583 | H121: 35000 | I121: 39167 | J121: 43194 | K121: 42632 | L121: 42568.65239 | M121: 42709.57132 | N121: 42981.17389 | O121: 43114.69905 | P121: 43306.51664 | Q121: 43511.10601 | R121: 43690.95807 | S121: 43884.87967 | T121: 44078.71727 | U121: 44268.52166 | V121: 44294.68443 | W121: 44336.11488 | X121: 44367.46811 | Y121: 44369.30254 | Z121: 44376.3561 | AA121: 44379.57578 | AB121: 44377.7798 | AC121: 44377.26923 | AD121: 44375.66495 | AE121: 44373.26942 | AF121: 44371.14129 | AG121: 44368.74128 | AH121: 44366.22895 | AI121: 44363.76517 | AJ121: 44361.23955 | AK121: 44358.70069 | AL121: 44356.16938 | AM121: 44353.62492 | AN121: 44351.07954 | AO121: 44348.53506 | AP121: 44345.98794 | AQ121: 44343.44094
A122: Carbon | B122: 40000 | C122: 37083 | D122: 34375 | E122: 31563 | F122: 30500 | G122: 28750 | H122: 30625 | I122: 50417 | J122: 47500 | K122: 36667 | L122: 38905.57568 | M122: 40164.87587 | N122: 40926.08012 | O122: 41399.17269 | P122: 41643.62538 | Q122: 41800.87318 | R122: 41900.43986 | S122: 41957.67088 | T122: 41999.5046 | U122: 42029.76061 | V122: 42039.25888 | W122: 42047.22787 | X122: 42052.13616 | Y122: 42053.30204 | Z122: 42054.38317 | AA122: 42054.70881 | AB122: 42054.38818 | AC122: 42054.0762 | AD122: 42053.58828 | AE122: 42052.99417 | AF122: 42052.4033 | AG122: 42051.77348 | AH122: 42051.12724 | AI122: 42050.4813 | AJ122: 42049.82711 | AK122: 42049.17059 | AL122: 42048.51395 | AM122: 42047.85564 | AN122: 42047.19704 | AO122: 42046.53836 | AP122: 42045.87935 | AQ122: 42045.22031
A123: Carlisle | B123: 59654 | C123: 61275 | D123: 54560 | E123: 58780 | F123: 58431 | G123: 57794 | H123: 58299 | I123: 68568 | J123: 67009 | K123: 73380 | L123: 69869.09385 | M123: 67950.28867 | N123: 66832.58911 | O123: 66245.64823 | P123: 65950.6113 | Q123: 65806.23886 | R123: 65762.85722 | S123: 65772.82873 | T123: 65811.33823 | U123: 65868.97097 | V123: 65930.98704 | W123: 65998.94957 | X123: 66070.20703 | Y123: 66142.27449 | Z123: 66215.55764 | AA123: 66289.39307 | AB123: 66363.38914 | AC123: 66437.62839 | AD123: 66511.95767 | AE123: 66586.32076 | AF123: 66660.73135 | AG123: 66735.15624 | AH123: 66809.58851 | AI123: 66884.02982 | AJ123: 66958.47336 | AK123: 67032.91854 | AL123: 67107.36539 | AM123: 67181.81258 | AN123: 67256.26013 | AO123: 67330.70799 | AP123: 67405.1559 | AQ123: 67479.60389
A124: Carpenter | B124: 38750 | C124: 45000 | D124: 41500 | E124: 43438 | F124: 36875 | G124: 36343.8 | H124: 35359 | I124: 38750 | J124: 41528 | K124: 47000 | L124: 44578.28534 | M124: 43397.60536 | N124: 42872.99669 | O124: 42640.3333 | P124: 42648.24483 | Q124: 42772.54175 | R124: 42953.06445 | S124: 43179.73873 | T124: 43426.94404 | U124: 43685.14734 | V124: 43715.48084 | W124: 43771.81035 | X124: 43816.82774 | Y124: 43820.7107 | Z124: 43832.89791 | AA124: 43840.16574 | AB124: 43840.4538 | AC124: 43842.7492 | AD124: 43843.58121 | AE124: 43843.31709 | AF124: 43843.46911 | AG124: 43843.25003 | AH124: 43842.87702 | AI124: 43842.58009 | AJ124: 43842.1978 | AK124: 43841.79789 | AL124: 43841.41005 | AM124: 43841.00395 | AN124: 43840.59679 | AO124: 43840.19116 | AP124: 43839.78185 | AQ124: 43839.37276
A125: Carroll | B125: 45402 | C125: 45316 | D125: 44591 | E125: 43483 | F125: 44972 | G125: 43078 | H125: 45170 | I125: 44561 | J125: 47692 | K125: 47534 | L125: 47282.17838 | M125: 47195.52143 | N125: 47189.59911 | O125: 47248.20826 | P125: 47336.08982 | Q125: 47439.69959 | R125: 47555.53432 | S125: 47676.55074 | T125: 47800.66384 | U125: 47927.06431 | V125: 47899.12041 | W125: 47886.47512 | X125: 47865.40179 | Y125: 47816.4281 | Z125: 47772.60562 | AA125: 47725.34794 | AB125: 47673.34227 | AC125: 47622.6029 | AD125: 47570.86051 | AE125: 47518.36842 | AF125: 47466.14051 | AG125: 47413.66032 | AH125: 47361.07373 | AI125: 47308.53545 | AJ125: 47255.93938 | AK125: 47203.33081 | AL125: 47150.72985 | AM125: 47098.11656 | AN125: 47045.50241 | AO125: 46992.8892 | AP125: 46940.27351 | AQ125: 46887.65794
A126: Carson | B126: 57500 | C126: 55781 | D126: 57875 | E126: 51500 | F126: 55391 | G126: 47039 | H126: 55556 | I126: 49250 | J126: 58636 | K126: 54063 | L126: 54282.83498 | M126: 54460.36956 | N126: 54492.00063 | O126: 54460.90232 | P126: 54420.65896 | Q126: 54350.44293 | R126: 54270.66011 | S126: 54188.59783 | T126: 54100.57577 | U126: 54011.18351 | V126: 54000.33123 | W126: 53980.84815 | X126: 53965.69446 | Y126: 53964.69369 | Z126: 53960.91653 | AA126: 53958.9077 | AB126: 53959.29708 | AC126: 53959.01517 | AD126: 53959.24921 | AE126: 53959.85952 | AF126: 53960.33103 | AG126: 53960.93214 | AH126: 53961.58607 | AI126: 53962.21476 | AJ126: 53962.87309 | AK126: 53963.53748 | AL126: 53964.19791 | AM126: 53964.86466 | AN126: 53965.53177 | AO126: 53966.1984 | AP126: 53966.86629 | AQ126: 53967.53411
A127: Carter Lake | B127: 46366 | C127: 47333 | D127: 43995 | E127: 45379 | F127: 46923 | G127: 48333 | H127: 57670 | I127: 62966 | J127: 49028 | K127: 58839 | L127: 56514.76608 | M127: 55125.03202 | N127: 54227.01951 | O127: 53763.40366 | P127: 53460.53669 | Q127: 53257.11026 | R127: 53134.84087 | S127: 53040.32828 | T127: 52966.05334 | U127: 52906.67443 | V127: 52891.62052 | W127: 52876.94935 | X127: 52867.21269 | Y127: 52865.48026 | Z127: 52863.3009 | AA127: 52862.48945 | AB127: 52863.05351 | AC127: 52863.46798 | AD127: 52864.22355 | AE127: 52865.20198 | AF127: 52866.1472 | AG127: 52867.17131 | AH127: 52868.22887 | AI127: 52869.28072 | AJ127: 52870.34976 | AK127: 52871.42327 | AL127: 52872.4961 | AM127: 52873.5725 | AN127: 52874.64937 | AO127: 52875.72624 | AP127: 52876.80381 | AQ127: 52877.88141
A128: Cascade | B128: 57891 | C128: 57455 | D128: 57583 | E128: 58152 | F128: 54286 | G128: 47344 | H128: 49167 | I128: 48750 | J128: 49650 | K128: 53508 | L128: 52570.83296 | M128: 51881.57012 | N128: 51510.14637 | O128: 51317.21546 | P128: 51169.95074 | Q128: 51087.5549 | R128: 51035.2559 | S128: 50991.93597 | T128: 50961.58331 | U128: 50936.175 | V128: 50948.73999 | W128: 50960.42381 | X128: 50974.9587 | Y128: 50996.4229 | Z128: 51017.20069 | AA128: 51038.92009 | AB128: 51061.83883 | AC128: 51084.55849 | AD128: 51107.53417 | AE128: 51130.70478 | AF128: 51153.83129 | AG128: 51177.02017 | AH128: 51200.23819 | AI128: 51223.44805 | AJ128: 51246.67198 | AK128: 51269.89974 | AL128: 51293.12625 | AM128: 51316.35575 | AN128: 51339.58564 | AO128: 51362.8154 | AP128: 51386.04576 | AQ128: 51409.27613
A129: Casey | B129: 40917 | C129: 44167 | D129: 43906 | E129: 46842 | F129: 46188 | G129: 40000 | H129: 39500 | I129: 42875 | J129: 40417 | K129: 38906 | L129: 39925.1956 | M129: 40296.23234 | N129: 40507.42535 | O129: 40590.00365 | P129: 40553.46438 | Q129: 40491.52928 | R129: 40401.74561 | S129: 40290.66034 | T129: 40175.40865 | U129: 40054.21676 | V129: 40035.59545 | W129: 40006.19286 | X129: 39981.6064 | Y129: 39975.60601 | Z129: 39966.02323 | AA129: 39958.59087 | AB129: 39954.32723 | AC129: 39949.18409 | AD129: 39944.68649 | AE129: 39940.68982 | AF129: 39936.50908 | AG129: 39932.49292 | AH129: 39928.54788 | AI129: 39924.56892 | AJ129: 39920.62797 | AK129: 39916.69535 | AL129: 39912.7573 | AM129: 39908.82742 | AN129: 39904.89809 | AO129: 39900.96807 | AP129: 39897.0397 | AQ129: 39893.11124
A130: Castalia | B130: 40000 | C130: 45313 | D130: 46250 | E130: 46042 | F130: 47083 | G130: 45357 | H130: 41250 | I130: 45000 | J130: 40625 | K130: 35938 | L130: 41125.68005 | M130: 44024.49706 | N130: 45680.92893 | O130: 47137.55382 | P130: 48116.89734 | Q130: 48894.86434 | R130: 49503.28727 | S130: 49813.89522 | T130: 49978.18886 | U130: 50066.97014 | V130: 50123.35187 | W130: 50151.26773 | X130: 50165.9191 | Y130: 50174.27865 | Z130: 50177.16754 | AA130: 50177.74202 | AB130: 50177.07269 | AC130: 50175.36655 | AD130: 50173.25735 | AE130: 50170.89926 | AF130: 50168.34762 | AG130: 50165.72547 | AH130: 50163.05323 | AI130: 50160.34542 | AJ130: 50157.62513 | AK130: 50154.89476 | AL130: 50152.15795 | AM130: 50149.41889 | AN130: 50146.67781 | AO130: 50143.93559 | AP130: 50141.19295 | AQ130: 50138.44991
A131: Castana | B131: 29167 | C131: 34375 | D131: 35000 | E131: 29250 | F131: 27708 | G131: 22143 | H131: 21000 | I131: 30250 | J131: 41250 | K131: 57500 | L131: 50875.17145 | M131: 47407.28211 | N131: 45506.942 | O131: 44704.8383 | P131: 44476.20496 | Q131: 44433.81035 | R131: 44417.66001 | S131: 44400.94135 | T131: 44381.39255 | U131: 44367.08877 | V131: 44363.01809 | W131: 44357.6919 | X131: 44353.97643 | Y131: 44351.99968 | Z131: 44349.69647 | AA131: 44347.81485 | AB131: 44346.20922 | AC131: 44344.5355 | AD131: 44342.96188 | AE131: 44341.42815 | AF131: 44339.88247 | AG131: 44338.35893 | AH131: 44336.84033 | AI131: 44335.32004 | AJ131: 44333.80437 | AK131: 44332.28913 | AL131: 44330.77375 | AM131: 44329.25928 | AN131: 44327.7448 | AO131: 44326.23033 | AP131: 44324.71604 | AQ131: 44323.20174
A132: Cedar Falls | B132: 47339 | C132: 47974 | D132: 48727 | E132: 50547 | F132: 52678 | G132: 55808 | H132: 58544 | I132: 58855 | J132: 60068 | K132: 61420 | L132: 59191.41424 | M132: 58142.3463 | N132: 57731.19202 | O132: 57629.00299 | P132: 57753.17555 | Q132: 57992.43317 | R132: 58290.60213 | S132: 58631.89577 | T132: 58957.8662 | U132: 59245.28775 | V132: 59499.30364 | W132: 59751.7045 | X132: 59995.30168 | Y132: 60233.28362 | Z132: 60471.06561 | AA132: 60706.91784 | AB132: 60941.87218 | AC132: 61176.78058 | AD132: 61411.28219 | AE132: 61645.64883 | AF132: 61879.99993 | AG132: 62114.26845 | AH132: 62348.51829 | AI132: 62582.76296 | AJ132: 62816.99148 | AK132: 63051.21771 | AL132: 63285.4424 | AM132: 63519.66404 | AN132: 63753.88546 | AO132: 63988.10647 | AP132: 64222.32692 | AQ132: 64456.54736
A133: Cedar Rapids | B133: 49298 | C133: 51108 | D133: 52242 | E133: 52216 | F133: 54465 | G133: 53581 | H133: 55359 | I133: 56828 | J133: 59152 | K133: 58511 | L133: 59846.11955 | M133: 61128.90839 | N133: 62342.58354 | O133: 63529.12141 | P133: 64704.92541 | Q133: 65867.26087 | R133: 67025.17943 | S133: 68180.82161 | T133: 69333.89845 | U133: 70486.26624 | V133: 71602.52647 | W133: 72721.67854 | X133: 73838.68667 | Y133: 74949.15103 | Z133: 76060.68273 | AA133: 77171.39018 | AB133: 78280.97901 | AC133: 79390.83757 | AD133: 80500.45968 | AE133: 81609.9038 | AF133: 82719.40483 | AG133: 83828.84684 | AH133: 84938.26322 | AI133: 86047.69003 | AJ133: 87157.10338 | AK133: 88266.51361 | AL133: 89375.92548 | AM133: 90485.33448 | AN133: 91594.74323 | AO133: 92704.15218 | AP133: 93813.56056 | AQ133: 94922.96895
A134: Center Point | B134: 61541 | C134: 61250 | D134: 66356 | E134: 69608 | F134: 69960 | G134: 79545 | H134: 83235 | I134: 82951 | J134: 80938 | K134: 80577 | L134: 79789.75734 | M134: 79533.4791 | N134: 79457.8996 | O134: 79452.37334 | P134: 79550.15733 | Q134: 79675.99491 | R134: 79817.50268 | S134: 79978.57723 | T134: 80143.90386 | U134: 80312.75686 | V134: 80354.61238 | W134: 80409.45985 | X134: 80457.64792 | Y134: 80482.87242 | Z134: 80512.42632 | AA134: 80539.19727 | AB134: 80562.06046 | AC134: 80585.98511 | AD134: 80609.09088 | AE134: 80631.57992 | AF134: 80654.29035 | AG134: 80676.79404 | AH134: 80699.21032 | AI134: 80721.66716 | AJ134: 80744.07653 | AK134: 80766.47567 | AL134: 80788.88124 | AM134: 80811.27665 | AN134: 80833.67138 | AO134: 80856.06691 | AP134: 80878.4604 | AQ134: 80900.85398
A135: Centerville | B135: 29401 | C135: 30044 | D135: 32551 | E135: 32477 | F135: 34524 | G135: 31270 | H135: 30442 | I135: 30993 | J135: 33682 | K135: 34805 | L135: 34230.39177 | M135: 33900.55793 | N135: 33701.68059 | O135: 33691.41459 | P135: 33716.27995 | Q135: 33771.8593 | R135: 33862.18918 | S135: 33957.40769 | T135: 34059.69081 | U135: 34168.16744 | V135: 34151.49396 | W135: 34148.30223 | X135: 34139.00215 | Y135: 34107.06219 | Z135: 34079.54092 | AA135: 34049.34889 | AB135: 34015.3045 | AC135: 33982.33875 | AD135: 33948.57655 | AE135: 33914.20688 | AF135: 33880.06209 | AG135: 33845.71496 | AH135: 33811.28193 | AI135: 33776.89018 | AJ135: 33742.45182 | AK135: 33708.00347 | AL135: 33673.5617 | AM135: 33639.10993 | AN135: 33604.65752 | AO135: 33570.20595 | AP135: 33535.75236 | AQ135: 33501.29888
A136: Central City | B136: 43750 | C136: 39115 | D136: 36964 | E136: 41146 | F136: 48125 | G136: 54453 | H136: 61641 | I136: 62396 | J136: 64038 | K136: 63068 | L136: 60176.35416 | M136: 58631.24801 | N136: 57755.95961 | O136: 57246.53626 | P136: 56950.33483 | Q136: 56779.2796 | R136: 56676.40316 | S136: 56613.7527 | T136: 56574.43879 | U136: 56547.85214 | V136: 56539.62537 | W136: 56534.72387 | X136: 56532.8172 | Y136: 56534.28821 | Z136: 56536.21779 | AA136: 56538.83742 | AB136: 56542.05792 | AC136: 56545.3422 | AD136: 56548.78091 | AE136: 56552.32267 | AF136: 56555.87426 | AG136: 56559.45933 | AH136: 56563.06135 | AI136: 56566.66525 | AJ136: 56570.27617 | AK136: 56573.88975 | AL136: 56577.50377 | AM136: 56581.11922 | AN136: 56584.73507 | AO136: 56588.35102 | AP136: 56591.96726 | AQ136: 56595.58356
A137: Centralia | B137: 66000 | C137: 57500 | D137: 41964 | E137: 47500 | F137: 61875 | G137: 50938 | H137: 63000 | I137: 56875 | J137: 53438 | K137: 58750 | L137: 56468.35461 | M137: 55167.15338 | N137: 54408.64042 | O137: 53977.28283 | P137: 53728.02784 | Q137: 53580.75915 | R137: 53494.98253 | S137: 53443.01705 | T137: 53410.25702 | U137: 53389.03159 | V137: 53380.21084 | W137: 53374.43352 | X137: 53371.16407 | Y137: 53370.16918 | Z137: 53369.66006 | AA137: 53369.69253 | AB137: 53370.13087 | AC137: 53370.64948 | AD137: 53371.28328 | AE137: 53371.98745 | AF137: 53372.7058 | AG137: 53373.44816 | AH137: 53374.20234 | AI137: 53374.95927 | AJ137: 53375.72108 | AK137: 53376.48482 | AL137: 53377.24913 | AM137: 53378.01442 | AN137: 53378.78 | AO137: 53379.54572 | AP137: 53380.31162 | AQ137: 53381.07757
A138: Chariton | B138: 28696 | C138: 28398 | D138: 29571 | E138: 30027 | F138: 30827 | G138: 33167 | H138: 42003 | I138: 42738 | J138: 42485 | K138: 48676 | L138: 44764.3036 | M138: 42481.96778 | N138: 41188.88469 | O138: 40472.82945 | P138: 40060.44888 | Q138: 39835.72173 | R138: 39717.87587 | S138: 39656.84821 | T138: 39631.36749 | U138: 39625.6369 | V138: 39585.38523 | W138: 39556.12637 | X138: 39527.93507 | Y138: 39493.58808 | Z138: 39461.97089 | AA138: 39430.00326 | AB138: 39397.02611 | AC138: 39364.64815 | AD138: 39332.09818 | AE138: 39299.40076 | AF138: 39266.82329 | AG138: 39234.19459 | AH138: 39201.54837 | AI138: 39168.92423 | AJ138: 39136.28738 | AK138: 39103.64946 | AL138: 39071.01524 | AM138: 39038.37819 | AN138: 39005.74139 | AO138: 38973.10513 | AP138: 38940.46829 | AQ138: 38907.83158
A139: Charles City | B139: 34102 | C139: 35877 | D139: 38173 | E139: 38417 | F139: 37275 | G139: 39053 | H139: 40909 | I139: 40610 | J139: 37852 | K139: 41060 | L139: 40178.67251 | M139: 39454.32084 | N139: 38927.91858 | O139: 38526.50311 | P139: 38152.71344 | Q139: 37820.06527 | R139: 37508.68781 | S139: 37202.54376 | T139: 36904.7724 | U139: 36610.51685 | V139: 36525.13298 | W139: 36421.75925 | X139: 36330.79515 | Y139: 36277.62356 | Z139: 36218.04328 | AA139: 36163.25178 | AB139: 36114.90621 | AC139: 36064.959 | AD139: 36016.38624 | AE139: 35968.83572 | AF139: 35920.94915 | AG139: 35873.40558 | AH139: 35826.00836 | AI139: 35778.54969 | AJ139: 35731.16928 | AK139: 35683.80643 | AL139: 35636.43395 | AM139: 35589.07815 | AN139: 35541.72366 | AO139: 35494.36802 | AP139: 35447.01572 | AQ139: 35399.66331
A140: Charlotte | B140: 39479 | C140: 41500 | D140: 43750 | E140: 45875 | F140: 45469 | G140: 47955 | H140: 50417 | I140: 48542 | J140: 53750 | K140: 61500 | L140: 58380.98924 | M140: 56891.51635 | N140: 56245.21929 | O140: 55983.96253 | P140: 56037.55281 | Q140: 56240.65741 | R140: 56501.71967 | S140: 56673.53838 | T140: 56786.26549 | U140: 56864.67324 | V140: 56890.61404 | W140: 56908.59952 | X140: 56918.27151 | Y140: 56918.34231 | Z140: 56917.40466 | AA140: 56914.51564 | AB140: 56909.93183 | AC140: 56905.22223 | AD140: 56900.07097 | AE140: 56894.63225 | AF140: 56889.1755 | AG140: 56883.62242 | AH140: 56878.02277 | AI140: 56872.41945 | AJ140: 56866.79588 | AK140: 56861.16516 | AL140: 56855.53345 | AM140: 56849.89763 | AN140: 56844.26078 | AO140: 56838.62364 | AP140: 56832.9857 | AQ140: 56827.34763
A141: Charter Oak | B141: 37614 | C141: 38203 | D141: 42500 | E141: 45972 | F141: 44063 | G141: 49167 | H141: 45750 | I141: 39196 | J141: 39833 | K141: 44886 | L141: 43841.64871 | M141: 43238.91188 | N141: 42818.80943 | O141: 42581.08665 | P141: 42419.10452 | Q141: 42293.55072 | R141: 42202.97018 | S141: 42125.27579 | T141: 42054.99 | U141: 41991.29198 | V141: 41975.34953 | W141: 41956.61964 | X141: 41941.70462 | Y141: 41935.40157 | Z141: 41927.93576 | AA141: 41921.72127 | AB141: 41916.97481 | AC141: 41911.92791 | AD141: 41907.21859 | AE141: 41902.74284 | AF141: 41898.20394 | AG141: 41893.7466 | AH141: 41889.32306 | AI141: 41884.8882 | AJ141: 41880.47159 | AK141: 41876.05915 | AL141: 41871.64504 | AM141: 41867.23477 | AN141: 41862.82484 | AO141: 41858.41475 | AP141: 41854.00543 | AQ141: 41849.59609
A142: Chatsworth | B142: 21250 | C142: 16771 | D142: 45625 | E142: 46250 | F142: 48750 | G142: 57197.9 | H142: 63750 | I142: 71302.81429 | J142: 54063 | K142: 54063 | L142: 54391.14045 | M142: 54688.61351 | N142: 54843.35363 | O142: 54994.26558 | P142: 55132.83223 | Q142: 55245.16409 | R142: 55358.654 | S142: 55468.41943 | T142: 55573.58995 | U142: 55679.23691 | V142: 55695.32197 | W142: 55719.02461 | X142: 55737.79359 | Y142: 55740.31627 | Z142: 55745.5911 | AA142: 55748.88406 | AB142: 55749.39864 | AC142: 55750.60558 | AD142: 55751.23558 | AE142: 55751.4236 | AF142: 55751.75773 | AG142: 55751.94678 | AH142: 55752.07229 | AI142: 55752.2247 | AJ142: 55752.34384 | AK142: 55752.45531 | AL142: 55752.57104 | AM142: 55752.67965 | AN142: 55752.78767 | AO142: 55752.89622 | AP142: 55753.00334 | AQ142: 55753.1105
A143: Chelsea | B143: 42708 | C143: 48281 | D143: 48889 | E143: 44063 | F143: 41250 | G143: 41000 | H143: 45625 | I143: 51111 | J143: 50938 | K143: 48750 | L143: 49796.51849 | M143: 50774.35213 | N143: 51645.01376 | O143: 52534.03947 | P143: 53403.0801 | Q143: 54254.45631 | R143: 55110.04477 | S143: 55960.57488 | T143: 56808.41733 | U143: 57657.07415 | V143: 57777.20439 | W143: 57965.76658 | X143: 58113.00113 | Y143: 58128.50678 | Z143: 58167.53515 | AA143: 58190.12728 | AB143: 58190.28436 | AC143: 58196.25919 | AD143: 58197.4713 | AE143: 58195.13521 | AF143: 58194.01524 | AG143: 58191.70151 | AH143: 58188.88251 | AI143: 58186.28585 | AJ143: 58183.41622 | AK143: 58180.48674 | AL143: 58177.59221 | AM143: 58174.63944 | AN143: 58171.68245 | AO143: 58168.72972 | AP143: 58165.76528 | AQ143: 58162.80134
A144: Cherokee | B144: 35976 | C144: 34492 | D144: 37936 | E144: 41406 | F144: 44014 | G144: 40811 | H144: 42754 | I144: 45103 | J144: 46366 | K144: 46675 | L144: 45104.72005 | M144: 44227.75221 | N144: 43628.81587 | O144: 43178.72537 | P144: 42860.12915 | Q144: 42589.2682 | R144: 42348.59569 | S144: 42132.43719 | T144: 41924.51375 | U144: 41722.74626 | V144: 41628.01542 | W144: 41525.02709 | X144: 41429.1375 | Y144: 41352.59101 | Z144: 41272.9815 | AA144: 41195.94496 | AB144: 41122.20649 | AC144: 41047.69563 | AD144: 40973.90697 | AE144: 40900.64181 | AF144: 40827.21456 | AG144: 40753.96551 | AH144: 40680.79164 | AI144: 40607.58832 | AJ144: 40534.42538 | AK144: 40461.27154 | AL144: 40388.11317 | AM144: 40314.96336 | AN144: 40241.81426 | AO144: 40168.66464 | AP144: 40095.51673 | AQ144: 40022.36878
A145: Chester | B145: 35625 | C145: 42917 | D145: 46250 | E145: 41771 | F145: 39821 | G145: 37813 | H145: 29375 | I145: 35833 | J145: 28214 | K145: 31250 | L145: 33493.7666 | M145: 34865.15895 | N145: 35646.10768 | O145: 36145.81022 | P145: 36477.38143 | Q145: 36698.74444 | R145: 36880.34365 | S145: 37045.33818 | T145: 37199.02391 | U145: 37348.50166 | V145: 37372.13815 | W145: 37405.31818 | X145: 37430.74562 | Y145: 37433.36766 | Z145: 37439.59401 | AA145: 37442.90512 | AB145: 37442.3163 | AC145: 37442.64358 | AD145: 37442.14086 | AE145: 37441.01698 | AF145: 37440.08665 | AG145: 37438.9499 | AH145: 37437.72351 | AI145: 37436.53259 | AJ145: 37435.29465 | AK145: 37434.04576 | AL145: 37432.80242 | AM145: 37431.54905 | AN145: 37430.29481 | AO145: 37429.04124 | AP145: 37427.78564 | AQ145: 37426.5301
A146: Chillicothe | B146: 50417 | C146: 35000 | D146: 37500 | E146: 45500 | F146: 41250 | G146: 45536 | H146: 45417 | I146: 37500 | J146: 52500 | K146: 53929 | L146: 51008.65707 | M146: 49533.41613 | N146: 48956.03982 | O146: 48754.02649 | P146: 48835.23265 | Q146: 49078.90835 | R146: 49392.40779 | S146: 49761.11945 | T146: 50105.27257 | U146: 50301.62861 | V146: 50369.98342 | W146: 50438.65901 | X146: 50472.96879 | Y146: 50486.13518 | Z146: 50499.71101 | AA146: 50505.67865 | AB146: 50508.35363 | AC146: 50511.05248 | AD146: 50512.14 | AE146: 50512.75318 | AF146: 50513.33833 | AG146: 50513.59607 | AH146: 50513.79298 | AI146: 50513.97456 | AJ146: 50514.09223 | AK146: 50514.20361 | AL146: 50514.30959 | AM146: 50514.40359 | AN146: 50514.49726 | AO146: 50514.58936 | AP146: 50514.67931 | AQ146: 50514.76932
A147: Churdan | B147: 33125 | C147: 38636 | D147: 33571 | E147: 38235 | F147: 40156 | G147: 38125 | H147: 40278 | I147: 43250 | J147: 40417 | K147: 46875 | L147: 45666.54184 | M147: 45108.10158 | N147: 45031.81753 | O147: 45057.03204 | P147: 45053.475 | Q147: 45053.46978 | R147: 45045.41506 | S147: 45032.80577 | T147: 45020.91774 | U147: 45007.20762 | V147: 45002.41825 | W147: 44996.83511 | X147: 44991.40828 | Y147: 44987.62967 | Z147: 44983.55131 | AA147: 44979.61032 | AB147: 44975.95623 | AC147: 44972.22445 | AD147: 44968.54001 | AE147: 44964.90206 | AF147: 44961.24717 | AG147: 44957.60515 | AH147: 44953.96996 | AI147: 44950.33152 | AJ147: 44946.69616 | AK147: 44943.06166 | AL147: 44939.42661 | AM147: 44935.79223 | AN147: 44932.15793 | AO147: 44928.52356 | AP147: 44924.88932 | AQ147: 44921.25507
A148: Cincinnati | B148: 21510 | C148: 27500 | D148: 29167 | E148: 25417 | F148: 31875 | G148: 33500 | H148: 33750 | I148: 37250 | J148: 46042 | K148: 50000 | L148: 47838.07885 | M148: 47054.52368 | N148: 47077.84787 | O148: 47471.83573 | P148: 47827.06241 | Q148: 48039.89014 | R148: 48157.10188 | S148: 48231.05746 | T148: 48277.35455 | U148: 48305.95539 | V148: 48317.42074 | W148: 48324.38203 | X148: 48327.57127 | Y148: 48327.63318 | Z148: 48326.9507 | AA148: 48325.46902 | AB148: 48323.43079 | AC148: 48321.26485 | AD148: 48318.93184 | AE148: 48316.50236 | AF148: 48314.04962 | AG148: 48311.56258 | AH148: 48309.05928 | AI148: 48306.55143 | AJ148: 48304.03669 | AK148: 48301.51928 | AL148: 48299.00092 | AM148: 48296.48121 | AN148: 48293.96108 | AO148: 48291.44074 | AP148: 48288.92014 | AQ148: 48286.39947
A149: Clare | B149: 47083 | C149: 49167 | D149: 51786 | E149: 55000 | F149: 51719 | G149: 54583 | H149: 56875 | I149: 52321 | J149: 54375 | K149: 65833 | L149: 62141.81386 | M149: 60003.97139 | N149: 58773.29554 | O149: 58166.34571 | P149: 57840.21294 | Q149: 57690.48625 | R149: 57656.5113 | S149: 57673.61621 | T149: 57725.09229 | U149: 57797.84548 | V149: 57795.35063 | W149: 57807.54979 | X149: 57818.80043 | Y149: 57816.49751 | Z149: 57818.233 | AA149: 57818.75431 | AB149: 57816.99994 | AC149: 57816.17256 | AD149: 57814.91661 | AE149: 57813.31178 | AF149: 57811.89612 | AG149: 57810.36408 | AH149: 57808.78561 | AI149: 57807.24201 | AJ149: 57805.67068 | AK149: 57804.0948 | AL149: 57802.52467 | AM149: 57800.94849 | AN149: 57799.37229 | AO149: 57797.7969 | AP149: 57796.22028 | AQ149: 57794.6438
A150: Clarence | B150: 44200 | C150: 43667 | D150: 43973 | E150: 44712 | F150: 42574 | G150: 44196 | H150: 45729 | I150: 45789 | J150: 49034 | K150: 49306 | L150: 49094.83565 | M150: 49226.65365 | N150: 49399.10503 | O150: 49568.45146 | P150: 49805.44927 | Q150: 50043.64785 | R150: 50284.39187 | S150: 50537.85361 | T150: 50798.36629 | U150: 51072.76564 | V150: 51108.73295 | W150: 51169.2635 | X150: 51218.66071 | Y150: 51224.82356 | Z150: 51239.22466 | AA150: 51248.64579 | AB150: 51250.68927 | AC150: 51254.76221 | AD150: 51257.339 | AE150: 51258.74795 | AF150: 51260.58246 | AG150: 51262.03529 | AH150: 51263.32197 | AI150: 51264.68717 | AJ150: 51265.96418 | AK150: 51267.22162 | AL150: 51268.49165 | AM150: 51269.74273 | AN150: 51270.99247 | AO150: 51272.24383 | AP150: 51273.49136 | AQ150: 51274.73907
A151: Clarinda | B151: 35259 | C151: 38250 | D151: 40236 | E151: 39854 | F151: 43519 | G151: 42551 | H151: 43814 | I151: 41566 | J151: 47250 | K151: 50013 | L151: 48607.91484 | M151: 47926.87146 | N151: 47651.75652 | O151: 47723.96886 | P151: 47920.90903 | Q151: 48200.1521 | R151: 48543.83838 | S151: 48909.16967 | T151: 49140.94747 | U151: 49268.4229 | V151: 49307.53987 | W151: 49324.53353 | X151: 49319.48352 | Y151: 49298.60575 | Z151: 49273.94684 | AA151: 49244.68132 | AB151: 49212.65152 | AC151: 49179.94075 | AD151: 49146.28308 | AE151: 49112.15512 | AF151: 49077.89627 | AG151: 49043.44663 | AH151: 49008.91907 | AI151: 48974.36475 | AJ151: 48939.77283 | AK151: 48905.16832 | AL151: 48870.55809 | AM151: 48835.94063 | AN151: 48801.32118 | AO151: 48766.70048 | AP151: 48732.07842 | AQ151: 48697.45605
A152: Clarion | B152: 42781 | C152: 31932 | D152: 39125 | E152: 37306 | F152: 36875 | G152: 37583 | H152: 38694 | I152: 40789 | J152: 43472 | K152: 41712 | L152: 39539.41126 | M152: 38142.04092 | N152: 37224.66997 | O152: 36577.04505 | P152: 36074.80445 | Q152: 35663.30969 | R152: 35301.65791 | S152: 34967.37689 | T152: 34650.20716 | U152: 34342.23916 | V152: 34278.15458 | W152: 34194.7083 | X152: 34126.56823 | Y152: 34102.55735 | Z152: 34071.41603 | AA152: 34045.98864 | AB152: 34028.09337 | AC152: 34008.40056 | AD152: 33990.32934 | AE152: 33973.4547 | AF152: 33956.20203 | AG152: 33939.35185 | AH152: 33922.67362 | AI152: 33905.92638 | AJ152: 33889.27068 | AK152: 33872.6358 | AL152: 33855.99018 | AM152: 33839.36404 | AN152: 33822.73951 | AO152: 33806.11372 | AP152: 33789.49184 | AQ152: 33772.86983
A153: Clarksville | B153: 43578 | C153: 44474 | D153: 44167 | E153: 44167 | F153: 43833 | G153: 43750 | H153: 40815 | I153: 44271 | J153: 47727 | K153: 49318 | L153: 48228.79556 | M153: 47562.70481 | N153: 47200.62279 | O153: 46947.51135 | P153: 46779.38855 | Q153: 46666.43707 | R153: 46573.1318 | S153: 46496.82661 | T153: 46430.37854 | U153: 46367.56156 | V153: 46341.33548 | W153: 46313.70276 | X153: 46288.65395 | Y153: 46270.27085 | Z153: 46251.11323 | AA153: 46232.84194 | AB153: 46215.72072 | AC153: 46198.38561 | AD153: 46181.29502 | AE153: 46164.39034 | AF153: 46147.43904 | AG153: 46130.54771 | AH153: 46113.68392 | AI153: 46096.81152 | AJ153: 46079.95269 | AK153: 46063.09741 | AL153: 46046.24081 | AM153: 46029.3871 | AN153: 46012.53372 | AO153: 45995.6802 | AP153: 45978.82726 | AQ153: 45961.97432
A154: Clayton | B154: 31750 | C154: 31250 | D154: 31250 | E154: 34167 | F154: 46250 | G154: 48750 | H154: 50000 | I154: 55893 | J154: 52500 | K154: 61250 | L154: 54834.99099 | M154: 50769.73253 | N154: 48582.56734 | O154: 46905.0841 | P154: 45717.73463 | Q154: 44866.66395 | R154: 44104.53537 | S154: 43443.62095 | T154: 42841.53444 | U154: 42255.7087 | V154: 42155.84492 | W154: 42022.01763 | X154: 41917.85719 | Y154: 41901.92913 | Z154: 41872.60492 | AA154: 41854.44521 | AB154: 41851.41123 | AC154: 41844.92859 | AD154: 41841.62803 | AE154: 41840.74518 | AF154: 41839.12893 | AG154: 41838.30504 | AH154: 41837.83201 | AI154: 41837.22402 | AJ154: 41836.79675 | AK154: 41836.41281 | AL154: 41836.00772 | AM154: 41835.64118 | AN154: 41835.27823 | AO154: 41834.91277 | AP154: 41834.55507 | AQ154: 41834.19719
A155: Clear Lake | B155: 47242 | C155: 51640 | D155: 48884 | E155: 46484 | F155: 47147 | G155: 49219 | H155: 51004 | I155: 34750 | J155: 35469 | K155: 57841 | L155: 53694.18935 | M155: 51399.84953 | N155: 50096.61667 | O155: 49223.4725 | P155: 48710.53586 | Q155: 48373.19788 | R155: 48118.57755 | S155: 47933.26209 | T155: 47778.85255 | U155: 47640.62428 | V155: 47581.69633 | W155: 47521.93925 | X155: 47469.15717 | Y155: 47430.79772 | Z155: 47391.25123 | AA155: 47353.84021 | AB155: 47318.92049 | AC155: 47283.64141 | AD155: 47248.92326 | AE155: 47214.60986 | AF155: 47180.21661 | AG155: 47145.95733 | AH155: 47111.75872 | AI155: 47077.54559 | AJ155: 47043.3623 | AK155: 47009.18705 | AL155: 46975.00971 | AM155: 46940.83864 | AN155: 46906.66841 | AO155: 46872.49801 | AP155: 46838.32886 | AQ155: 46804.15974
A156: Clearfield | B156: 40250 | C156: 36563 | D156: 33333 | E156: 33194 | F156: 33750 | G156: 32266 | H156: 33571 | I156: 54123 | J156: 55674 | K156: 44792 | L156: 43629.98717 | M156: 43086.18904 | N156: 42952.84375 | O156: 42831.9586 | P156: 42847.51034 | Q156: 42929.02773 | R156: 43013.23874 | S156: 43126.38291 | T156: 43249.49929 | U156: 43373.57656 | V156: 43385.93373 | W156: 43410.80542 | X156: 43429.30781 | Y156: 43427.70956 | Z156: 43430.09283 | AA156: 43429.91897 | AB156: 43426.34521 | AC156: 43423.72938 | AD156: 43420.37194 | AE156: 43416.48233 | AF156: 43412.79008 | AG156: 43408.91217 | AH156: 43404.95983 | AI156: 43401.04324 | AJ156: 43397.08428 | AK156: 43393.11686 | AL156: 43389.15502 | AM156: 43385.18416 | AN156: 43381.21282 | AO156: 43377.24214 | AP156: 43373.26967 | AQ156: 43369.2973
A157: Cleghorn | B157: 39792 | C157: 39844 | D157: 43750 | E157: 44688 | F157: 41964 | G157: 46000 | H157: 41875 | I157: 48750 | J157: 53750 | K157: 48750 | L157: 48470.1001 | M157: 48430.10346 | N157: 48387.66589 | O157: 48565.91245 | P157: 48664.76503 | Q157: 48689.38655 | R157: 48709.61598 | S157: 48704.07174 | T157: 48686.59866 | U157: 48668.17769 | V157: 48664.63069 | W157: 48657.35656 | X157: 48650.96898 | Y157: 48647.15483 | Z157: 48642.42913 | AA157: 48638.08239 | AB157: 48634.14674 | AC157: 48630.01659 | AD157: 48625.99685 | AE157: 48622.03572 | AF157: 48618.03726 | AG157: 48614.06621 | AH157: 48610.10194 | AI157: 48606.13123 | AJ157: 48602.16668 | AK157: 48598.20254 | AL157: 48594.23742 | AM157: 48590.27359 | AN157: 48586.30967 | AO157: 48582.34563 | AP157: 48578.38185 | AQ157: 48574.41801
A158: Clemons | B158: 47813 | C158: 48750 | D158: 49000 | E158: 51250 | F158: 55833 | G158: 58750 | H158: 59063 | I158: 58125 | J158: 63750 | K158: 62625 | L158: 61624.97525 | M158: 61120.35708 | N158: 60705.12296 | O158: 60440.99733 | P158: 60261.34663 | Q158: 60098.01299 | R158: 59966.01127 | S158: 59847.9392 | T158: 59733.16692 | U158: 59624.7268 | V158: 59605.80083 | W158: 59579.34202 | X158: 59559.10493 | Y158: 59554.98728 | Z158: 59548.20754 | AA158: 59543.64068 | AB158: 59541.81048 | AC158: 59539.32015 | AD158: 59537.44575 | AE158: 59536.00324 | AF158: 59534.4236 | AG158: 59532.99514 | AH158: 59531.62815 | AI158: 59530.23646 | AJ158: 59528.87888 | AK158: 59527.52862 | AL158: 59526.17459 | AM158: 59524.82778 | AN158: 59523.4815 | AO158: 59522.1348 | AP158: 59520.78954 | AQ158: 59519.44422
A159: Clermont | B159: 35250 | C159: 40368 | D159: 43250 | E159: 40625 | F159: 42708 | G159: 42813 | H159: 38125 | I159: 43750 | J159: 51442 | K159: 53864 | L159: 52309.69358 | M159: 51569.22814 | N159: 51352.60704 | O159: 51415.85555 | P159: 51436.03883 | Q159: 51451.82695 | R159: 51472.67037 | S159: 51484.61211 | T159: 51496.80059 | U159: 51509.50197 | V159: 51504.37895 | W159: 51501.01349 | X159: 51496.72303 | Y159: 51489.20549 | Z159: 51482.28388 | AA159: 51474.97443 | AB159: 51467.11491 | AC159: 51459.40242 | AD159: 51451.57564 | AE159: 51443.66183 | AF159: 51435.7788 | AG159: 51427.86688 | AH159: 51419.94258 | AI159: 51412.02393 | AJ159: 51404.09864 | AK159: 51396.17189 | AL159: 51388.24604 | AM159: 51380.31876 | AN159: 51372.39139 | AO159: 51364.46412 | AP159: 51356.53657 | AQ159: 51348.60904
A160: Clinton | B160: 40352 | C160: 41699 | D160: 42441 | E160: 42650 | F160: 41848 | G160: 41813 | H160: 42497 | I160: 42702 | J160: 42891 | K160: 44094 | L160: 43039.95573 | M160: 42306.45941 | N160: 41776.58712 | O160: 41387.28382 | P160: 41055.5976 | Q160: 40764.04721 | R160: 40498.27538 | S160: 40242.98144 | T160: 39995.58902 | U160: 39752.86863 | V160: 39437.44024 | W160: 39130.62 | X160: 38820.38243 | Y160: 38497.0167 | Z160: 38176.36996 | AA160: 37854.18348 | AB160: 37529.76983 | AC160: 37206.01134 | AD160: 36881.79023 | AE160: 36557.21965 | AF160: 36232.78482 | AG160: 35908.23214 | AH160: 35583.63049 | AI160: 35259.0537 | AJ160: 34934.44972 | AK160: 34609.84018 | AL160: 34285.23459 | AM160: 33960.62318 | AN160: 33636.01145 | AO160: 33311.40023 | AP160: 32986.78783 | AQ160: 32662.1755
A161: Clio | B161: 49063 | C161: 51250 | D161: 49167 | E161: 59583 | F161: 38750 | G161: 42083 | H161: 53750 | I161: 53225.35714 | J161: 44375 | K161: 83333 | L161: 73412.77869 | M161: 68247.44954 | N161: 65424.60216 | O161: 63691.28915 | P161: 62796.48886 | Q161: 62299.72472 | R161: 62013.37841 | S161: 61886.15883 | T161: 61829.90422 | U161: 61814.71032 | V161: 61788.22332 | W161: 61778.31034 | X161: 61774.11713 | Y161: 61768.02588 | Z161: 61765.54961 | AA161: 61763.73095 | AB161: 61761.66186 | AC161: 61760.33742 | AD161: 61759.05592 | AE161: 61757.75839 | AF161: 61756.60643 | AG161: 61755.44813 | AH161: 61754.29437 | AI161: 61753.16763 | AJ161: 61752.03734 | AK161: 61750.90956 | AL161: 61749.78652 | AM161: 61748.66247 | AN161: 61747.53923 | AO161: 61746.41676 | AP161: 61745.29407 | AQ161: 61744.17159
A162: Clive | B162: 98385 | C162: 101875 | D162: 96452 | E162: 90993 | F162: 91696 | G162: 93160 | H162: 90502 | I162: 94907 | J162: 101616 | K162: 104839 | L162: 101957.7311 | M162: 100450.727 | N162: 99679.96252 | O162: 99355.13895 | P162: 99285.58405 | Q162: 99353.71299 | R162: 99506.12558 | S162: 99705.86154 | T162: 99931.42757 | U162: 100172.8972 | V162: 100416.7903 | W162: 100666.1442 | X162: 100918.1308 | Y162: 101170.5929 | Z162: 101424.1779 | AA162: 101678.1816 | AB162: 101932.2903 | AC162: 102186.6234 | AD162: 102441.0201 | AE162: 102695.4416 | AF162: 102949.9067 | AG162: 103204.3809 | AH162: 103458.8611 | AI162: 103713.3494 | AJ162: 103967.8391 | AK162: 104222.3301 | AL162: 104476.8226 | AM162: 104731.3153 | AN162: 104985.8083 | AO162: 105240.3016 | AP162: 105494.7949 | AQ162: 105749.2882
A163: Clutier | B163: 19286 | C163: 18125 | D163: 19107 | E163: 30000 | F163: 37188 | G163: 38125 | H163: 40417 | I163: 45000 | J163: 49821 | K163: 51250 | L163: 46700.45057 | M163: 44060.86703 | N163: 42513.37341 | O163: 41547.83394 | P163: 40943.95522 | Q163: 40542.09278 | R163: 40249.47919 | S163: 40025.20775 | T163: 39838.24601 | U163: 39671.87296 | V163: 39634.7284 | W163: 39593.46537 | X163: 39562.72832 | Y163: 39555.441 | Z163: 39545.65624 | AA163: 39539.24186 | AB163: 39536.86043 | AC163: 39533.78328 | AD163: 39531.60845 | AE163: 39530.0839 | AF163: 39528.40855 | AG163: 39526.95078 | AH163: 39525.58918 | AI163: 39524.20019 | AJ163: 39522.8599 | AK163: 39521.53203 | AL163: 39520.2001 | AM163: 39518.87844 | AN163: 39517.55798 | AO163: 39516.23713 | AP163: 39514.91833 | AQ163: 39513.59955
A164: Coburg | B164: 33750 | C164: 32188 | D164: 33750 | E164: 32250 | F164: 32500 | G164: 43125 | H164: 50625 | I164: 52813 | J164: 56875 | K164: 63393 | L164: 58139.91702 | M164: 55633.92636 | N164: 54246.92167 | O164: 53497.35863 | P164: 53265.13657 | Q164: 53228.00175 | R164: 53318.83381 | S164: 53505.59208 | T164: 53726.62929 | U164: 53973.43686 | V164: 53995.895 | W164: 54047.34776 | X164: 54090.19097 | Y164: 54092.45955 | Z164: 54103.68114 | AA164: 54110.46427 | AB164: 54110.36006 | AC164: 54112.40127 | AD164: 54113.06219 | AE164: 54112.64337 | AF164: 54112.66947 | AG164: 54112.33838 | AH164: 54111.85656 | AI164: 54111.45668 | AJ164: 54110.97369 | AK164: 54110.47375 | AL164: 54109.98704 | AM164: 54109.48242 | AN164: 54108.9769 | AO164: 54108.47312 | AP164: 54107.96573 | AQ164: 54107.45858
A165: Coggon | B165: 52039 | C165: 56364 | D165: 56875 | E165: 59028 | F165: 49583 | G165: 51719 | H165: 51029 | I165: 51875 | J165: 59000 | K165: 66406 | L165: 63328.41143 | M165: 61654.50983 | N165: 60761.56442 | O165: 60215.9803 | P165: 59942.74827 | Q165: 59809.37412 | R165: 59742.10033 | S165: 59727.23191 | T165: 59737.25366 | U165: 59760.04468 | V165: 59755.42862 | W165: 59758.76485 | X165: 59762.46687 | Y165: 59761.29007 | Z165: 59762.10876 | AA165: 59762.57401 | AB165: 59762.23821 | AC165: 59762.34172 | AD165: 59762.29779 | AE165: 59762.13616 | AF165: 59762.06235 | AG165: 59761.94646 | AH165: 59761.81633 | AI165: 59761.70227 | AJ165: 59761.57798 | AK165: 59761.45271 | AL165: 59761.33011 | AM165: 59761.20526 | AN165: 59761.08056 | AO165: 59760.95625 | AP165: 59760.83148 | AQ165: 59760.70681
A166: Coin | B166: 43750 | C166: 29196 | D166: 39688 | E166: 29886 | F166: 31875 | G166: 43125 | H166: 47292 | I166: 40833 | J166: 54028 | K166: 50000 | L166: 45309.20929 | M166: 42541.84689 | N166: 40817.32765 | O166: 39692.49871 | P166: 38927.85359 | Q166: 38356.82566 | R166: 37899.15222 | S166: 37508.74733 | T166: 37154.34931 | U166: 36821.39453 | V166: 36758.54787 | W166: 36678.05071 | X166: 36616.29257 | Y166: 36603.42209 | Z166: 36583.46241 | AA166: 36570.09604 | AB166: 36565.08801 | AC166: 36558.25442 | AD166: 36553.25248 | AE166: 36549.58345 | AF166: 36545.52826 | AG166: 36541.92293 | AH166: 36538.51068 | AI166: 36535.02814 | AJ166: 36531.64731 | AK166: 36528.29031 | AL166: 36524.92254 | AM166: 36521.57633 | AN166: 36518.2321 | AO166: 36514.88667 | AP166: 36511.54556 | AQ166: 36508.20436
A167: Colesburg | B167: 38846 | C167: 43333 | D167: 46875 | E167: 49167 | F167: 50500 | G167: 53594 | H167: 52000 | I167: 53500 | J167: 52500 | K167: 49643 | L167: 51953.21424 | M167: 53405.81133 | N167: 54345.67092 | O167: 55034.79178 | P167: 55559.44425 | Q167: 55989.82632 | R167: 56373.40624 | S167: 56725.51919 | T167: 57060.3823 | U167: 57386.4398 | V167: 57435.28683 | W167: 57506.64029 | X167: 57560.86408 | Y167: 57564.92696 | Z167: 57577.20282 | AA167: 57583.02478 | AB167: 57580.28641 | AC167: 57579.61372 | AD167: 57577.10354 | AE167: 57573.23401 | AF167: 57569.79867 | AG167: 57565.90653 | AH167: 57561.81924 | AI167: 57557.81125 | AJ167: 57553.69928 | AK167: 57549.56374 | AL167: 57545.44055 | AM167: 57541.29524 | AN167: 57537.14811 | AO167: 57533.00245 | AP167: 57528.85234 | AQ167: 57524.70238
A168: Colfax | B168: 46272 | C168: 50719 | D168: 50273 | E168: 44551 | F168: 45313 | G168: 44706 | H168: 44821 | I168: 46563 | J168: 52000 | K168: 57039 | L168: 54935.69047 | M168: 53909.23702 | N168: 53562.83009 | O168: 53367.76182 | P168: 53259.46387 | Q168: 53203.21455 | R168: 53158.62185 | S168: 53131.97459 | T168: 53114.11561 | U168: 53098.51067 | V168: 53092.04959 | W168: 53086.50787 | X168: 53081.74845 | Y168: 53078.7029 | Z168: 53075.70817 | AA168: 53072.94018 | AB168: 53070.48001 | AC168: 53068.01131 | AD168: 53065.60145 | AE168: 53063.24431 | AF168: 53060.88339 | AG168: 53058.53658 | AH168: 53056.19831 | AI168: 53053.85919 | AJ168: 53051.52325 | AK168: 53049.18859 | AL168: 53046.85381 | AM168: 53044.5197 | AN168: 53042.18577 | AO168: 53039.85183 | AP168: 53037.51803 | AQ168: 53035.18425
A169: College Springs | B169: 31667 | C169: 30625 | D169: 31250 | E169: 30972 | F169: 31806 | G169: 31786 | H169: 28333 | I169: 33750 | J169: 36136 | K169: 36250 | L169: 34211.37876 | M169: 33006.87973 | N169: 32297.89358 | O169: 31713.12999 | P169: 31299.49278 | Q169: 30970.13166 | R169: 30664.71193 | S169: 30393.71074 | T169: 30136.67575 | U169: 29884.53936 | V169: 29842.93053 | W169: 29784.30833 | X169: 29738.34666 | Y169: 29730.51647 | Z169: 29716.4438 | AA169: 29707.20832 | AB169: 29704.48683 | AC169: 29700.19127 | AD169: 29697.28007 | AE169: 29695.40446 | AF169: 29693.19728 | AG169: 29691.33521 | AH169: 29689.62204 | AI169: 29687.84815 | AJ169: 29686.15297 | AK169: 29684.47582 | AL169: 29682.78917 | AM169: 29681.11929 | AN169: 29679.45081 | AO169: 29677.78119 | AP169: 29676.11494 | AQ169: 29674.44859
A170: Collins | B170: 44643 | C170: 53750 | D170: 45375 | E170: 58250 | F170: 45938 | G170: 55000 | H170: 57917 | I170: 53750 | J170: 53750 | K170: 55500 | L170: 54258.65193 | M170: 53382.7249 | N170: 52685.74875 | O170: 52256.43991 | P170: 51880.09835 | Q170: 51545.73526 | R170: 51260.99001 | S170: 50983.66975 | T170: 50716.03677 | U170: 50457.30625 | V170: 50412.03776 | W170: 50348.85479 | X170: 50299.32212 | Y170: 50288.3436 | Z170: 50270.95836 | AA170: 50258.63489 | AB170: 50252.87687 | AC170: 50245.5194 | AD170: 50239.59398 | AE170: 50234.70825 | AF170: 50229.48799 | AG170: 50224.62242 | AH170: 50219.9055 | AI170: 50215.12776 | AJ170: 50210.43056 | AK170: 50205.75116 | AL170: 50201.06236 | AM170: 50196.39065 | AN170: 50191.72028 | AO170: 50187.0488 | AP170: 50182.38075 | AQ170: 50177.71258
A171: Colo | B171: 47083 | C171: 50395 | D171: 48088 | E171: 46534 | F171: 46429 | G171: 49688 | H171: 60982 | I171: 60875 | J171: 62917 | K171: 72813 | L171: 66485.21218 | M171: 62854.56714 | N171: 60854.4666 | O171: 59665.12509 | P171: 58991.79053 | Q171: 58619.55008 | R171: 58398.23682 | S171: 58275.51809 | T171: 58208.14429 | U171: 58169.05504 | V171: 58137.89473 | W171: 58117.89775 | X171: 58102.61969 | Y171: 58088.94377 | Z171: 58077.47189 | AA171: 58066.76842 | AB171: 58056.40371 | AC171: 58046.46418 | AD171: 58036.64725 | AE171: 58026.90376 | AF171: 58017.24029 | AG171: 58007.59616 | AH171: 57997.96806 | AI171: 57988.35463 | AJ171: 57978.74426 | AK171: 57969.13737 | AL171: 57959.5331 | AM171: 57949.92933 | AN171: 57940.3263 | AO171: 57930.72372 | AP171: 57921.12123 | AQ171: 57911.5189
A172: Columbus City | B172: 34167 | C172: 37917 | D172: 36250 | E172: 47083 | F172: 56042 | G172: 56103 | H172: 60375 | I172: 59327 | J172: 54375 | K172: 51354 | L172: 51942.60125 | M172: 52218.0712 | N172: 52347.60408 | O172: 52311.18005 | P172: 52223.72672 | Q172: 52105.29504 | R172: 51955.69391 | S172: 51797.82109 | T172: 51633.32531 | U172: 51463.11458 | V172: 51438.9234 | W172: 51399.38384 | X172: 51367.22334 | Y172: 51361.47252 | Z172: 51350.65158 | AA172: 51342.98649 | AB172: 51339.81545 | AC172: 51335.40417 | AD172: 51331.92797 | AE172: 51329.16072 | AF172: 51326.13484 | AG172: 51323.34581 | AH172: 51320.65714 | AI172: 51317.92105 | AJ172: 51315.23943 | AK172: 51312.56951 | AL172: 51309.89206 | AM172: 51307.22628 | AN172: 51304.56126 | AO172: 51301.89529 | AP172: 51299.23168 | AQ172: 51296.56794
A173: Columbus Junction | B173: 48450 | C173: 48929 | D173: 45966 | E173: 44671 | F173: 43750 | G173: 49167 | H173: 49213 | I173: 50987 | J173: 46528 | K173: 47151 | L173: 48353.87445 | M173: 49327.70861 | N173: 50044.15776 | O173: 50538.27394 | P173: 50997.37288 | Q173: 51400.01723 | R173: 51763.92056 | S173: 52122.09746 | T173: 52468.18861 | U173: 52807.75994 | V173: 52853.36561 | W173: 52924.15705 | X173: 52977.1961 | Y173: 52977.06677 | Z173: 52985.91588 | AA173: 52987.97541 | AB173: 52980.96964 | AC173: 52976.20714 | AD173: 52969.50208 | AE173: 52961.35985 | AF173: 52953.68798 | AG173: 52945.53212 | AH173: 52937.17058 | AI173: 52928.89492 | AJ173: 52920.50897 | AK173: 52912.09835 | AL173: 52903.70115 | AM173: 52895.28045 | AN173: 52886.85792 | AO173: 52878.43699 | AP173: 52870.01135 | AQ173: 52861.58587
A174: Colwell | B174: 40000 | C174: 38542 | D174: 42250 | E174: 41667 | F174: 40000 | G174: 46250 | H174: 66250 | I174: 57917 | J174: 59286 | K174: 61042 | L174: 56488.12974 | M174: 53826.39176 | N174: 52233.52517 | O174: 51322.42334 | P174: 50759.02543 | Q174: 50399.33275 | R174: 50167.09185 | S174: 49998.8911 | T174: 49869.60379 | U174: 49764.01794 | V174: 49735.28176 | W174: 49707.83662 | X174: 49688.48225 | Y174: 49683.07954 | Z174: 49676.99225 | AA174: 49673.18306 | AB174: 49671.78601 | AC174: 49670.13975 | AD174: 49669.0674 | AE174: 49668.38878 | AF174: 49667.65297 | AG174: 49667.05094 | AH174: 49666.50859 | AI174: 49665.95611 | AJ174: 49665.43298 | AK174: 49664.91796 | AL174: 49664.40165 | AM174: 49663.89145 | AN174: 49663.38216 | AO174: 49662.87283 | AP174: 49662.36471 | AQ174: 49661.85665
A175: Conesville | B175: 50938 | C175: 57344 | D175: 54250 | E175: 48750 | F175: 45556 | G175: 42692 | H175: 38125 | I175: 40417 | J175: 39306 | K175: 38977 | L175: 42320.64307 | M175: 44595.27835 | N175: 46268.23079 | O175: 47571.90311 | P175: 48677.73337 | Q175: 49669.79164 | R175: 50592.6832 | S175: 51478.92168 | T175: 52343.60721 | U175: 53195.38009 | V175: 53324.42769 | W175: 53517.10135 | X175: 53666.56304 | Y175: 53685.34938 | Z175: 53726.55177 | AA175: 53751.1139 | AB175: 53753.408 | AC175: 53761.2832 | AD175: 53764.38719 | AE175: 53763.96426 | AF175: 53764.70991 | AG175: 53764.26569 | AH175: 53763.31761 | AI175: 53762.58284 | AJ175: 53761.57679 | AK175: 53760.51056 | AL175: 53759.47766 | AM175: 53758.38698 | AN175: 53757.2919 | AO175: 53756.20081 | AP175: 53755.09812 | AQ175: 53753.99587
A176: Conrad | B176: 49583 | C176: 49015 | D176: 49234 | E176: 49375 | F176: 47969 | G176: 45313 | H176: 44063 | I176: 44191 | J176: 45000 | K176: 49107 | L176: 49086.56082 | M176: 49390.23966 | N176: 49681.7286 | O176: 49913.85754 | P176: 50212.82272 | Q176: 50500.28922 | R176: 50780.73555 | S176: 51028.09489 | T176: 51162.1872 | U176: 51233.25769 | V176: 51275.60648 | W176: 51296.04374 | X176: 51305.15523 | Y176: 51308.80786 | Z176: 51308.25409 | AA176: 51305.67607 | AB176: 51302.04639 | AC176: 51297.61676 | AD176: 51292.82623 | AE176: 51287.83085 | AF176: 51282.68496 | AG176: 51277.47463 | AH176: 51272.2241 | AI176: 51266.94558 | AJ176: 51261.65548 | AK176: 51256.35747 | AL176: 51251.05431 | AM176: 51245.74905 | AN176: 51240.44223 | AO176: 51235.13448 | AP176: 51229.82634 | AQ176: 51224.5179
A177: Conway | B177: 25625 | C177: 26000 | D177: 33438 | E177: 36563 | F177: 45000 | G177: 35625 | H177: 36250 | I177: 37917 | J177: 41875 | K177: 41250 | L177: 40939.78193 | M177: 40649.35712 | N177: 40792.47759 | O177: 41203.72857 | P177: 41614.22847 | Q177: 41971.68528 | R177: 42207.27314 | S177: 42349.56075 | T177: 42458.41301 | U177: 42542.70415 | V177: 42566.94388 | W177: 42589.30711 | X177: 42604.27827 | Y177: 42608.4069 | Z177: 42612.84796 | AA177: 42615.32878 | AB177: 42615.94241 | AC177: 42616.69801 | AD177: 42616.97665 | AE177: 42616.95116 | AF177: 42616.95859 | AG177: 42616.85733 | AH177: 42616.70994 | AI177: 42616.56796 | AJ177: 42616.40254 | AK177: 42616.23079 | AL177: 42616.05954 | AM177: 42615.88348 | AN177: 42615.70668 | AO177: 42615.52982 | AP177: 42615.35202 | AQ177: 42615.17416
A178: Coon Rapids | B178: 39783 | C178: 42500 | D178: 45208 | E178: 41979 | F178: 43309 | G178: 44674 | H178: 44327 | I178: 43500 | J178: 51597 | K178: 49464 | L178: 48568.07819 | M178: 48155.66208 | N178: 47965.67594 | O178: 47857.24598 | P178: 47843.99363 | Q178: 47868.0748 | R178: 47908.75117 | S178: 47967.80194 | T178: 48033.03166 | U178: 48101.72459 | V178: 48099.47638 | W178: 48105.28263 | X178: 48107.57831 | Y178: 48097.06497 | Z178: 48089.13037 | AA178: 48079.66687 | AB178: 48068.02928 | AC178: 48057.0156 | AD178: 48045.54687 | AE178: 48033.73658 | AF178: 48022.05571 | AG178: 48010.2594 | AH178: 47998.4151 | AI178: 47986.59446 | AJ178: 47974.74727 | AK178: 47962.89458 | AL178: 47951.04565 | AM178: 47939.19103 | AN178: 47927.33608 | AO178: 47915.4816 | AP178: 47903.62598 | AQ178: 47891.77043
A179: Coppock | B179: 68125 | C179: 70833 | D179: 33750 | E179: 40625 | F179: 32500 | G179: 29531 | H179: 28750 | I179: 26042 | J179: 35000 | K179: 29375 | L179: 29708.39898 | M179: 30107.876 | N179: 30545.15527 | O179: 31004.06064 | P179: 31509.11994 | Q179: 31830.09101 | R179: 32013.77088 | S179: 32118.90854 | T179: 32179.11338 | U179: 32213.61283 | V179: 32233.40662 | W179: 32244.78753 | X179: 32251.35555 | Y179: 32255.17018 | Z179: 32257.40965 | AA179: 32258.748 | AB179: 32259.57081 | AC179: 32260.09871 | AD179: 32260.45789 | AE179: 32260.72054 | AF179: 32260.92797 | AG179: 32261.10382 | AH179: 32261.26159 | AI179: 32261.40902 | AJ179: 32261.55054 | AK179: 32261.68868 | AL179: 32261.82488 | AM179: 32261.95997 | AN179: 32262.09443 | AO179: 32262.22852 | AP179: 32262.36241 | AQ179: 32262.49618
A180: Coralville | B180: 51120 | C180: 53273 | D180: 56635 | E180: 56862 | F180: 59822 | G180: 58744 | H180: 60115 | I180: 57990 | J180: 65387 | K180: 60321 | L180: 60512.20581 | M180: 60849.9639 | N180: 61196.76652 | O180: 61576.72396 | P180: 61981.92698 | Q180: 62388.06028 | R180: 62801.64127 | S180: 63219.37676 | T180: 63637.25461 | U180: 64056.73889 | V180: 64538.38479 | W180: 65014.25567 | X180: 65493.96638 | Y180: 65984.89029 | Z180: 66473.83691 | AA180: 66964.24164 | AB180: 67456.55174 | AC180: 67948.37463 | AD180: 68440.61323 | AE180: 68933.15244 | AF180: 69425.59029 | AG180: 69918.13145 | AH180: 70410.71529 | AI180: 70903.28072 | AJ180: 71395.86965 | AK180: 71888.46362 | AL180: 72381.05472 | AM180: 72873.65082 | AN180: 73366.24727 | AO180: 73858.84338 | AP180: 74351.44049 | AQ180: 74844.03755
A181: Corning | B181: 31042 | C181: 33542 | D181: 36071 | E181: 40469 | F181: 41637 | G181: 41849 | H181: 44231 | I181: 44167 | J181: 45341 | K181: 47330 | L181: 46445.44615 | M181: 46042.86251 | N181: 45835.878 | O181: 45821.12941 | P181: 45889.50793 | Q181: 45996.56212 | R181: 46140.61152 | S181: 46298.87239 | T181: 46464.94224 | U181: 46638.01125 | V181: 46629.66777 | W181: 46640.3081 | X181: 46641.76954 | Y181: 46610.41698 | Z181: 46585.34704 | AA181: 46556.35558 | AB181: 46521.77948 | AC181: 46488.7412 | AD181: 46454.54127 | AE181: 46419.46015 | AF181: 46384.69981 | AG181: 46349.64526 | AH181: 46314.46592 | AI181: 46279.34541 | AJ181: 46244.15723 | AK181: 46208.95448 | AL181: 46173.76108 | AM181: 46138.55319 | AN181: 46103.34435 | AO181: 46068.13668 | AP181: 46032.92608 | AQ181: 45997.71564
A182: Correctionville | B182: 35625 | C182: 36000 | D182: 36875 | E182: 36779 | F182: 38466 | G182: 40119 | H182: 39688 | I182: 41181 | J182: 42063 | K182: 44500 | L182: 43621.01985 | M182: 43383.27511 | N182: 43440.11794 | O182: 43596.3722 | P182: 43879.66119 | Q182: 44211.88875 | R182: 44564.54973 | S182: 44941.85479 | T182: 45327.14327 | U182: 45716.75752 | V182: 45767.438 | W182: 45851.90572 | X182: 45917.71468 | Y182: 45922.27916 | Z182: 45938.18262 | AA182: 45946.51229 | AB182: 45944.42421 | AC182: 45945.11977 | AD182: 45943.60712 | AE182: 45940.45048 | AF182: 45937.87405 | AG182: 45934.74264 | AH182: 45931.3781 | AI182: 45928.11959 | AJ182: 45924.73401 | AK182: 45921.32109 | AL182: 45917.92486 | AM182: 45914.50152 | AN182: 45911.07632 | AO182: 45907.65318 | AP182: 45904.22459 | AQ182: 45900.79626
A183: Corydon | B183: 30515 | C183: 32039 | D183: 35909 | E183: 36875 | F183: 39833 | G183: 43646 | H183: 45000 | I183: 44063 | J183: 50043 | K183: 48229 | L183: 47047.13096 | M183: 46450.60451 | N183: 46245.12869 | O183: 46238.94346 | P183: 46344.32341 | Q183: 46523.29995 | R183: 46738.68075 | S183: 46975.4301 | T183: 47225.94233 | U183: 47483.12185 | V183: 47519.84038 | W183: 47580.35543 | X183: 47629.29657 | Y183: 47638.43517 | Z183: 47655.32003 | AA183: 47667.35238 | AB183: 47672.62581 | AC183: 47679.78248 | AD183: 47685.51088 | AE183: 47690.17597 | AF183: 47695.23212 | AG183: 47699.92781 | AH183: 47704.47363 | AI183: 47709.09087 | AJ183: 47713.62542 | AK183: 47718.14264 | AL183: 47722.67114 | AM183: 47727.18198 | AN183: 47731.69173 | AO183: 47736.20288 | AP183: 47740.71047 | AQ183: 47745.21826
A184: Cotter | B184: 61563 | C184: 63750 | D184: 67083 | E184: 65833 | F184: 63750 | G184: 55500 | H184: 41875 | I184: 65417 | J184: 66250 | K184: 77083 | L184: 73494.0073 | M184: 71463.90369 | N184: 70325.61699 | O184: 69697.52528 | P184: 69361.30842 | Q184: 69192.06875 | R184: 69118.35421 | S184: 69099.28816 | T184: 69111.48568 | U184: 69141.56861 | V184: 69135.36876 | W184: 69139.42191 | X184: 69144.17235 | Y184: 69142.43062 | Z184: 69143.29163 | AA184: 69143.72745 | AB184: 69143.09053 | AC184: 69143.03098 | AD184: 69142.78418 | AE184: 69142.37828 | AF184: 69142.08853 | AG184: 69141.74443 | AH184: 69141.38072 | AI184: 69141.0384 | AJ184: 69140.68275 | AK184: 69140.32565 | AL184: 69139.97213 | AM184: 69139.61566 | AN184: 69139.25936 | AO184: 69138.90358 | AP184: 69138.5472 | AQ184: 69138.19094
A185: Coulter | B185: 36688 | C185: 35078 | D185: 35625 | E185: 35341 | F185: 45000 | G185: 51250 | H185: 49643 | I185: 48750 | J185: 48750 | K185: 44750 | L185: 48289.20314 | M185: 50559.14224 | N185: 51938.32167 | O185: 52697.08666 | P185: 53185.31802 | Q185: 53499.45854 | R185: 53698.75404 | S185: 53848.95618 | T185: 53965.08433 | U185: 54060.17564 | V185: 54082.46269 | W185: 54104.127 | X185: 54118.33986 | Y185: 54119.34415 | Z185: 54121.1209 | AA185: 54120.76887 | AB185: 54118.1365 | AC185: 54115.76481 | AD185: 54112.85293 | AE185: 54109.56982 | AF185: 54106.34557 | AG185: 54102.9949 | AH185: 54099.58823 | AI185: 54096.19201 | AJ185: 54092.76799 | AK185: 54089.33643 | AL185: 54085.90624 | AM185: 54082.47026 | AN185: 54079.03345 | AO185: 54075.5967 | AP185: 54072.1588 | AQ185: 54068.72086
A186: Council Bluffs | B186: 42333 | C186: 42844 | D186: 43388 | E186: 44543 | F186: 45204 | G186: 45551 | H186: 47097 | I186: 49750 | J186: 51563 | K186: 53524 | L186: 51533.3633 | M186: 50428.76431 | N186: 49825.49412 | O186: 49488.35188 | P186: 49319.09387 | Q186: 49242.34716 | R186: 49215.66777 | S186: 49220.71339 | T186: 49242.8059 | U186: 49274.35826 | V186: 49261.68858 | W186: 49256.90685 | X186: 49251.05786 | Y186: 49237.25595 | Z186: 49225.65915 | AA186: 49213.26808 | AB186: 49199.54152 | AC186: 49186.3236 | AD186: 49172.84193 | AE186: 49159.15498 | AF186: 49145.57177 | AG186: 49131.91859 | AH186: 49118.23786 | AI186: 49104.57616 | AJ186: 49090.89799 | AK186: 49077.21704 | AL186: 49063.53919 | AM186: 49049.85777 | AN186: 49036.17631 | AO186: 49022.49527 | AP186: 49008.81351 | AQ186: 48995.13184
A187: Craig | B187: 57813 | C187: 28750 | D187: 61250 | E187: 54688 | F187: 56250 | G187: 78125 | H187: 83196.37143 | I187: 89264.23265 | J187: 90000 | K187: 96293.67401 | L187: 87930.05274 | M187: 83129.28559 | N187: 80650.53947 | O187: 79462.20574 | P187: 78736.2477 | Q187: 78346.4184 | R187: 78149.77543 | S187: 78039.18647 | T187: 77993.84031 | U187: 77983.29849 | V187: 77961.31729 | W187: 77954.53211 | X187: 77952.39693 | Y187: 77948.37079 | Z187: 77947.64476 | AA187: 77947.40246 | AB187: 77946.91241 | AC187: 77947.09834 | AD187: 77947.30068 | AE187: 77947.48671 | AF187: 77947.80398 | AG187: 77948.11118 | AH187: 77948.42253 | AI187: 77948.75803 | AJ187: 77949.08953 | AK187: 77949.42335 | AL187: 77949.76137 | AM187: 77950.09834 | AN187: 77950.43605 | AO187: 77950.77444 | AP187: 77951.11261 | AQ187: 77951.45097
A188: Crawfordsville | B188: 36429 | C188: 40000 | D188: 43438 | E188: 50833 | F188: 40000 | G188: 41719 | H188: 50000 | I188: 43214 | J188: 47188 | K188: 56406 | L188: 54118.10122 | M188: 52962.85448 | N188: 52489.36185 | O188: 52250.41615 | P188: 52248.29937 | Q188: 52369.64828 | R188: 52535.4277 | S188: 52748.10023 | T188: 52982.01699 | U188: 53224.65064 | V188: 53253.9104 | W188: 53307.82151 | X188: 53350.8093 | Y188: 53355.32556 | Z188: 53367.65648 | AA188: 53375.31645 | AB188: 53376.45742 | AC188: 53379.48072 | AD188: 53381.12197 | AE188: 53381.74126 | AF188: 53382.74974 | AG188: 53383.40875 | AH188: 53383.92463 | AI188: 53384.51148 | AJ188: 53385.01809 | AK188: 53385.5084 | AL188: 53386.00994 | AM188: 53386.49433 | AN188: 53386.97777 | AO188: 53387.46262 | AP188: 53387.94402 | AQ188: 53388.42563
A189: Crescent | B189: 78661 | C189: 81667 | D189: 80375 | E189: 81000 | F189: 80089 | G189: 81731 | H189: 80000 | I189: 81875 | J189: 83750 | K189: 83636 | L189: 83910.93585 | M189: 83971.92044 | N189: 84125.22009 | O189: 84276.80625 | P189: 84392.1914 | Q189: 84528.52218 | R189: 84660.80544 | S189: 84787.57474 | T189: 84918.66527 | U189: 85048.31027 | V189: 85066.3393 | W189: 85095.67972 | X189: 85118.31076 | Y189: 85120.83536 | Z189: 85127.09627 | AA189: 85130.75809 | AB189: 85131.0111 | AC189: 85132.17411 | AD189: 85132.5916 | AE189: 85132.4733 | AF189: 85132.54337 | AG189: 85132.42772 | AH189: 85132.2365 | AI189: 85132.07944 | AJ189: 85131.88009 | AK189: 85131.67198 | AL189: 85131.46917 | AM189: 85131.25738 | AN189: 85131.04502 | AO189: 85130.8333 | AP189: 85130.61977 | AQ189: 85130.40634
A190: Cresco | B190: 40341 | C190: 39327 | D190: 39167 | E190: 41773 | F190: 45656 | G190: 47426 | H190: 44318 | I190: 45929 | J190: 44808 | K190: 50000 | L190: 48484.35388 | M190: 47710.56284 | N190: 47368.27038 | O190: 47232.54105 | P190: 47239.479 | Q190: 47325.13455 | R190: 47449.59151 | S190: 47601.3674 | T190: 47767.43512 | U190: 47940.86319 | V190: 47940.40449 | W190: 47959.4714 | X190: 47969.73872 | Y190: 47948.61732 | Z190: 47933.76528 | AA190: 47915.1338 | AB190: 47891.17539 | AC190: 47868.73473 | AD190: 47845.1738 | AE190: 47820.77595 | AF190: 47796.69285 | AG190: 47772.32613 | AH190: 47747.84176 | AI190: 47723.41491 | AJ190: 47698.92288 | AK190: 47674.41734 | AL190: 47649.92092 | AM190: 47625.41056 | AN190: 47600.89938 | AO190: 47576.38935 | AP190: 47551.87651 | AQ190: 47527.36383
A191: Creston | B191: 35498 | C191: 35088 | D191: 35308 | E191: 38482 | F191: 40551 | G191: 40782 | H191: 43137 | I191: 42198 | J191: 43432 | K191: 43693 | L191: 42615.85404 | M191: 42086.82911 | N191: 41845.18167 | O191: 41714.68022 | P191: 41692.00068 | Q191: 41719.2659 | R191: 41768.18379 | S191: 41838.01501 | T191: 41916.43297 | U191: 41999.17286 | V191: 41991.21127 | W191: 41993.67353 | X191: 41991.61525 | Y191: 41973.18916 | Z191: 41958.08169 | AA191: 41941.01172 | AB191: 41921.16558 | AC191: 41902.12055 | AD191: 41882.4921 | AE191: 41862.42793 | AF191: 41842.5297 | AG191: 41822.48359 | AH191: 41802.37634 | AI191: 41782.29941 | AJ191: 41762.18848 | AK191: 41742.07056 | AL191: 41721.95745 | AM191: 41701.83706 | AN191: 41681.71626 | AO191: 41661.59607 | AP191: 41641.47442 | AQ191: 41621.35285
A192: Cromwell | B192: 43438 | C192: 45000 | D192: 55000 | E192: 56250 | F192: 51250 | G192: 62500 | H192: 65794.57143 | I192: 53125 | J192: 45625 | K192: 46875 | L192: 49426.12468 | M192: 50626.96148 | N192: 51041.77784 | O192: 51064.89659 | P192: 50865.55848 | Q192: 50539.69583 | R192: 50146.95032 | S192: 49712.02897 | T192: 49253.75492 | U192: 48782.90857 | V192: 48722.48164 | W192: 48618.1791 | X192: 48535.35227 | Y192: 48526.65064 | Z192: 48503.60331 | AA192: 48489.57034 | AB192: 48488.13067 | AC192: 48483.19745 | AD192: 48480.91884 | AE192: 48480.62275 | AF192: 48479.60051 | AG192: 48479.24844 | AH192: 48479.17615 | AI192: 48478.97114 | AJ192: 48478.91992 | AK192: 48478.90112 | AL192: 48478.86134 | AM192: 48478.85444 | AN192: 48478.84959 | AO192: 48478.84213 | AP192: 48478.84129 | AQ192: 48478.84009
A193: Crystal Lake | B193: 34063 | C193: 34167 | D193: 34205 | E193: 35000 | F193: 34545 | G193: 34432 | H193: 34712 | I193: 35313 | J193: 37115 | K193: 41250 | L193: 38954.34787 | M193: 37563.82237 | N193: 36776.78253 | O193: 36266.89545 | P193: 35932.39934 | Q193: 35709.71514 | R193: 35537.7359 | S193: 35399.78037 | T193: 35282.36549 | U193: 35174.31209 | V193: 35150.03583 | W193: 35122.20266 | X193: 35100.51714 | Y193: 35094.05511 | Z193: 35085.77036 | AA193: 35079.56193 | AB193: 35075.97256 | AC193: 35071.88768 | AD193: 35068.37147 | AE193: 35065.2771 | AF193: 35062.07567 | AG193: 35059.01308 | AH193: 35056.01266 | AI193: 35052.99261 | AJ193: 35050.00388 | AK193: 35047.02311 | AL193: 35044.03934 | AM193: 35041.06221 | AN193: 35038.08583 | AO193: 35035.10912 | AP193: 35032.13375 | AQ193: 35029.15838
A194: Cumberland | B194: 34688 | C194: 33500 | D194: 35179 | E194: 31250 | F194: 32708 | G194: 26953 | H194: 27000 | I194: 30893 | J194: 29792 | K194: 31667 | L194: 30921.5548 | M194: 30475.87997 | N194: 30336.93298 | O194: 30396.64062 | P194: 30509.46415 | Q194: 30685.302 | R194: 30895.61486 | S194: 31115.8242 | T194: 31348.77078 | U194: 31587.56244 | V194: 31615.98429 | W194: 31667.01312 | X194: 31706.90871 | Y194: 31708.82724 | Z194: 31718.11373 | AA194: 31722.75524 | AB194: 31720.94813 | AC194: 31720.93275 | AD194: 31719.55223 | AE194: 31717.15721 | AF194: 31715.13422 | AG194: 31712.76696 | AH194: 31710.25668 | AI194: 31707.81433 | AJ194: 31705.29303 | AK194: 31702.75519 | AL194: 31700.22807 | AM194: 31697.68408 | AN194: 31695.13906 | AO194: 31692.59536 | AP194: 31690.04828 | AQ194: 31687.50138
A195: Cumming | B195: 115250 | C195: 110208 | D195: 110156 | E195: 106250 | F195: 96250 | G195: 105000 | H195: 116875 | I195: 121458 | J195: 105000 | K195: 103750 | L195: 105108.8163 | M195: 105741.3072 | N195: 106206.5421 | O195: 106517.3032 | P195: 106696.1304 | Q195: 106848.1177 | R195: 106966.8459 | S195: 107062.2709 | T195: 107128.3775 | U195: 107177.4071 | V195: 107202.9028 | W195: 107224.2128 | X195: 107241.5313 | Y195: 107254.5383 | Z195: 107266.9632 | AA195: 107278.4747 | AB195: 107289.2225 | AC195: 107299.8876 | AD195: 107310.3497 | AE195: 107320.6813 | AF195: 107330.9998 | AG195: 107341.2745 | AH195: 107351.5278 | AI195: 107361.7786 | AJ195: 107372.0202 | AK195: 107382.2585 | AL195: 107392.4962 | AM195: 107402.732 | AN195: 107412.9674 | AO195: 107423.2025 | AP195: 107433.4374 | AQ195: 107443.6721
A196: Curlew | B196: 25833 | C196: 22188 | D196: 26875 | E196: 26875 | F196: 27250 | G196: 31429 | H196: 31875 | I196: 33750 | J196: 50625 | K196: 48750 | L196: 43377.75123 | M196: 40137.49155 | N196: 38387.8564 | O196: 37495.36511 | P196: 36999.99758 | Q196: 36792.5154 | R196: 36740.34195 | S196: 36763.04343 | T196: 36841.02499 | U196: 36946.99289 | V196: 36944.65044 | W196: 36964.43873 | X196: 36982.26569 | Y196: 36980.68744 | Z196: 36985.07054 | AA196: 36987.58323 | AB196: 36986.85884 | AC196: 36987.48754 | AD196: 36987.47601 | AE196: 36986.97277 | AF196: 36986.7433 | AG196: 36986.34221 | AH196: 36985.87674 | AI196: 36985.46133 | AJ196: 36985.00536 | AK196: 36984.54335 | AL196: 36984.08951 | AM196: 36983.62687 | AN196: 36983.16431 | AO196: 36982.70287 | AP196: 36982.23966 | AQ196: 36981.77668
A197: Cushing | B197: 34000 | C197: 31250 | D197: 32083 | E197: 36250 | F197: 34688 | G197: 36667 | H197: 41250 | I197: 43500 | J197: 42500 | K197: 43750 | L197: 41152.95422 | M197: 39647.75326 | N197: 38696.01204 | O197: 37908.87257 | P197: 37340.97149 | Q197: 36865.78665 | R197: 36423.75711 | S197: 36024.85497 | T197: 35641.14762 | U197: 35264.39822 | V197: 35204.96705 | W197: 35118.7553 | X197: 35051.65259 | Y197: 35041.96652 | Z197: 35022.66127 | AA197: 35010.66907 | AB197: 35008.47199 | AC197: 35003.86558 | AD197: 35001.35233 | AE197: 35000.39321 | AF197: 34998.92823 | AG197: 34997.98494 | AH197: 34997.26436 | AI197: 34996.45132 | AJ197: 34995.75721 | AK197: 34995.08988 | AL197: 34994.40811 | AM197: 34993.75166 | AN197: 34993.09724 | AO197: 34992.44108 | AP197: 34991.79001 | AQ197: 34991.13877
A198: Cylinder | B198: 48750 | C198: 60938 | D198: 61250 | E198: 51875 | F198: 54250 | G198: 54750 | H198: 60000 | I198: 61250 | J198: 65000 | K198: 68750 | L198: 66586.72918 | M198: 65481.60817 | N198: 64928.52892 | O198: 64566.01517 | P198: 64413.79049 | Q198: 64356.10581 | R198: 64335.92503 | S198: 64356.84141 | T198: 64393.70136 | U198: 64438.18013 | V198: 64438.88708 | W198: 64447.14054 | X198: 64454.02959 | Y198: 64453.06328 | Z198: 64454.21345 | AA198: 64454.52576 | AB198: 64453.52104 | AC198: 64453.00423 | AD198: 64452.21821 | AE198: 64451.22994 | AF198: 64450.34091 | AG198: 64449.38144 | AH198: 64448.39483 | AI198: 64447.42632 | AJ198: 64446.44136 | AK198: 64445.45366 | AL198: 64444.46888 | AM198: 64443.48055 | AN198: 64442.49218 | AO198: 64441.50419 | AP198: 64440.51549 | AQ198: 64439.52687
A199: Dakota City | B199: 44688 | C199: 49375 | D199: 51932 | E199: 48333 | F199: 49000 | G199: 42708 | H199: 44615 | I199: 44728 | J199: 47813 | K199: 53750 | L199: 52079.19897 | M199: 51241.64307 | N199: 50795.03003 | O199: 50481.66692 | P199: 50333.38384 | Q199: 50250.44157 | R199: 50194.66252 | S199: 50170.93432 | T199: 50157.94022 | U199: 50150.65102 | V199: 50142.53962 | W199: 50136.82709 | X199: 50131.93604 | Y199: 50126.92579 | Z199: 50122.42375 | AA199: 50118.02456 | AB199: 50113.61734 | AC199: 50109.31273 | AD199: 50105.01764 | AE199: 50100.72505 | AF199: 50096.45225 | AG199: 50092.17952 | AH199: 50087.90821 | AI199: 50083.64053 | AJ199: 50079.3726 | AK199: 50075.10514 | AL199: 50070.83831 | AM199: 50066.5714 | AN199: 50062.30461 | AO199: 50058.03793 | AP199: 50053.77123 | AQ199: 50049.50456
A200: Dallas Center | B200: 65197 | C200: 71771 | D200: 73438 | E200: 69000 | F200: 67768 | G200: 69265 | H200: 69474 | I200: 70772 | J200: 67885 | K200: 66875 | L200: 68114.48643 | M200: 68894.41846 | N200: 69350.10673 | O200: 69699.29321 | P200: 69955.33605 | Q200: 70153.23881 | R200: 70331.85504 | S200: 70491.73939 | T200: 70641.38157 | U200: 70787.41443 | V200: 70821.49032 | W200: 70864.02871 | X200: 70899.69816 | Y200: 70915.07433 | Z200: 70933.65353 | AA200: 70949.64469 | AB200: 70962.16473 | AC200: 70975.4995 | AD200: 70988.09687 | AE200: 71000.14122 | AF200: 71012.35781 | AG200: 71024.39091 | AH200: 71036.34418 | AI200: 71048.32903 | AJ200: 71060.27206 | AK200: 71072.20535 | AL200: 71084.14357 | AM200: 71096.07288 | AN200: 71108.00141 | AO200: 71119.93053 | AP200: 71131.85785 | AQ200: 71143.78523
... 733 more rows

Sheet Coefficients (hidden)
A1: Pop | B1: Ed_HS | C1: Ed_BACH | D1: MANU_ | E1: AR
A2: 0.6289161 | B2: 179.6114 | C2: 162.857 | D2: 12.35571 | E2: 0.5720849

Sheet Unit Specific Constants (hidden)
A1: Ackley | B1: 817.78
A2: Ackworth | B2: 4010.9
A3: Adair | B3: 179.5999
A4: Adel | B4: 912.37924
A5: Afton | B5: 761.3734
A6: Agency | B6: -1579.843
A7: Ainsworth | B7: 2414.671
A8: Akron | B8: 454.2645
A9: Albert City | B9: -84.7339
A10: Albia | B10: -1525.494
A11: Albion | B11: 4636.665
A12: Alburnett | B12: 10055.275
A13: Alden | B13: 3125.593
A14: Alexander | B14: -2981.8
A15: Algona | B15: -1917.73
A16: Alleman | B16: 13588.81
A17: Allerton | B17: -1655.659
A18: Allison | B18: 2885.346
A19: Alta | B19: 1534.5737
A20: Alta Vista | B20: 655.759
A21: Alton | B21: 6688.839
A22: Altoona | B22: -1676.583
A23: Alvord | B23: 6069.081
A24: Ames | B24: -47906.82
A25: Anamosa | B25: -3429.728
A26: Andover | B26: 5977.914
A27: Andrew | B27: 2272.128
A28: Anita | B28: -1790.051
A29: Ankeny | B29: -26525.75
A30: Anthon | B30: -679.326
A31: Aplington | B31: 3432.324
A32: Arcadia | B32: 4877.778
A33: Archer | B33: 743.91669
A34: Aredale | B34: -3070.179
A35: Arion | B35: 4158.643
A36: Arispe | B36: -2987.551
A37: Arlington | B37: 13.1217
A38: Armstrong | B38: 280.2196
A39: Arnolds Park | B39: -1251.258
A40: Arthur | B40: -1249.083
A41: Asbury | B41: 11814.31
A42: Ashton | B42: 2709.671
A43: Aspinwall | B43: 8649.166
A44: Atalissa | B44: 9758.313
A45: Atkins | B45: 14652.47
A46: Atlantic | B46: -6405.723
A47: Auburn | B47: 1022.073
A48: Audubon | B48: -2127.431
A49: Aurelia | B49: 5028.094
A50: Aurora | B50: -206.837
A51: Avoca | B51: 2278.726
A52: Ayrshire | B52: -7517.608
A53: Badger | B53: 5419.918
A54: Bagley | B54: -538.197
A55: Baldwin | B55: -2033.236
A56: Balltown | B56: 11014.99
A57: Bancroft | B57: -459.519
A58: Bankston | B58: 11307.97
A59: Barnes City | B59: 454.5808
A60: Barnum | B60: 2043.558
A61: Bassett | B61: 3898.955
A62: Batavia | B62: 795.54356
A63: Battle Creek | B63: 329.0377
A64: Baxter | B64: 3779.849
A65: Bayard | B65: 1551.8814
A66: Beacon | B66: -1071.879
A67: Beaman | B67: 4116.209
A68: Beaver | B68: 3438.626
A69: Bedford | B69: -1532.149
A70: Belle Plaine | B70: -1496.017
A71: Bellevue | B71: 715.7539
A72: Belmond | B72: -1438.805
A73: Bennett | B73: 4768.545
A74: Benton | B74: 5416.886
A75: Berkley | B75: -1785.467
A76: Bernard | B76: 1774.2424
A77: Bertram | B77: 17839.21
A78: Bettendorf | B78: -14451.9
A79: Bevington | B79: 9400.557
A80: Birmingham | B80: -808.661
A81: Blairsburg | B81: 3346.475
A82: Blairstown | B82: 5565.505
A83: Blakesburg | B83: -3901.546
A84: Blanchard | B84: 6714.671
A85: Blencoe | B85: 1176.9879
A86: Blockton | B86: -3651.273
A87: Bloomfield | B87: -2462.328
A88: Blue Grass | B88: 9896.012
A89: Bode | B89: 805.98096
A90: Bonaparte | B90: -2850.008
A91: Bondurant | B91: 6878.306
A92: Boone | B92: -6407.651
A93: Bouton | B93: 351.1819
A94: Boxholm | B94: -1349.471
A95: Boyden | B95: 6857.832
A96: Braddyville | B96: 1035.4079
A97: Bradgate | B97: 6685.894
A98: Brandon | B98: 1465.9349
A99: Brayton | B99: 2281.433
A100: Breda | B100: 5197.527
A101: Brighton | B101: 1615.6713
A102: Bristow | B102: -3251.823
A103: Britt | B103: -809.092
A104: Bronson | B104: 6984.317
A105: Brooklyn | B105: 328.2159
A106: Brunsville | B106: 9128.968
A107: Buck Grove | B107: 4470.235
A108: Buckeye | B108: 1697.2057
A109: Buffalo | B109: 2873.187
A110: Buffalo Center | B110: -609.111
A111: Burlington | B111: -17177.64
A112: Burt | B112: -788.676
A113: Bussey | B113: -3521.07
A114: Calamus | B114: 4797.08
A115: Callender | B115: 1624.0486
A116: Calmar | B116: 2333.699
A117: Calumet | B117: 3063.701
A118: Camanche | B118: -343.802
A119: Cambridge | B119: 5510.829
A120: Cantril | B120: 1425.2455
A121: Carbon | B121: -5366.638
A122: Carlisle | B122: 3201.142
A123: Carpenter | B123: 376.9636
A124: Carroll | B124: -6981.4
A125: Carson | B125: 2164.636
A126: Carter Lake | B126: 2007.357
A127: Cascade | B127: 1259.2326
A128: Casey | B128: -457.139
A129: Castalia | B129: 1001.3938
A130: Castana | B130: -1110.725
A131: Cedar Falls | B131: -25050.46
A132: Cedar Rapids | B132: -80049.95
A133: Center Point | B133: 10891.98
A134: Centerville | B134: -8006.461
A135: Central City | B135: 3822.356
A136: Centralia | B136: 3902.915
A137: Chariton | B137: -3909.949
A138: Charles City | B138: -6435.364
A139: Charlotte | B139: 3371.029
A140: Charter Oak | B140: 909.74768
A141: Chatsworth | B141: 8130.502
A142: Chelsea | B142: 5941.713
A143: Cherokee | B143: -3689.932
A144: Chester | B144: -1920.671
A145: Chillicothe | B145: 22.4868
A146: Churdan | B146: -1362.353
A147: Cincinnati | B147: 69.9561
A148: Clare | B148: 6248.419
A149: Clarence | B149: 520.641
A150: Clarinda | B150: -3101.586
A151: Clarion | B151: -3935.547
A152: Clarksville | B152: 414.4543
A153: Clayton | B153: 1143.1732
A154: Clear Lake | B154: -5465.095
A155: Clearfield | B155: 506.5209
A156: Cleghorn | B156: -203.047
A157: Clemons | B157: 7001.649
A158: Clermont | B158: 732.54458
A159: Clinton | B159: -16822.35
A160: Clio | B160: 4650.801
A161: Clive | B161: 4988.814
A162: Clutier | B162: 1286.0115
A163: Coburg | B163: 5900.365
A164: Coggon | B164: 5665.451
A165: Coin | B165: 212.139
A166: Colesburg | B166: 4967.885
A167: Colfax | B167: 501.3981
A168: College Springs | B168: -5233.058
A169: Collins | B169: 3667.397
A170: Colo | B170: 5217.82
A171: Columbus City | B171: 8856.586
A172: Columbus Junction | B172: 4432.825
A173: Colwell | B173: 3811.478
A174: Conesville | B174: 6064.181
A175: Conrad | B175: -735.765
A176: Conway | B176: -492.898
A177: Coon Rapids | B177: -728.827
A178: Coppock | B178: -4187.163
A179: Coralville | B179: -13358.93
A180: Corning | B180: -1073.206
A181: Correctionville | B181: -473.097
A182: Corydon | B182: -700.471
A183: Cotter | B183: 11103.78
A184: Coulter | B184: 2942.425
A185: Council Bluffs | B185: -36927.77
A186: Craig | B186: 12653.51
A187: Crawfordsville | B187: 2922.905
A188: Crescent | B188: 15083.56
A189: Cresco | B189: -1923.525
A190: Creston | B190: -6340.678
A191: Cromwell | B191: 3393.486
A192: Crystal Lake | B192: -2894.375
A193: Cumberland | B193: -4879.23
A194: Cumming | B194: 20283.49
A195: Curlew | B195: -1961.111
A196: Cushing | B196: -2380.183
A197: Cylinder | B197: 7093.991
A198: Dakota City | B198: 2649.794
A199: Dallas Center | B199: 6381.207
A200: Dana | B200: -3840.356
... 732 more rows

Sheet High School (hidden)
A1: GEOid | B1: GEOdisplay-label | C1: 2010 | D1: 2011 | E1: 2012 | F1: 2013 | G1: 2014 | H1: 2015 | I1: 2016 | J1: 2017 | K1: 2018 | L1: 2019 | M1: 2020 | N1: 2021 | O1: 2022 | P1: 2023 | Q1: 2024 | R1: 2025 | S1: 2026 | T1: 2027 | U1: 2028 | V1: 2029 | W1: 2030 | X1: 2031 | Y1: 2032 | Z1: 2033 | AA1: 2034 | AB1: 2035 | AC1: 2036 | AD1: 2037 | AE1: 2038 | AF1: 2039 | AG1: 2040 | AH1: 2041 | AI1: 2042 | AJ1: 2043 | AK1: 2044 | AL1: 2045 | AM1: 2046 | AN1: 2047 | AO1: 2048 | AP1: 2049 | AQ1: 2050 | AR1: 2051 | AS1: 2052 | AT1: 2053 | AU1: 2054 | AV1: 2055 | AW1: 2056 | AX1: 2057 | AY1: 2058 | AZ1: 2059 | BA1: 2060
A2: 1600000US1900190 | B2: Ackley city, Iowa | C2: 85 | D2: 85.5 | E2: 85.1 | F2: 86.1 | G2: 84.7 | H2: 87.1 | I2: 88.8 | J2: 88.98426323 | K2: 90.81779053 | L2: 91.98855508 | M2: 91.7438224 | N2: 92.53196086 | O2: 93.32009932 | P2: 94.10823778 | Q2: 94.89637624 | R2: 95.68451469 | S2: 96.47265315 | T2: 97.26079161 | U2: 98.04893007 | V2: 98.83706853 | W2: 98.04893007 | X2: 98.31164289 | Y2: 98.39921383 | Z2: 98.25326226 | AA2: 98.32137299 | AB2: 98.32461636 | AC2: 98.29975054 | AD2: 98.31524663 | AE2: 98.31320451 | AF2: 98.30940056 | AG2: 98.31261723 | AH2: 98.31174077 | AI2: 98.31125285 | AJ2: 98.31187028 | AK2: 98.3116213 | AL2: 98.31158148 | AM2: 98.31169102 | AN2: 98.31163127 | AO2: 98.31163459 | AP2: 98.31165229 | AQ2: 98.31163938 | AR2: 98.31164209 | AS2: 98.31164459 | AT2: 98.31164202 | AU2: 98.3116429 | AV2: 98.31164317 | AW2: 98.3116427 | AX2: 98.31164292 | AY2: 98.31164293 | AZ2: 98.31164285 | BA2: 98.3116429
A3: 1600000US1900235 | B3: Ackworth city, Iowa | C3: 86.1 | D3: 76.2 | E3: 85 | F3: 85.7 | G3: 75.8 | H3: 75.8 | I3: 85.5 | J3: 94.44444444 | K3: 93.10344828 | L3: 92.36111111 | M3: 92.37744572 | N3: 93.71863578 | O3: 95.05982584 | P3: 96.40101591 | Q3: 97.74220597 | R3: 99.08339603 | S3: 100 | T3: 100 | U3: 100 | V3: 100 | W3: 100 | X3: 100 | Y3: 100 | Z3: 100 | AA3: 100 | AB3: 100 | AC3: 100 | AD3: 100 | AE3: 100 | AF3: 100 | AG3: 100 | AH3: 100 | AI3: 100 | AJ3: 100 | AK3: 100 | AL3: 100 | AM3: 100 | AN3: 100 | AO3: 100 | AP3: 100 | AQ3: 100 | AR3: 100 | AS3: 100 | AT3: 100 | AU3: 100 | AV3: 100 | AW3: 100 | AX3: 100 | AY3: 100 | AZ3: 100 | BA3: 100
A4: 1600000US1900370 | B4: Adair city, Iowa | C4: 94.9 | D4: 91.2 | E4: 91.5 | F4: 90.2 | G4: 92.6 | H4: 95.1 | I4: 96.6 | J4: 94.24242424 | K4: 95.40412044 | L4: 96.03305785 | M4: 96.27924309 | N4: 96.73402178 | O4: 97.18880048 | P4: 97.64357918 | Q4: 98.09835787 | R4: 98.55313657 | S4: 99.00791527 | T4: 99.46269396 | U4: 99.91747266 | V4: 100 | W4: 99.79338888 | X4: 99.90362051 | Y4: 99.89900313 | Z4: 99.86533751 | AA4: 99.88932038 | AB4: 99.88455367 | AC4: 99.87973719 | AD4: 99.88453708 | AE4: 99.88294265 | AF4: 99.88240564 | AG4: 99.88329512 | AH4: 99.88288114 | AI4: 99.88286063 | AJ4: 99.8830123 | AK4: 99.88291802 | AL4: 99.88293032 | AM4: 99.88295354 | AN4: 99.88293396 | AO4: 99.88293927 | AP4: 99.88294226 | AQ4: 99.8829385 | AR4: 99.88294001 | AS4: 99.88294026 | AT4: 99.88293959 | AU4: 99.88293995 | AV4: 99.88293993 | AW4: 99.88293982 | AX4: 99.8829399 | AY4: 99.88293989 | AZ4: 99.88293987 | BA4: 99.88293989
A5: 1600000US1900505 | B5: Adel city, Iowa | C5: 93.1 | D5: 92.9 | E5: 94.7 | F5: 93.6 | G5: 91.1 | H5: 92.2 | I5: 93.7 | J5: 94.02730375 | K5: 95.45454545 | L5: 95.12867647 | M5: 94.73026674 | N5: 94.93739659 | O5: 95.14452644 | P5: 95.35165629 | Q5: 95.55878614 | R5: 95.76591599 | S5: 95.97304584 | T5: 96.18017569 | U5: 96.38730554 | V5: 96.59443539 | W5: 96.38730554 | X5: 96.45634882 | Y5: 96.47936325 | Z5: 96.44100587 | AA5: 96.45890598 | AB5: 96.45975837 | AC5: 96.45322341 | AD5: 96.45729592 | AE5: 96.45675923 | AF5: 96.45575952 | AG5: 96.45660489 | AH5: 96.45637454 | AI5: 96.45624632 | AJ5: 96.45640858 | AK5: 96.45634315 | AL5: 96.45633268 | AM5: 96.45636147 | AN5: 96.45634577 | AO5: 96.45634664 | AP5: 96.45635129 | AQ5: 96.4563479 | AR5: 96.45634861 | AS5: 96.45634927 | AT5: 96.45634859 | AU5: 96.45634882 | AV5: 96.4563489 | AW5: 96.45634877 | AX5: 96.45634883 | AY5: 96.45634883 | AZ5: 96.45634881 | BA5: 96.45634882
A6: 1600000US1900595 | B6: Afton city, Iowa | C6: 90.5 | D6: 87.5 | E6: 91.1 | F6: 85.4 | G6: 84.6 | H6: 88.1 | I6: 89.4 | J6: 87.63736264 | K6: 88.88888889 | L6: 89.02077151 | M6: 88.03456827 | N6: 88.00181663 | O6: 87.96906499 | P6: 87.93631334 | Q6: 87.9035617 | R6: 87.87081006 | S6: 87.83805842 | T6: 87.80530678 | U6: 87.77255513 | V6: 87.73980349 | W6: 87.77255513 | X6: 87.76163792 | Y6: 87.75799885 | Z6: 87.76406397 | AA6: 87.76123358 | AB6: 87.7610988 | AC6: 87.76213211 | AD6: 87.76148816 | AE6: 87.76157303 | AF6: 87.7617311 | AG6: 87.76159743 | AH6: 87.76163385 | AI6: 87.76165413 | AJ6: 87.76162847 | AK6: 87.76163882 | AL6: 87.76164047 | AM6: 87.76163592 | AN6: 87.7616384 | AO6: 87.76163826 | AP6: 87.76163753 | AQ6: 87.76163807 | AR6: 87.76163795 | AS6: 87.76163785 | AT6: 87.76163796 | AU6: 87.76163792 | AV6: 87.76163791 | AW6: 87.76163793 | AX6: 87.76163792 | AY6: 87.76163792 | AZ6: 87.76163792 | BA6: 87.76163792
A7: 1600000US1900640 | B7: Agency city, Iowa | C7: 90.2 | D7: 90.8 | E7: 91.7 | F7: 89.4 | G7: 87.9 | H7: 88.7 | I7: 86.8 | J7: 84.84251969 | K7: 86.25498008 | L7: 88.93203883 | M7: 85.73581414 | N7: 85.22360692 | O7: 84.7113997 | P7: 84.19919248 | Q7: 83.68698526 | R7: 83.17477804 | S7: 82.66257082 | T7: 82.15036359 | U7: 81.63815637 | V7: 81.12594915 | W7: 81.63815637 | X7: 81.46742063 | Y7: 81.41050872 | Z7: 81.50536191 | AA7: 81.46109709 | AB7: 81.45898924 | AC7: 81.47514941 | AD7: 81.46507858 | AE7: 81.46640574 | AF7: 81.46887791 | AG7: 81.46678741 | AH7: 81.46735702 | AI7: 81.46767411 | AJ7: 81.46727285 | AK7: 81.46743466 | AL7: 81.46746054 | AM7: 81.46738935 | AN7: 81.46742818 | AO7: 81.46742603 | AP7: 81.46741452 | AQ7: 81.46742291 | AR7: 81.46742115 | AS7: 81.46741953 | AT7: 81.4674212 | AU7: 81.46742063 | AV7: 81.46742045 | AW7: 81.46742076 | AX7: 81.46742061 | AY7: 81.46742061 | AZ7: 81.46742066 | BA7: 81.46742063
A8: 1600000US1900730 | B8: Ainsworth city, Iowa | C8: 84.4 | D8: 90.3 | E8: 89.6 | F8: 87.7 | G8: 83.4 | H8: 81.2 | I8: 82.7 | J8: 81.71428571 | K8: 79.78142077 | L8: 92.1875 | M8: 83.29261645 | N8: 82.92794295 | O8: 82.56326946 | P8: 82.19859597 | Q8: 81.83392248 | R8: 81.46924899 | S8: 81.1045755 | T8: 80.73990201 | U8: 80.37522851 | V8: 80.01055502 | W8: 80.37522851 | X8: 80.25367068 | Y8: 80.21315141 | Z8: 80.28068354 | AA8: 80.24916854 | AB8: 80.24766783 | AC8: 80.2591733 | AD8: 80.25200322 | AE8: 80.25294812 | AF8: 80.25470821 | AG8: 80.25321985 | AH8: 80.2536254 | AI8: 80.25385115 | AJ8: 80.25356547 | AK8: 80.25368067 | AL8: 80.2536991 | AM8: 80.25364841 | AN8: 80.25367606 | AO8: 80.25367452 | AP8: 80.25366633 | AQ8: 80.25367231 | AR8: 80.25367105 | AS8: 80.2536699 | AT8: 80.25367109 | AU8: 80.25367068 | AV8: 80.25367055 | AW8: 80.25367077 | AX8: 80.25367067 | AY8: 80.25367067 | AZ8: 80.2536707 | BA8: 80.25367068
A9: 1600000US1900775 | B9: Akron city, Iowa | C9: 90.1 | D9: 91 | E9: 90.2 | F9: 88.2 | G9: 87.4 | H9: 87.4 | I9: 86.5 | J9: 87.52260398 | K9: 90.02719855 | L9: 90.72790295 | M9: 88.25292176 | N9: 88.13385834 | O9: 88.01479492 | P9: 87.89573151 | Q9: 87.77666809 | R9: 87.65760467 | S9: 87.53854126 | T9: 87.41947784 | U9: 87.30041442 | V9: 87.18135101 | W9: 87.30041442 | X9: 87.26072662 | Y9: 87.24749735 | Z9: 87.26954613 | AA9: 87.2592567 | AB9: 87.25876673 | AC9: 87.26252318 | AD9: 87.2601822 | AE9: 87.2604907 | AF9: 87.26106536 | AG9: 87.26057942 | AH9: 87.26071183 | AI9: 87.26078554 | AJ9: 87.26069226 | AK9: 87.26072988 | AL9: 87.26073589 | AM9: 87.26071935 | AN9: 87.26072837 | AO9: 87.26072787 | AP9: 87.2607252 | AQ9: 87.26072715 | AR9: 87.26072674 | AS9: 87.26072636 | AT9: 87.26072675 | AU9: 87.26072662 | AV9: 87.26072657 | AW9: 87.26072665 | AX9: 87.26072661 | AY9: 87.26072661 | AZ9: 87.26072662 | BA9: 87.26072662
A10: 1600000US1900865 | B10: Albert City city, Iowa | C10: 88.7 | D10: 91.8 | E10: 92.9 | F10: 94.2 | G10: 92 | H10: 92.3 | I10: 90.9 | J10: 90.94650206 | K10: 90.94736842 | L10: 91.75704989 | M10: 91.71767665 | N10: 91.73087385 | O10: 91.74407105 | P10: 91.75726825 | Q10: 91.77046545 | R10: 91.78366265 | S10: 91.79685986 | T10: 91.81005706 | U10: 91.82325426 | V10: 91.83645146 | W10: 91.82325426 | X10: 91.82765333 | Y10: 91.82911968 | Z10: 91.82667575 | AA10: 91.82781625 | AB10: 91.82787056 | AC10: 91.82745419 | AD10: 91.82771367 | AE10: 91.82767947 | AF10: 91.82761578 | AG10: 91.82766964 | AH10: 91.82765496 | AI10: 91.82764679 | AJ10: 91.82765713 | AK10: 91.82765296 | AL10: 91.8276523 | AM10: 91.82765413 | AN10: 91.82765313 | AO10: 91.82765319 | AP10: 91.82765348 | AQ10: 91.82765327 | AR10: 91.82765331 | AS10: 91.82765335 | AT10: 91.82765331 | AU10: 91.82765333 | AV10: 91.82765333 | AW10: 91.82765332 | AX10: 91.82765333 | AY10: 91.82765333 | AZ10: 91.82765332 | BA10: 91.82765333
A11: 1600000US1900910 | B11: Albia city, Iowa | C11: 85.7 | D11: 84.4 | E11: 84.9 | F11: 83.4 | G11: 85.8 | H11: 86.8 | I11: 83.9 | J11: 86.25356125 | K11: 85.18911276 | L11: 85.05707368 | M11: 85.44015006 | N11: 85.49472738 | O11: 85.54930471 | P11: 85.60388203 | Q11: 85.65845936 | R11: 85.71303669 | S11: 85.76761401 | T11: 85.82219134 | U11: 85.87676866 | V11: 85.93134599 | W11: 85.87676866 | X11: 85.8949611 | Y11: 85.90102525 | Z11: 85.89091834 | AA11: 85.8956349 | AB11: 85.8958595 | AC11: 85.89413758 | AD11: 85.89521066 | AE11: 85.89506924 | AF11: 85.89480583 | AG11: 85.89502858 | AH11: 85.89496788 | AI11: 85.89493409 | AJ11: 85.89497685 | AK11: 85.89495961 | AL11: 85.89495685 | AM11: 85.89496444 | AN11: 85.8949603 | AO11: 85.89496053 | AP11: 85.89496175 | AQ11: 85.89496086 | AR11: 85.89496105 | AS11: 85.89496122 | AT11: 85.89496104 | AU11: 85.8949611 | AV11: 85.89496112 | AW11: 85.89496109 | AX11: 85.89496111 | AY11: 85.89496111 | AZ11: 85.8949611 | BA11: 85.8949611
A12: 1600000US1900955 | B12: Albion city, Iowa | C12: 81.8 | D12: 82.4 | E12: 85.5 | F12: 88.3 | G12: 91.1 | H12: 91.3 | I12: 87.1 | J12: 84.82905983 | K12: 80.87649402 | L12: 79.78947368 | M12: 84.11570344 | N12: 83.9004672 | O12: 83.68523096 | P12: 83.46999472 | Q12: 83.25475848 | R12: 83.03952224 | S12: 82.824286 | T12: 82.60904976 | U12: 82.39381352 | V12: 82.17857728 | W12: 82.39381352 | X12: 82.32206811 | Y12: 82.29815297 | Z12: 82.33801153 | AA12: 82.31941087 | AB12: 82.31852512 | AC12: 82.32531584 | AD12: 82.32108394 | AE12: 82.32164164 | AF12: 82.32268047 | AG12: 82.32180202 | AH12: 82.32204138 | AI12: 82.32217462 | AJ12: 82.32200601 | AK12: 82.322074 | AL12: 82.32208488 | AM12: 82.32205496 | AN12: 82.32207128 | AO12: 82.32207037 | AP12: 82.32206554 | AQ12: 82.32206906 | AR12: 82.32206832 | AS12: 82.32206764 | AT12: 82.32206834 | AU12: 82.3220681 | AV12: 82.32206803 | AW12: 82.32206816 | AX12: 82.3220681 | AY12: 82.3220681 | AZ12: 82.32206812 | BA12: 82.3220681
A13: 1600000US1901000 | B13: Alburnett city, Iowa | C13: 91.8 | D13: 93.2 | E13: 93.5 | F13: 92.9 | G13: 92.7 | H13: 95.8 | I13: 95.3 | J13: 95.96412556 | K13: 95.72072072 | L13: 97.53593429 | M13: 97.50504744 | N13: 98.06195096 | O13: 98.61885449 | P13: 99.17575801 | Q13: 99.73266154 | R13: 100 | S13: 100 | T13: 100 | U13: 100 | V13: 100 | W13: 100 | X13: 100 | Y13: 100 | Z13: 100 | AA13: 100 | AB13: 100 | AC13: 100 | AD13: 100 | AE13: 100 | AF13: 100 | AG13: 100 | AH13: 100 | AI13: 100 | AJ13: 100 | AK13: 100 | AL13: 100 | AM13: 100 | AN13: 100 | AO13: 100 | AP13: 100 | AQ13: 100 | AR13: 100 | AS13: 100 | AT13: 100 | AU13: 100 | AV13: 100 | AW13: 100 | AX13: 100 | AY13: 100 | AZ13: 100 | BA13: 100
A14: 1600000US1901045 | B14: Alden city, Iowa | C14: 88.4 | D14: 89.4 | E14: 89.1 | F14: 92.6 | G14: 86.7 | H14: 84.2 | I14: 88.5 | J14: 90.20217729 | K14: 89.45022288 | L14: 93.61702128 | M14: 90.48413008 | N14: 90.71452789 | O14: 90.9449257 | P14: 91.1753235 | Q14: 91.40572131 | R14: 91.63611912 | S14: 91.86651692 | T14: 92.09691473 | U14: 92.32731254 | V14: 92.55771035 | W14: 92.32731254 | X14: 92.40411181 | Y14: 92.42971156 | Z14: 92.3870453 | AA14: 92.40695622 | AB14: 92.40790436 | AC14: 92.4006353 | AD14: 92.4051653 | AE14: 92.40456832 | AF14: 92.4034563 | AG14: 92.40439664 | AH14: 92.40414042 | AI14: 92.40399779 | AJ14: 92.40417828 | AK14: 92.4041055 | AL14: 92.40409386 | AM14: 92.40412588 | AN14: 92.40410841 | AO14: 92.40410938 | AP14: 92.40411456 | AQ14: 92.40411078 | AR14: 92.40411157 | AS14: 92.4041123 | AT14: 92.40411155 | AU14: 92.40411181 | AV14: 92.40411189 | AW14: 92.40411175 | AX14: 92.40411182 | AY14: 92.40411182 | AZ14: 92.4041118 | BA14: 92.40411181
A15: 1600000US1901090 | B15: Alexander city, Iowa | C15: 81.7 | D15: 83.7 | E15: 82.9 | F15: 83.2 | G15: 80.4 | H15: 84.4 | I15: 83.1 | J15: 89.42307692 | K15: 91.34615385 | L15: 86.2745098 | M15: 89.01134238 | N15: 89.80533662 | O15: 90.59933087 | P15: 91.39332511 | Q15: 92.18731935 | R15: 92.98131359 | S15: 93.77530783 | T15: 94.56930207 | U15: 95.36329631 | V15: 96.15729055 | W15: 95.36329631 | X15: 95.62796106 | Y15: 95.71618264 | Z15: 95.56914667 | AA15: 95.63776346 | AB15: 95.64103092 | AC15: 95.61598035 | AD15: 95.63159158 | AE15: 95.62953428 | AF15: 95.62570207 | AG15: 95.62894264 | AH15: 95.62805967 | AI15: 95.62756813 | AJ15: 95.62819014 | AK15: 95.62793931 | AL15: 95.62789919 | AM15: 95.62800955 | AN15: 95.62794935 | AO15: 95.6279527 | AP15: 95.62797053 | AQ15: 95.62795753 | AR15: 95.62796025 | AS15: 95.62796277 | AT15: 95.62796018 | AU15: 95.62796107 | AV15: 95.62796134 | AW15: 95.62796087 | AX15: 95.62796109 | AY15: 95.6279611 | AZ15: 95.62796102 | BA15: 95.62796107
A16: 1600000US1901135 | B16: Algona city, Iowa | C16: 87.4 | D16: 89.8 | E16: 91.1 | F16: 92.5 | G16: 93.3 | H16: 94.4 | I16: 94.4 | J16: 94.50625869 | K16: 93.70661731 | L16: 91.64749195 | M16: 95.25620487 | N16: 95.79805361 | O16: 96.33990235 | P16: 96.88175109 | Q16: 97.42359983 | R16: 97.96544857 | S16: 98.50729731 | T16: 99.04914605 | U16: 99.59099479 | V16: 100 | W16: 99.54671361 | X16: 99.71256947 | Y16: 99.75309436 | Z16: 99.67079248 | AA16: 99.7121521 | AB16: 99.71201298 | AC16: 99.69831919 | AD16: 99.70749476 | AE16: 99.70594231 | AF16: 99.70391875 | AG16: 99.70578527 | AH16: 99.70521544 | AI16: 99.70497315 | AJ16: 99.70532462 | AK16: 99.70517107 | AL16: 99.70515628 | AM16: 99.70521733 | AN16: 99.70518156 | AO16: 99.70518506 | AP16: 99.70519465 | AQ16: 99.70518709 | AR16: 99.70518893 | AS16: 99.70519022 | AT16: 99.70518875 | AU16: 99.7051893 | AV16: 99.70518942 | AW16: 99.70518916 | AX16: 99.70518929 | AY16: 99.70518929 | AZ16: 99.70518925 | BA16: 99.70518928
A17: 1600000US1901180 | B17: Alleman city, Iowa | C17: 96.4 | D17: 97.5 | E17: 98.3 | F17: 97.6 | G17: 97.5 | H17: 96.9 | I17: 96.8 | J17: 97.74647887 | K17: 97.8125 | L17: 97.65395894 | M17: 97.67814461 | N17: 97.72484476 | O17: 97.77154491 | P17: 97.81824506 | Q17: 97.86494521 | R17: 97.91164536 | S17: 97.95834551 | T17: 98.00504567 | U17: 98.05174582 | V17: 98.09844597 | W17: 98.05174582 | X17: 98.06731253 | Y17: 98.07250144 | Z17: 98.06385326 | AA17: 98.06788908 | AB17: 98.06808126 | AC17: 98.06660787 | AD17: 98.06752607 | AE17: 98.06740506 | AF17: 98.06717967 | AG17: 98.06737027 | AH17: 98.06731833 | AI17: 98.06728942 | AJ17: 98.06732601 | AK17: 98.06731125 | AL17: 98.06730889 | AM17: 98.06731539 | AN17: 98.06731184 | AO17: 98.06731204 | AP17: 98.06731309 | AQ17: 98.06731233 | AR17: 98.06731249 | AS17: 98.06731263 | AT17: 98.06731248 | AU17: 98.06731253 | AV17: 98.06731255 | AW17: 98.06731252 | AX17: 98.06731254 | AY17: 98.06731254 | AZ17: 98.06731253 | BA17: 98.06731253
A18: 1600000US1901270 | B18: Allerton city, Iowa | C18: 90.3 | D18: 90.2 | E18: 89.2 | F18: 84 | G18: 89.8 | H18: 89.1 | I18: 89.7 | J18: 93.68131868 | K18: 96.72131148 | L18: 95.74468085 | M18: 95.29332781 | N18: 96.10216358 | O18: 96.91099935 | P18: 97.71983511 | Q18: 98.52867088 | R18: 99.33750664 | S18: 100 | T18: 100 | U18: 100 | V18: 100 | W18: 100 | X18: 100 | Y18: 100 | Z18: 100 | AA18: 100 | AB18: 100 | AC18: 100 | AD18: 100 | AE18: 100 | AF18: 100 | AG18: 100 | AH18: 100 | AI18: 100 | AJ18: 100 | AK18: 100 | AL18: 100 | AM18: 100 | AN18: 100 | AO18: 100 | AP18: 100 | AQ18: 100 | AR18: 100 | AS18: 100 | AT18: 100 | AU18: 100 | AV18: 100 | AW18: 100 | AX18: 100 | AY18: 100 | AZ18: 100 | BA18: 100
A19: 1600000US1901315 | B19: Allison city, Iowa | C19: 81.6 | D19: 87.8 | E19: 87.7 | F19: 89.5 | G19: 90.4 | H19: 94.1 | I19: 92.6 | J19: 91.95148842 | K19: 91.21779859 | L19: 90.69767442 | M19: 94.42539955 | N19: 95.27425471 | O19: 96.12310987 | P19: 96.97196504 | Q19: 97.8208202 | R19: 98.66967536 | S19: 99.51853053 | T19: 100 | U19: 100 | V19: 100 | W19: 100 | X19: 100 | Y19: 100 | Z19: 100 | AA19: 100 | AB19: 100 | AC19: 100 | AD19: 100 | AE19: 100 | AF19: 100 | AG19: 100 | AH19: 100 | AI19: 100 | AJ19: 100 | AK19: 100 | AL19: 100 | AM19: 100 | AN19: 100 | AO19: 100 | AP19: 100 | AQ19: 100 | AR19: 100 | AS19: 100 | AT19: 100 | AU19: 100 | AV19: 100 | AW19: 100 | AX19: 100 | AY19: 100 | AZ19: 100 | BA19: 100
A20: 1600000US1901495 | B20: Alta city, Iowa | C20: 85.6 | D20: 83.8 | E20: 84.5 | F20: 83.4 | G20: 88.7 | H20: 88.1 | I20: 88.8 | J20: 86.96202532 | K20: 86.97643979 | L20: 88.45346396 | M20: 89.05673893 | N20: 89.51629276 | O20: 89.97584658 | P20: 90.4354004 | Q20: 90.89495422 | R20: 91.35450805 | S20: 91.81406187 | T20: 92.27361569 | U20: 92.73316951 | V20: 93.19272334 | W20: 92.73316951 | X20: 92.88635412 | Y20: 92.93741566 | Z20: 92.8523131 | AA20: 92.89202763 | AB20: 92.89391879 | AC20: 92.87941984 | AD20: 92.88845542 | AE20: 92.88726468 | AF20: 92.88504665 | AG20: 92.88692225 | AH20: 92.88641119 | AI20: 92.8861267 | AJ20: 92.88648671 | AK20: 92.88634154 | AL20: 92.88631832 | AM20: 92.88638219 | AN20: 92.88634735 | AO20: 92.88634928 | AP20: 92.88635961 | AQ20: 92.88635208 | AR20: 92.88635366 | AS20: 92.88635511 | AT20: 92.88635362 | AU20: 92.88635413 | AV20: 92.88635429 | AW20: 92.88635401 | AX20: 92.88635414 | AY20: 92.88635415 | AZ20: 92.8863541 | BA20: 92.88635413
A21: 1600000US1901540 | B21: Alta Vista city, Iowa | C21: 86.3 | D21: 87.9 | E21: 87 | F21: 89.7 | G21: 92.6 | H21: 93.1 | I21: 92 | J21: 86.47540984 | K21: 89.06882591 | L21: 88.47926267 | M21: 90.34808966 | N21: 90.5454969 | O21: 90.74290414 | P21: 90.94031138 | Q21: 91.13771862 | R21: 91.33512586 | S21: 91.5325331 | T21: 91.72994034 | U21: 91.92734758 | V21: 92.12475482 | W21: 91.92734758 | X21: 91.99315 | Y21: 92.01508413 | Z21: 91.97852724 | AA21: 91.99558712 | AB21: 91.9963995 | AC21: 91.99017129 | AD21: 91.99405264 | AE21: 91.99354114 | AF21: 91.99258835 | AG21: 91.99339404 | AH21: 91.99317451 | AI21: 91.9930523 | AJ21: 91.99320695 | AK21: 91.99314459 | AL21: 91.99313462 | AM21: 91.99316205 | AN21: 91.99314709 | AO21: 91.99314792 | AP21: 91.99315235 | AQ21: 91.99314912 | AR21: 91.9931498 | AS21: 91.99315042 | AT21: 91.99314978 | AU21: 91.99315 | AV21: 91.99315007 | AW21: 91.99314995 | AX21: 91.99315 | AY21: 91.99315001 | AZ21: 91.99314999 | BA21: 91.99315
A22: 1600000US1901585 | B22: Alton city, Iowa | C22: 91.8 | D22: 91.4 | E22: 91.7 | F22: 90.4 | G22: 86.6 | H22: 88.8 | I22: 90.1 | J22: 89.96929376 | K22: 90 | L22: 93.40314136 | M22: 90.32640155 | N22: 90.30988483 | O22: 90.2933681 | P22: 90.27685138 | Q22: 90.26033466 | R22: 90.24381794 | S22: 90.22730122 | T22: 90.2107845 | U22: 90.19426778 | V22: 90.17775106 | W22: 90.19426778 | X22: 90.1887622 | Y22: 90.18692701 | Z22: 90.18998567 | AA22: 90.18855829 | AB22: 90.18849032 | AC22: 90.18901143 | AD22: 90.18868668 | AE22: 90.18872948 | AF22: 90.1888092 | AG22: 90.18874179 | AH22: 90.18876015 | AI22: 90.18877038 | AJ22: 90.18875744 | AK22: 90.18876266 | AL22: 90.18876349 | AM22: 90.1887612 | AN22: 90.18876245 | AO22: 90.18876238 | AP22: 90.18876201 | AQ22: 90.18876228 | AR22: 90.18876222 | AS22: 90.18876217 | AT22: 90.18876222 | AU22: 90.1887622 | AV22: 90.1887622 | AW22: 90.18876221 | AX22: 90.1887622 | AY22: 90.1887622 | AZ22: 90.18876221 | BA22: 90.1887622
A23: 1600000US1901630 | B23: Altoona city, Iowa | C23: 95.1 | D23: 96.3 | E23: 96.5 | F23: 95.4 | G23: 94.7 | H23: 94.9 | I23: 94.5 | J23: 93.75300336 | K23: 94.88459139 | L23: 95.53414392 | M23: 94.41598893 | N23: 94.28122803 | O23: 94.14646713 | P23: 94.01170623 | Q23: 93.87694533 | R23: 93.74218444 | S23: 93.60742354 | T23: 93.47266264 | U23: 93.33790174 | V23: 93.20314084 | W23: 93.33790174 | X23: 93.29298144 | Y23: 93.27800801 | Z23: 93.30296373 | AA23: 93.29131773 | AB23: 93.29076316 | AC23: 93.29501487 | AD23: 93.29236525 | AE23: 93.29271443 | AF23: 93.29336485 | AG23: 93.29281484 | AH23: 93.29296471 | AI23: 93.29304813 | AJ23: 93.29294256 | AK23: 93.29298513 | AL23: 93.29299194 | AM23: 93.29297321 | AN23: 93.29298343 | AO23: 93.29298286 | AP23: 93.29297983 | AQ23: 93.29298204 | AR23: 93.29298158 | AS23: 93.29298115 | AT23: 93.29298159 | AU23: 93.29298144 | AV23: 93.29298139 | AW23: 93.29298148 | AX23: 93.29298144 | AY23: 93.29298144 | AZ23: 93.29298145 | BA23: 93.29298144
A24: 1600000US1901675 | B24: Alvord city, Iowa | C24: 90.4 | D24: 90.9 | E24: 91.5 | F24: 89.3 | G24: 90.9 | H24: 95.5 | I24: 94.8 | J24: 94.02985075 | K24: 95.91836735 | L24: 95.32163743 | M24: 96.62940429 | N24: 97.3152986 | O24: 98.00119292 | P24: 98.68708723 | Q24: 99.37298155 | R24: 100 | S24: 100 | T24: 100 | U24: 100 | V24: 100 | W24: 100 | X24: 100 | Y24: 100 | Z24: 100 | AA24: 100 | AB24: 100 | AC24: 100 | AD24: 100 | AE24: 100 | AF24: 100 | AG24: 100 | AH24: 100 | AI24: 100 | AJ24: 100 | AK24: 100 | AL24: 100 | AM24: 100 | AN24: 100 | AO24: 100 | AP24: 100 | AQ24: 100 | AR24: 100 | AS24: 100 | AT24: 100 | AU24: 100 | AV24: 100 | AW24: 100 | AX24: 100 | AY24: 100 | AZ24: 100 | BA24: 100
A25: 1600000US1901855 | B25: Ames city, Iowa | C25: 96.6 | D25: 97.1 | E25: 97.3 | F25: 97.5 | G25: 97.5 | H25: 97.4 | I25: 97.4 | J25: 98.12587413 | K25: 98.17442822 | L25: 98.46575531 | M25: 98.49134463 | N25: 98.66129715 | O25: 98.83124967 | P25: 99.00120219 | Q25: 99.17115472 | R25: 99.34110724 | S25: 99.51105976 | T25: 99.68101228 | U25: 99.8509648 | V25: 100 | W25: 99.84399236 | X25: 99.89831905 | Y25: 99.9141038 | Z25: 99.88547174 | AA25: 99.8992982 | AB25: 99.89962458 | AC25: 99.89479817 | AD25: 99.89790698 | AE25: 99.89744325 | AF25: 99.89671613 | AG25: 99.89735545 | AH25: 99.89717161 | AI25: 99.89708107 | AJ25: 99.89720271 | AK25: 99.8971518 | AL25: 99.89714519 | AM25: 99.89716657 | AN25: 99.89715452 | AO25: 99.89715543 | AP25: 99.89715884 | AQ25: 99.89715626 | AR25: 99.89715684 | AS25: 99.89715731 | AT25: 99.8971568 | AU25: 99.89715699 | AV25: 99.89715703 | AW25: 99.89715694 | AX25: 99.89715699 | AY25: 99.89715699 | AZ25: 99.89715697 | BA25: 99.89715698
A26: 1600000US1901990 | B26: Anamosa city, Iowa | C26: 87.3 | D26: 89.1 | E26: 91.3 | F26: 89.6 | G26: 88.6 | H26: 90.1 | I26: 89.7 | J26: 85.27305282 | K26: 82.95281583 | L26: 83.05705059 | M26: 84.04657293 | N26: 83.38262402 | O26: 82.71867512 | P26: 82.05472621 | Q26: 81.3907773 | R26: 80.72682839 | S26: 80.06287949 | T26: 79.39893058 | U26: 78.73498167 | V26: 78.07103276 | W26: 78.73498167 | X26: 78.51366537 | Y26: 78.43989327 | Z26: 78.56284677 | AA26: 78.50546847 | AB26: 78.50273617 | AC26: 78.5236838 | AD26: 78.51062948 | AE26: 78.51234982 | AF26: 78.51555437 | AG26: 78.51284455 | AH26: 78.51358291 | AI26: 78.51399394 | AJ26: 78.5134738 | AK26: 78.51368355 | AL26: 78.5137171 | AM26: 78.51362482 | AN26: 78.51367516 | AO26: 78.51367236 | AP26: 78.51365744 | AQ26: 78.51366832 | AR26: 78.51366604 | AS26: 78.51366394 | AT26: 78.5136661 | AU26: 78.51366536 | AV26: 78.51366513 | AW26: 78.51366553 | AX26: 78.51366534 | AY26: 78.51366533 | AZ26: 78.5136654 | BA26: 78.51366536
A27: 1600000US1902080 | B27: Andover city, Iowa | C27: 93.7 | D27: 91.6 | E27: 90.2 | F27: 91.3 | G27: 91.5 | H27: 89.3 | I27: 94.6 | J27: 94.02985075 | K27: 96.82539683 | L27: 95.23809524 | M27: 95.40499724 | N27: 95.87329959 | O27: 96.34160195 | P27: 96.8099043 | Q27: 97.27820666 | R27: 97.74650901 | S27: 98.21481137 | T27: 98.68311372 | U27: 99.15141608 | V27: 99.61971844 | W27: 99.15141608 | X27: 99.30751686 | Y27: 99.35955046 | Z27: 99.2728278 | AA27: 99.31329838 | AB27: 99.31522555 | AC27: 99.30045057 | AD27: 99.30965817 | AE27: 99.30844476 | AF27: 99.3061845 | AG27: 99.30809581 | AH27: 99.30757502 | AI27: 99.30728511 | AJ27: 99.30765198 | AK27: 99.30750404 | AL27: 99.30748038 | AM27: 99.30754547 | AN27: 99.30750996 | AO27: 99.30751193 | AP27: 99.30752245 | AQ27: 99.30751478 | AR27: 99.30751639 | AS27: 99.30751788 | AT27: 99.30751635 | AU27: 99.30751687 | AV27: 99.30751703 | AW27: 99.30751675 | AX27: 99.30751689 | AY27: 99.30751689 | AZ27: 99.30751684 | BA27: 99.30751687
A28: 1600000US1902125 | B28: Andrew city, Iowa | C28: 88.6 | D28: 83.8 | E28: 86.5 | F28: 82.8 | G28: 84.1 | H28: 83.7 | I28: 87.6 | J28: 90.5362776 | K28: 90.81967213 | L28: 90.79365079 | M28: 90.36035839 | N28: 90.98497627 | O28: 91.60959415 | P28: 92.23421203 | Q28: 92.85882991 | R28: 93.48344778 | S28: 94.10806566 | T28: 94.73268354 | U28: 95.35730142 | V28: 95.9819193 | W28: 95.35730142 | X28: 95.56550738 | Y28: 95.63490937 | Z28: 95.51923939 | AA28: 95.57321871 | AB28: 95.57578916 | AC28: 95.55608242 | AD28: 95.56836343 | AE28: 95.566745 | AF28: 95.56373029 | AG28: 95.56627957 | AH28: 95.56558495 | AI28: 95.56519827 | AJ28: 95.5656876 | AK28: 95.56549027 | AL28: 95.56545871 | AM28: 95.56554553 | AN28: 95.56549817 | AO28: 95.56550081 | AP28: 95.56551484 | AQ28: 95.5655046 | AR28: 95.56550675 | AS28: 95.56550873 | AT28: 95.56550669 | AU28: 95.56550739 | AV28: 95.56550761 | AW28: 95.56550723 | AX28: 95.56550741 | AY28: 95.56550741 | AZ28: 95.56550735 | BA28: 95.56550739
A29: 1600000US1902260 | B29: Anita city, Iowa | C29: 87.9 | D29: 89.9 | E29: 93.6 | F29: 90.8 | G29: 91.7 | H29: 93.7 | I29: 92.3 | J29: 92.09183673 | K29: 92.7765237 | L29: 92.33997901 | M29: 93.67932264 | N29: 94.03722967 | O29: 94.3951367 | P29: 94.75304374 | Q29: 95.11095077 | R29: 95.46885781 | S29: 95.82676484 | T29: 96.18467188 | U29: 96.54257891 | V29: 96.90048595 | W29: 96.54257891 | X29: 96.66188126 | Y29: 96.70164871 | Z29: 96.63536962 | AA29: 96.66629986 | AB29: 96.66777273 | AC29: 96.65648074 | AD29: 96.66351778 | AE29: 96.66259042 | AF29: 96.66086298 | AG29: 96.66232372 | AH29: 96.66192571 | AI29: 96.66170414 | AJ29: 96.66198452 | AK29: 96.66187145 | AL29: 96.66185337 | AM29: 96.66190312 | AN29: 96.66187598 | AO29: 96.66187749 | AP29: 96.66188553 | AQ29: 96.66187967 | AR29: 96.66188089 | AS29: 96.66188203 | AT29: 96.66188086 | AU29: 96.66188126 | AV29: 96.66188138 | AW29: 96.66188117 | AX29: 96.66188127 | AY29: 96.66188128 | AZ29: 96.66188124 | BA29: 96.66188126
A30: 1600000US1902305 | B30: Ankeny city, Iowa | C30: 97.5 | D30: 97.3 | E30: 97.4 | F30: 97.4 | G30: 97.5 | H30: 97.3 | I30: 97.4 | J30: 96.63933226 | K30: 97.02750255 | L30: 96.59348473 | M30: 96.73705001 | N30: 96.65178057 | O30: 96.56651112 | P30: 96.48124168 | Q30: 96.39597224 | R30: 96.31070279 | S30: 96.22543335 | T30: 96.1401639 | U30: 96.05489446 | V30: 95.96962502 | W30: 96.05489446 | X30: 96.02647131 | Y30: 96.01699693 | Z30: 96.03278757 | AA30: 96.0254186 | AB30: 96.0250677 | AC30: 96.02775796 | AD30: 96.02608142 | AE30: 96.02630236 | AF30: 96.02671391 | AG30: 96.0263659 | AH30: 96.02646072 | AI30: 96.02651351 | AJ30: 96.02644671 | AK30: 96.02647365 | AL30: 96.02647795 | AM30: 96.0264661 | AN30: 96.02647257 | AO30: 96.02647221 | AP30: 96.02647029 | AQ30: 96.02647169 | AR30: 96.0264714 | AS30: 96.02647113 | AT30: 96.0264714 | AU30: 96.02647131 | AV30: 96.02647128 | AW30: 96.02647133 | AX30: 96.02647131 | AY30: 96.02647131 | AZ30: 96.02647132 | BA30: 96.02647131
A31: 1600000US1902350 | B31: Anthon city, Iowa | C31: 86.4 | D31: 87.8 | E31: 88.9 | F31: 89.3 | G31: 89.8 | H31: 90.8 | I31: 90.7 | J31: 90.13806706 | K31: 92.08924949 | L31: 92.67822736 | M31: 93.12452532 | N31: 93.71797459 | O31: 94.31142385 | P31: 94.90487311 | Q31: 95.49832237 | R31: 96.09177163 | S31: 96.68522089 | T31: 97.27867015 | U31: 97.87211941 | V31: 98.46556867 | W31: 97.87211941 | X31: 98.06993583 | Y31: 98.13587464 | Z31: 98.02597663 | AA31: 98.07726236 | AB31: 98.07970454 | AC31: 98.06098118 | AD31: 98.07264936 | AE31: 98.07111169 | AF31: 98.06824741 | AG31: 98.07066949 | AH31: 98.07000953 | AI31: 98.06964214 | AJ31: 98.07010705 | AK31: 98.06991958 | AL31: 98.06988959 | AM31: 98.06997207 | AN31: 98.06992708 | AO31: 98.06992958 | AP31: 98.06994291 | AQ31: 98.06993319 | AR31: 98.06993523 | AS31: 98.06993711 | AT31: 98.06993518 | AU31: 98.06993584 | AV31: 98.06993604 | AW31: 98.06993569 | AX31: 98.06993586 | AY31: 98.06993586 | AZ31: 98.0699358 | BA31: 98.06993584
A32: 1600000US1902395 | B32: Aplington city, Iowa | C32: 83.8 | D32: 80.7 | E32: 81.6 | F32: 83.9 | G32: 83.5 | H32: 87.3 | I32: 90.9 | J32: 94.57831325 | K32: 95.06781751 | L32: 94.38058748 | M32: 97.0890577 | N32: 98.81930967 | O32: 100 | P32: 100 | Q32: 100 | R32: 100 | S32: 100 | T32: 100 | U32: 100 | V32: 100 | W32: 100 | X32: 100 | Y32: 100 | Z32: 100 | AA32: 100 | AB32: 100 | AC32: 100 | AD32: 100 | AE32: 100 | AF32: 100 | AG32: 100 | AH32: 100 | AI32: 100 | AJ32: 100 | AK32: 100 | AL32: 100 | AM32: 100 | AN32: 100 | AO32: 100 | AP32: 100 | AQ32: 100 | AR32: 100 | AS32: 100 | AT32: 100 | AU32: 100 | AV32: 100 | AW32: 100 | AX32: 100 | AY32: 100 | AZ32: 100 | BA32: 100
A33: 1600000US1902485 | B33: Arcadia city, Iowa | C33: 92 | D33: 92.4 | E33: 95 | F33: 93.9 | G33: 92.9 | H33: 92.3 | I33: 93.4 | J33: 90 | K33: 92.45810056 | L33: 91.84782609 | M33: 91.68516395 | N33: 91.51508601 | O33: 91.34500806 | P33: 91.17493011 | Q33: 91.00485217 | R33: 90.83477422 | S33: 90.66469627 | T33: 90.49461832 | U33: 90.32454038 | V33: 90.15446243 | W33: 90.32454038 | X33: 90.26784773 | Y33: 90.24895018 | Z33: 90.28044609 | AA33: 90.265748 | AB33: 90.26504809 | AC33: 90.27041406 | AD33: 90.26707005 | AE33: 90.26751073 | AF33: 90.26833161 | AG33: 90.26763747 | AH33: 90.2678266 | AI33: 90.2679319 | AJ33: 90.26779866 | AK33: 90.26785238 | AL33: 90.26786098 | AM33: 90.26783734 | AN33: 90.26785023 | AO33: 90.26784952 | AP33: 90.2678457 | AQ33: 90.26784848 | AR33: 90.2678479 | AS33: 90.26784736 | AT33: 90.26784791 | AU33: 90.26784772 | AV33: 90.26784767 | AW33: 90.26784777 | AX33: 90.26784772 | AY33: 90.26784772 | AZ33: 90.26784774 | BA33: 90.26784772
A34: 1600000US1902530 | B34: Archer city, Iowa | C34: 90.5 | D34: 86.7 | E34: 90.4 | F34: 93.1 | G34: 89.7 | H34: 93.3 | I34: 92.9 | J34: 95.28301887 | K34: 93.80530973 | L34: 96.15384615 | M34: 96.4521134 | N34: 97.22809448 | O34: 98.00407556 | P34: 98.78005664 | Q34: 99.55603772 | R34: 100 | S34: 100 | T34: 100 | U34: 100 | V34: 100 | W34: 100 | X34: 100 | Y34: 100 | Z34: 100 | AA34: 100 | AB34: 100 | AC34: 100 | AD34: 100 | AE34: 100 | AF34: 100 | AG34: 100 | AH34: 100 | AI34: 100 | AJ34: 100 | AK34: 100 | AL34: 100 | AM34: 100 | AN34: 100 | AO34: 100 | AP34: 100 | AQ34: 100 | AR34: 100 | AS34: 100 | AT34: 100 | AU34: 100 | AV34: 100 | AW34: 100 | AX34: 100 | AY34: 100 | AZ34: 100 | BA34: 100
A35: 1600000US1902620 | B35: Aredale city, Iowa | C35: 75 | D35: 72.4 | E35: 70.9 | F35: 74.1 | G35: 87.3 | H35: 79.1 | I35: 80.9 | J35: 90.24390244 | K35: 93.33333333 | L35: 92.85714286 | M35: 95.48567557 | N35: 98.00790061 | O35: 100 | P35: 100 | Q35: 100 | R35: 100 | S35: 100 | T35: 100 | U35: 100 | V35: 100 | W35: 100 | X35: 100 | Y35: 100 | Z35: 100 | AA35: 100 | AB35: 100 | AC35: 100 | AD35: 100 | AE35: 100 | AF35: 100 | AG35: 100 | AH35: 100 | AI35: 100 | AJ35: 100 | AK35: 100 | AL35: 100 | AM35: 100 | AN35: 100 | AO35: 100 | AP35: 100 | AQ35: 100 | AR35: 100 | AS35: 100 | AT35: 100 | AU35: 100 | AV35: 100 | AW35: 100 | AX35: 100 | AY35: 100 | AZ35: 100 | BA35: 100
A36: 1600000US1902755 | B36: Arion city, Iowa | C36: 82.2 | D36: 70.1 | E36: 72 | F36: 70 | G36: 63.4 | H36: 68.3 | I36: 70.8 | J36: 74.44444444 | K36: 72.94117647 | L36: 70.51282051 | M36: 69.27737221 | N36: 68.87874095 | O36: 68.48010969 | P36: 68.08147843 | Q36: 67.68284717 | R36: 67.28421591 | S36: 66.88558465 | T36: 66.4869534 | U36: 66.08832214 | V36: 65.68969088 | W36: 66.08832214 | X36: 65.95544505 | Y36: 65.91115269 | Z36: 65.98497329 | AA36: 65.95052368 | AB36: 65.94888322 | AC36: 65.96146006 | AD36: 65.95362232 | AE36: 65.9546552 | AF36: 65.95657919 | AG36: 65.95495224 | AH36: 65.95539554 | AI36: 65.95564232 | AJ36: 65.95533003 | AK36: 65.95545597 | AL36: 65.95547611 | AM36: 65.9554207 | AN36: 65.95545093 | AO36: 65.95544925 | AP36: 65.95544029 | AQ36: 65.95544682 | AR36: 65.95544545 | AS36: 65.95544419 | AT36: 65.95544549 | AU36: 65.95544504 | AV36: 65.95544491 | AW36: 65.95544515 | AX36: 65.95544503 | AY36: 65.95544503 | AZ36: 65.95544507 | BA36: 65.95544504
A37: 1600000US1902800 | B37: Arispe city, Iowa | C37: 100 | D37: 98.4 | E37: 92.5 | F37: 92.1 | G37: 92.1 | H37: 89.8 | I37: 95 | J37: 94.87179487 | K37: 93.10344828 | L37: 92.04545455 | M37: 90.97847654 | N37: 90.4305505 | O37: 89.88262446 | P37: 89.33469842 | Q37: 88.78677238 | R37: 88.23884634 | S37: 87.6909203 | T37: 87.14299425 | U37: 86.59506821 | V37: 86.04714217 | W37: 86.59506821 | X37: 86.4124262 | Y37: 86.35154553 | Z37: 86.45301331 | AA37: 86.40566168 | AB37: 86.40340684 | AC37: 86.42069394 | AD37: 86.40992082 | AE37: 86.41134054 | AF37: 86.4139851 | AG37: 86.41174882 | AH37: 86.41235815 | AI37: 86.41269736 | AJ37: 86.41226811 | AK37: 86.41244121 | AL37: 86.41246889 | AM37: 86.41239274 | AN37: 86.41243428 | AO37: 86.41243197 | AP37: 86.41241966 | AQ37: 86.41242864 | AR37: 86.41242675 | AS37: 86.41242502 | AT37: 86.4124268 | AU37: 86.41242619 | AV37: 86.412426 | AW37: 86.41242633 | AX37: 86.41242618 | AY37: 86.41242617 | AZ37: 86.41242623 | BA37: 86.41242619
A38: 1600000US1902845 | B38: Arlington city, Iowa | C38: 89.1 | D38: 88.4 | E38: 92.7 | F38: 91.7 | G38: 90.8 | H38: 88.6 | I38: 90.7 | J38: 89.08188586 | K38: 90.15544041 | L38: 90.78212291 | M38: 90.3398322 | N38: 90.36490261 | O38: 90.38997302 | P38: 90.41504344 | Q38: 90.44011385 | R38: 90.46518427 | S38: 90.49025468 | T38: 90.51532509 | U38: 90.54039551 | V38: 90.56546592 | W38: 90.54039551 | X38: 90.54875231 | Y38: 90.55153791 | Z38: 90.54689524 | AA38: 90.54906182 | AB38: 90.54916499 | AC38: 90.54837402 | AD38: 90.54886695 | AE38: 90.54880199 | AF38: 90.54868098 | AG38: 90.54878331 | AH38: 90.54875543 | AI38: 90.54873991 | AJ38: 90.54875955 | AK38: 90.54875163 | AL38: 90.54875036 | AM38: 90.54875384 | AN38: 90.54875194 | AO38: 90.54875205 | AP38: 90.54875261 | AQ38: 90.5487522 | AR38: 90.54875229 | AS38: 90.54875237 | AT38: 90.54875229 | AU38: 90.54875231 | AV38: 90.54875232 | AW38: 90.54875231 | AX38: 90.54875231 | AY38: 90.54875231 | AZ38: 90.54875231 | BA38: 90.54875231
A39: 1600000US1902935 | B39: Armstrong city, Iowa | C39: 87.1 | D39: 88.2 | E39: 87.9 | F39: 89.3 | G39: 89.1 | H39: 89.6 | I39: 89.5 | J39: 92.12283044 | K39: 91.40083218 | L39: 91.32352941 | M39: 92.30911061 | N39: 92.80990905 | O39: 93.31070748 | P39: 93.81150592 | Q39: 94.31230436 | R39: 94.81310279 | S39: 95.31390123 | T39: 95.81469967 | U39: 96.31549811 | V39: 96.81629654 | W39: 96.31549811 | X39: 96.48243092 | Y39: 96.53807519 | Z39: 96.44533474 | AA39: 96.48861362 | AB39: 96.49067451 | AC39: 96.47487429 | AD39: 96.48472081 | AE39: 96.4834232 | AF39: 96.4810061 | AG39: 96.48305004 | AH39: 96.48249311 | AI39: 96.48218308 | AJ39: 96.48257541 | AK39: 96.4824172 | AL39: 96.4823919 | AM39: 96.4824615 | AN39: 96.48242354 | AO39: 96.48242565 | AP39: 96.4824369 | AQ39: 96.48242869 | AR39: 96.48243041 | AS39: 96.482432 | AT39: 96.48243037 | AU39: 96.48243093 | AV39: 96.4824311 | AW39: 96.4824308 | AX39: 96.48243094 | AY39: 96.48243094 | AZ39: 96.48243089 | BA39: 96.48243093
A40: 1600000US1903025 | B40: Arnolds Park city, Iowa | C40: 92.3 | D40: 92.3 | E40: 92.6 | F40: 92 | G40: 94.7 | H40: 95.1 | I40: 96.8 | J40: 94.56967213 | K40: 97.7443609 | L40: 97.30603448 | M40: 98.13578 | N40: 98.78919331 | O40: 99.44260663 | P40: 100 | Q40: 100 | R40: 100 | S40: 100 | T40: 100 | U40: 100 | V40: 100 | W40: 100 | X40: 100 | Y40: 100 | Z40: 100 | AA40: 100 | AB40: 100 | AC40: 100 | AD40: 100 | AE40: 100 | AF40: 100 | AG40: 100 | AH40: 100 | AI40: 100 | AJ40: 100 | AK40: 100 | AL40: 100 | AM40: 100 | AN40: 100 | AO40: 100 | AP40: 100 | AQ40: 100 | AR40: 100 | AS40: 100 | AT40: 100 | AU40: 100 | AV40: 100 | AW40: 100 | AX40: 100 | AY40: 100 | AZ40: 100 | BA40: 100
A41: 1600000US1903115 | B41: Arthur city, Iowa | C41: 96.1 | D41: 95.3 | E41: 95.6 | F41: 93.7 | G41: 91.8 | H41: 94.1 | I41: 93.3 | J41: 93.08510638 | K41: 94.68085106 | L41: 91.50943396 | M41: 92.01341897 | N41: 91.66721531 | O41: 91.32101164 | P41: 90.97480798 | Q41: 90.62860431 | R41: 90.28240064 | S41: 89.93619698 | T41: 89.58999331 | U41: 89.24378964 | V41: 88.89758598 | W41: 89.24378964 | X41: 89.12838842 | Y41: 89.08992135 | Z41: 89.15403314 | AA41: 89.1241143 | AB41: 89.12268959 | AC41: 89.13361234 | AD41: 89.12680541 | AE41: 89.12770245 | AF41: 89.1293734 | AG41: 89.12796042 | AH41: 89.12834543 | AI41: 89.12855975 | AJ41: 89.12828853 | AK41: 89.1283979 | AL41: 89.1284154 | AM41: 89.12836728 | AN41: 89.12839352 | AO41: 89.12839207 | AP41: 89.12838429 | AQ41: 89.12838996 | AR41: 89.12838877 | AS41: 89.12838767 | AT41: 89.1283888 | AU41: 89.12838842 | AV41: 89.1283883 | AW41: 89.1283885 | AX41: 89.12838841 | AY41: 89.1283884 | AZ41: 89.12838844 | BA41: 89.12838842
A42: 1600000US1903160 | B42: Asbury city, Iowa | C42: 95.4 | D42: 96.8 | E42: 97.3 | F42: 97.4 | G42: 94.8 | H42: 96.3 | I42: 96.2 | J42: 93.19838057 | K42: 93.33687284 | L42: 93.83271572 | M42: 93.42494539 | N42: 93.05551784 | O42: 92.68609029 | P42: 92.31666274 | Q42: 91.94723519 | R42: 91.57780764 | S42: 91.20838009 | T42: 90.83895254 | U42: 90.46952499 | V42: 90.10009744 | W42: 90.46952499 | X42: 90.34638247 | Y42: 90.30533497 | Z42: 90.37374747 | AA42: 90.34182164 | AB42: 90.34030136 | AC42: 90.35195682 | AD42: 90.34469327 | AE42: 90.34565048 | AF42: 90.34743353 | AG42: 90.34592576 | AH42: 90.34633659 | AI42: 90.34656529 | AJ42: 90.34627588 | AK42: 90.34639259 | AL42: 90.34641125 | AM42: 90.34635991 | AN42: 90.34638792 | AO42: 90.34638636 | AP42: 90.34637806 | AQ42: 90.34638411 | AR42: 90.34638285 | AS42: 90.34638167 | AT42: 90.34638288 | AU42: 90.34638247 | AV42: 90.34638234 | AW42: 90.34638256 | AX42: 90.34638245 | AY42: 90.34638245 | AZ42: 90.34638249 | BA42: 90.34638247
A43: 1600000US1903295 | B43: Ashton city, Iowa | C43: 75.7 | D43: 79.1 | E43: 81.3 | F43: 82.9 | G43: 86.1 | H43: 89.8 | I43: 87.4 | J43: 88.78787879 | K43: 89.21282799 | L43: 88.48314607 | M43: 92.8943021 | N43: 94.35174152 | O43: 95.80918094 | P43: 97.26662036 | Q43: 98.72405978 | R43: 100 | S43: 100 | T43: 100 | U43: 100 | V43: 100 | W43: 100 | X43: 100 | Y43: 100 | Z43: 100 | AA43: 100 | AB43: 100 | AC43: 100 | AD43: 100 | AE43: 100 | AF43: 100 | AG43: 100 | AH43: 100 | AI43: 100 | AJ43: 100 | AK43: 100 | AL43: 100 | AM43: 100 | AN43: 100 | AO43: 100 | AP43: 100 | AQ43: 100 | AR43: 100 | AS43: 100 | AT43: 100 | AU43: 100 | AV43: 100 | AW43: 100 | AX43: 100 | AY43: 100 | AZ43: 100 | BA43: 100
A44: 1600000US1903340 | B44: Aspinwall city, Iowa | C44: 91.7 | D44: 81.8 | E44: 85 | F44: 80 | G44: 86.4 | H44: 86.7 | I44: 100 | J44: 100 | K44: 100 | L44: 100 | M44: 100 | N44: 100 | O44: 100 | P44: 100 | Q44: 100 | R44: 100 | S44: 100 | T44: 100 | U44: 100 | V44: 100 | W44: 100 | X44: 100 | Y44: 100 | Z44: 100 | AA44: 100 | AB44: 100 | AC44: 100 | AD44: 100 | AE44: 100 | AF44: 100 | AG44: 100 | AH44: 100 | AI44: 100 | AJ44: 100 | AK44: 100 | AL44: 100 | AM44: 100 | AN44: 100 | AO44: 100 | AP44: 100 | AQ44: 100 | AR44: 100 | AS44: 100 | AT44: 100 | AU44: 100 | AV44: 100 | AW44: 100 | AX44: 100 | AY44: 100 | AZ44: 100 | BA44: 100
A45: 1600000US1903385 | B45: Atalissa city, Iowa | C45: 60.3 | D45: 81.1 | E45: 77.2 | F45: 80.7 | G45: 80.9 | H45: 85.5 | I45: 86.4 | J45: 92.57641921 | K45: 91.88191882 | L45: 92.5795053 | M45: 98.39948685 | N45: 100 | O45: 100 | P45: 100 | Q45: 100 | R45: 100 | S45: 100 | T45: 100 | U45: 100 | V45: 100 | W45: 100 | X45: 100 | Y45: 100 | Z45: 100 | AA45: 100 | AB45: 100 | AC45: 100 | AD45: 100 | AE45: 100 | AF45: 100 | AG45: 100 | AH45: 100 | AI45: 100 | AJ45: 100 | AK45: 100 | AL45: 100 | AM45: 100 | AN45: 100 | AO45: 100 | AP45: 100 | AQ45: 100 | AR45: 100 | AS45: 100 | AT45: 100 | AU45: 100 | AV45: 100 | AW45: 100 | AX45: 100 | AY45: 100 | AZ45: 100 | BA45: 100
A46: 1600000US1903475 | B46: Atkins city, Iowa | C46: 96.6 | D46: 96.4 | E46: 95.1 | F46: 96.4 | G46: 94.8 | H46: 94.6 | I46: 94.6 | J46: 95.02637528 | K46: 95.15418502 | L46: 96.9122807 | M46: 95.1633407 | N46: 95.09135099 | O46: 95.01936128 | P46: 94.94737157 | Q46: 94.87538186 | R46: 94.80339215 | S46: 94.73140244 | T46: 94.65941273 | U46: 94.58742302 | V46: 94.51543331 | W46: 94.58742302 | X46: 94.56342645 | Y46: 94.55542759 | Z46: 94.56875902 | AA46: 94.56253769 | AB46: 94.56224143 | AC46: 94.56451271 | AD46: 94.56309728 | AE46: 94.56328381 | AF46: 94.56363127 | AG46: 94.56333745 | AH46: 94.56341751 | AI46: 94.56346207 | AJ46: 94.56340568 | AK46: 94.56342842 | AL46: 94.56343206 | AM46: 94.56342205 | AN46: 94.56342751 | AO46: 94.56342721 | AP46: 94.56342559 | AQ46: 94.56342677 | AR46: 94.56342652 | AS46: 94.56342629 | AT46: 94.56342653 | AU46: 94.56342645 | AV46: 94.56342642 | AW46: 94.56342647 | AX46: 94.56342645 | AY46: 94.56342644 | AZ46: 94.56342645 | BA46: 94.56342645
A47: 1600000US1903520 | B47: Atlantic city, Iowa | C47: 90.4 | D47: 90.7 | E47: 91.7 | F47: 92.2 | G47: 91.7 | H47: 90 | I47: 88 | J47: 84.87222533 | K47: 82.31673195 | L47: 81.68720379 | M47: 82.17305226 | N47: 81.0485861 | O47: 79.92411995 | P47: 78.79965379 | Q47: 77.67518764 | R47: 76.55072148 | S47: 75.42625533 | T47: 74.30178917 | U47: 73.17732302 | V47: 72.05285686 | W47: 73.17732302 | X47: 72.80250097 | Y47: 72.67756028 | Z47: 72.88579475 | AA47: 72.78861867 | AB47: 72.78399123 | AC47: 72.81946822 | AD47: 72.79735937 | AE47: 72.80027294 | AF47: 72.80570018 | AG47: 72.80111083 | AH47: 72.80236132 | AI47: 72.80305744 | AJ47: 72.80217653 | AK47: 72.80253176 | AL47: 72.80258858 | AM47: 72.80243229 | AN47: 72.80251754 | AO47: 72.8025128 | AP47: 72.80248755 | AQ47: 72.80250597 | AR47: 72.80250211 | AS47: 72.80249854 | AT47: 72.8025022 | AU47: 72.80250095 | AV47: 72.80250056 | AW47: 72.80250124 | AX47: 72.80250092 | AY47: 72.80250091 | AZ47: 72.80250102 | BA47: 72.80250095
A48: 1600000US1903610 | B48: Auburn city, Iowa | C48: 89.2 | D48: 86.1 | E48: 86 | F48: 85.6 | G48: 85.2 | H48: 84 | I48: 87.6 | J48: 84.95145631 | K48: 91.42857143 | L48: 91.02564103 | M48: 88.88683524 | N48: 89.20979312 | O48: 89.532751 | P48: 89.85570889 | Q48: 90.17866677 | R48: 90.50162465 | S48: 90.82458254 | T48: 91.14754042 | U48: 91.4704983 | V48: 91.79345619 | W48: 91.4704983 | X48: 91.57815093 | Y48: 91.61403514 | Z48: 91.55422813 | AA48: 91.58213807 | AB48: 91.58346711 | AC48: 91.57327777 | AD48: 91.57962765 | AE48: 91.57879084 | AF48: 91.57723209 | AG48: 91.57855019 | AH48: 91.57819104 | AI48: 91.57799111 | AJ48: 91.57824411 | AK48: 91.57814209 | AL48: 91.57812577 | AM48: 91.57817066 | AN48: 91.57814617 | AO48: 91.57814753 | AP48: 91.57815479 | AQ48: 91.5781495 | AR48: 91.5781506 | AS48: 91.57815163 | AT48: 91.57815058 | AU48: 91.57815094 | AV48: 91.57815105 | AW48: 91.57815085 | AX48: 91.57815095 | AY48: 91.57815095 | AZ48: 91.57815092 | BA48: 91.57815094
A49: 1600000US1903655 | B49: Audubon city, Iowa | C49: 83.8 | D49: 86.4 | E49: 87 | F49: 91.3 | G49: 92.4 | H49: 89.7 | I49: 86.6 | J49: 85.77586207 | K49: 86.10108303 | L49: 86.67917448 | M49: 87.60559402 | N49: 87.61104531 | O49: 87.61649659 | P49: 87.62194788 | Q49: 87.62739916 | R49: 87.63285044 | S49: 87.63830173 | T49: 87.64375301 | U49: 87.6492043 | V49: 87.65465558 | W49: 87.6492043 | X49: 87.65102139 | Y49: 87.65162709 | Z49: 87.65061759 | AA49: 87.65108869 | AB49: 87.65111113 | AC49: 87.65093914 | AD49: 87.65104632 | AE49: 87.65103219 | AF49: 87.65100588 | AG49: 87.65102813 | AH49: 87.65102207 | AI49: 87.6510187 | AJ49: 87.65102297 | AK49: 87.65102124 | AL49: 87.65102097 | AM49: 87.65102173 | AN49: 87.65102131 | AO49: 87.65102134 | AP49: 87.65102146 | AQ49: 87.65102137 | AR49: 87.65102139 | AS49: 87.6510214 | AT49: 87.65102139 | AU49: 87.65102139 | AV49: 87.65102139 | AW49: 87.65102139 | AX49: 87.65102139 | AY49: 87.65102139 | AZ49: 87.65102139 | BA49: 87.65102139
A50: 1600000US1903745 | B50: Aurelia city, Iowa | C50: 89.5 | D50: 89.7 | E50: 90.4 | F50: 91 | G50: 90 | H50: 93.1 | I50: 92.7 | J50: 90.71680376 | K50: 89.87341772 | L50: 91.13233288 | M50: 91.66855339 | N50: 91.82424393 | O50: 91.97993447 | P50: 92.13562501 | Q50: 92.29131555 | R50: 92.44700608 | S50: 92.60269662 | T50: 92.75838716 | U50: 92.9140777 | V50: 93.06976824 | W50: 92.9140777 | X50: 92.96597454 | Y50: 92.98327349 | Z50: 92.95444191 | AA50: 92.96789665 | AB50: 92.96853735 | AC50: 92.9636253 | AD50: 92.96668644 | AE50: 92.96628303 | AF50: 92.96553159 | AG50: 92.96616702 | AH50: 92.96599388 | AI50: 92.9658975 | AJ50: 92.96601946 | AK50: 92.96597028 | AL50: 92.96596241 | AM50: 92.96598405 | AN50: 92.96597225 | AO50: 92.9659729 | AP50: 92.9659764 | AQ50: 92.96597385 | AR50: 92.96597439 | AS50: 92.96597488 | AT50: 92.96597437 | AU50: 92.96597455 | AV50: 92.9659746 | AW50: 92.96597451 | AX50: 92.96597455 | AY50: 92.96597455 | AZ50: 92.96597454 | BA50: 92.96597455
A51: 1600000US1903835 | B51: Aurora city, Iowa | C51: 81.9 | D51: 84.6 | E51: 87.2 | F51: 88.7 | G51: 86.6 | H51: 86.4 | I51: 82.1 | J51: 77.85714286 | K51: 82.99319728 | L51: 83.20610687 | M51: 81.9487466 | N51: 81.5474924 | O51: 81.1462382 | P51: 80.744984 | Q51: 80.3437298 | R51: 79.94247561 | S51: 79.54122141 | T51: 79.13996721 | U51: 78.73871301 | V51: 78.33745881 | W51: 78.73871301 | X51: 78.60496161 | Y51: 78.56037781 | Z51: 78.63468414 | AA51: 78.60000785 | AB51: 78.5983566 | AC51: 78.6110162 | AD51: 78.60312688 | AE51: 78.60416656 | AF51: 78.60610321 | AG51: 78.60446555 | AH51: 78.60491177 | AI51: 78.60516018 | AJ51: 78.60484584 | AK51: 78.6049726 | AL51: 78.60499287 | AM51: 78.6049371 | AN51: 78.60496752 | AO51: 78.60496583 | AP51: 78.60495682 | AQ51: 78.60496339 | AR51: 78.60496201 | AS51: 78.60496074 | AT51: 78.60496205 | AU51: 78.6049616 | AV51: 78.60496146 | AW51: 78.6049617 | AX51: 78.60496159 | AY51: 78.60496159 | AZ51: 78.60496163 | BA51: 78.6049616
A52: 1600000US1903970 | B52: Avoca city, Iowa | C52: 91.6 | D52: 92.2 | E52: 91.2 | F52: 90.2 | G52: 91.4 | H52: 89.9 | I52: 89.7 | J52: 89.72296693 | K52: 91.36490251 | L52: 92.39653513 | M52: 90.66637274 | N52: 90.61145133 | O52: 90.55652993 | P52: 90.50160853 | Q52: 90.44668712 | R52: 90.39176572 | S52: 90.33684431 | T52: 90.28192291 | U52: 90.22700151 | V52: 90.1720801 | W52: 90.22700151 | X52: 90.20869437 | Y52: 90.20259199 | Z52: 90.21276262 | AA52: 90.20801633 | AB52: 90.20779032 | AC52: 90.20952309 | AD52: 90.20844325 | AE52: 90.20858555 | AF52: 90.20885063 | AG52: 90.20862648 | AH52: 90.20868755 | AI52: 90.20872155 | AJ52: 90.20867853 | AK52: 90.20869588 | AL52: 90.20869865 | AM52: 90.20869102 | AN52: 90.20869518 | AO52: 90.20869495 | AP52: 90.20869372 | AQ52: 90.20869462 | AR52: 90.20869443 | AS52: 90.20869425 | AT52: 90.20869443 | AU52: 90.20869437 | AV52: 90.20869435 | AW52: 90.20869439 | AX52: 90.20869437 | AY52: 90.20869437 | AZ52: 90.20869438 | BA52: 90.20869437
A53: 1600000US1904105 | B53: Ayrshire city, Iowa | C53: 80.2 | D53: 94.6 | E53: 95.5 | F53: 94.5 | G53: 92.5 | H53: 91 | I53: 91 | J53: 85.32110092 | K53: 87.5 | L53: 87.36842105 | M53: 88.34632867 | N53: 88.05494257 | O53: 87.76355647 | P53: 87.47217038 | Q53: 87.18078428 | R53: 86.88939818 | S53: 86.59801209 | T53: 86.30662599 | U53: 86.01523989 | V53: 85.7238538 | W53: 86.01523989 | X53: 85.91811119 | Y53: 85.88573496 | Z53: 85.93969535 | AA53: 85.91451383 | AB53: 85.91331472 | AC53: 85.92250797 | AD53: 85.91677884 | AE53: 85.91753384 | AF53: 85.91894022 | AG53: 85.91775096 | AH53: 85.91807501 | AI53: 85.9182554 | AJ53: 85.91802712 | AK53: 85.91811917 | AL53: 85.9181339 | AM53: 85.9180934 | AN53: 85.91811549 | AO53: 85.91811426 | AP53: 85.91810772 | AQ53: 85.91811249 | AR53: 85.91811149 | AS53: 85.91811057 | AT53: 85.91811151 | AU53: 85.91811119 | AV53: 85.91811109 | AW53: 85.91811126 | AX53: 85.91811118 | AY53: 85.91811118 | AZ53: 85.91811121 | BA53: 85.91811119
A54: 1600000US1904195 | B54: Badger city, Iowa | C54: 86.9 | D54: 93.6 | E54: 92.6 | F54: 93.8 | G54: 96.7 | H54: 97.9 | I54: 97.6 | J54: 97.22921914 | K54: 97.91666667 | L54: 96.96969697 | M54: 100 | N54: 100 | O54: 100 | P54: 100 | Q54: 100 | R54: 100 | S54: 100 | T54: 100 | U54: 100 | V54: 100 | W54: 100 | X54: 100 | Y54: 100 | Z54: 100 | AA54: 100 | AB54: 100 | AC54: 100 | AD54: 100 | AE54: 100 | AF54: 100 | AG54: 100 | AH54: 100 | AI54: 100 | AJ54: 100 | AK54: 100 | AL54: 100 | AM54: 100 | AN54: 100 | AO54: 100 | AP54: 100 | AQ54: 100 | AR54: 100 | AS54: 100 | AT54: 100 | AU54: 100 | AV54: 100 | AW54: 100 | AX54: 100 | AY54: 100 | AZ54: 100 | BA54: 100
A55: 1600000US1904240 | B55: Bagley city, Iowa | C55: 80.8 | D55: 82.7 | E55: 86.8 | F55: 86 | G55: 93.4 | H55: 91.9 | I55: 90.5 | J55: 93.23843416 | K55: 92.14285714 | L55: 89.68609865 | M55: 95.05897429 | N55: 96.21210798 | O55: 97.36524166 | P55: 98.51837535 | Q55: 99.67150904 | R55: 100 | S55: 100 | T55: 100 | U55: 100 | V55: 100 | W55: 100 | X55: 100 | Y55: 100 | Z55: 100 | AA55: 100 | AB55: 100 | AC55: 100 | AD55: 100 | AE55: 100 | AF55: 100 | AG55: 100 | AH55: 100 | AI55: 100 | AJ55: 100 | AK55: 100 | AL55: 100 | AM55: 100 | AN55: 100 | AO55: 100 | AP55: 100 | AQ55: 100 | AR55: 100 | AS55: 100 | AT55: 100 | AU55: 100 | AV55: 100 | AW55: 100 | AX55: 100 | AY55: 100 | AZ55: 100 | BA55: 100
A56: 1600000US1904330 | B56: Baldwin city, Iowa | C56: 79 | D56: 67.6 | E56: 76.3 | F56: 79.7 | G56: 80.5 | H56: 85.4 | I56: 90.9 | J56: 88.79310345 | K56: 85.58558559 | L56: 83.62068966 | M56: 90.68829864 | N56: 92.31527333 | O56: 93.94224802 | P56: 95.5692227 | Q56: 97.19619739 | R56: 98.82317207 | S56: 100 | T56: 100 | U56: 100 | V56: 100 | W56: 100 | X56: 100 | Y56: 100 | Z56: 100 | AA56: 100 | AB56: 100 | AC56: 100 | AD56: 100 | AE56: 100 | AF56: 100 | AG56: 100 | AH56: 100 | AI56: 100 | AJ56: 100 | AK56: 100 | AL56: 100 | AM56: 100 | AN56: 100 | AO56: 100 | AP56: 100 | AQ56: 100 | AR56: 100 | AS56: 100 | AT56: 100 | AU56: 100 | AV56: 100 | AW56: 100 | AX56: 100 | AY56: 100 | AZ56: 100 | BA56: 100
A57: 1600000US1904375 | B57: Balltown city, Iowa | C57: 70.5 | D57: 73 | E57: 78.3 | F57: 81.8 | G57: 85.1 | H57: 78.2 | I57: 80.8 | J57: 80 | K57: 80.85106383 | L57: 75.6097561 | M57: 81.73425705 | N57: 82.3375616 | O57: 82.94086616 | P57: 83.54417072 | Q57: 84.14747527 | R57: 84.75077983 | S57: 85.35408438 | T57: 85.95738894 | U57: 86.56069349 | V57: 87.16399805 | W57: 86.56069349 | X57: 86.76179501 | Y57: 86.82882885 | Z57: 86.71710579 | AA57: 86.76924322 | AB57: 86.77172595 | AC57: 86.75269165 | AD57: 86.76455361 | AE57: 86.7629904 | AF57: 86.76007855 | AG57: 86.76254086 | AH57: 86.76186994 | AI57: 86.76149645 | AJ57: 86.76196908 | AK57: 86.76177849 | AL57: 86.76174801 | AM57: 86.76183186 | AN57: 86.76178612 | AO57: 86.76178866 | AP57: 86.76180221 | AQ57: 86.76179233 | AR57: 86.7617944 | AS57: 86.76179631 | AT57: 86.76179435 | AU57: 86.76179502 | AV57: 86.76179523 | AW57: 86.76179487 | AX57: 86.76179504 | AY57: 86.76179504 | AZ57: 86.76179498 | BA57: 86.76179502
A58: 1600000US1904420 | B58: Bancroft city, Iowa | C58: 89.4 | D58: 83.5 | E58: 85.4 | F58: 86.1 | G58: 88.9 | H58: 91.4 | I58: 95.8 | J58: 94.62571977 | K58: 94.19729207 | L58: 94.37148218 | M58: 96.94788217 | N58: 98.14396085 | O58: 99.34003953 | P58: 100 | Q58: 100 | R58: 100 | S58: 100 | T58: 100 | U58: 100 | V58: 100 | W58: 100 | X58: 100 | Y58: 100 | Z58: 100 | AA58: 100 | AB58: 100 | AC58: 100 | AD58: 100 | AE58: 100 | AF58: 100 | AG58: 100 | AH58: 100 | AI58: 100 | AJ58: 100 | AK58: 100 | AL58: 100 | AM58: 100 | AN58: 100 | AO58: 100 | AP58: 100 | AQ58: 100 | AR58: 100 | AS58: 100 | AT58: 100 | AU58: 100 | AV58: 100 | AW58: 100 | AX58: 100 | AY58: 100 | AZ58: 100 | BA58: 100
A59: 1600000US1904510 | B59: Bankston city, Iowa | C59: 100 | D59: 100 | E59: 100 | F59: 95.9 | G59: 97.7 | H59: 95.6 | I59: 91.7 | J59: 91.66666667 | K59: 100 | L59: 100 | M59: 95.37777778 | N59: 95.03616162 | O59: 94.69454545 | P59: 94.35292929 | Q59: 94.01131313 | R59: 93.66969697 | S59: 93.32808081 | T59: 92.98646465 | U59: 92.64484848 | V59: 92.30323232 | W59: 92.64484848 | X59: 92.53097643 | Y59: 92.49301908 | Z59: 92.55628133 | AA59: 92.52675895 | AB59: 92.52535312 | AC59: 92.53613113 | AD59: 92.5294144 | AE59: 92.53029955 | AF59: 92.53194836 | AG59: 92.5305541 | AH59: 92.53093401 | AI59: 92.53114549 | AJ59: 92.53087787 | AK59: 92.53098579 | AL59: 92.53100305 | AM59: 92.53095557 | AN59: 92.53098147 | AO59: 92.53098003 | AP59: 92.53097235 | AQ59: 92.53097795 | AR59: 92.53097678 | AS59: 92.53097569 | AT59: 92.53097681 | AU59: 92.53097643 | AV59: 92.53097631 | AW59: 92.53097651 | AX59: 92.53097642 | AY59: 92.53097641 | AZ59: 92.53097645 | BA59: 92.53097643
A60: 1600000US1904555 | B60: Barnes City city, Iowa | C60: 87.9 | D60: 89.1 | E60: 87.1 | F60: 85.9 | G60: 85.2 | H60: 81.5 | I60: 79.3 | J60: 81.39534884 | K60: 84.15300546 | L60: 84.92462312 | M60: 80.86627742 | N60: 80.17881918 | O60: 79.49136095 | P60: 78.80390271 | Q60: 78.11644447 | R60: 77.42898623 | S60: 76.74152799 | T60: 76.05406975 | U60: 75.36661151 | V60: 74.67915327 | W60: 75.36661151 | X60: 75.13745876 | Y60: 75.06107451 | Z60: 75.18838159 | AA60: 75.12897162 | AB60: 75.12614258 | AC60: 75.14783193 | AD60: 75.13431538 | AE60: 75.13609663 | AF60: 75.13941465 | AG60: 75.13660888 | AH60: 75.13737339 | AI60: 75.13779897 | AJ60: 75.13726041 | AK60: 75.13747759 | AL60: 75.13751233 | AM60: 75.13741678 | AN60: 75.1374689 | AO60: 75.137466 | AP60: 75.13745056 | AQ60: 75.13746182 | AR60: 75.13745946 | AS60: 75.13745728 | AT60: 75.13745952 | AU60: 75.13745875 | AV60: 75.13745852 | AW60: 75.13745893 | AX60: 75.13745873 | AY60: 75.13745873 | AZ60: 75.1374588 | BA60: 75.13745875
A61: 1600000US1904645 | B61: Barnum city, Iowa | C61: 94.6 | D61: 95.3 | E61: 93.5 | F61: 93.3 | G61: 91.8 | H61: 90.2 | I61: 85.7 | J61: 89.13043478 | K61: 92.63803681 | L61: 93.56725146 | M61: 89.5010288 | N61: 89.05147543 | O61: 88.60192207 | P61: 88.1523687 | Q61: 87.70281534 | R61: 87.25326197 | S61: 86.80370861 | T61: 86.35415524 | U61: 85.90460188 | V61: 85.45504851 | W61: 85.90460188 | X61: 85.75475075 | Y61: 85.70480038 | Z61: 85.788051 | AA61: 85.74920071 | AB61: 85.7473507 | AC61: 85.76153414 | AD61: 85.75269518 | AE61: 85.75386001 | AF61: 85.75602978 | AG61: 85.75419499 | AH61: 85.75469492 | AI61: 85.75497323 | AJ61: 85.75462105 | AK61: 85.75476307 | AL61: 85.75478578 | AM61: 85.7547233 | AN61: 85.75475738 | AO61: 85.75475549 | AP61: 85.75474539 | AQ61: 85.75475275 | AR61: 85.75475121 | AS61: 85.75474978 | AT61: 85.75475125 | AU61: 85.75475075 | AV61: 85.75475059 | AW61: 85.75475086 | AX61: 85.75475073 | AY61: 85.75475073 | AZ61: 85.75475078 | BA61: 85.75475075
A62: 1600000US1904780 | B62: Bassett city, Iowa | C62: 93.8 | D62: 94.2 | E62: 91.8 | F62: 93.1 | G62: 98.5 | H62: 96.5 | I62: 96.2 | J62: 96.2962963 | K62: 95.74468085 | L62: 84.375 | M62: 92.5772393 | N62: 92.30917413 | O62: 92.04110896 | P62: 91.77304379 | Q62: 91.50497863 | R62: 91.23691346 | S62: 90.96884829 | T62: 90.70078313 | U62: 90.43271796 | V62: 90.16465279 | W62: 90.43271796 | X62: 90.3433629 | Y62: 90.31357789 | Z62: 90.36321958 | AA62: 90.34005346 | AB62: 90.33895031 | AC62: 90.34740778 | AD62: 90.34213718 | AE62: 90.34283176 | AF62: 90.34412557 | AG62: 90.34303151 | AH62: 90.34332961 | AI62: 90.34349556 | AJ62: 90.34328556 | AK62: 90.34337025 | AL62: 90.34338379 | AM62: 90.34334653 | AN62: 90.34336686 | AO62: 90.34336573 | AP62: 90.34335971 | AQ62: 90.3433641 | AR62: 90.34336318 | AS62: 90.34336233 | AT62: 90.3433632 | AU62: 90.3433629 | AV62: 90.34336281 | AW62: 90.34336297 | AX62: 90.34336289 | AY62: 90.34336289 | AZ62: 90.34336292 | BA62: 90.3433629
A63: 1600000US1904825 | B63: Batavia city, Iowa | C63: 90.5 | D63: 91.1 | E63: 88.3 | F63: 87.7 | G63: 90 | H63: 88.3 | I63: 88.4 | J63: 92.42105263 | K63: 86.9047619 | L63: 84.65909091 | M63: 86.79750437 | N63: 86.42823415 | O63: 86.05896394 | P63: 85.68969372 | Q63: 85.32042351 | R63: 84.9511533 | S63: 84.58188308 | T63: 84.21261287 | U63: 83.84334265 | V63: 83.47407244 | W63: 83.84334265 | X63: 83.72025258 | Y63: 83.67922256 | Z63: 83.74760593 | AA63: 83.71569369 | AB63: 83.71417406 | AC63: 83.72582456 | AD63: 83.7185641 | AE63: 83.71952091 | AF63: 83.72130319 | AG63: 83.71979607 | AH63: 83.72020672 | AI63: 83.72043533 | AJ63: 83.72014604 | AK63: 83.7202627 | AL63: 83.72028135 | AM63: 83.72023003 | AN63: 83.72025803 | AO63: 83.72025647 | AP63: 83.72024818 | AQ63: 83.72025422 | AR63: 83.72025296 | AS63: 83.72025179 | AT63: 83.72025299 | AU63: 83.72025258 | AV63: 83.72025245 | AW63: 83.72025267 | AX63: 83.72025257 | AY63: 83.72025256 | AZ63: 83.7202526 | BA63: 83.72025258
A64: 1600000US1904870 | B64: Battle Creek city, Iowa | C64: 86.3 | D64: 84.7 | E64: 84.3 | F64: 83.8 | G64: 87.7 | H64: 89.7 | I64: 92.1 | J64: 90.45936396 | K64: 89.46428571 | L64: 86.97916667 | M64: 90.78892563 | N64: 91.37776999 | O64: 91.96661435 | P64: 92.55545871 | Q64: 93.14430308 | R64: 93.73314744 | S64: 94.3219918 | T64: 94.91083616 | U64: 95.49968053 | V64: 96.08852489 | W64: 95.49968053 | X64: 95.69596198 | Y64: 95.76138913 | Z64: 95.65234388 | AA64: 95.70323166 | AB64: 95.70565489 | AC64: 95.68707681 | AD64: 95.69865446 | AE64: 95.69712872 | AF64: 95.69428666 | AG64: 95.69668995 | AH64: 95.69603511 | AI64: 95.69567057 | AJ64: 95.69613188 | AK64: 95.69594585 | AL64: 95.6959161 | AM64: 95.69599794 | AN64: 95.6959533 | AO64: 95.69595578 | AP64: 95.69596901 | AQ64: 95.69595936 | AR64: 95.69596138 | AS64: 95.69596325 | AT64: 95.69596133 | AU64: 95.69596199 | AV64: 95.69596219 | AW64: 95.69596184 | AX64: 95.695962 | AY64: 95.69596201 | AZ64: 95.69596195 | BA64: 95.69596199
A65: 1600000US1904915 | B65: Baxter city, Iowa | C65: 93.3 | D65: 92.1 | E65: 91.5 | F65: 92 | G65: 88.4 | H65: 90.2 | I65: 91.4 | J65: 92.53521127 | K65: 91.12801014 | L65: 93.45314506 | M65: 91.59331774 | N65: 91.59180521 | O65: 91.59029268 | P65: 91.58878016 | Q65: 91.58726763 | R65: 91.5857551 | S65: 91.58424257 | T65: 91.58273004 | U65: 91.58121751 | V65: 91.57970499 | W65: 91.58121751 | X65: 91.58071334 | Y65: 91.58054528 | Z65: 91.58082538 | AA65: 91.58069467 | AB65: 91.58068844 | AC65: 91.58073616 | AD65: 91.58070642 | AE65: 91.58071034 | AF65: 91.58071764 | AG65: 91.58071147 | AH65: 91.58071315 | AI65: 91.58071409 | AJ65: 91.5807129 | AK65: 91.58071338 | AL65: 91.58071346 | AM65: 91.58071325 | AN65: 91.58071336 | AO65: 91.58071335 | AP65: 91.58071332 | AQ65: 91.58071335 | AR65: 91.58071334 | AS65: 91.58071334 | AT65: 91.58071334 | AU65: 91.58071334 | AV65: 91.58071334 | AW65: 91.58071334 | AX65: 91.58071334 | AY65: 91.58071334 | AZ65: 91.58071334 | BA65: 91.58071334
A66: 1600000US1904960 | B66: Bayard city, Iowa | C66: 84.4 | D66: 79.7 | E66: 80.1 | F66: 84 | G66: 84.2 | H66: 85.7 | I66: 85.6 | J66: 87.5 | K66: 86.62420382 | L66: 86.85897436 | M66: 88.26499102 | N66: 88.95529524 | O66: 89.64559945 | P66: 90.33590367 | Q66: 91.02620789 | R66: 91.71651211 | S66: 92.40681633 | T66: 93.09712054 | U66: 93.78742476 | V66: 94.47772898 | W66: 93.78742476 | X66: 94.01752617 | Y66: 94.09422664 | Z66: 93.96639252 | AA66: 94.02604844 | AB66: 94.0288892 | AC66: 94.00711006 | AD66: 94.02068257 | AE66: 94.01889394 | AF66: 94.01556219 | AG66: 94.01837956 | AH66: 94.0176119 | AI66: 94.01718455 | AJ66: 94.01772534 | AK66: 94.01750726 | AL66: 94.01747238 | AM66: 94.01756833 | AN66: 94.01751599 | AO66: 94.0175189 | AP66: 94.01753441 | AQ66: 94.0175231 | AR66: 94.01752547 | AS66: 94.01752766 | AT66: 94.01752541 | AU66: 94.01752618 | AV66: 94.01752641 | AW66: 94.017526 | AX66: 94.0175262 | AY66: 94.0175262 | AZ66: 94.01752613 | BA66: 94.01752618
A67: 1600000US1905050 | B67: Beacon city, Iowa | C67: 75.3 | D67: 69.7 | E67: 73 | F67: 77.7 | G67: 76.3 | H67: 75.5 | I67: 81.5 | J67: 82.74111675 | K67: 77.70562771 | L67: 80.2 | M67: 82.27950704 | N67: 83.24584023 | O67: 84.21217343 | P67: 85.17850663 | Q67: 86.14483983 | R67: 87.11117303 | S67: 88.07750622 | T67: 89.04383942 | U67: 90.01017262 | V67: 90.97650582 | W67: 90.01017262 | X67: 90.33228369 | Y67: 90.43965404 | Z67: 90.26070345 | AA67: 90.34421373 | AB67: 90.34819041 | AC67: 90.31770253 | AD67: 90.33670222 | AE67: 90.33419838 | AF67: 90.32953438 | AG67: 90.33347833 | AH67: 90.3324037 | AI67: 90.33180547 | AJ67: 90.3325625 | AK67: 90.33225722 | AL67: 90.33220839 | AM67: 90.3323427 | AN67: 90.33226944 | AO67: 90.33227351 | AP67: 90.33229522 | AQ67: 90.33227939 | AR67: 90.33228271 | AS67: 90.33228577 | AT67: 90.33228262 | AU67: 90.3322837 | AV67: 90.33228403 | AW67: 90.33228345 | AX67: 90.33228373 | AY67: 90.33228374 | AZ67: 90.33228364 | BA67: 90.3322837
A68: 1600000US1905140 | B68: Beaman city, Iowa | C68: 92.5 | D68: 94.5 | E68: 91.7 | F68: 91.3 | G68: 85.7 | H68: 90.5 | I68: 90.8 | J68: 93.93939394 | K68: 96.27329193 | L68: 97.38562092 | M68: 94.82251739 | N68: 95.25209679 | O68: 95.6816762 | P68: 96.1112556 | Q68: 96.540835 | R68: 96.9704144 | S68: 97.39999381 | T68: 97.82957321 | U68: 98.25915261 | V68: 98.68873201 | W68: 98.25915261 | X68: 98.40234575 | Y68: 98.45007679 | Z68: 98.37052505 | AA68: 98.4076492 | AB68: 98.40941701 | AC68: 98.39586375 | AD68: 98.40430999 | AE68: 98.40319692 | AF68: 98.40112355 | AG68: 98.40287682 | AH68: 98.4023991 | AI68: 98.40213316 | AJ68: 98.40246969 | AK68: 98.40233398 | AL68: 98.40231227 | AM68: 98.40237198 | AN68: 98.40233941 | AO68: 98.40234122 | AP68: 98.40235087 | AQ68: 98.40234384 | AR68: 98.40234531 | AS68: 98.40234667 | AT68: 98.40234527 | AU68: 98.40234575 | AV68: 98.4023459 | AW68: 98.40234564 | AX68: 98.40234576 | AY68: 98.40234577 | AZ68: 98.40234572 | BA68: 98.40234575
A69: 1600000US1905185 | B69: Beaver city, Iowa | C69: 100 | D69: 100 | E69: 100 | F69: 89.5 | G69: 89.1 | H69: 90.7 | I69: 92.6 | J69: 90.19607843 | K69: 96.77419355 | L69: 97.14285714 | M69: 91.72082829 | N69: 91.19710381 | O69: 90.67337933 | P69: 90.14965486 | Q69: 89.62593038 | R69: 89.1022059 | S69: 88.57848143 | T69: 88.05475695 | U69: 87.53103247 | V69: 87.00730799 | W69: 87.53103247 | X69: 87.35645765 | Y69: 87.29826604 | Z69: 87.39525205 | AA69: 87.34999191 | AB69: 87.34783667 | AC69: 87.36436021 | AD69: 87.35406293 | AE69: 87.35541994 | AF69: 87.35794769 | AG69: 87.35581019 | AH69: 87.3563926 | AI69: 87.35671683 | AJ69: 87.35630654 | AK69: 87.35647199 | AL69: 87.35649845 | AM69: 87.35642566 | AN69: 87.35646537 | AO69: 87.35646316 | AP69: 87.3564514 | AQ69: 87.35645997 | AR69: 87.35645818 | AS69: 87.35645652 | AT69: 87.35645822 | AU69: 87.35645764 | AV69: 87.35645746 | AW69: 87.35645777 | AX69: 87.35645762 | AY69: 87.35645762 | AZ69: 87.35645767 | BA69: 87.35645764
A70: 1600000US1905365 | B70: Bedford city, Iowa | C70: 90.6 | D70: 90.1 | E70: 89.6 | F70: 90.6 | G70: 92.1 | H70: 92.4 | I70: 92.8 | J70: 94.03114187 | K70: 91.20521173 | L70: 91.00840336 | M70: 92.79340308 | N70: 93.03866261 | O70: 93.28392214 | P70: 93.52918166 | Q70: 93.77444119 | R70: 94.01970071 | S70: 94.26496024 | T70: 94.51021976 | U70: 94.75547929 | V70: 95.00073881 | W70: 94.75547929 | X70: 94.83723246 | Y70: 94.86448352 | Z70: 94.81906509 | AA70: 94.84026036 | AB70: 94.84126966 | AC70: 94.8335317 | AD70: 94.83835391 | AE70: 94.83771842 | AF70: 94.83653468 | AG70: 94.83753567 | AH70: 94.83726292 | AI70: 94.83711109 | AJ70: 94.83730323 | AK70: 94.83722575 | AL70: 94.83721335 | AM70: 94.83724744 | AN70: 94.83722885 | AO70: 94.83722988 | AP70: 94.83723539 | AQ70: 94.83723137 | AR70: 94.83723221 | AS70: 94.83723299 | AT70: 94.83723219 | AU70: 94.83723247 | AV70: 94.83723255 | AW70: 94.8372324 | AX70: 94.83723247 | AY70: 94.83723248 | AZ70: 94.83723245 | BA70: 94.83723247
A71: 1600000US1905590 | B71: Belle Plaine city, Iowa | C71: 83.1 | D71: 82.6 | E71: 85.4 | F71: 82.6 | G71: 85 | H71: 88.1 | I71: 87.1 | J71: 85.49497088 | K71: 86.9447454 | L71: 89.40116587 | M71: 89.04737372 | N71: 89.67888017 | O71: 90.31038663 | P71: 90.94189308 | Q71: 91.57339954 | R71: 92.20490599 | S71: 92.83641244 | T71: 93.4679189 | U71: 94.09942535 | V71: 94.73093181 | W71: 94.09942535 | X71: 94.30992751 | Y71: 94.38009489 | Z71: 94.26314925 | AA71: 94.31772388 | AB71: 94.32032267 | AC71: 94.3003986 | AD71: 94.31281505 | AE71: 94.31117878 | AF71: 94.30813081 | AG71: 94.31070821 | AH71: 94.31000593 | AI71: 94.30961499 | AJ71: 94.31010971 | AK71: 94.30991021 | AL71: 94.3098783 | AM71: 94.30996607 | AN71: 94.3099182 | AO71: 94.30992086 | AP71: 94.30993504 | AQ71: 94.3099247 | AR71: 94.30992687 | AS71: 94.30992887 | AT71: 94.30992681 | AU71: 94.30992752 | AV71: 94.30992773 | AW71: 94.30992735 | AX71: 94.30992753 | AY71: 94.30992754 | AZ71: 94.30992747 | BA71: 94.30992752
A72: 1600000US1905635 | B72: Bellevue city, Iowa | C72: 89.4 | D72: 89 | E72: 88.7 | F72: 89.8 | G72: 90.7 | H72: 90.4 | I72: 87.2 | J72: 90.67843354 | K72: 90.77363897 | L72: 91.18705036 | M72: 90.79361541 | N72: 90.9771978 | O72: 91.16078018 | P72: 91.34436257 | Q72: 91.52794495 | R72: 91.71152734 | S72: 91.89510973 | T72: 92.07869211 | U72: 92.2622745 | V72: 92.44585688 | W72: 92.2622745 | X72: 92.32346863 | Y72: 92.34386667 | Z72: 92.30986993 | AA72: 92.32573508 | AB72: 92.32649056 | AC72: 92.32069852 | AD72: 92.32430805 | AE72: 92.32383238 | AF72: 92.32294632 | AG72: 92.32369558 | AH72: 92.32349143 | AI72: 92.32337778 | AJ72: 92.32352159 | AK72: 92.3234636 | AL72: 92.32345432 | AM72: 92.32347984 | AN72: 92.32346592 | AO72: 92.32346669 | AP72: 92.32347082 | AQ72: 92.32346781 | AR72: 92.32346844 | AS72: 92.32346902 | AT72: 92.32346842 | AU72: 92.32346863 | AV72: 92.32346869 | AW72: 92.32346858 | AX72: 92.32346863 | AY72: 92.32346864 | AZ72: 92.32346862 | BA72: 92.32346863
A73: 1600000US1905680 | B73: Belmond city, Iowa | C73: 87.8 | D73: 88.8 | E73: 91 | F73: 93.8 | G73: 91.2 | H73: 91.8 | I73: 91.5 | J73: 90.64386318 | K73: 91.28847157 | L73: 94.25657542 | M73: 93.45715087 | N73: 93.86592539 | O73: 94.27469991 | P73: 94.68347443 | Q73: 95.09224895 | R73: 95.50102347 | S73: 95.90979798 | T73: 96.3185725 | U73: 96.72734702 | V73: 97.13612154 | W73: 96.72734702 | X73: 96.8636052 | Y73: 96.90902459 | Z73: 96.8333256 | AA73: 96.86865179 | AB73: 96.87033399 | AC73: 96.85743713 | AD73: 96.86547431 | AE73: 96.86441514 | AF73: 96.86244219 | AG73: 96.86411055 | AH73: 96.86365596 | AI73: 96.8634029 | AJ73: 96.86372314 | AK73: 96.863594 | AL73: 96.86357335 | AM73: 96.86363016 | AN73: 96.86359917 | AO73: 96.86360089 | AP73: 96.86361007 | AQ73: 96.86360338 | AR73: 96.86360478 | AS73: 96.86360608 | AT73: 96.86360475 | AU73: 96.8636052 | AV73: 96.86360534 | AW73: 96.8636051 | AX73: 96.86360521 | AY73: 96.86360522 | AZ73: 96.86360518 | BA73: 96.8636052
A74: 1600000US1905770 | B74: Bennett city, Iowa | C74: 92.9 | D74: 90.8 | E74: 89.6 | F74: 88 | G74: 85.4 | H74: 84.5 | I74: 86.1 | J74: 91.81494662 | K74: 93.83561644 | L74: 93.75 | M74: 90.78252458 | N74: 90.98479154 | O74: 91.1870585 | P74: 91.38932545 | Q74: 91.59159241 | R74: 91.79385937 | S74: 91.99612633 | T74: 92.19839329 | U74: 92.40066025 | V74: 92.60292721 | W74: 92.40066025 | X74: 92.46808257 | Y74: 92.49055667 | Z74: 92.45309983 | AA74: 92.47057969 | AB74: 92.47141206 | AC74: 92.46503053 | AD74: 92.46900743 | AE74: 92.46848334 | AF74: 92.4675071 | AG74: 92.46833262 | AH74: 92.46810769 | AI74: 92.46798247 | AJ74: 92.46814092 | AK74: 92.46807703 | AL74: 92.46806681 | AM74: 92.46809492 | AN74: 92.46807958 | AO74: 92.46808044 | AP74: 92.46808498 | AQ74: 92.46808167 | AR74: 92.46808236 | AS74: 92.468083 | AT74: 92.46808234 | AU74: 92.46808257 | AV74: 92.46808264 | AW74: 92.46808252 | AX74: 92.46808257 | AY74: 92.46808258 | AZ74: 92.46808256 | BA74: 92.46808257
A75: 1600000US1905905 | B75: Benton city, Iowa | C75: 90.7 | D75: 85.4 | E75: 87.9 | F75: 92.3 | G75: 94.4 | H75: 91.9 | I75: 87.2 | J75: 90.90909091 | K75: 90.24390244 | L75: 88.23529412 | M75: 90.2178427 | N75: 90.27220888 | O75: 90.32657505 | P75: 90.38094122 | Q75: 90.4353074 | R75: 90.48967357 | S75: 90.54403975 | T75: 90.59840592 | U75: 90.65277209 | V75: 90.70713827 | W75: 90.65277209 | X75: 90.67089415 | Y75: 90.67693484 | Z75: 90.66686703 | AA75: 90.67156534 | AB75: 90.67178907 | AC75: 90.67007381 | AD75: 90.67114274 | AE75: 90.67100187 | AF75: 90.67073947 | AG75: 90.67096136 | AH75: 90.6709009 | AI75: 90.67086725 | AJ75: 90.67090984 | AK75: 90.67089266 | AL75: 90.67088991 | AM75: 90.67089747 | AN75: 90.67089335 | AO75: 90.67089358 | AP75: 90.6708948 | AQ75: 90.67089391 | AR75: 90.6708941 | AS75: 90.67089427 | AT75: 90.67089409 | AU75: 90.67089415 | AV75: 90.67089417 | AW75: 90.67089414 | AX75: 90.67089415 | AY75: 90.67089415 | AZ75: 90.67089415 | BA75: 90.67089415
A76: 1600000US1906040 | B76: Berkley city, Iowa | C76: 84 | D76: 82.8 | E76: 75 | F76: 75 | G76: 75 | H76: 70 | I76: 78.9 | J76: 68.75 | K76: 73.33333333 | L76: 72.72727273 | M76: 69.1420202 | N76: 67.97674013 | O76: 66.81146006 | P76: 65.64617998 | Q76: 64.48089991 | R76: 63.31561983 | S76: 62.15033976 | T76: 60.98505969 | U76: 59.81977961 | V76: 58.65449954 | W76: 59.81977961 | X76: 59.43135292 | Y76: 59.30187736 | Z76: 59.51766997 | AA76: 59.41696675 | AB76: 59.41217136 | AC76: 59.44893602 | AD76: 59.42602471 | AE76: 59.42904403 | AF76: 59.43466826 | AG76: 59.42991233 | AH76: 59.43120821 | AI76: 59.4319296 | AJ76: 59.43101671 | AK76: 59.43138484 | AL76: 59.43144372 | AM76: 59.43128176 | AN76: 59.4313701 | AO76: 59.43136519 | AP76: 59.43133902 | AQ76: 59.4313581 | AR76: 59.4313541 | AS76: 59.43135041 | AT76: 59.43135421 | AU76: 59.43135291 | AV76: 59.43135251 | AW76: 59.43135321 | AX76: 59.43135287 | AY76: 59.43135286 | AZ76: 59.43135298 | BA76: 59.43135291
A77: 1600000US1906085 | B77: Bernard city, Iowa | C77: 96.9 | D77: 93.2 | E77: 90.6 | F77: 94.2 | G77: 93.1 | H77: 93.5 | I77: 96.6 | J77: 97.87234043 | K77: 98.36065574 | L77: 98.46153846 | M77: 98.41745808 | N77: 98.98800437 | O77: 99.55855066 | P77: 100 | Q77: 100 | R77: 100 | S77: 100 | T77: 100 | U77: 100 | V77: 100 | W77: 100 | X77: 100 | Y77: 100 | Z77: 100 | AA77: 100 | AB77: 100 | AC77: 100 | AD77: 100 | AE77: 100 | AF77: 100 | AG77: 100 | AH77: 100 | AI77: 100 | AJ77: 100 | AK77: 100 | AL77: 100 | AM77: 100 | AN77: 100 | AO77: 100 | AP77: 100 | AQ77: 100 | AR77: 100 | AS77: 100 | AT77: 100 | AU77: 100 | AV77: 100 | AW77: 100 | AX77: 100 | AY77: 100 | AZ77: 100 | BA77: 100
A78: 1600000US1906175 | B78: Bertram city, Iowa | C78: 94.8 | D78: 94.9 | E78: 93.7 | F78: 93.6 | G78: 93.3 | H78: 96 | I78: 95.7 | J78: 94.140625 | K78: 94.31818182 | L78: 94 | M78: 94.44356061 | N78: 94.44313877 | O78: 94.44271694 | P78: 94.44229511 | Q78: 94.44187328 | R78: 94.44145145 | S78: 94.44102961 | T78: 94.44060778 | U78: 94.44018595 | V78: 94.43976412 | W78: 94.44018595 | X78: 94.44004534 | Y78: 94.43999847 | Z78: 94.44007659 | AA78: 94.44004013 | AB78: 94.4400384 | AC78: 94.4400517 | AD78: 94.44004341 | AE78: 94.4400445 | AF78: 94.44004654 | AG78: 94.44004482 | AH78: 94.44004529 | AI78: 94.44004555 | AJ78: 94.44004522 | AK78: 94.44004535 | AL78: 94.44004537 | AM78: 94.44004531 | AN78: 94.44004535 | AO78: 94.44004534 | AP78: 94.44004533 | AQ78: 94.44004534 | AR78: 94.44004534 | AS78: 94.44004534 | AT78: 94.44004534 | AU78: 94.44004534 | AV78: 94.44004534 | AW78: 94.44004534 | AX78: 94.44004534 | AY78: 94.44004534 | AZ78: 94.44004534 | BA78: 94.44004534
A79: 1600000US1906355 | B79: Bettendorf city, Iowa | C79: 95.6 | D79: 95.4 | E79: 96 | F79: 96.4 | G79: 96.6 | H79: 97 | I79: 97.3 | J79: 96.26303372 | K79: 96.68739401 | L79: 96.4744425 | M79: 97.08238399 | N79: 97.21145617 | O79: 97.34052835 | P79: 97.46960052 | Q79: 97.5986727 | R79: 97.72774488 | S79: 97.85681705 | T79: 97.98588923 | U79: 98.11496141 | V79: 98.24403358 | W79: 98.11496141 | X79: 98.15798547 | Y79: 98.17232682 | Z79: 98.14842456 | AA79: 98.15957895 | AB79: 98.16011011 | AC79: 98.15603787 | AD79: 98.15857564 | AE79: 98.15824121 | AF79: 98.15761824 | AG79: 98.15814503 | AH79: 98.1580015 | AI79: 98.15792159 | AJ79: 98.15802271 | AK79: 98.15798193 | AL79: 98.15797541 | AM79: 98.15799335 | AN79: 98.15798356 | AO79: 98.15798411 | AP79: 98.15798701 | AQ79: 98.15798489 | AR79: 98.15798533 | AS79: 98.15798574 | AT79: 98.15798532 | AU79: 98.15798547 | AV79: 98.15798551 | AW79: 98.15798543 | AX79: 98.15798547 | AY79: 98.15798547 | AZ79: 98.15798546 | BA79: 98.15798547
A80: 1600000US1906490 | B80: Bevington city, Iowa | C80: 100 | D80: 81.8 | E80: 88 | F80: 89.3 | G80: 84.2 | H80: 79.3 | I80: 90 | J80: 76.31578947 | K80: 82.05128205 | L80: 83.33333333 | M80: 78.44797121 | N80: 77.17850407 | O80: 75.90903693 | P80: 74.63956979 | Q80: 73.37010265 | R80: 72.1006355 | S80: 70.83116836 | T80: 69.56170122 | U80: 68.29223408 | V80: 67.02276694 | W80: 68.29223408 | X80: 67.86907837 | Y80: 67.72802646 | Z80: 67.96311297 | AA80: 67.85340593 | AB80: 67.84818179 | AC80: 67.88823356 | AD80: 67.86327376 | AE80: 67.86656304 | AF80: 67.87269012 | AG80: 67.86750897 | AH80: 67.86892071 | AI80: 67.8697066 | AJ80: 67.8687121 | AK80: 67.86911314 | AL80: 67.86917728 | AM80: 67.86900084 | AN80: 67.86909708 | AO80: 67.86909173 | AP80: 67.86906322 | AQ80: 67.86908401 | AR80: 67.86907965 | AS80: 67.86907563 | AT80: 67.86907977 | AU80: 67.86907835 | AV80: 67.86907791 | AW80: 67.86907868 | AX80: 67.86907831 | AY80: 67.8690783 | AZ80: 67.86907843 | BA80: 67.86907835
A81: 1600000US1906625 | B81: Birmingham city, Iowa | C81: 86 | D81: 88.5 | E81: 88.5 | F81: 88.9 | G81: 92.1 | H81: 94.8 | I81: 93.4 | J81: 94.58823529 | K81: 94.31818182 | L81: 91.40271493 | M81: 95.78400932 | N81: 96.60820862 | O81: 97.43240791 | P81: 98.25660721 | Q81: 99.0808065 | R81: 99.9050058 | S81: 100 | T81: 100 | U81: 100 | V81: 100 | W81: 100 | X81: 100 | Y81: 100 | Z81: 100 | AA81: 100 | AB81: 100 | AC81: 100 | AD81: 100 | AE81: 100 | AF81: 100 | AG81: 100 | AH81: 100 | AI81: 100 | AJ81: 100 | AK81: 100 | AL81: 100 | AM81: 100 | AN81: 100 | AO81: 100 | AP81: 100 | AQ81: 100 | AR81: 100 | AS81: 100 | AT81: 100 | AU81: 100 | AV81: 100 | AW81: 100 | AX81: 100 | AY81: 100 | AZ81: 100 | BA81: 100
A82: 1600000US1906760 | B82: Blairsburg city, Iowa | C82: 95.7 | D82: 93.5 | E82: 91.3 | F82: 95 | G82: 95.8 | H82: 93.4 | I82: 94.8 | J82: 97.32142857 | K82: 97.58064516 | L82: 97.16312057 | M82: 97.45117757 | N82: 97.86838814 | O82: 98.28559871 | P82: 98.70280928 | Q82: 99.12001985 | R82: 99.53723042 | S82: 99.95444099 | T82: 100 | U82: 100 | V82: 100 | W82: 100 | X82: 100 | Y82: 100 | Z82: 100 | AA82: 100 | AB82: 100 | AC82: 100 | AD82: 100 | AE82: 100 | AF82: 100 | AG82: 100 | AH82: 100 | AI82: 100 | AJ82: 100 | AK82: 100 | AL82: 100 | AM82: 100 | AN82: 100 | AO82: 100 | AP82: 100 | AQ82: 100 | AR82: 100 | AS82: 100 | AT82: 100 | AU82: 100 | AV82: 100 | AW82: 100 | AX82: 100 | AY82: 100 | AZ82: 100 | BA82: 100
A83: 1600000US1906805 | B83: Blairstown city, Iowa | C83: 90.1 | D83: 84.6 | E83: 90.1 | F83: 88.9 | G83: 88.9 | H83: 85.8 | I83: 88.5 | J83: 89.55512573 | K83: 90.81836327 | L83: 92.32245681 | M83: 90.84313734 | N83: 91.18559966 | O83: 91.52806198 | P83: 91.8705243 | Q83: 92.21298663 | R83: 92.55544895 | S83: 92.89791127 | T83: 93.24037359 | U83: 93.58283591 | V83: 93.92529823 | W83: 93.58283591 | X83: 93.69699001 | Y83: 93.73504138 | Z83: 93.67162243 | AA83: 93.70121794 | AB83: 93.70262725 | AC83: 93.69182254 | AD83: 93.69855591 | AE83: 93.69766857 | AF83: 93.69601568 | AG83: 93.69741339 | AH83: 93.69703254 | AI83: 93.69682054 | AJ83: 93.69708882 | AK83: 93.69698063 | AL83: 93.69696333 | AM83: 93.69701093 | AN83: 93.69698496 | AO83: 93.69698641 | AP83: 93.6969941 | AQ83: 93.69698849 | AR83: 93.69698967 | AS83: 93.69699075 | AT83: 93.69698964 | AU83: 93.69699002 | AV83: 93.69699014 | AW83: 93.69698993 | AX83: 93.69699003 | AY83: 93.69699003 | AZ83: 93.69699 | BA83: 93.69699002
A84: 1600000US1906850 | B84: Blakesburg city, Iowa | C84: 83.1 | D84: 83.7 | E84: 82.8 | F84: 83.1 | G84: 84.3 | H84: 85.9 | I84: 85.9 | J84: 83.60128617 | K84: 88.671875 | L84: 87.16814159 | M84: 87.67155795 | N84: 88.18927207 | O84: 88.7069862 | P84: 89.22470032 | Q84: 89.74241444 | R84: 90.26012856 | S84: 90.77784268 | T84: 91.29555681 | U84: 91.81327093 | V84: 92.33098505 | W84: 91.81327093 | X84: 91.9858423 | Y84: 92.0433661 | Z84: 91.94749311 | AA84: 91.99223384 | AB84: 91.99436435 | AC84: 91.97803043 | AD84: 91.98820954 | AE84: 91.98686811 | AF84: 91.98436936 | AG84: 91.98648233 | AH84: 91.9859066 | AI84: 91.9855861 | AJ84: 91.98599168 | AK84: 91.98582812 | AL84: 91.98580197 | AM84: 91.98587392 | AN84: 91.98583467 | AO84: 91.98583685 | AP84: 91.98584848 | AQ84: 91.98584 | AR84: 91.98584178 | AS84: 91.98584342 | AT84: 91.98584173 | AU84: 91.98584231 | AV84: 91.98584249 | AW84: 91.98584218 | AX84: 91.98584233 | AY84: 91.98584233 | AZ84: 91.98584228 | BA84: 91.98584231
A85: 1600000US1906895 | B85: Blanchard city, Iowa | C85: 86.5 | D85: 80.8 | E85: 88 | F85: 88.9 | G85: 89.7 | H85: 78.6 | I85: 80 | J85: 84.21052632 | K85: 75 | L85: 70.58823529 | M85: 74.21143447 | N85: 72.75353598 | O85: 71.29563749 | P85: 69.837739 | Q85: 68.37984051 | R85: 66.92194202 | S85: 65.46404353 | T85: 64.00614504 | U85: 62.54824655 | V85: 61.09034806 | W85: 62.54824655 | X85: 62.06228039 | Y85: 61.90029167 | Z85: 62.17027287 | AA85: 62.04428164 | AB85: 62.03828206 | AC85: 62.08427886 | AD85: 62.05561419 | AE85: 62.0593917 | AF85: 62.06642825 | AG85: 62.06047805 | AH85: 62.06209933 | AI85: 62.06300188 | AJ85: 62.06185975 | AK85: 62.06232032 | AL85: 62.06239398 | AM85: 62.06219135 | AN85: 62.06230188 | AO85: 62.06229574 | AP85: 62.06226299 | AQ85: 62.06228687 | AR85: 62.06228187 | AS85: 62.06227724 | AT85: 62.06228199 | AU85: 62.06228037 | AV85: 62.06227987 | AW85: 62.06228074 | AX85: 62.06228033 | AY85: 62.06228031 | AZ85: 62.06228046 | BA85: 62.06228037
A86: 1600000US1906940 | B86: Blencoe city, Iowa | C86: 83.4 | D86: 81.3 | E86: 75.5 | F86: 79.5 | G86: 82 | H86: 90.4 | I86: 91.3 | J86: 94.15204678 | K86: 95.23809524 | L86: 93.82716049 | M86: 97.61077509 | N86: 99.60151051 | O86: 100 | P86: 100 | Q86: 100 | R86: 100 | S86: 100 | T86: 100 | U86: 100 | V86: 100 | W86: 100 | X86: 100 | Y86: 100 | Z86: 100 | AA86: 100 | AB86: 100 | AC86: 100 | AD86: 100 | AE86: 100 | AF86: 100 | AG86: 100 | AH86: 100 | AI86: 100 | AJ86: 100 | AK86: 100 | AL86: 100 | AM86: 100 | AN86: 100 | AO86: 100 | AP86: 100 | AQ86: 100 | AR86: 100 | AS86: 100 | AT86: 100 | AU86: 100 | AV86: 100 | AW86: 100 | AX86: 100 | AY86: 100 | AZ86: 100 | BA86: 100
A87: 1600000US1906985 | B87: Blockton city, Iowa | C87: 86.8 | D87: 89.5 | E87: 92.9 | F87: 92.5 | G87: 93.6 | H87: 90.5 | I87: 92.8 | J87: 92.48120301 | K87: 95 | L87: 93.96551724 | M87: 95.2945277 | N87: 95.89268328 | O87: 96.49083885 | P87: 97.08899443 | Q87: 97.68715001 | R87: 98.28530558 | S87: 98.88346116 | T87: 99.48161674 | U87: 100 | V87: 100 | W87: 99.82720558 | X87: 99.94240186 | Y87: 99.92320248 | Z87: 99.89760331 | AA87: 99.92106922 | AB87: 99.91395833 | AC87: 99.91087695 | AD87: 99.9153015 | AE87: 99.91337893 | AF87: 99.91318579 | AG87: 99.91395541 | AH87: 99.91350671 | AI87: 99.9135493 | AJ87: 99.91367047 | AK87: 99.9135755 | AL87: 99.91359842 | AM87: 99.9136148 | AN87: 99.91359624 | AO87: 99.91360315 | AP87: 99.91360473 | AQ87: 99.91360137 | AR87: 99.91360309 | AS87: 99.91360306 | AT87: 99.91360251 | AU87: 99.91360289 | AV87: 99.91360282 | AW87: 99.91360274 | AX87: 99.91360281 | AY87: 99.91360279 | AZ87: 99.91360278 | BA87: 99.9136028
A88: 1600000US1907030 | B88: Bloomfield city, Iowa | C88: 86.5 | D88: 87 | E88: 87 | F88: 87.4 | G88: 92 | H88: 92.7 | I88: 94.7 | J88: 94.21906694 | K88: 94.2014742 | L88: 93.33669864 | M88: 96.59358871 | N88: 97.62774593 | O88: 98.66190315 | P88: 99.69606037 | Q88: 100 | R88: 100 | S88: 100 | T88: 100 | U88: 100 | V88: 100 | W88: 100 | X88: 100 | Y88: 100 | Z88: 100 | AA88: 100 | AB88: 100 | AC88: 100 | AD88: 100 | AE88: 100 | AF88: 100 | AG88: 100 | AH88: 100 | AI88: 100 | AJ88: 100 | AK88: 100 | AL88: 100 | AM88: 100 | AN88: 100 | AO88: 100 | AP88: 100 | AQ88: 100 | AR88: 100 | AS88: 100 | AT88: 100 | AU88: 100 | AV88: 100 | AW88: 100 | AX88: 100 | AY88: 100 | AZ88: 100 | BA88: 100
A89: 1600000US1907075 | B89: Blue Grass city, Iowa | C89: 91 | D89: 90.3 | E89: 88.9 | F89: 89.1 | G89: 88.6 | H89: 89 | I89: 90.1 | J89: 92.33937397 | K89: 93.11531842 | L89: 91.54589372 | M89: 91.90729669 | N89: 92.18133997 | O89: 92.45538326 | P89: 92.72942654 | Q89: 93.00346983 | R89: 93.27751312 | S89: 93.5515564 | T89: 93.82559969 | U89: 94.09964298 | V89: 94.37368626 | W89: 94.09964298 | X89: 94.19099074 | Y89: 94.22143999 | Z89: 94.17069124 | AA89: 94.19437399 | AB89: 94.19550174 | AC89: 94.18685565 | AD89: 94.19224379 | AE89: 94.19153373 | AF89: 94.19021106 | AG89: 94.19132953 | AH89: 94.19102477 | AI89: 94.19085512 | AJ89: 94.19106981 | AK89: 94.19098323 | AL89: 94.19096939 | AM89: 94.19100748 | AN89: 94.1909867 | AO89: 94.19098785 | AP89: 94.19099401 | AQ89: 94.19098952 | AR89: 94.19099046 | AS89: 94.19099133 | AT89: 94.19099044 | AU89: 94.19099074 | AV89: 94.19099084 | AW89: 94.19099067 | AX89: 94.19099075 | AY89: 94.19099075 | AZ89: 94.19099072 | BA89: 94.19099074
A90: 1600000US1907210 | B90: Bode city, Iowa | C90: 86.8 | D90: 81.8 | E90: 80.8 | F90: 82.9 | G90: 77.5 | H90: 86.3 | I90: 90.2 | J90: 92.85714286 | K90: 88.23529412 | L90: 87.70491803 | M90: 90.31563668 | N90: 91.1894369 | O90: 92.06323711 | P90: 92.93703732 | Q90: 93.81083754 | R90: 94.68463775 | S90: 95.55843797 | T90: 96.43223818 | U90: 97.3060384 | V90: 98.17983861 | W90: 97.3060384 | X90: 97.59730514 | Y90: 97.69439405 | Z90: 97.53257919 | AA90: 97.60809279 | AB90: 97.61168868 | AC90: 97.58412022 | AD90: 97.60130056 | AE90: 97.59903649 | AF90: 97.59481909 | AG90: 97.59838538 | AH90: 97.59741365 | AI90: 97.59687271 | AJ90: 97.59755725 | AK90: 97.5972812 | AL90: 97.59723705 | AM90: 97.5973585 | AN90: 97.59729225 | AO90: 97.59729594 | AP90: 97.59731556 | AQ90: 97.59730125 | AR90: 97.59730425 | AS90: 97.59730702 | AT90: 97.59730417 | AU90: 97.59730515 | AV90: 97.59730545 | AW90: 97.59730492 | AX90: 97.59730517 | AY90: 97.59730518 | AZ90: 97.59730509 | BA90: 97.59730515
A91: 1600000US1907345 | B91: Bonaparte city, Iowa | C91: 88.5 | D91: 89.3 | E91: 86 | F91: 85.2 | G91: 89.1 | H91: 90.4 | I91: 86.8 | J91: 90.59561129 | K91: 92.81045752 | L91: 90.41916168 | M91: 91.27664685 | N91: 91.70648754 | O91: 92.13632824 | P91: 92.56616893 | Q91: 92.99600962 | R91: 93.42585031 | S91: 93.855691 | T91: 94.28553169 | U91: 94.71537239 | V91: 95.14521308 | W91: 94.71537239 | X91: 94.85865262 | Y91: 94.90641269 | Z91: 94.82681257 | AA91: 94.86395929 | AB91: 94.86572818 | AC91: 94.85216668 | AD91: 94.86061805 | AE91: 94.8595043 | AF91: 94.85742968 | AG91: 94.85918401 | AH91: 94.858706 | AI91: 94.8584399 | AJ91: 94.85877664 | AK91: 94.85864084 | AL91: 94.85861913 | AM91: 94.85867887 | AN91: 94.85864628 | AO91: 94.85864809 | AP91: 94.85865775 | AQ91: 94.85865071 | AR91: 94.85865218 | AS91: 94.85865354 | AT91: 94.85865214 | AU91: 94.85865262 | AV91: 94.85865277 | AW91: 94.85865251 | AX91: 94.85865263 | AY91: 94.85865264 | AZ91: 94.8586526 | BA91: 94.85865262
